Workbook

Sheet Main
A2: 日期 | B2: 版本号 | C2: 编制记录 | D2: 编制人
A3: 20190721 | B3: 2 | C3: 初始化建立 | D3: 姚立
A4: 20170722 | B4: 2.1 | C4: 增加插入VB控件 | D4: 姚立
A5: 20190723 | B5: 2.1 | C5: 完善设备列表 | D5: 戚如钢
A6: 20190723 | B6: 2.2 | C6: 修正BUG，增加基础变量 | D6: 姚立
A7: 20190723 | B7: 2.3 | C7: VB编写错误修改 | D7: 姚立
A8: 20190723 | B8: 2.4 | C8: 修正写入BUG | D8: 姚立
A9: 20190724 | B9: 2.5 | C9: 增加变量修正BUG | D9: 姚立
A10: 20190808 | B10: 2.6 | C10: 修正显示问题 | D10: 姚立
A11: 20190812 | B11: 2.7 | C11: 修正现场发现的问题 | D11: 姚立
A12: 20190820 | B12: 2.8 | C12: 增加功能，调整错误 | D12: 姚立
C13: 增加电源模板
C14: 增加前端接线自动检索生成公式，并自动附加前缀
C15: 增加DDC箱体名称
C16: 调整偏置格式
C17: 4种点位模块，颜色区分
C18: 增加页眉页码
C19: 调整偏置格式
C20: 检查BASE模板内字体格式，字体大小
A21: 20190820 | B21: 2.9 | C21: 修正BUG，增加基础变量 | D21: 姚立
A22: 20190821 | B22: 2.91 | C22: 补充吾悦专用变量 | D22: 姚立
A23: 20190903 | B23: 2.92 | C23: 优化声明生成公式（结构整理） | D23: 姚立
A24: 20190904 | B24: 2.93 | C24: 修正1601R与0801R的声明表地址错误问题 | D24: 戚如钢
A25: 20190905 | B25: 2.94 | C25: 修正1601R与0801R的声明表地址另一错误问题 | D25: 戚如钢
A26: 20191003 | B26: 2.95 | C26: 加入主CPU/从CPU/OPCDA声明，适配injoydemov2.0 | D26: 姚立
A27: 20191004 | B27: 2.96 | C27: 优化OPCDA区程序声明备注 | D27: 姚立
A28: 20191006 | B28: 2.97 | C28: 优化OPCDA区数据类型地址自动累加方式 | D28: 姚立
C29: 增加OPCDA区数据类型整除性验证行
C30: 增加主CPU/从CPU接收发送对应地址计算
C31: 增加OPCDA区非直接声明变量自动生成列
A32: 20191008 | B32: 2.98 | C32: 增加从CPU接收主CPU心跳数据 | D32: 姚立
A33: 20191009 | B33: 2.99 | C33: 匹配 | D33: 姚立
A34: 20200509 | B34: 3.1 | C34: 增加EXC6000接线表，增加程序中间变量声明，主从CPU修改变量 | D34: 戴锦豪
A35: 20200509 | B35: 3.11 | C35: 增加冷机声明示例，增加EXC61610进入插入脚本 | D35: 姚立
A36: 20200618 | B36: 3.2 | C36: 增加程序中间变量声明，主从CPU修改变量，Bsae结构整理变大 | D36: 戴锦豪
A37: 20210202 | B37: 3.3 | C37: 增加程序中间变量声明，主从CPU修改变量，Bsae结构整理变大 | D37: 戴锦豪
A38: 20210819 | B38: 3.4 | C38: 修复了表格中声明间隙；EXC61610modbus地址调整；其他编写bug调整 | D38: 潘平
A39: 20211203 | B39: 3.5 | C39: 增加EXC-61608-BT模块声明，应用于蓝牙功能，点位变量调整为中间变量，增加赋值公式 | D39: 潘平
A40: 20211217 | B40: 3.51 | C40: 增加EXC-61610-BT模块声明，应用于蓝牙功能，点位变量调整为中间变量，增加赋值公式 | D40: 潘平
A41: 20220507 | B41: 3.6 | C41: 增加CPU及电源模块样例，完善调试信息图 | D41: 潘平
C42: 拓展设备点位处数据验证长度
C43: 增加EXC-61610-BT模块施工段做白处理，减少现场误解
C44: 增加IOM 0401U E5模块声明
A45: 20221202 | B45: 3.61 | C45: 增加EXC-60006模块声明 | D45: 潘平
A46: 20221206 | B46: 3.62 | C46: 修复了表格中EXC6000模块modbus地址错误问题 | D46: 潘平
A47: 20221222 | B47: 3.63 | C47: 增加EXC-61610 C8、EXC-61610 D8模块 | D47: 潘平
C48: 调整内容：为模拟量端子增设DC24V电源输出，原向下版本暂不删除，用以过渡项目
A49: 20230524 | B49: 3.64 | C49: 增加9键面板模块 | D49: 戴锦豪

Sheet List
A1: 序号 | B1: 总线编号 | D1: 设备缩写 | G1: 设备编号 | I1: 功能名 | M1: 接线备注 | Q1: 序号 | R1: 设备索引
A2: =ROW()-1 -> 1 | B2: 总线01 | C2: L01 | D2: <空调系统>> | G2: 地下三层 | H2: B3 | I2: <电控箱功能> | M2: 功能名 | N2: 端子编号 | O2: 线色备注 | Q2: 1 | R2: AC24V电源 | S2: AC24V
A3: =ROW()-1 -> 2 | B3: 总线02 | C3: L02 | D3: F新风机组 | E3: FAU | F3: Fresh air unit | G3: 地下二层 | H3: B2 | I3: 运行状态 | J3: R | K3: Run | Q3: 2 | R3: DC24V电源 | S3: DC24V
A4: 3 | B4: 总线03 | C4: L03 | D4: P新风机组 | E4: PAU | F4: 术语备选 | G4: 地下一层 | H4: B1 | I4: 故障状态 | J4: F | K4: Fault | Q4: 3 | R4: 8路数字量输入模块 | S4: IOM.0801R
A5: 4 | B5: 总线04 | C5: L04 | D5: M新风机组 | E5: MAU | F5: 术语备选 | G5: 夹层 | H5: BM | I5: 自动状态 | J5: A | K5: Auto | Q5: 4 | R5: 16路数字量输入模块 | S5: IOM.1601R
A6: 5 | B6: 总线05 | C6: L05 | D6: 全热交换机组 | E6: HEU | F6: Heat exchange unit | G6: 一层 | H6: 01 | I6: 启停控制 | J6: C | K6: Control | Q6: 5 | R6: 8路数字量输出模块 | S6: IOM.0801D
A7: 6 | B7: 总线06 | C7: L06 | D7: 风机盘管 | E7: FCU | F7: Fan Coil Units | G7: 二层 | H7: 02 | I7: 主泵运行状态 | J7: R1 | Q7: 6 | R7: 16路数字量输出模块 | S7: IOM.1601D
A8: 7 | B8: 总线07 | C8: L07 | D8: 空调机组 | E8: AHU | F8: Air handling unit | G8: 三层 | H8: 03 | I8: 主泵故障状态 | J8: F1 | Q8: 7 | R8: 4路模拟量输入模块 | S8: IOM.0401U
A9: 8 | B9: 总线08 | C9: L08 | D9: <送排风系统>> | G9: 四层 | H9: 04 | I9: 主泵启停控制 | J9: C1 | Q9: 8 | R9: 8路模拟量输入模块 | S9: IOM.0801U
A10: 9 | B10: 总线09 | C10: L09 | D10: 送风机 | E10: SAF | F10: Supply fan | G10: 五层 | H10: 05 | I10: 备泵运行状态 | J10: R2 | Q10: 9 | R10: 4路模拟量输出模块 | S10: IOM.0401A
A11: 10 | B11: ··· | C11: ··· | D11: 排风机 | E11: EAF | F11: Air exhaust fan | H11: ··· | I11: 备泵故障状态 | J11: F2 | Q11: 10 | R11: 8路数字量输入模块 | S11: IOM.0801R OV
A12: 11 | B12: 总线XX | C12: LXX | D12: 排烟机 | E12: ESF | F12: Somke exhaust fan | G12: 屋面 | H12: RF | I12: 备泵启停控制 | J12: C2 | Q12: 11 | R12: 16路数字量输入模块 | S12: IOM.1601R OV
A13: 12 | D13: 双速风机 | E13: EMF | F13: Multipurpose exhaust fan | I13: 变频器运行 | J13: VR | K13: VFD run | Q13: 12 | R13: 8路数字量输出模块 | S13: IOM.0801D OV
A14: 13 | D14: <冷热源系统> | I14: 变频器故障 | J14: VF | K14: VFD fault | Q14: 13 | R14: 16路数字量输出模块 | S14: IOM.1601D OV
A15: 14 | D15: 冷水机组 | E15: CHR | F15: CHILLER | I15: 变频器启停 | J15: VC | K15: VFD control | Q15: 14 | R15: 16路数字量输出模块 | S15: IOM.0401U OV
A16: 15 | D16: 风冷热泵机组 | E16: CHR | F16: 按冷机缩写命名 | I16: 变频器频率控制 | J16: VFC | K16: VFD frequency control | Q16: 15 | R16: 16路数字量输入输出模块 | S16: IOM.1601RD | T16: 暂未制作
A17: 16 | D17: 水源热泵机组 | E17: CHR | F17: 按冷机缩写命名 | I17: 变频器频率反馈 | J17: VFB | K17: VFD frequency feedback | Q17: 16 | R17: 8路模拟量输入模块 | S17: IOM 0801U E5
A18: 17 | D18: 地源热泵机组 | E18: CHR | F18: 按冷机缩写命名 | I18: 高速运行状态 | J18: R1 | Q18: 17 | R18: 组合模块 | S18: EXC-61610
A19: 18 | D19: 冷冻水泵 | E19: CHP | F19: Chilled water pump | I19: 高速故障状态 | J19: F1 | Q19: 18 | R19: 4路照明开关模块 | S19: BRSD_0416
A20: 19 | D20: 冷却水泵 | E20: CLP | F20: Cooling water pump | I20: 高速启停控制 | J20: C1 | Q20: 19 | R20: 8路照明开关模块 | S20: BRSD_0816
A21: 20 | D21: 蝶阀 | E21: BFV | F21: Butterfly valve | I21: 低速运行状态 | J21: R2 | Q21: 20 | R21: 12路照明开关模块 | S21: BRSD_1216
A22: 21 | D22: 旁通阀 | E22: BPV | F22: Bypass valve | I22: 低速故障状态 | J22: F2 | Q22: 21 | R22: 7路数字量输入模块 | S22: BRSI_0702
A23: 22 | D23: 锅炉 | E23: BLR | F23: Boiler | I23: 低速启停控制 | J23: C2 | Q23: 22 | R23: 6键面板 | S23: BRBP_0601A
A24: 23 | D24: 冷却塔 | E24: CLT | F24: Cooling water tower | I24: <风路功能> | Q24: 23
A25: 24 | D25: 冷冻水回路 | E25: CHS | F25: Chilled water system | I25: 风机压差 | J25: FPS | K25: Fan Differential Pressure Switch | Q25: 24
A26: 25 | D26: 冷却水回路 | E26: CLS | F26: Cooling water system | I26: 初效滤网压差 | J26: IPS | K26: initial effect Differential Pressure Switch | Q26: 25
A27: 26 | D27: 一次侧热水回路 | E27: PHS | F27: Primary hot water system | I27: 中效滤网压差 | J27: MPS | K27: Medium effect Differential Pressure Switch | Q27: 26
A28: 27 | D28: 二次侧热水回路 | E28: SHS | F28: Secondary hot water system | I28: 高效滤网压差 | J28: HPS | K28: High effect Differential Pressure Switch | Q28: 27
A29: 28 | D29: 锅炉 | E29: BLR | F29: Boiler | I29: 低温断路开关 | J29: AFS | K29: Antifreeze switch | Q29: 28
A30: 29 | D30: 热水循环泵 | E30: BFP | F30: Boiler feed water pump | I30: 送风温度 | J30: ST | K30: Supply air Temperature | Q30: 29
A31: 30 | D31: 板式换热器 | E31: HEX | F31: Heat exchanger | I31: 回风温度 | J31: RT | K31: Return air Temperature | Q31: 30
A32: 31 | D32: <给排水系统> | I32: 排风温度 | J32: ET | K32: Exhaust air Temperature
A33: 32 | D33: 潜污泵井 | E33: SWP | F33: Submersible sewage pump/sump | I33: 新风温度 | J33: FT | K33: Fresh air Temperature
A34: 33 | D34: 生活水泵 | E34: LWP | F34: Life Water pump | I34: 送风湿度 | J34: SH | K34: Supply air Humidity
A35: 34 | D35: 消防水泵 | E35: FWP | F35: Fire water pump | I35: 回风湿度 | J35: RH | K35: Return air Humidity
A36: 35 | D36: 生活水箱 | E36: LWT | F36: Life water tank | I36: 排风湿度 | J36: EH | K36: Exhaust air Humidity
A37: 36 | D37: 消防水箱 | E37: SWT | F37: Fire water tank | I37: 新风湿度 | J37: FH | K37: Fresh air Humidity
A38: 37 | D38: 其它水箱 | E38: OWT | F38: Other water tank | I38: 露点温度 | J38: DPT | K38: Dew point temperature
A39: 38 | D39: <照明系统>
A40: 39 | D40: 照明控制箱 | E40: LCB | F40: Lighting control box | I40: 送风阀开控制 | J40: SDOC | K40: Supply air Damper open
A41: 40 | D41: 照明调光箱 | E41: LDB | F41: Lighting dimming zone | I41: 送风阀关控制 | J41: SDSC | K41: Supply air Damper shut
A42: 41 | D42: 照明控制区域 | E42: LCZ | F42: Lighting control zone | I42: 回风阀开控制 | J42: RDOC | K42: Return air Damper open
A43: 42 | D43: 智能控制面板 | E43: LCP | F43: Smart lighting panel | I43: 回风阀关控制 | J43: RDSC | K43: Return air Damper shut
A44: 43 | D44: <其它系统> | I44: 排风阀开控制 | J44: EDOC | K44: Exhaust air Damper open
A45: 44 | D45: 扶梯 | E45: LET | F45: level Escalator | I45: 排风阀关控制 | J45: EDSC | K45: Exhaust air Damper shut
A46: 45 | D46: 垂直客梯 | E46: PET | F46: Passenger elevator | I46: 新风阀开控制 | J46: FDOC | K46: Fresh air Damper open
A47: 46 | D47: 垂直货梯 | E47: CET | F47: Cargo elevator | I47: 新风阀关控制 | J47: FDSC | K47: Fresh air Damper shut
A48: 47 | D48: 隔油池 | E48: OSP | F48: oil separator | I48: 送风阀控制 | J48: SDC | K48: Supply air Damper regulation control
A49: 48 | D49: 高压综合主开关柜 | E49: HVM | F49: High voltage main switchgear | I49: 送风阀反馈 | J49: SDB | K49: Supply air Damper regulation feedback
A50: 49 | D50: 高压综合备开关柜 | E50: HVS | F50: High voltage standby switchgear | I50: 回风阀控制 | J50: RDC | K50: Return air Damper regulation control
A51: 50 | D51: 低压综合主配电柜 | E51: LVM | F51: Low voltage main switchgear | I51: 回风阀反馈 | J51: RDB | K51: Return air Damper regulation feedback
A52: 51 | D52: 低压综合备配电柜 | E52: LVS | F52: Low voltage standby switchgear | I52: 排风阀控制 | J52: EDC | K52: Exhaust air Damper regulation control
A53: 52 | D53: 电表 | E53: EM | F53: electricity meter | I53: 排风阀反馈 | J53: EDB | K53: Exhaust air Damper regulation feedback
A54: 53 | D54: 水表 | E54: WM | F54: water meter | I54: 新风阀控制 | J54: FDC | K54: Fresh air Damper regulation control
A55: 54 | D55: 热表 | E55: HM | F55: heat meter | I55: 新风阀反馈 | J55: FDB | K55: Fresh air Damper regulation feedback
A56: 55 | D56: <环境监测系统> | I56: 加湿器开控制 | J56: HFO | K56: Humidifier open
A57: 56 | D57: 室内环境状态 | E57: IES | F57: Indoor environmental state | I57: 加湿器关控制 | J57: HFS | K57: Humidifier shut
A58: 57 | D58: 室外环境状态 | E58: OES | F58: Outdoor environmental state | I58: 加湿器控制 | J58: HFC | K58: Humidifier control
A59: 58 | D59: <吾悦特殊机组> | I59: <水路功能>
A60: 59 | D60: 吊顶式空调机组 | E60: AHU | F60: Fresh air unit | I60: 水阀控制 | J60: WVC | K60: Water Valve control
D61: 风机盘管电磁阀 | E61: FCUV
A62: =ROW()-1 -> 61 | D62: <系统基础>> | I62: 水阀开 | J62: WVO | K62: Water Valve open
A63: 62 | D63: 控制箱 | E63: BOX | I63: 水阀关 | J63: WVS | K63: Water Valve shut
A64: 63 | D64: 控制器 | E64: DEV | F64: Device | I64: 水阀反馈 | J64: WVB | K64: Water Valve Feedback
A65: 64 | D65: 命令 | E65: CMD | I65: 水流开关 | J65: FS | K65: Flow switch
A66: 65 | D66: 风幕机 | E66: FMJ | I66: 超高液位 | J66: SHL | K66: Super high level
A67: 66 | D67: 水幕机 | E67: SMJ | I67: 高液位 | J67: HL | K67: High level
A68: =ROW()-1 -> 67 | I68: 低液位 | J68: LL | K68: Low level
A69: 68 | D69: 补水泵 | E69: RWP | F69: Replenishing water pump | I69: 超低液位 | J69: SLL | K69: Super low level
A70: 69 | D70: 分集水器 | E70: D | F70: distributor | I70: 供水温度 | J70: ST | K70: Supply water temperature
A71: 70 | D71: 变频循环泵 | E71: CHP | I71: 回水温度 | J71: RT | K71: Return water temperature
A72: 71 | I72: 供水压力 | J72: SP | K72: Supply water Pressure
A73: 72 | D73: AI通道 | E73: Device | I73: 回水压力 | J73: RP | K73: Return water Pressure
A74: 73 | I74: 供水流量 | J74: SF | K74: Supply water flow
A75: 74 | I75: 回水流量 | J75: RF | K75: Return water flow
A76: 75 | I76: <照明功能>
A77: 76 | I77: 人体感应开关 | J77: MIS | K77: Mobile induction switch
A78: 77 | I78: 照度读值 | J78: IS | K78: illumination sensor
A79: 78 | I79: 面板按键01 | J79: B01 | K79: Button1
A80: 79 | I80: 面板按键02 | J80: B02 | K80: Button2
A81: 80 | I81: 面板按键03 | J81: B03 | K81: Button3
A82: 81 | I82: 面板按键04 | J82: B04 | K82: Button4
A83: 82 | I83: 面板按键05 | J83: B05 | K83: Button5
A84: 83 | I84: 面板按键06 | J84: B06 | K84: Button6
A85: 84 | I85: 面板按键07 | J85: B07 | K85: Button7
A86: 85 | I86: 面板按键08 | J86: B08 | K86: Button8
A87: 86 | I87: 面板按键09 | J87: B09 | K87: Button9
A88: 87 | I88: 回路开关1 | J88: C01 | K88: Control
A89: 88 | I89: 回路开关2 | J89: C02 | K89: Control
A90: 89 | I90: 回路开关3 | J90: C03 | K90: Control
A91: 90 | I91: 回路开关4 | J91: C04 | K91: Control
A92: 91 | I92: 回路开关5 | J92: C05 | K92: Control
A93: 92 | I93: 回路开关6 | J93: C06 | K93: Control
A94: 93 | I94: 回路开关7 | J94: C07 | K94: Control
A95: 94 | I95: 回路开关8 | J95: C08 | K95: Control
A96: 95 | I96: 回路开关9 | J96: C09 | K96: Control
A97: 96 | I97: 回路开关10 | J97: C10 | K97: Control
A98: 97 | I98: 回路开关11 | J98: C11 | K98: Control
A99: 98 | I99: 回路开关12 | J99: C12 | K99: Control
A100: 99 | I100: 回路开关13 | J100: C13 | K100: Control
A101: 100 | I101: 回路开关14 | J101: C14 | K101: Control
A102: 101 | I102: 回路开关15 | J102: C15 | K102: Control
A103: 102 | I103: 回路开关16 | J103: C16 | K103: Control
A104: 103 | I104: 回路开关17 | J104: C17 | K104: Control
A105: 104 | I105: 回路开关18 | J105: C18 | K105: Control
A106: 105 | I106: 回路开关19 | J106: C19 | K106: Control
A107: 106 | I107: 回路开关20 | J107: C20 | K107: Control
A108: 107 | I108: 回路调节1 | J108: D01 | K108: Dimming
A109: 108 | I109: 回路调节2 | J109: D02 | K109: Dimming
A110: 109 | I110: 回路调节3 | J110: D03 | K110: Dimming
A111: 110 | I111: 回路调节4 | J111: D04 | K111: Dimming
A112: 111 | I112: 回路调节5 | J112: D05 | K112: Dimming
A113: 112 | I113: 回路调节6 | J113: D06 | K113: Dimming
A114: 113 | I114: 回路调节7 | J114: D07 | K114: Dimming
A115: 114 | I115: 回路调节8 | J115: D08 | K115: Dimming
A116: 115 | I116: <电梯功能>
A117: 116 | I117: 上行状态 | J117: US | K117: Upward state
A118: 117 | I118: 下行状态 | J118: DS | K118: Downward state
A119: 118 | I119: <环境功能>
A120: 119 | I120: 照度状态 | J120: I | K120: Illumination
A121: 120 | I121: 温度状态 | J121: T | K121: Temperature
A122: 121 | I122: 湿度状态 | J122: H | K122: Humidity
A123: 122 | I123: 露点温度状态 | J123: DEP | K123: Dew point temperature
A124: 123 | I124: 静压状态 | J124: SPT | K124: Static Pressure Transducer
A125: 124 | I125: 一氧化碳浓度状态 | J125: CO
A126: 125 | I126: 二氧化碳浓度状态 | J126: CO2
A127: 126 | I127: 甲烷浓度状态 | J127: CH4
A128: 127 | I128: 氧气浓度状态 | J128: O2
A129: 128 | I129: 氨气浓度状态 | J129: NH4
A130: 129 | I130: <冷机功能>
A131: 130 | I131: 控制模式 | J131: CM | K131: Control mode
A132: =ROW()-1 -> 131 | I132: 运行状态 | J132: RS | K132: Running State
A133: 132 | I133: 使能输入 | J133: CI | K133: Control Input
A134: 133 | I134: 冷冻出水温度设定 | J134: TS | K134: evaporimeter; Set
A135: 134 | I135: 工况模式 | J135: RM | K135: Running Mode
A136: 135 | I136: 蒸发器进水温度 | J136: CHRT | K136: 冷冻Evaporimeter Return Water Temperature
A137: 136 | I137: 蒸发器出水温度 | J137: CHST | K137: 冷冻Evaporimeter Supply Water Temperature
A138: 137 | I138: 冷凝器进水温度 | J138: CLRT | K138: 冷却Condenser Return Water Temperature
A139: 138 | I139: 冷凝器出水温度 | J139: CLST | K139: 冷却Condenser Supply Water Temperature
A140: 139 | I140: 压缩机出水温度 | J140: CPST | K140: Compressor Supply Water Temperature
A141: 140 | I141: 压缩机吸气温度 | J141: CPRT | K141: Compressor Return Air Temperature
A142: 141 | I142: 压缩机排气温度 | J142: CPET | K142: Compressor Exhaust Air Temperature
A143: 142 | I143: 蒸发器饱和温度 | J143: EST | K143: Evaporimeter Saturation Temperature
A144: 143 | I144: 蒸发器蒸发压力 | J144: EP | K144: Evaporimeter Pressure
A145: 144 | I145: 蒸发器水流量 | J145: EF | K145: Evaporimeter Flow
A146: 145 | I146: 冷凝器饱和温度 | J146: CST | K146: Condenser Saturation Temperature
A147: 146 | I147: 冷凝器压力 | J147: CP | K147: Condenser Pressure
A148: 147 | I148: 冷凝器水流量 | J148: CF | K148: Condenser Flow
A149: 148 | I149: 电流百分比 | J149: AC | K149: Current Per
A150: 149 | I150: 油槽压力 | J150: OGP | K150: Oil Groove Pressure
A151: 150 | I151: 油槽温度 | J151: OGT | K151: Oil Groove Temperature
A152: 151 | I152: 压缩机启动次数 | J152: CRN | K152: Compressor RunNum
A153: 152 | I153: 压缩机运行时间 | J153: CPRH | K153: Compressor Runtime
A154: 153 | I154: 蒸发器运行时间 | J154: ERH | K154: Evaporimeter Runtime
A155: 154 | I155: 冷凝器运行时间 | J155: CRH | K155: Condenser Runtime
A156: 155 | I156: <锅炉功能>
A157: 156 | I157: 大火 | J157: HF | K157: High fire
A158: 157 | I158: 中火 | J158: MF | K158: Middle fire
A159: 158 | I159: 小火 | J159: LF | K159: Low fire
A160: 159 | I160: <吾悦特殊功能>
A161: 160 | I161: 电磁阀开启状态 | J161: EVR | K161: Electromagnetic valve run
A162: 161 | I162: 电磁阀自动状态 | J162: EVA | K162: Electromagnetic valve auto
A163: 162 | I163: 电磁阀开关控制 | J163: EVC | K163: Electromagnetic valve control
A164: 163 | I164: <中间变量>>
A165: 164 | I165: 模块地址状态 | J165: DS | K165: Device Status
A166: 165 | I166: 模块在线比例 | J166: OR | K166: Online Ratio
A167: 166 | I167: 设定温度值 | J167: TSET | K167: Temperature Set
A168: 167 | I168: 季节模式 | J168: SM | K168: Season Mode
A169: 168 | I169: 水阀反馈换算值 | J169: WVBS | K169: Water Vavle Feedback Switch
A170: 169 | I170: 水阀手动控制 | J170: WVMC | K170: Water Vavle Manual Control
A171: 170 | I171: 水阀手动控制值 | J171: WVMV | K171: Water Vavle Manual Value
A172: 171 | I172: 回风温度换算值 | J172: RTS | K172: Return Temperature Switch
A173: 172 | I173: 运行时间累积重置 | J173: RST | K173: Runtime Reset
A174: 173 | I174: 运行时间累积重置值 | J174: RSTV | K174: Runtime Reset Value
A175: 174 | I175: 隔离开关1 | J175: ISO1 | K175: Isolation Switch1
A176: 175 | I176: 隔离开关2 | J176: ISO2 | K176: Isolation Switch2
A177: 176 | I177: P调节参数 | J177: VP | K177: Value Proportion
A178: 177 | I178: I调节参数 | J178: VI | K178: Value Integration
A179: 178 | I179: 运行时间累积值 | J179: RH | K179: Runtime Hour
A180: 179 | I180: 设备状态代码 | J180: SN | K180: Status Number
A181: 180 | I181: 水阀控制转换值 | J181: WVCS | K181: Water Vavle Control Switch
A182: 181 | I182: 室内温度转换值 | J182: TS | K182: Temperature Switch
A183: 182 | I183: 程序控制 | J183: PC | K183: Program Control
A184: 183 | I184: 新云模式 | J184: CM
A185: 184 | I185: 运行模式 | J185: RM
A186: 185 | I186: 温度换算值 | J186: TS | K186: Temperature Switch
A187: 186 | I187: 电磁阀手动控制 | J187: EVMC
A188: 187 | I188: 电磁阀手动控制值 | J188: EVMV
A189: 188 | I189: 心跳值 | J189: DHV | K189: Device Heart Vavle
A190: 189 | I190: 照度状态换算值 | J190: IS | K190: Illumination Switch
A191: 190 | I191: 温度状态换算值 | J191: TS | K191: Temperature Switch
A192: 191 | I192: 湿度状态换算值 | J192: HS | K192: Humidity Switch
A193: 192 | I193: 定时控制 | J193: TC
A194: 193 | I194: 定时模式 | J194: TM
A195: 194 | I195: 心跳值返回 | J195: DHR
A196: =ROW()-1 -> 195 | I196: 送风温度换算值 | J196: STS
A197: 196 | I197: 变频手动控制值 | J197: VFMV
A198: 197 | I198: 低温断路报警隔离 | J198: ISO3
A199: 198 | I199: 变频器频率控制值 | J199: VFCS
A200: 199 | I200: 变频器频率反馈值 | J200: VFBS
... 327 more rows

Sheet Base
B1: 4.5 | C1: 1.5 | D1: 1.5 | E1: 1.5 | F1: 1.5 | G1: 1.5 | H1: 1.75 | I1: 1.75 | J1: 35 | AA1: 15 | AB1: 10 | AC1: 10
A2: 12 | B2: L01 | C2: 1 | D2: 2 | E2: 3 | F2: 4 | G2: 5 | H2: 6 | I2: 7 | J2: 8 | K2: 9 | L2: 10 | M2: 11 | N2: 12 | O2: 13 | P2: 14 | Q2: 15 | R2: 16 | T2: X | U2: X | V2: X | W2: X
A3: 12 | C3: 17 | D3: 18 | E3: 19 | F3: 20 | G3: 21 | H3: 22 | I3: 23 | J3: 24 | K3: 25 | L3: 26 | M3: 27 | N3: 28 | O3: 29 | P3: 30 | Q3: 31 | R3: 32
A4: 25 | B4: DDC-X-X 现场实施段 | AD4: 调试记录段 | AG4: 下位机声明段 | AP4: 上位机声明段 | AT4: 模块赋值段
A5: 20 | B5: 模块类型 | C5: 拨码 | F5: 点位序号 | H5: 端子编号 | J5: 线缆功能.auto | AA5: 设备编号.auto | AB5: 前端接线备注.auto | AD5: DBG | AE5: 调试记录 | AF5: 调试备注 | AG5: PRG | AH5: 设备类型 | AI5: 设备编号 | AJ5: 程序编号 | AK5: 点位功能 | AL5: 接线备注 判断区 | AM5: 变量名.auto | AN5: 编程变量声明.auto | AO5: 编程变量声明(结构整理).auto | AP5: HMI | AQ5: 上位机组态.auto | AR5: 上位机注释.auto | AS5: MODBUS偏置量.auto | AT5: 物理变量.auto | AU5: 赋值段.auto
A6: 20 | D6: of | E6: on | AB6: 端子编号 | AC6: 线色备注
B7: PM.25D
B8: EXC-1000
B9: IOM.0801R | AO9: ="(* "&B14&"地址: "&B11&" *)" -> (* IOM 0801R地址: 0 *)
B10: addr | C10: 1 | D10: =BIN2DEC(MID((TEXT(DEC2BIN(B11),REPT(0,5))),5,1)) -> 0 | E10: =BIN2DEC(MID((TEXT(DEC2BIN(B11),REPT(0,5))),5,1)) -> 0 | F10: 1 | H10: 1 | I10: 2 | J10: =AH10&AA10&"-"&AK10 -> - | AA10: =IF(AI10="","",AI10) ->  | AB10: =_xlfn.IFNA(VLOOKUP(AL10,List!$M$3:$N$526,2,FALSE),"-") -> - | AC10: =_xlfn.IFNA(VLOOKUP(AL10,List!$M$3:$O$526,3,FALSE),"-") -> - | AL10: =AH10&"-"&AK10 -> - | AM10: =VLOOKUP(AH10,List!$D$3:$F$527,2,FALSE)&AJ10&"_"&VLOOKUP(AK10,List!$I$2:$K$529,2,FALSE) ->  | AN10: =_xlfn.IFNA("L"&AM10&" "&"AT%I"&B11*16&".0"&" "&":BOOL;"&" "&"(*"&J10&"*)"," ") ->  | AO10: =IFERROR(REPLACE(REPLACE(AN10,SEARCH("AT%",AN10),,REPT(" ",30-SEARCH("AT%",AN10))),SEARCH(":",REPLACE(AN10,SEARCH("AT%",AN10),,REPT(" ",30-SEARCH("AT%",AN10)))),,REPT(" ",35-SEARCH(":",REPLACE(AN10,SEARCH("AT%",AN10),,REPT(" ",25-SEARCH("AT%",AN10))))))," ") ->  | AQ10: =$B$2&"\"&$B$2&AM10 ->  | AR10: =J10 -> - | AS10: =10000+($B11*16*8+F10-1) -> 10000
B11: 0 | C11: 2 | D11: =BIN2DEC(MID((TEXT(DEC2BIN(B11),REPT(0,5))),4,1)) -> 0 | E11: =BIN2DEC(MID((TEXT(DEC2BIN(B11),REPT(0,5))),4,1)) -> 0 | F11: 2 | H11: 3 | I11: 4 | J11: =AH11&AA11&"-"&AK11 -> - | AA11: =IF(AI11="","",AI11) ->  | AB11: =_xlfn.IFNA(VLOOKUP(AL11,List!$M$3:$N$526,2,FALSE),"-") -> - | AC11: =_xlfn.IFNA(VLOOKUP(AL11,List!$M$3:$O$526,3,FALSE),"-") -> - | AL11: =AH11&"-"&AK11 -> - | AM11: =VLOOKUP(AH11,List!$D$3:$F$527,2,FALSE)&AJ11&"_"&VLOOKUP(AK11,List!$I$2:$K$529,2,FALSE) ->  | AN11: =_xlfn.IFNA("L"&AM11&" "&"AT%I"&B11*16&".1"&" "&":BOOL;"&" "&"(*"&J11&"*)"," ") ->  | AR11: =J11 -> - | AS11: =AS10+1 -> 10001
B12: kbs | C12: 3 | D12: =BIN2DEC(MID((TEXT(DEC2BIN(B11),REPT(0,5))),3,1)) -> 0 | E12: =BIN2DEC(MID((TEXT(DEC2BIN(B11),REPT(0,5))),3,1)) -> 0 | F12: 3 | H12: 5 | I12: 6 | J12: =AH12&AA12&"-"&AK12 -> - | AB12: =_xlfn.IFNA(VLOOKUP(AL12,List!$M$3:$N$526,2,FALSE),"-") -> - | AC12: =_xlfn.IFNA(VLOOKUP(AL12,List!$M$3:$O$526,3,FALSE),"-") -> - | AL12: - | AM12: =VLOOKUP(AH12,List!$D$3:$F$527,2,FALSE)&AJ12&"_"&VLOOKUP(AK12,List!$I$2:$K$529,2,FALSE) ->  | AN12: =_xlfn.IFNA("L"&AM12&" "&"AT%I"&B11*16&".2"&" "&":BOOL;"&" "&"(*"&J12&"*)"," ") ->  | AR12: - | AS12: =AS11+1 -> 10002
B13: 50 | C13: 4 | D13: =BIN2DEC(MID((TEXT(DEC2BIN(B11),REPT(0,5))),2,1)) -> 0 | E13: =BIN2DEC(MID((TEXT(DEC2BIN(B11),REPT(0,5))),2,1)) -> 0 | F13: 4 | H13: 7 | I13: 8 | J13: =AH13&AA13&"-"&AK13 -> - | AB13: =_xlfn.IFNA(VLOOKUP(AL13,List!$M$3:$N$526,2,FALSE),"-") -> - | AC13: =_xlfn.IFNA(VLOOKUP(AL13,List!$M$3:$O$526,3,FALSE),"-") -> - | AL13: - | AM13: =VLOOKUP(AH13,List!$D$3:$F$527,2,FALSE)&AJ13&"_"&VLOOKUP(AK13,List!$I$2:$K$529,2,FALSE) ->  | AN13: =_xlfn.IFNA("L"&AM13&" "&"AT%I"&B11*16&".3"&" "&":BOOL;"&" "&"(*"&J13&"*)"," ") ->  | AR13: - | AS13: 10003
B14: IOM 0801R | C14: 5 | D14: =BIN2DEC(MID((TEXT(DEC2BIN(B11),REPT(0,5))),1,1)) -> 0 | E14: =BIN2DEC(MID((TEXT(DEC2BIN(B11),REPT(0,5))),1,1)) -> 0 | F14: 5 | H14: 9 | I14: 10 | J14: - | AB14: =_xlfn.IFNA(VLOOKUP(AL14,List!$M$3:$N$526,2,FALSE),"-") -> - | AC14: =_xlfn.IFNA(VLOOKUP(AL14,List!$M$3:$O$526,3,FALSE),"-") -> - | AL14: - | AM14: =VLOOKUP(AH14,List!$D$3:$F$527,2,FALSE)&AJ14&"_"&VLOOKUP(AK14,List!$I$2:$K$529,2,FALSE) ->  | AN14: =_xlfn.IFNA("L"&AM14&" "&"AT%I"&B11*16&".4"&" "&":BOOL;"&" "&"(*"&J14&"*)"," ") ->  | AR14: - | AS14: 10004
C15: 6 | D15: =BIN2DEC(MID((TEXT(IF(B13=20,1,IF(B13=50,10,IF(B13=125,11,IF(B13=250,100,IF(B13=500,101,IF(B13=800,110,IF(B13=1000,111,0))))))),REPT(0,3))),3,1)) -> 0 | E15: =BIN2DEC(MID((TEXT(IF(B13=20,1,IF(B13=50,10,IF(B13=125,11,IF(B13=250,100,IF(B13=500,101,IF(B13=800,110,IF(B13=1000,111,0))))))),REPT(0,3))),3,1)) -> 0 | F15: 6 | H15: 11 | I15: 12 | J15: - | AB15: =_xlfn.IFNA(VLOOKUP(AL15,List!$M$3:$N$526,2,FALSE),"-") -> - | AC15: =_xlfn.IFNA(VLOOKUP(AL15,List!$M$3:$O$526,3,FALSE),"-") -> - | AL15: - | AM15: =VLOOKUP(AH15,List!$D$3:$F$527,2,FALSE)&AJ15&"_"&VLOOKUP(AK15,List!$I$2:$K$529,2,FALSE) ->  | AN15: =_xlfn.IFNA("L"&AM15&" "&"AT%I"&B11*16&".5"&" "&":BOOL;"&" "&"(*"&J15&"*)"," ") ->  | AR15: - | AS15: 10005
C16: 7 | D16: =BIN2DEC(MID((TEXT(IF(B13=20,1,IF(B13=50,10,IF(B13=125,11,IF(B13=250,100,IF(B13=500,101,IF(B13=800,110,IF(B13=1000,111,0))))))),REPT(0,3))),2,1)) -> 1 | E16: =BIN2DEC(MID((TEXT(IF(B13=20,1,IF(B13=50,10,IF(B13=125,11,IF(B13=250,100,IF(B13=500,101,IF(B13=800,110,IF(B13=1000,111,0))))))),REPT(0,3))),2,1)) -> 1 | F16: 7 | H16: 13 | I16: 14 | J16: - | AB16: =_xlfn.IFNA(VLOOKUP(AL16,List!$M$3:$N$526,2,FALSE),"-") -> - | AC16: =_xlfn.IFNA(VLOOKUP(AL16,List!$M$3:$O$526,3,FALSE),"-") -> - | AL16: - | AM16: =VLOOKUP(AH16,List!$D$3:$F$527,2,FALSE)&AJ16&"_"&VLOOKUP(AK16,List!$I$2:$K$529,2,FALSE) ->  | AN16: =_xlfn.IFNA("L"&AM16&" "&"AT%I"&B11*16&".6"&" "&":BOOL;"&" "&"(*"&J16&"*)"," ") ->  | AR16: - | AS16: 10006
A17: . | C17: 8 | D17: =BIN2DEC(MID((TEXT(IF(B13=20,1,IF(B13=50,10,IF(B13=125,11,IF(B13=250,100,IF(B13=500,101,IF(B13=800,110,IF(B13=1000,111,0))))))),REPT(0,3))),1,1)) -> 0 | E17: =BIN2DEC(MID((TEXT(IF(B13=20,1,IF(B13=50,10,IF(B13=125,11,IF(B13=250,100,IF(B13=500,101,IF(B13=800,110,IF(B13=1000,111,0))))))),REPT(0,3))),1,1)) -> 0 | F17: 8 | H17: 15 | I17: 16 | J17: - | AB17: =_xlfn.IFNA(VLOOKUP(AL17,List!$M$3:$N$526,2,FALSE),"-") -> - | AC17: =_xlfn.IFNA(VLOOKUP(AL17,List!$M$3:$O$526,3,FALSE),"-") -> - | AL17: - | AM17: =VLOOKUP(AH17,List!$D$3:$F$527,2,FALSE)&AJ17&"_"&VLOOKUP(AK17,List!$I$2:$K$529,2,FALSE) ->  | AN17: =_xlfn.IFNA("L"&AM17&" "&"AT%I"&B11*16&".7"&" "&":BOOL;"&" "&"(*"&J17&"*)"," ") ->  | AR17: - | AS17: 10007
B18: IOM.0801R D7 | AO18: ="(* "&B23&"地址: "&B20&" *)" -> (* IOM 0801R D7地址: 0 *)
B19: addr | C19: 1 | D19: =BIN2DEC(MID((TEXT(DEC2BIN(B20),REPT(0,5))),5,1)) -> 0 | E19: =BIN2DEC(MID((TEXT(DEC2BIN(B20),REPT(0,5))),5,1)) -> 0 | F19: 1 | H19: 1 | I19: C | J19: =AH19&AA19&"-"&AK19 -> - | AA19: =IF(AI19="","",AI19) ->  | AB19: =_xlfn.IFNA(VLOOKUP(AL19,List!$M$3:$N$526,2,FALSE),"-") -> - | AC19: =_xlfn.IFNA(VLOOKUP(AL19,List!$M$3:$O$526,3,FALSE),"-") -> - | AL19: =AH19&"-"&AK19 -> - | AM19: =VLOOKUP(AH19,List!$D$3:$F$527,2,FALSE)&AJ19&"_"&VLOOKUP(AK19,List!$I$2:$K$529,2,FALSE) ->  | AN19: =_xlfn.IFNA("L"&AM19&" "&"AT%I"&B20*16&".0"&" "&":BOOL;"&" "&"(*"&J19&"*)"," ") ->  | AO19: =IFERROR(REPLACE(REPLACE(AN19,SEARCH("AT%",AN19),,REPT(" ",30-SEARCH("AT%",AN19))),SEARCH(":",REPLACE(AN19,SEARCH("AT%",AN19),,REPT(" ",30-SEARCH("AT%",AN19)))),,REPT(" ",35-SEARCH(":",REPLACE(AN19,SEARCH("AT%",AN19),,REPT(" ",25-SEARCH("AT%",AN19))))))," ") ->  | AQ19: =$B$2&"\"&$B$2&AM19 ->  | AR19: =J19 -> - | AS19: =10000+($B20*16*8+F19-1) -> 10000
B20: 0 | C20: 2 | D20: =BIN2DEC(MID((TEXT(DEC2BIN(B20),REPT(0,5))),4,1)) -> 0 | E20: =BIN2DEC(MID((TEXT(DEC2BIN(B20),REPT(0,5))),4,1)) -> 0 | F20: 2 | H20: 2 | I20: C | J20: =AH20&AA20&"-"&AK20 -> - | AA20: =IF(AI20="","",AI20) ->  | AB20: =_xlfn.IFNA(VLOOKUP(AL20,List!$M$3:$N$526,2,FALSE),"-") -> - | AC20: =_xlfn.IFNA(VLOOKUP(AL20,List!$M$3:$O$526,3,FALSE),"-") -> - | AL20: =AH20&"-"&AK20 -> - | AM20: =VLOOKUP(AH20,List!$D$3:$F$527,2,FALSE)&AJ20&"_"&VLOOKUP(AK20,List!$I$2:$K$529,2,FALSE) ->  | AN20: =_xlfn.IFNA("L"&AM20&" "&"AT%I"&B20*16&".1"&" "&":BOOL;"&" "&"(*"&J20&"*)"," ") ->  | AR20: =J20 -> - | AS20: =AS19+1 -> 10001
B21: kbs | C21: 3 | D21: =BIN2DEC(MID((TEXT(DEC2BIN(B20),REPT(0,5))),3,1)) -> 0 | E21: =BIN2DEC(MID((TEXT(DEC2BIN(B20),REPT(0,5))),3,1)) -> 0 | F21: 3 | H21: 3 | I21: C | J21: =AH21&AA21&"-"&AK21 -> - | AB21: =_xlfn.IFNA(VLOOKUP(AL21,List!$M$3:$N$526,2,FALSE),"-") -> - | AC21: =_xlfn.IFNA(VLOOKUP(AL21,List!$M$3:$O$526,3,FALSE),"-") -> - | AL21: - | AM21: =VLOOKUP(AH21,List!$D$3:$F$527,2,FALSE)&AJ21&"_"&VLOOKUP(AK21,List!$I$2:$K$529,2,FALSE) ->  | AN21: =_xlfn.IFNA("L"&AM21&" "&"AT%I"&B20*16&".2"&" "&":BOOL;"&" "&"(*"&J21&"*)"," ") ->  | AR21: - | AS21: =AS20+1 -> 10002
B22: 50 | C22: 4 | D22: =BIN2DEC(MID((TEXT(DEC2BIN(B20),REPT(0,5))),2,1)) -> 0 | E22: =BIN2DEC(MID((TEXT(DEC2BIN(B20),REPT(0,5))),2,1)) -> 0 | F22: 4 | H22: 4 | I22: C | J22: =AH22&AA22&"-"&AK22 -> - | AB22: =_xlfn.IFNA(VLOOKUP(AL22,List!$M$3:$N$526,2,FALSE),"-") -> - | AC22: =_xlfn.IFNA(VLOOKUP(AL22,List!$M$3:$O$526,3,FALSE),"-") -> - | AL22: - | AM22: =VLOOKUP(AH22,List!$D$3:$F$527,2,FALSE)&AJ22&"_"&VLOOKUP(AK22,List!$I$2:$K$529,2,FALSE) ->  | AN22: =_xlfn.IFNA("L"&AM22&" "&"AT%I"&B20*16&".3"&" "&":BOOL;"&" "&"(*"&J22&"*)"," ") ->  | AR22: - | AS22: 10003
B23: IOM 0801R D7 | C23: 5 | D23: =BIN2DEC(MID((TEXT(DEC2BIN(B20),REPT(0,5))),1,1)) -> 0 | E23: =BIN2DEC(MID((TEXT(DEC2BIN(B20),REPT(0,5))),1,1)) -> 0 | F23: 5 | H23: 5 | I23: C | J23: - | AB23: =_xlfn.IFNA(VLOOKUP(AL23,List!$M$3:$N$526,2,FALSE),"-") -> - | AC23: =_xlfn.IFNA(VLOOKUP(AL23,List!$M$3:$O$526,3,FALSE),"-") -> - | AL23: - | AM23: =VLOOKUP(AH23,List!$D$3:$F$527,2,FALSE)&AJ23&"_"&VLOOKUP(AK23,List!$I$2:$K$529,2,FALSE) ->  | AN23: =_xlfn.IFNA("L"&AM23&" "&"AT%I"&B20*16&".4"&" "&":BOOL;"&" "&"(*"&J23&"*)"," ") ->  | AR23: - | AS23: 10004
C24: 6 | D24: =BIN2DEC(MID((TEXT(IF(B22=20,1,IF(B22=50,10,IF(B22=125,11,IF(B22=250,100,IF(B22=500,101,IF(B22=800,110,IF(B22=1000,111,0))))))),REPT(0,3))),3,1)) -> 0 | E24: =BIN2DEC(MID((TEXT(IF(B22=20,1,IF(B22=50,10,IF(B22=125,11,IF(B22=250,100,IF(B22=500,101,IF(B22=800,110,IF(B22=1000,111,0))))))),REPT(0,3))),3,1)) -> 0 | F24: 6 | H24: 6 | I24: C | J24: - | AB24: =_xlfn.IFNA(VLOOKUP(AL24,List!$M$3:$N$526,2,FALSE),"-") -> - | AC24: =_xlfn.IFNA(VLOOKUP(AL24,List!$M$3:$O$526,3,FALSE),"-") -> - | AL24: - | AM24: =VLOOKUP(AH24,List!$D$3:$F$527,2,FALSE)&AJ24&"_"&VLOOKUP(AK24,List!$I$2:$K$529,2,FALSE) ->  | AN24: =_xlfn.IFNA("L"&AM24&" "&"AT%I"&B20*16&".5"&" "&":BOOL;"&" "&"(*"&J24&"*)"," ") ->  | AR24: - | AS24: 10005
C25: 7 | D25: =BIN2DEC(MID((TEXT(IF(B22=20,1,IF(B22=50,10,IF(B22=125,11,IF(B22=250,100,IF(B22=500,101,IF(B22=800,110,IF(B22=1000,111,0))))))),REPT(0,3))),2,1)) -> 1 | E25: =BIN2DEC(MID((TEXT(IF(B22=20,1,IF(B22=50,10,IF(B22=125,11,IF(B22=250,100,IF(B22=500,101,IF(B22=800,110,IF(B22=1000,111,0))))))),REPT(0,3))),2,1)) -> 1 | F25: 7 | H25: 7 | I25: C | J25: - | AB25: =_xlfn.IFNA(VLOOKUP(AL25,List!$M$3:$N$526,2,FALSE),"-") -> - | AC25: =_xlfn.IFNA(VLOOKUP(AL25,List!$M$3:$O$526,3,FALSE),"-") -> - | AL25: - | AM25: =VLOOKUP(AH25,List!$D$3:$F$527,2,FALSE)&AJ25&"_"&VLOOKUP(AK25,List!$I$2:$K$529,2,FALSE) ->  | AN25: =_xlfn.IFNA("L"&AM25&" "&"AT%I"&B20*16&".6"&" "&":BOOL;"&" "&"(*"&J25&"*)"," ") ->  | AR25: - | AS25: 10006
A26: . | C26: 8 | D26: =BIN2DEC(MID((TEXT(IF(B22=20,1,IF(B22=50,10,IF(B22=125,11,IF(B22=250,100,IF(B22=500,101,IF(B22=800,110,IF(B22=1000,111,0))))))),REPT(0,3))),1,1)) -> 0 | E26: =BIN2DEC(MID((TEXT(IF(B22=20,1,IF(B22=50,10,IF(B22=125,11,IF(B22=250,100,IF(B22=500,101,IF(B22=800,110,IF(B22=1000,111,0))))))),REPT(0,3))),1,1)) -> 0 | F26: 8 | H26: 8 | I26: C | J26: - | AB26: =_xlfn.IFNA(VLOOKUP(AL26,List!$M$3:$N$526,2,FALSE),"-") -> - | AC26: =_xlfn.IFNA(VLOOKUP(AL26,List!$M$3:$O$526,3,FALSE),"-") -> - | AL26: - | AM26: =VLOOKUP(AH26,List!$D$3:$F$527,2,FALSE)&AJ26&"_"&VLOOKUP(AK26,List!$I$2:$K$529,2,FALSE) ->  | AN26: =_xlfn.IFNA("L"&AM26&" "&"AT%I"&B20*16&".7"&" "&":BOOL;"&" "&"(*"&J26&"*)"," ") ->  | AR26: - | AS26: 10007
B27: IOM.1601R | AO27: ="(* "&B32&"地址: "&B29&" *)" -> (* IOM 1601R地址: 1 *)
B28: addr | C28: 1 | D28: =BIN2DEC(MID((TEXT(DEC2BIN(B29),REPT(0,5))),5,1)) -> 1 | E28: =BIN2DEC(MID((TEXT(DEC2BIN(B29),REPT(0,5))),5,1)) -> 1 | F28: 1 | H28: 1 | I28: 2 | J28: =AH28&AA28&"-"&AK28 -> - | AA28: =IF(AI28="","",AI28) ->  | AB28: =_xlfn.IFNA(VLOOKUP(AL28,List!$M$3:$N$526,2,FALSE),"-") -> - | AC28: =_xlfn.IFNA(VLOOKUP(AL28,List!$M$3:$O$526,3,FALSE),"-") -> - | AL28: =AH28&"-"&AK28 -> - | AM28: =VLOOKUP(AH28,List!$D$3:$F$527,2,FALSE)&AJ28&"_"&VLOOKUP(AK28,List!$I$2:$K$529,2,FALSE) ->  | AN28: =_xlfn.IFNA("L"&AM28&" "&"AT%I"&B29*16&".0"&" "&":BOOL;"&" "&"(*"&J28&"*)"," ") ->  | AO28: =IFERROR(REPLACE(REPLACE(AN28,SEARCH("AT%",AN28),,REPT(" ",30-SEARCH("AT%",AN28))),SEARCH(":",REPLACE(AN28,SEARCH("AT%",AN28),,REPT(" ",30-SEARCH("AT%",AN28)))),,REPT(" ",35-SEARCH(":",REPLACE(AN28,SEARCH("AT%",AN28),,REPT(" ",25-SEARCH("AT%",AN28))))))," ") ->  | AQ28: =$B$2&"\"&$B$2&AM28 ->  | AR28: =J28 -> - | AS28: =10000+($B29*16*8+F28-1) -> 10128
B29: 1 | C29: 2 | D29: =BIN2DEC(MID((TEXT(DEC2BIN(B29),REPT(0,5))),4,1)) -> 0 | E29: =BIN2DEC(MID((TEXT(DEC2BIN(B29),REPT(0,5))),4,1)) -> 0 | F29: 2 | H29: 3 | I29: 4 | J29: - | AA29: =IF(AI29="","",AI29) ->  | AB29: =_xlfn.IFNA(VLOOKUP(AL29,List!$M$3:$N$526,2,FALSE),"-") -> - | AC29: =_xlfn.IFNA(VLOOKUP(AL29,List!$M$3:$O$526,3,FALSE),"-") -> - | AL29: =AH29&"-"&AK29 -> - | AM29: =VLOOKUP(AH29,List!$D$3:$F$527,2,FALSE)&AJ29&"_"&VLOOKUP(AK29,List!$I$2:$K$529,2,FALSE) ->  | AN29: =_xlfn.IFNA("L"&AM29&" "&"AT%I"&B29*16&".1"&" "&":BOOL;"&" "&"(*"&J29&"*)"," ") ->  | AR29: =J29 -> - | AS29: =AS28+1 -> 10129
B30: kbs | C30: 3 | D30: =BIN2DEC(MID((TEXT(DEC2BIN(B29),REPT(0,5))),3,1)) -> 0 | E30: =BIN2DEC(MID((TEXT(DEC2BIN(B29),REPT(0,5))),3,1)) -> 0 | F30: 3 | H30: 5 | I30: 6 | J30: - | AB30: =_xlfn.IFNA(VLOOKUP(AL30,List!$M$3:$N$526,2,FALSE),"-") -> - | AC30: =_xlfn.IFNA(VLOOKUP(AL30,List!$M$3:$O$526,3,FALSE),"-") -> - | AL30: - | AM30: =VLOOKUP(AH30,List!$D$3:$F$527,2,FALSE)&AJ30&"_"&VLOOKUP(AK30,List!$I$2:$K$529,2,FALSE) ->  | AN30: =_xlfn.IFNA("L"&AM30&" "&"AT%I"&B29*16&".2"&" "&":BOOL;"&" "&"(*"&J30&"*)"," ") ->  | AR30: - | AS30: =AS29+1 -> 10130
B31: 50 | C31: 4 | D31: =BIN2DEC(MID((TEXT(DEC2BIN(B29),REPT(0,5))),2,1)) -> 0 | E31: =BIN2DEC(MID((TEXT(DEC2BIN(B29),REPT(0,5))),2,1)) -> 0 | F31: 4 | H31: 7 | I31: 8 | J31: - | AB31: =_xlfn.IFNA(VLOOKUP(AL31,List!$M$3:$N$526,2,FALSE),"-") -> - | AC31: =_xlfn.IFNA(VLOOKUP(AL31,List!$M$3:$O$526,3,FALSE),"-") -> - | AL31: - | AM31: =VLOOKUP(AH31,List!$D$3:$F$527,2,FALSE)&AJ31&"_"&VLOOKUP(AK31,List!$I$2:$K$529,2,FALSE) ->  | AN31: =_xlfn.IFNA("L"&AM31&" "&"AT%I"&B29*16&".3"&" "&":BOOL;"&" "&"(*"&J31&"*)"," ") ->  | AR31: - | AS31: 10131
B32: IOM 1601R | C32: 5 | D32: =BIN2DEC(MID((TEXT(DEC2BIN(B29),REPT(0,5))),1,1)) -> 0 | E32: =BIN2DEC(MID((TEXT(DEC2BIN(B29),REPT(0,5))),1,1)) -> 0 | F32: 5 | H32: 9 | I32: 10 | J32: - | AB32: =_xlfn.IFNA(VLOOKUP(AL32,List!$M$3:$N$526,2,FALSE),"-") -> - | AC32: =_xlfn.IFNA(VLOOKUP(AL32,List!$M$3:$O$526,3,FALSE),"-") -> - | AL32: - | AM32: =VLOOKUP(AH32,List!$D$3:$F$527,2,FALSE)&AJ32&"_"&VLOOKUP(AK32,List!$I$2:$K$529,2,FALSE) ->  | AN32: =_xlfn.IFNA("L"&AM32&" "&"AT%I"&B29*16&".4"&" "&":BOOL;"&" "&"(*"&J32&"*)"," ") ->  | AR32: - | AS32: 10132
C33: 6 | D33: =BIN2DEC(MID((TEXT(IF(B31=20,1,IF(B31=50,10,IF(B31=125,11,IF(B31=250,100,IF(B31=500,101,IF(B31=800,110,IF(B31=1000,111,0))))))),REPT(0,3))),3,1)) -> 0 | E33: =BIN2DEC(MID((TEXT(IF(B31=20,1,IF(B31=50,10,IF(B31=125,11,IF(B31=250,100,IF(B31=500,101,IF(B31=800,110,IF(B31=1000,111,0))))))),REPT(0,3))),3,1)) -> 0 | F33: 6 | H33: 11 | I33: 12 | J33: - | AB33: =_xlfn.IFNA(VLOOKUP(AL33,List!$M$3:$N$526,2,FALSE),"-") -> - | AC33: =_xlfn.IFNA(VLOOKUP(AL33,List!$M$3:$O$526,3,FALSE),"-") -> - | AL33: - | AM33: =VLOOKUP(AH33,List!$D$3:$F$527,2,FALSE)&AJ33&"_"&VLOOKUP(AK33,List!$I$2:$K$529,2,FALSE) ->  | AN33: =_xlfn.IFNA("L"&AM33&" "&"AT%I"&B29*16&".5"&" "&":BOOL;"&" "&"(*"&J33&"*)"," ") ->  | AR33: - | AS33: 10133
C34: 7 | D34: =BIN2DEC(MID((TEXT(IF(B31=20,1,IF(B31=50,10,IF(B31=125,11,IF(B31=250,100,IF(B31=500,101,IF(B31=800,110,IF(B31=1000,111,0))))))),REPT(0,3))),2,1)) -> 1 | E34: =BIN2DEC(MID((TEXT(IF(B31=20,1,IF(B31=50,10,IF(B31=125,11,IF(B31=250,100,IF(B31=500,101,IF(B31=800,110,IF(B31=1000,111,0))))))),REPT(0,3))),2,1)) -> 1 | F34: 7 | H34: 13 | I34: 14 | J34: - | AB34: =_xlfn.IFNA(VLOOKUP(AL34,List!$M$3:$N$526,2,FALSE),"-") -> - | AC34: =_xlfn.IFNA(VLOOKUP(AL34,List!$M$3:$O$526,3,FALSE),"-") -> - | AL34: - | AM34: =VLOOKUP(AH34,List!$D$3:$F$527,2,FALSE)&AJ34&"_"&VLOOKUP(AK34,List!$I$2:$K$529,2,FALSE) ->  | AN34: =_xlfn.IFNA("L"&AM34&" "&"AT%I"&B29*16&".6"&" "&":BOOL;"&" "&"(*"&J34&"*)"," ") ->  | AR34: - | AS34: 10134
C35: 8 | D35: =BIN2DEC(MID((TEXT(IF(B31=20,1,IF(B31=50,10,IF(B31=125,11,IF(B31=250,100,IF(B31=500,101,IF(B31=800,110,IF(B31=1000,111,0))))))),REPT(0,3))),1,1)) -> 0 | E35: =BIN2DEC(MID((TEXT(IF(B31=20,1,IF(B31=50,10,IF(B31=125,11,IF(B31=250,100,IF(B31=500,101,IF(B31=800,110,IF(B31=1000,111,0))))))),REPT(0,3))),1,1)) -> 0 | F35: 8 | H35: 15 | I35: 16 | J35: - | AB35: =_xlfn.IFNA(VLOOKUP(AL35,List!$M$3:$N$526,2,FALSE),"-") -> - | AC35: =_xlfn.IFNA(VLOOKUP(AL35,List!$M$3:$O$526,3,FALSE),"-") -> - | AL35: - | AM35: =VLOOKUP(AH35,List!$D$3:$F$527,2,FALSE)&AJ35&"_"&VLOOKUP(AK35,List!$I$2:$K$529,2,FALSE) ->  | AN35: =_xlfn.IFNA("L"&AM35&" "&"AT%I"&B29*16&".7"&" "&":BOOL;"&" "&"(*"&J35&"*)"," ") ->  | AR35: - | AS35: 10135
F36: 9 | H36: 17 | I36: 18 | J36: - | AB36: =_xlfn.IFNA(VLOOKUP(AL36,List!$M$3:$N$526,2,FALSE),"-") -> - | AC36: =_xlfn.IFNA(VLOOKUP(AL36,List!$M$3:$O$526,3,FALSE),"-") -> - | AL36: - | AM36: =VLOOKUP(AH36,List!$D$3:$F$527,2,FALSE)&AJ36&"_"&VLOOKUP(AK36,List!$I$2:$K$529,2,FALSE) ->  | AN36: =_xlfn.IFNA("L"&AM36&" "&"AT%I"&B29*16+1&".0"&" "&":BOOL;"&" "&"(*"&J36&"*)"," ") ->  | AR36: - | AS36: 10136
F37: 10 | H37: 19 | I37: 20 | J37: - | AA37: =IF(AI37="","",AI37) ->  | AB37: =_xlfn.IFNA(VLOOKUP(AL37,List!$M$3:$N$526,2,FALSE),"-") -> - | AC37: =_xlfn.IFNA(VLOOKUP(AL37,List!$M$3:$O$526,3,FALSE),"-") -> - | AL37: =AH37&"-"&AK37 -> - | AM37: =VLOOKUP(AH37,List!$D$3:$F$527,2,FALSE)&AJ37&"_"&VLOOKUP(AK37,List!$I$2:$K$529,2,FALSE) ->  | AN37: =_xlfn.IFNA("L"&AM37&" "&"AT%I"&B29*16+1&".1"&" "&":BOOL;"&" "&"(*"&J37&"*)"," ") ->  | AR37: - | AS37: 10137
F38: 11 | H38: 21 | I38: 22 | J38: - | AB38: =_xlfn.IFNA(VLOOKUP(AL38,List!$M$3:$N$526,2,FALSE),"-") -> - | AC38: =_xlfn.IFNA(VLOOKUP(AL38,List!$M$3:$O$526,3,FALSE),"-") -> - | AL38: - | AM38: =VLOOKUP(AH38,List!$D$3:$F$527,2,FALSE)&AJ38&"_"&VLOOKUP(AK38,List!$I$2:$K$529,2,FALSE) ->  | AN38: =_xlfn.IFNA("L"&AM38&" "&"AT%I"&B29*16+1&".2"&" "&":BOOL;"&" "&"(*"&J38&"*)"," ") ->  | AR38: - | AS38: 10138
F39: 12 | H39: 23 | I39: 24 | J39: - | AB39: =_xlfn.IFNA(VLOOKUP(AL39,List!$M$3:$N$526,2,FALSE),"-") -> - | AC39: =_xlfn.IFNA(VLOOKUP(AL39,List!$M$3:$O$526,3,FALSE),"-") -> - | AL39: - | AM39: =VLOOKUP(AH39,List!$D$3:$F$527,2,FALSE)&AJ39&"_"&VLOOKUP(AK39,List!$I$2:$K$529,2,FALSE) ->  | AN39: =_xlfn.IFNA("L"&AM39&" "&"AT%I"&B29*16+1&".3"&" "&":BOOL;"&" "&"(*"&J39&"*)"," ") ->  | AR39: - | AS39: 10139
F40: 13 | H40: 25 | I40: 26 | J40: - | AB40: =_xlfn.IFNA(VLOOKUP(AL40,List!$M$3:$N$526,2,FALSE),"-") -> - | AC40: =_xlfn.IFNA(VLOOKUP(AL40,List!$M$3:$O$526,3,FALSE),"-") -> - | AL40: - | AM40: =VLOOKUP(AH40,List!$D$3:$F$527,2,FALSE)&AJ40&"_"&VLOOKUP(AK40,List!$I$2:$K$529,2,FALSE) ->  | AN40: =_xlfn.IFNA("L"&AM40&" "&"AT%I"&B29*16+1&".4"&" "&":BOOL;"&" "&"(*"&J40&"*)"," ") ->  | AR40: - | AS40: 10140
F41: 14 | H41: 27 | I41: 28 | J41: - | AB41: =_xlfn.IFNA(VLOOKUP(AL41,List!$M$3:$N$526,2,FALSE),"-") -> - | AC41: =_xlfn.IFNA(VLOOKUP(AL41,List!$M$3:$O$526,3,FALSE),"-") -> - | AL41: - | AM41: =VLOOKUP(AH41,List!$D$3:$F$527,2,FALSE)&AJ41&"_"&VLOOKUP(AK41,List!$I$2:$K$529,2,FALSE) ->  | AN41: =_xlfn.IFNA("L"&AM41&" "&"AT%I"&B29*16+1&".5"&" "&":BOOL;"&" "&"(*"&J41&"*)"," ") ->  | AR41: - | AS41: 10141
F42: 15 | H42: 29 | I42: 30 | J42: - | AB42: =_xlfn.IFNA(VLOOKUP(AL42,List!$M$3:$N$526,2,FALSE),"-") -> - | AC42: =_xlfn.IFNA(VLOOKUP(AL42,List!$M$3:$O$526,3,FALSE),"-") -> - | AL42: - | AM42: =VLOOKUP(AH42,List!$D$3:$F$527,2,FALSE)&AJ42&"_"&VLOOKUP(AK42,List!$I$2:$K$529,2,FALSE) ->  | AN42: =_xlfn.IFNA("L"&AM42&" "&"AT%I"&B29*16+1&".6"&" "&":BOOL;"&" "&"(*"&J42&"*)"," ") ->  | AR42: - | AS42: 10142
A43: . | F43: 16 | H43: 31 | I43: 32 | J43: - | AB43: =_xlfn.IFNA(VLOOKUP(AL43,List!$M$3:$N$526,2,FALSE),"-") -> - | AC43: =_xlfn.IFNA(VLOOKUP(AL43,List!$M$3:$O$526,3,FALSE),"-") -> - | AL43: - | AM43: =VLOOKUP(AH43,List!$D$3:$F$527,2,FALSE)&AJ43&"_"&VLOOKUP(AK43,List!$I$2:$K$529,2,FALSE) ->  | AN43: =_xlfn.IFNA("L"&AM43&" "&"AT%I"&B29*16+1&".7"&" "&":BOOL;"&" "&"(*"&J43&"*)"," ") ->  | AR43: - | AS43: 10143
B44: IOM.1601R D7 | AO44: ="(* "&B49&"地址: "&B46&" *)" -> (* IOM 1601R D7地址: 1 *)
B45: addr | C45: 1 | D45: =BIN2DEC(MID((TEXT(DEC2BIN(B46),REPT(0,5))),5,1)) -> 1 | E45: =BIN2DEC(MID((TEXT(DEC2BIN(B46),REPT(0,5))),5,1)) -> 1 | F45: 1 | H45: 1 | I45: C | J45: =AH45&AA45&"-"&AK45 -> - | AA45: =IF(AI45="","",AI45) ->  | AB45: =_xlfn.IFNA(VLOOKUP(AL45,List!$M$3:$N$526,2,FALSE),"-") -> - | AC45: =_xlfn.IFNA(VLOOKUP(AL45,List!$M$3:$O$526,3,FALSE),"-") -> - | AL45: =AH45&"-"&AK45 -> - | AM45: =VLOOKUP(AH45,List!$D$3:$F$527,2,FALSE)&AJ45&"_"&VLOOKUP(AK45,List!$I$2:$K$529,2,FALSE) ->  | AN45: =_xlfn.IFNA("L"&AM45&" "&"AT%I"&B46*16&".0"&" "&":BOOL;"&" "&"(*"&J45&"*)"," ") ->  | AO45: =IFERROR(REPLACE(REPLACE(AN45,SEARCH("AT%",AN45),,REPT(" ",30-SEARCH("AT%",AN45))),SEARCH(":",REPLACE(AN45,SEARCH("AT%",AN45),,REPT(" ",30-SEARCH("AT%",AN45)))),,REPT(" ",35-SEARCH(":",REPLACE(AN45,SEARCH("AT%",AN45),,REPT(" ",25-SEARCH("AT%",AN45))))))," ") ->  | AQ45: =$B$2&"\"&$B$2&AM45 ->  | AR45: =J45 -> - | AS45: =10000+($B46*16*8+F45-1) -> 10128
B46: 1 | C46: 2 | D46: =BIN2DEC(MID((TEXT(DEC2BIN(B46),REPT(0,5))),4,1)) -> 0 | E46: =BIN2DEC(MID((TEXT(DEC2BIN(B46),REPT(0,5))),4,1)) -> 0 | F46: 2 | H46: 2 | I46: C | J46: - | AA46: =IF(AI46="","",AI46) ->  | AB46: =_xlfn.IFNA(VLOOKUP(AL46,List!$M$3:$N$526,2,FALSE),"-") -> - | AC46: =_xlfn.IFNA(VLOOKUP(AL46,List!$M$3:$O$526,3,FALSE),"-") -> - | AL46: =AH46&"-"&AK46 -> - | AM46: =VLOOKUP(AH46,List!$D$3:$F$527,2,FALSE)&AJ46&"_"&VLOOKUP(AK46,List!$I$2:$K$529,2,FALSE) ->  | AN46: =_xlfn.IFNA("L"&AM46&" "&"AT%I"&B46*16&".1"&" "&":BOOL;"&" "&"(*"&J46&"*)"," ") ->  | AR46: =J46 -> - | AS46: =AS45+1 -> 10129
B47: kbs | C47: 3 | D47: =BIN2DEC(MID((TEXT(DEC2BIN(B46),REPT(0,5))),3,1)) -> 0 | E47: =BIN2DEC(MID((TEXT(DEC2BIN(B46),REPT(0,5))),3,1)) -> 0 | F47: 3 | H47: 3 | I47: C | J47: - | AB47: =_xlfn.IFNA(VLOOKUP(AL47,List!$M$3:$N$526,2,FALSE),"-") -> - | AC47: =_xlfn.IFNA(VLOOKUP(AL47,List!$M$3:$O$526,3,FALSE),"-") -> - | AL47: - | AM47: =VLOOKUP(AH47,List!$D$3:$F$527,2,FALSE)&AJ47&"_"&VLOOKUP(AK47,List!$I$2:$K$529,2,FALSE) ->  | AN47: =_xlfn.IFNA("L"&AM47&" "&"AT%I"&B46*16&".2"&" "&":BOOL;"&" "&"(*"&J47&"*)"," ") ->  | AR47: - | AS47: =AS46+1 -> 10130
B48: 50 | C48: 4 | D48: =BIN2DEC(MID((TEXT(DEC2BIN(B46),REPT(0,5))),2,1)) -> 0 | E48: =BIN2DEC(MID((TEXT(DEC2BIN(B46),REPT(0,5))),2,1)) -> 0 | F48: 4 | H48: 4 | I48: C | J48: - | AB48: =_xlfn.IFNA(VLOOKUP(AL48,List!$M$3:$N$526,2,FALSE),"-") -> - | AC48: =_xlfn.IFNA(VLOOKUP(AL48,List!$M$3:$O$526,3,FALSE),"-") -> - | AL48: - | AM48: =VLOOKUP(AH48,List!$D$3:$F$527,2,FALSE)&AJ48&"_"&VLOOKUP(AK48,List!$I$2:$K$529,2,FALSE) ->  | AN48: =_xlfn.IFNA("L"&AM48&" "&"AT%I"&B46*16&".3"&" "&":BOOL;"&" "&"(*"&J48&"*)"," ") ->  | AR48: - | AS48: 10131
B49: IOM 1601R D7 | C49: 5 | D49: =BIN2DEC(MID((TEXT(DEC2BIN(B46),REPT(0,5))),1,1)) -> 0 | E49: =BIN2DEC(MID((TEXT(DEC2BIN(B46),REPT(0,5))),1,1)) -> 0 | F49: 5 | H49: 5 | I49: C | J49: - | AB49: =_xlfn.IFNA(VLOOKUP(AL49,List!$M$3:$N$526,2,FALSE),"-") -> - | AC49: =_xlfn.IFNA(VLOOKUP(AL49,List!$M$3:$O$526,3,FALSE),"-") -> - | AL49: - | AM49: =VLOOKUP(AH49,List!$D$3:$F$527,2,FALSE)&AJ49&"_"&VLOOKUP(AK49,List!$I$2:$K$529,2,FALSE) ->  | AN49: =_xlfn.IFNA("L"&AM49&" "&"AT%I"&B46*16&".4"&" "&":BOOL;"&" "&"(*"&J49&"*)"," ") ->  | AR49: - | AS49: 10132
C50: 6 | D50: =BIN2DEC(MID((TEXT(IF(B48=20,1,IF(B48=50,10,IF(B48=125,11,IF(B48=250,100,IF(B48=500,101,IF(B48=800,110,IF(B48=1000,111,0))))))),REPT(0,3))),3,1)) -> 0 | E50: =BIN2DEC(MID((TEXT(IF(B48=20,1,IF(B48=50,10,IF(B48=125,11,IF(B48=250,100,IF(B48=500,101,IF(B48=800,110,IF(B48=1000,111,0))))))),REPT(0,3))),3,1)) -> 0 | F50: 6 | H50: 6 | I50: C | J50: - | AB50: =_xlfn.IFNA(VLOOKUP(AL50,List!$M$3:$N$526,2,FALSE),"-") -> - | AC50: =_xlfn.IFNA(VLOOKUP(AL50,List!$M$3:$O$526,3,FALSE),"-") -> - | AL50: - | AM50: =VLOOKUP(AH50,List!$D$3:$F$527,2,FALSE)&AJ50&"_"&VLOOKUP(AK50,List!$I$2:$K$529,2,FALSE) ->  | AN50: =_xlfn.IFNA("L"&AM50&" "&"AT%I"&B46*16&".5"&" "&":BOOL;"&" "&"(*"&J50&"*)"," ") ->  | AR50: - | AS50: 10133
C51: 7 | D51: =BIN2DEC(MID((TEXT(IF(B48=20,1,IF(B48=50,10,IF(B48=125,11,IF(B48=250,100,IF(B48=500,101,IF(B48=800,110,IF(B48=1000,111,0))))))),REPT(0,3))),2,1)) -> 1 | E51: =BIN2DEC(MID((TEXT(IF(B48=20,1,IF(B48=50,10,IF(B48=125,11,IF(B48=250,100,IF(B48=500,101,IF(B48=800,110,IF(B48=1000,111,0))))))),REPT(0,3))),2,1)) -> 1 | F51: 7 | H51: 7 | I51: C | J51: - | AB51: =_xlfn.IFNA(VLOOKUP(AL51,List!$M$3:$N$526,2,FALSE),"-") -> - | AC51: =_xlfn.IFNA(VLOOKUP(AL51,List!$M$3:$O$526,3,FALSE),"-") -> - | AL51: - | AM51: =VLOOKUP(AH51,List!$D$3:$F$527,2,FALSE)&AJ51&"_"&VLOOKUP(AK51,List!$I$2:$K$529,2,FALSE) ->  | AN51: =_xlfn.IFNA("L"&AM51&" "&"AT%I"&B46*16&".6"&" "&":BOOL;"&" "&"(*"&J51&"*)"," ") ->  | AR51: - | AS51: 10134
C52: 8 | D52: =BIN2DEC(MID((TEXT(IF(B48=20,1,IF(B48=50,10,IF(B48=125,11,IF(B48=250,100,IF(B48=500,101,IF(B48=800,110,IF(B48=1000,111,0))))))),REPT(0,3))),1,1)) -> 0 | E52: =BIN2DEC(MID((TEXT(IF(B48=20,1,IF(B48=50,10,IF(B48=125,11,IF(B48=250,100,IF(B48=500,101,IF(B48=800,110,IF(B48=1000,111,0))))))),REPT(0,3))),1,1)) -> 0 | F52: 8 | H52: 8 | I52: C | J52: - | AB52: =_xlfn.IFNA(VLOOKUP(AL52,List!$M$3:$N$526,2,FALSE),"-") -> - | AC52: =_xlfn.IFNA(VLOOKUP(AL52,List!$M$3:$O$526,3,FALSE),"-") -> - | AL52: - | AM52: =VLOOKUP(AH52,List!$D$3:$F$527,2,FALSE)&AJ52&"_"&VLOOKUP(AK52,List!$I$2:$K$529,2,FALSE) ->  | AN52: =_xlfn.IFNA("L"&AM52&" "&"AT%I"&B46*16&".7"&" "&":BOOL;"&" "&"(*"&J52&"*)"," ") ->  | AR52: - | AS52: 10135
F53: 9 | H53: 9 | I53: C | J53: - | AB53: =_xlfn.IFNA(VLOOKUP(AL53,List!$M$3:$N$526,2,FALSE),"-") -> - | AC53: =_xlfn.IFNA(VLOOKUP(AL53,List!$M$3:$O$526,3,FALSE),"-") -> - | AL53: - | AM53: =VLOOKUP(AH53,List!$D$3:$F$527,2,FALSE)&AJ53&"_"&VLOOKUP(AK53,List!$I$2:$K$529,2,FALSE) ->  | AN53: =_xlfn.IFNA("L"&AM53&" "&"AT%I"&B46*16+1&".0"&" "&":BOOL;"&" "&"(*"&J53&"*)"," ") ->  | AR53: - | AS53: 10136
F54: 10 | H54: 10 | I54: C | J54: - | AA54: =IF(AI54="","",AI54) ->  | AB54: =_xlfn.IFNA(VLOOKUP(AL54,List!$M$3:$N$526,2,FALSE),"-") -> - | AC54: =_xlfn.IFNA(VLOOKUP(AL54,List!$M$3:$O$526,3,FALSE),"-") -> - | AL54: =AH54&"-"&AK54 -> - | AM54: =VLOOKUP(AH54,List!$D$3:$F$527,2,FALSE)&AJ54&"_"&VLOOKUP(AK54,List!$I$2:$K$529,2,FALSE) ->  | AN54: =_xlfn.IFNA("L"&AM54&" "&"AT%I"&B46*16+1&".1"&" "&":BOOL;"&" "&"(*"&J54&"*)"," ") ->  | AR54: =J54 -> - | AS54: 10137
F55: 11 | H55: 11 | I55: C | J55: - | AB55: =_xlfn.IFNA(VLOOKUP(AL55,List!$M$3:$N$526,2,FALSE),"-") -> - | AC55: =_xlfn.IFNA(VLOOKUP(AL55,List!$M$3:$O$526,3,FALSE),"-") -> - | AL55: - | AM55: =VLOOKUP(AH55,List!$D$3:$F$527,2,FALSE)&AJ55&"_"&VLOOKUP(AK55,List!$I$2:$K$529,2,FALSE) ->  | AN55: =_xlfn.IFNA("L"&AM55&" "&"AT%I"&B46*16+1&".2"&" "&":BOOL;"&" "&"(*"&J55&"*)"," ") ->  | AR55: - | AS55: 10138
F56: 12 | H56: 12 | I56: C | J56: - | AB56: =_xlfn.IFNA(VLOOKUP(AL56,List!$M$3:$N$526,2,FALSE),"-") -> - | AC56: =_xlfn.IFNA(VLOOKUP(AL56,List!$M$3:$O$526,3,FALSE),"-") -> - | AL56: - | AM56: =VLOOKUP(AH56,List!$D$3:$F$527,2,FALSE)&AJ56&"_"&VLOOKUP(AK56,List!$I$2:$K$529,2,FALSE) ->  | AN56: =_xlfn.IFNA("L"&AM56&" "&"AT%I"&B46*16+1&".3"&" "&":BOOL;"&" "&"(*"&J56&"*)"," ") ->  | AR56: - | AS56: 10139
F57: 13 | H57: 13 | I57: C | J57: - | AB57: =_xlfn.IFNA(VLOOKUP(AL57,List!$M$3:$N$526,2,FALSE),"-") -> - | AC57: =_xlfn.IFNA(VLOOKUP(AL57,List!$M$3:$O$526,3,FALSE),"-") -> - | AL57: - | AM57: =VLOOKUP(AH57,List!$D$3:$F$527,2,FALSE)&AJ57&"_"&VLOOKUP(AK57,List!$I$2:$K$529,2,FALSE) ->  | AN57: =_xlfn.IFNA("L"&AM57&" "&"AT%I"&B46*16+1&".4"&" "&":BOOL;"&" "&"(*"&J57&"*)"," ") ->  | AR57: - | AS57: 10140
F58: 14 | H58: 14 | I58: C | J58: - | AB58: =_xlfn.IFNA(VLOOKUP(AL58,List!$M$3:$N$526,2,FALSE),"-") -> - | AC58: =_xlfn.IFNA(VLOOKUP(AL58,List!$M$3:$O$526,3,FALSE),"-") -> - | AL58: - | AM58: =VLOOKUP(AH58,List!$D$3:$F$527,2,FALSE)&AJ58&"_"&VLOOKUP(AK58,List!$I$2:$K$529,2,FALSE) ->  | AN58: =_xlfn.IFNA("L"&AM58&" "&"AT%I"&B46*16+1&".5"&" "&":BOOL;"&" "&"(*"&J58&"*)"," ") ->  | AR58: - | AS58: 10141
F59: 15 | H59: 15 | I59: C | J59: - | AB59: =_xlfn.IFNA(VLOOKUP(AL59,List!$M$3:$N$526,2,FALSE),"-") -> - | AC59: =_xlfn.IFNA(VLOOKUP(AL59,List!$M$3:$O$526,3,FALSE),"-") -> - | AL59: - | AM59: =VLOOKUP(AH59,List!$D$3:$F$527,2,FALSE)&AJ59&"_"&VLOOKUP(AK59,List!$I$2:$K$529,2,FALSE) ->  | AN59: =_xlfn.IFNA("L"&AM59&" "&"AT%I"&B46*16+1&".6"&" "&":BOOL;"&" "&"(*"&J59&"*)"," ") ->  | AR59: - | AS59: 10142
A60: . | F60: 16 | H60: 16 | I60: C | J60: - | AB60: =_xlfn.IFNA(VLOOKUP(AL60,List!$M$3:$N$526,2,FALSE),"-") -> - | AC60: =_xlfn.IFNA(VLOOKUP(AL60,List!$M$3:$O$526,3,FALSE),"-") -> - | AL60: - | AM60: =VLOOKUP(AH60,List!$D$3:$F$527,2,FALSE)&AJ60&"_"&VLOOKUP(AK60,List!$I$2:$K$529,2,FALSE) ->  | AN60: =_xlfn.IFNA("L"&AM60&" "&"AT%I"&B46*16+1&".7"&" "&":BOOL;"&" "&"(*"&J60&"*)"," ") ->  | AR60: - | AS60: 10143
B61: =B66 -> IOM 0801D | AO61: ="(* "&B66&"地址: "&B63&" *)" -> (* IOM 0801D地址: 0 *)
B62: addr | C62: 1 | D62: =BIN2DEC(MID((TEXT(DEC2BIN(B63),REPT(0,5))),5,1)) -> 0 | E62: =BIN2DEC(MID((TEXT(DEC2BIN(B63),REPT(0,5))),5,1)) -> 0 | F62: 1 | H62: 1 | I62: 2 | J62: =AH62&AA62&"-"&AK62 -> - | AA62: =IF(AI62="","",AI62) ->  | AB62: =_xlfn.IFNA(VLOOKUP(AL62,List!$M$3:$N$526,2,FALSE),"-") -> - | AC62: =_xlfn.IFNA(VLOOKUP(AL62,List!$M$3:$O$526,3,FALSE),"-") -> - | AL62: =AH62&"-"&AK62 -> - | AM62: =VLOOKUP(AH62,List!$D$3:$F$527,2,FALSE)&AJ62&"_"&VLOOKUP(AK62,List!$I$2:$K$529,2,FALSE) ->  | AN62: =_xlfn.IFNA("L"&AM62&" "&"AT%Q"&B63*16&".0"&" "&":BOOL;"&" "&"(*"&J62&"*)"," ") ->  | AO62: =IFERROR(REPLACE(REPLACE(AN62,SEARCH("AT%",AN62),,REPT(" ",30-SEARCH("AT%",AN62))),SEARCH(":",REPLACE(AN62,SEARCH("AT%",AN62),,REPT(" ",30-SEARCH("AT%",AN62)))),,REPT(" ",35-SEARCH(":",REPLACE(AN62,SEARCH("AT%",AN62),,REPT(" ",25-SEARCH("AT%",AN62))))))," ") ->  | AR62: =J62 -> - | AS62: =($B63*16*8+F62-1) -> 0
B63: 0 | C63: 2 | D63: =BIN2DEC(MID((TEXT(DEC2BIN(B63),REPT(0,5))),4,1)) -> 0 | E63: =BIN2DEC(MID((TEXT(DEC2BIN(B63),REPT(0,5))),4,1)) -> 0 | F63: 2 | H63: 3 | I63: 4 | J63: - | AA63: =IF(AI63="","",AI63) ->  | AB63: =_xlfn.IFNA(VLOOKUP(AL63,List!$M$3:$N$526,2,FALSE),"-") -> - | AC63: =_xlfn.IFNA(VLOOKUP(AL63,List!$M$3:$O$526,3,FALSE),"-") -> - | AL63: =AH63&"-"&AK63 -> - | AM63: =VLOOKUP(AH63,List!$D$3:$F$527,2,FALSE)&AJ63&"_"&VLOOKUP(AK63,List!$I$2:$K$529,2,FALSE) ->  | AN63: =_xlfn.IFNA("L"&AM63&" "&"AT%Q"&B63*16&".1"&" "&":BOOL;"&" "&"(*"&J63&"*)"," ") ->  | AR63: =J63 -> - | AS63: =AS62+1 -> 1
B64: kbs | C64: 3 | D64: =BIN2DEC(MID((TEXT(DEC2BIN(B63),REPT(0,5))),3,1)) -> 0 | E64: =BIN2DEC(MID((TEXT(DEC2BIN(B63),REPT(0,5))),3,1)) -> 0 | F64: 3 | H64: 5 | I64: 6 | J64: - | AB64: =_xlfn.IFNA(VLOOKUP(AL64,List!$M$3:$N$526,2,FALSE),"-") -> - | AC64: =_xlfn.IFNA(VLOOKUP(AL64,List!$M$3:$O$526,3,FALSE),"-") -> - | AL64: - | AM64: =VLOOKUP(AH64,List!$D$3:$F$527,2,FALSE)&AJ64&"_"&VLOOKUP(AK64,List!$I$2:$K$529,2,FALSE) ->  | AN64: =_xlfn.IFNA("L"&AM64&" "&"AT%Q"&B63*16&".2"&" "&":BOOL;"&" "&"(*"&J64&"*)"," ") ->  | AR64: - | AS64: =AS63+1 -> 2
B65: 50 | C65: 4 | D65: =BIN2DEC(MID((TEXT(DEC2BIN(B63),REPT(0,5))),2,1)) -> 0 | E65: =BIN2DEC(MID((TEXT(DEC2BIN(B63),REPT(0,5))),2,1)) -> 0 | F65: 4 | H65: 7 | I65: 8 | J65: - | AB65: =_xlfn.IFNA(VLOOKUP(AL65,List!$M$3:$N$526,2,FALSE),"-") -> - | AC65: =_xlfn.IFNA(VLOOKUP(AL65,List!$M$3:$O$526,3,FALSE),"-") -> - | AL65: - | AM65: =VLOOKUP(AH65,List!$D$3:$F$527,2,FALSE)&AJ65&"_"&VLOOKUP(AK65,List!$I$2:$K$529,2,FALSE) ->  | AN65: =_xlfn.IFNA("L"&AM65&" "&"AT%Q"&B63*16&".3"&" "&":BOOL;"&" "&"(*"&J65&"*)"," ") ->  | AR65: - | AS65: 3
B66: IOM 0801D | C66: 5 | D66: =BIN2DEC(MID((TEXT(DEC2BIN(B63),REPT(0,5))),1,1)) -> 0 | E66: =BIN2DEC(MID((TEXT(DEC2BIN(B63),REPT(0,5))),1,1)) -> 0 | F66: 5 | H66: 9 | I66: 10 | J66: - | AB66: =_xlfn.IFNA(VLOOKUP(AL66,List!$M$3:$N$526,2,FALSE),"-") -> - | AC66: =_xlfn.IFNA(VLOOKUP(AL66,List!$M$3:$O$526,3,FALSE),"-") -> - | AL66: - | AM66: =VLOOKUP(AH66,List!$D$3:$F$527,2,FALSE)&AJ66&"_"&VLOOKUP(AK66,List!$I$2:$K$529,2,FALSE) ->  | AN66: =_xlfn.IFNA("L"&AM66&" "&"AT%Q"&B63*16&".4"&" "&":BOOL;"&" "&"(*"&J66&"*)"," ") ->  | AR66: - | AS66: 4
C67: 6 | D67: =BIN2DEC(MID((TEXT(IF(B65=20,1,IF(B65=50,10,IF(B65=125,11,IF(B65=250,100,IF(B65=500,101,IF(B65=800,110,IF(B65=1000,111,0))))))),REPT(0,3))),3,1)) -> 0 | E67: =BIN2DEC(MID((TEXT(IF(B65=20,1,IF(B65=50,10,IF(B65=125,11,IF(B65=250,100,IF(B65=500,101,IF(B65=800,110,IF(B65=1000,111,0))))))),REPT(0,3))),3,1)) -> 0 | F67: 6 | H67: 11 | I67: 12 | J67: - | AB67: =_xlfn.IFNA(VLOOKUP(AL67,List!$M$3:$N$526,2,FALSE),"-") -> - | AC67: =_xlfn.IFNA(VLOOKUP(AL67,List!$M$3:$O$526,3,FALSE),"-") -> - | AL67: - | AM67: =VLOOKUP(AH67,List!$D$3:$F$527,2,FALSE)&AJ67&"_"&VLOOKUP(AK67,List!$I$2:$K$529,2,FALSE) ->  | AN67: =_xlfn.IFNA("L"&AM67&" "&"AT%Q"&B63*16&".5"&" "&":BOOL;"&" "&"(*"&J67&"*)"," ") ->  | AR67: - | AS67: 5
C68: 7 | D68: =BIN2DEC(MID((TEXT(IF(B65=20,1,IF(B65=50,10,IF(B65=125,11,IF(B65=250,100,IF(B65=500,101,IF(B65=800,110,IF(B65=1000,111,0))))))),REPT(0,3))),2,1)) -> 1 | E68: =BIN2DEC(MID((TEXT(IF(B65=20,1,IF(B65=50,10,IF(B65=125,11,IF(B65=250,100,IF(B65=500,101,IF(B65=800,110,IF(B65=1000,111,0))))))),REPT(0,3))),2,1)) -> 1 | F68: 7 | H68: 13 | I68: 14 | J68: - | AB68: =_xlfn.IFNA(VLOOKUP(AL68,List!$M$3:$N$526,2,FALSE),"-") -> - | AC68: =_xlfn.IFNA(VLOOKUP(AL68,List!$M$3:$O$526,3,FALSE),"-") -> - | AL68: - | AM68: =VLOOKUP(AH68,List!$D$3:$F$527,2,FALSE)&AJ68&"_"&VLOOKUP(AK68,List!$I$2:$K$529,2,FALSE) ->  | AN68: =_xlfn.IFNA("L"&AM68&" "&"AT%Q"&B63*16&".6"&" "&":BOOL;"&" "&"(*"&J68&"*)"," ") ->  | AR68: - | AS68: 6
A69: . | C69: 8 | D69: =BIN2DEC(MID((TEXT(IF(B65=20,1,IF(B65=50,10,IF(B65=125,11,IF(B65=250,100,IF(B65=500,101,IF(B65=800,110,IF(B65=1000,111,0))))))),REPT(0,3))),1,1)) -> 0 | E69: =BIN2DEC(MID((TEXT(IF(B65=20,1,IF(B65=50,10,IF(B65=125,11,IF(B65=250,100,IF(B65=500,101,IF(B65=800,110,IF(B65=1000,111,0))))))),REPT(0,3))),1,1)) -> 0 | F69: 8 | H69: 15 | I69: 16 | J69: - | AB69: =_xlfn.IFNA(VLOOKUP(AL69,List!$M$3:$N$526,2,FALSE),"-") -> - | AC69: =_xlfn.IFNA(VLOOKUP(AL69,List!$M$3:$O$526,3,FALSE),"-") -> - | AL69: - | AM69: =VLOOKUP(AH69,List!$D$3:$F$527,2,FALSE)&AJ69&"_"&VLOOKUP(AK69,List!$I$2:$K$529,2,FALSE) ->  | AN69: =_xlfn.IFNA("L"&AM69&" "&"AT%Q"&B63*16&".7"&" "&":BOOL;"&" "&"(*"&J69&"*)"," ") ->  | AR69: - | AS69: 7
B70: =B75 -> IOM 0801D D7 | AO70: ="(* "&B75&"地址: "&B72&" *)" -> (* IOM 0801D D7地址: 0 *)
B71: addr | C71: 1 | D71: =BIN2DEC(MID((TEXT(DEC2BIN(B72),REPT(0,5))),5,1)) -> 0 | E71: =BIN2DEC(MID((TEXT(DEC2BIN(B72),REPT(0,5))),5,1)) -> 0 | F71: 1 | H71: 1+ | I71: 1- | J71: =AH71&AA71&"-"&AK71 -> - | AA71: =IF(AI71="","",AI71) ->  | AB71: =_xlfn.IFNA(VLOOKUP(AL71,List!$M$3:$N$526,2,FALSE),"-") -> - | AC71: =_xlfn.IFNA(VLOOKUP(AL71,List!$M$3:$O$526,3,FALSE),"-") -> - | AL71: =AH71&"-"&AK71 -> - | AM71: =VLOOKUP(AH71,List!$D$3:$F$527,2,FALSE)&AJ71&"_"&VLOOKUP(AK71,List!$I$2:$K$529,2,FALSE) ->  | AN71: =_xlfn.IFNA("L"&AM71&" "&"AT%Q"&B72*16&".0"&" "&":BOOL;"&" "&"(*"&J71&"*)"," ") ->  | AO71: =IFERROR(REPLACE(REPLACE(AN71,SEARCH("AT%",AN71),,REPT(" ",30-SEARCH("AT%",AN71))),SEARCH(":",REPLACE(AN71,SEARCH("AT%",AN71),,REPT(" ",30-SEARCH("AT%",AN71)))),,REPT(" ",35-SEARCH(":",REPLACE(AN71,SEARCH("AT%",AN71),,REPT(" ",25-SEARCH("AT%",AN71))))))," ") ->  | AQ71: =$B$2&"\"&$B$2&AM71 ->  | AR71: =J71 -> - | AS71: =($B72*16*8+F71-1) -> 0
B72: 0 | C72: 2 | D72: =BIN2DEC(MID((TEXT(DEC2BIN(B72),REPT(0,5))),4,1)) -> 0 | E72: =BIN2DEC(MID((TEXT(DEC2BIN(B72),REPT(0,5))),4,1)) -> 0 | F72: 2 | H72: 2+ | I72: 2- | J72: - | AA72: =IF(AI72="","",AI72) ->  | AB72: =_xlfn.IFNA(VLOOKUP(AL72,List!$M$3:$N$526,2,FALSE),"-") -> - | AC72: =_xlfn.IFNA(VLOOKUP(AL72,List!$M$3:$O$526,3,FALSE),"-") -> - | AL72: =AH72&"-"&AK72 -> - | AM72: =VLOOKUP(AH72,List!$D$3:$F$527,2,FALSE)&AJ72&"_"&VLOOKUP(AK72,List!$I$2:$K$529,2,FALSE) ->  | AN72: =_xlfn.IFNA("L"&AM72&" "&"AT%Q"&B72*16&".1"&" "&":BOOL;"&" "&"(*"&J72&"*)"," ") ->  | AR72: =J72 -> - | AS72: =AS71+1 -> 1
B73: kbs | C73: 3 | D73: =BIN2DEC(MID((TEXT(DEC2BIN(B72),REPT(0,5))),3,1)) -> 0 | E73: =BIN2DEC(MID((TEXT(DEC2BIN(B72),REPT(0,5))),3,1)) -> 0 | F73: 3 | H73: 3+ | I73: 3- | J73: - | AB73: =_xlfn.IFNA(VLOOKUP(AL73,List!$M$3:$N$526,2,FALSE),"-") -> - | AC73: =_xlfn.IFNA(VLOOKUP(AL73,List!$M$3:$O$526,3,FALSE),"-") -> - | AL73: - | AM73: =VLOOKUP(AH73,List!$D$3:$F$527,2,FALSE)&AJ73&"_"&VLOOKUP(AK73,List!$I$2:$K$529,2,FALSE) ->  | AN73: =_xlfn.IFNA("L"&AM73&" "&"AT%Q"&B72*16&".2"&" "&":BOOL;"&" "&"(*"&J73&"*)"," ") ->  | AR73: - | AS73: =AS72+1 -> 2
B74: 50 | C74: 4 | D74: =BIN2DEC(MID((TEXT(DEC2BIN(B72),REPT(0,5))),2,1)) -> 0 | E74: =BIN2DEC(MID((TEXT(DEC2BIN(B72),REPT(0,5))),2,1)) -> 0 | F74: 4 | H74: 4+ | I74: 4- | J74: - | AB74: =_xlfn.IFNA(VLOOKUP(AL74,List!$M$3:$N$526,2,FALSE),"-") -> - | AC74: =_xlfn.IFNA(VLOOKUP(AL74,List!$M$3:$O$526,3,FALSE),"-") -> - | AL74: - | AM74: =VLOOKUP(AH74,List!$D$3:$F$527,2,FALSE)&AJ74&"_"&VLOOKUP(AK74,List!$I$2:$K$529,2,FALSE) ->  | AN74: =_xlfn.IFNA("L"&AM74&" "&"AT%Q"&B72*16&".3"&" "&":BOOL;"&" "&"(*"&J74&"*)"," ") ->  | AR74: - | AS74: 3
B75: IOM 0801D D7 | C75: 5 | D75: =BIN2DEC(MID((TEXT(DEC2BIN(B72),REPT(0,5))),1,1)) -> 0 | E75: =BIN2DEC(MID((TEXT(DEC2BIN(B72),REPT(0,5))),1,1)) -> 0 | F75: 5 | H75: 5+ | I75: 5- | J75: - | AB75: =_xlfn.IFNA(VLOOKUP(AL75,List!$M$3:$N$526,2,FALSE),"-") -> - | AC75: =_xlfn.IFNA(VLOOKUP(AL75,List!$M$3:$O$526,3,FALSE),"-") -> - | AL75: - | AM75: =VLOOKUP(AH75,List!$D$3:$F$527,2,FALSE)&AJ75&"_"&VLOOKUP(AK75,List!$I$2:$K$529,2,FALSE) ->  | AN75: =_xlfn.IFNA("L"&AM75&" "&"AT%Q"&B72*16&".4"&" "&":BOOL;"&" "&"(*"&J75&"*)"," ") ->  | AR75: - | AS75: 4
C76: 6 | D76: =BIN2DEC(MID((TEXT(IF(B74=20,1,IF(B74=50,10,IF(B74=125,11,IF(B74=250,100,IF(B74=500,101,IF(B74=800,110,IF(B74=1000,111,0))))))),REPT(0,3))),3,1)) -> 0 | E76: =BIN2DEC(MID((TEXT(IF(B74=20,1,IF(B74=50,10,IF(B74=125,11,IF(B74=250,100,IF(B74=500,101,IF(B74=800,110,IF(B74=1000,111,0))))))),REPT(0,3))),3,1)) -> 0 | F76: 6 | H76: 6+ | I76: 6- | J76: - | AB76: =_xlfn.IFNA(VLOOKUP(AL76,List!$M$3:$N$526,2,FALSE),"-") -> - | AC76: =_xlfn.IFNA(VLOOKUP(AL76,List!$M$3:$O$526,3,FALSE),"-") -> - | AL76: - | AM76: =VLOOKUP(AH76,List!$D$3:$F$527,2,FALSE)&AJ76&"_"&VLOOKUP(AK76,List!$I$2:$K$529,2,FALSE) ->  | AN76: =_xlfn.IFNA("L"&AM76&" "&"AT%Q"&B72*16&".5"&" "&":BOOL;"&" "&"(*"&J76&"*)"," ") ->  | AR76: - | AS76: 5
C77: 7 | D77: =BIN2DEC(MID((TEXT(IF(B74=20,1,IF(B74=50,10,IF(B74=125,11,IF(B74=250,100,IF(B74=500,101,IF(B74=800,110,IF(B74=1000,111,0))))))),REPT(0,3))),2,1)) -> 1 | E77: =BIN2DEC(MID((TEXT(IF(B74=20,1,IF(B74=50,10,IF(B74=125,11,IF(B74=250,100,IF(B74=500,101,IF(B74=800,110,IF(B74=1000,111,0))))))),REPT(0,3))),2,1)) -> 1 | F77: 7 | H77: 7+ | I77: 7- | J77: - | AB77: =_xlfn.IFNA(VLOOKUP(AL77,List!$M$3:$N$526,2,FALSE),"-") -> - | AC77: =_xlfn.IFNA(VLOOKUP(AL77,List!$M$3:$O$526,3,FALSE),"-") -> - | AL77: - | AM77: =VLOOKUP(AH77,List!$D$3:$F$527,2,FALSE)&AJ77&"_"&VLOOKUP(AK77,List!$I$2:$K$529,2,FALSE) ->  | AN77: =_xlfn.IFNA("L"&AM77&" "&"AT%Q"&B72*16&".6"&" "&":BOOL;"&" "&"(*"&J77&"*)"," ") ->  | AR77: - | AS77: 6
A78: . | C78: 8 | D78: =BIN2DEC(MID((TEXT(IF(B74=20,1,IF(B74=50,10,IF(B74=125,11,IF(B74=250,100,IF(B74=500,101,IF(B74=800,110,IF(B74=1000,111,0))))))),REPT(0,3))),1,1)) -> 0 | E78: =BIN2DEC(MID((TEXT(IF(B74=20,1,IF(B74=50,10,IF(B74=125,11,IF(B74=250,100,IF(B74=500,101,IF(B74=800,110,IF(B74=1000,111,0))))))),REPT(0,3))),1,1)) -> 0 | F78: 8 | H78: 8+ | I78: 8- | J78: - | AB78: =_xlfn.IFNA(VLOOKUP(AL78,List!$M$3:$N$526,2,FALSE),"-") -> - | AC78: =_xlfn.IFNA(VLOOKUP(AL78,List!$M$3:$O$526,3,FALSE),"-") -> - | AL78: - | AM78: =VLOOKUP(AH78,List!$D$3:$F$527,2,FALSE)&AJ78&"_"&VLOOKUP(AK78,List!$I$2:$K$529,2,FALSE) ->  | AN78: =_xlfn.IFNA("L"&AM78&" "&"AT%Q"&B72*16&".7"&" "&":BOOL;"&" "&"(*"&J78&"*)"," ") ->  | AR78: - | AS78: 7
B79: =B84 -> IOM 1601D | AO79: ="(* "&B84&"地址: "&B81&" *)" -> (* IOM 1601D地址: 0 *)
B80: addr | C80: 1 | D80: =BIN2DEC(MID((TEXT(DEC2BIN(B81),REPT(0,5))),5,1)) -> 0 | E80: =BIN2DEC(MID((TEXT(DEC2BIN(B81),REPT(0,5))),5,1)) -> 0 | F80: 1 | H80: 1 | I80: 2 | J80: =AH80&AA80&"-"&AK80 -> - | AA80: =IF(AI80="","",AI80) ->  | AB80: =_xlfn.IFNA(VLOOKUP(AL80,List!$M$3:$N$526,2,FALSE),"-") -> - | AC80: =_xlfn.IFNA(VLOOKUP(AL80,List!$M$3:$O$526,3,FALSE),"-") -> - | AL80: =AH80&"-"&AK80 -> - | AM80: =VLOOKUP(AH80,List!$D$3:$F$527,2,FALSE)&AJ80&"_"&VLOOKUP(AK80,List!$I$2:$K$529,2,FALSE) ->  | AN80: =_xlfn.IFNA("L"&AM80&" "&"AT%Q"&B81*16&".0"&" "&":BOOL;"&" "&"(*"&J80&"*)"," ") ->  | AO80: =IFERROR(REPLACE(REPLACE(AN80,SEARCH("AT%",AN80),,REPT(" ",30-SEARCH("AT%",AN80))),SEARCH(":",REPLACE(AN80,SEARCH("AT%",AN80),,REPT(" ",30-SEARCH("AT%",AN80)))),,REPT(" ",35-SEARCH(":",REPLACE(AN80,SEARCH("AT%",AN80),,REPT(" ",25-SEARCH("AT%",AN80))))))," ") ->  | AR80: =J80 -> - | AS80: =($B81*16*8+F80-1) -> 0
B81: 0 | C81: 2 | D81: =BIN2DEC(MID((TEXT(DEC2BIN(B81),REPT(0,5))),4,1)) -> 0 | E81: =BIN2DEC(MID((TEXT(DEC2BIN(B81),REPT(0,5))),4,1)) -> 0 | F81: 2 | H81: 3 | I81: 4 | J81: - | AA81: =IF(AI81="","",AI81) ->  | AB81: =_xlfn.IFNA(VLOOKUP(AL81,List!$M$3:$N$526,2,FALSE),"-") -> - | AC81: =_xlfn.IFNA(VLOOKUP(AL81,List!$M$3:$O$526,3,FALSE),"-") -> - | AL81: =AH81&"-"&AK81 -> - | AM81: =VLOOKUP(AH81,List!$D$3:$F$527,2,FALSE)&AJ81&"_"&VLOOKUP(AK81,List!$I$2:$K$529,2,FALSE) ->  | AN81: =_xlfn.IFNA("L"&AM81&" "&"AT%Q"&B81*16&".1"&" "&":BOOL;"&" "&"(*"&J81&"*)"," ") ->  | AR81: =J81 -> - | AS81: =AS80+1 -> 1
B82: kbs | C82: 3 | D82: =BIN2DEC(MID((TEXT(DEC2BIN(B81),REPT(0,5))),3,1)) -> 0 | E82: =BIN2DEC(MID((TEXT(DEC2BIN(B81),REPT(0,5))),3,1)) -> 0 | F82: 3 | H82: 5 | I82: 6 | J82: - | AB82: =_xlfn.IFNA(VLOOKUP(AL82,List!$M$3:$N$526,2,FALSE),"-") -> - | AC82: =_xlfn.IFNA(VLOOKUP(AL82,List!$M$3:$O$526,3,FALSE),"-") -> - | AL82: - | AM82: =VLOOKUP(AH82,List!$D$3:$F$527,2,FALSE)&AJ82&"_"&VLOOKUP(AK82,List!$I$2:$K$529,2,FALSE) ->  | AN82: =_xlfn.IFNA("L"&AM82&" "&"AT%Q"&B81*16&".2"&" "&":BOOL;"&" "&"(*"&J82&"*)"," ") ->  | AR82: - | AS82: =AS81+1 -> 2
B83: 50 | C83: 4 | D83: =BIN2DEC(MID((TEXT(DEC2BIN(B81),REPT(0,5))),2,1)) -> 0 | E83: =BIN2DEC(MID((TEXT(DEC2BIN(B81),REPT(0,5))),2,1)) -> 0 | F83: 4 | H83: 7 | I83: 8 | J83: - | AB83: =_xlfn.IFNA(VLOOKUP(AL83,List!$M$3:$N$526,2,FALSE),"-") -> - | AC83: =_xlfn.IFNA(VLOOKUP(AL83,List!$M$3:$O$526,3,FALSE),"-") -> - | AL83: - | AM83: =VLOOKUP(AH83,List!$D$3:$F$527,2,FALSE)&AJ83&"_"&VLOOKUP(AK83,List!$I$2:$K$529,2,FALSE) ->  | AN83: =_xlfn.IFNA("L"&AM83&" "&"AT%Q"&B81*16&".3"&" "&":BOOL;"&" "&"(*"&J83&"*)"," ") ->  | AR83: - | AS83: 3
B84: IOM 1601D | C84: 5 | D84: =BIN2DEC(MID((TEXT(DEC2BIN(B81),REPT(0,5))),1,1)) -> 0 | E84: =BIN2DEC(MID((TEXT(DEC2BIN(B81),REPT(0,5))),1,1)) -> 0 | F84: 5 | H84: 9 | I84: 10 | J84: - | AB84: =_xlfn.IFNA(VLOOKUP(AL84,List!$M$3:$N$526,2,FALSE),"-") -> - | AC84: =_xlfn.IFNA(VLOOKUP(AL84,List!$M$3:$O$526,3,FALSE),"-") -> - | AL84: - | AM84: =VLOOKUP(AH84,List!$D$3:$F$527,2,FALSE)&AJ84&"_"&VLOOKUP(AK84,List!$I$2:$K$529,2,FALSE) ->  | AN84: =_xlfn.IFNA("L"&AM84&" "&"AT%Q"&B81*16&".4"&" "&":BOOL;"&" "&"(*"&J84&"*)"," ") ->  | AR84: - | AS84: 4
C85: 6 | D85: =BIN2DEC(MID((TEXT(IF(B83=20,1,IF(B83=50,10,IF(B83=125,11,IF(B83=250,100,IF(B83=500,101,IF(B83=800,110,IF(B83=1000,111,0))))))),REPT(0,3))),3,1)) -> 0 | E85: =BIN2DEC(MID((TEXT(IF(B83=20,1,IF(B83=50,10,IF(B83=125,11,IF(B83=250,100,IF(B83=500,101,IF(B83=800,110,IF(B83=1000,111,0))))))),REPT(0,3))),3,1)) -> 0 | F85: 6 | H85: 11 | I85: 12 | J85: - | AB85: =_xlfn.IFNA(VLOOKUP(AL85,List!$M$3:$N$526,2,FALSE),"-") -> - | AC85: =_xlfn.IFNA(VLOOKUP(AL85,List!$M$3:$O$526,3,FALSE),"-") -> - | AL85: - | AM85: =VLOOKUP(AH85,List!$D$3:$F$527,2,FALSE)&AJ85&"_"&VLOOKUP(AK85,List!$I$2:$K$529,2,FALSE) ->  | AN85: =_xlfn.IFNA("L"&AM85&" "&"AT%Q"&B81*16&".5"&" "&":BOOL;"&" "&"(*"&J85&"*)"," ") ->  | AR85: - | AS85: 5
C86: 7 | D86: =BIN2DEC(MID((TEXT(IF(B83=20,1,IF(B83=50,10,IF(B83=125,11,IF(B83=250,100,IF(B83=500,101,IF(B83=800,110,IF(B83=1000,111,0))))))),REPT(0,3))),2,1)) -> 1 | E86: =BIN2DEC(MID((TEXT(IF(B83=20,1,IF(B83=50,10,IF(B83=125,11,IF(B83=250,100,IF(B83=500,101,IF(B83=800,110,IF(B83=1000,111,0))))))),REPT(0,3))),2,1)) -> 1 | F86: 7 | H86: 13 | I86: 14 | J86: - | AB86: =_xlfn.IFNA(VLOOKUP(AL86,List!$M$3:$N$526,2,FALSE),"-") -> - | AC86: =_xlfn.IFNA(VLOOKUP(AL86,List!$M$3:$O$526,3,FALSE),"-") -> - | AL86: - | AM86: =VLOOKUP(AH86,List!$D$3:$F$527,2,FALSE)&AJ86&"_"&VLOOKUP(AK86,List!$I$2:$K$529,2,FALSE) ->  | AN86: =_xlfn.IFNA("L"&AM86&" "&"AT%Q"&B81*16&".6"&" "&":BOOL;"&" "&"(*"&J86&"*)"," ") ->  | AR86: - | AS86: 6
C87: 8 | D87: =BIN2DEC(MID((TEXT(IF(B83=20,1,IF(B83=50,10,IF(B83=125,11,IF(B83=250,100,IF(B83=500,101,IF(B83=800,110,IF(B83=1000,111,0))))))),REPT(0,3))),1,1)) -> 0 | E87: =BIN2DEC(MID((TEXT(IF(B83=20,1,IF(B83=50,10,IF(B83=125,11,IF(B83=250,100,IF(B83=500,101,IF(B83=800,110,IF(B83=1000,111,0))))))),REPT(0,3))),1,1)) -> 0 | F87: 8 | H87: 15 | I87: 16 | J87: - | AB87: =_xlfn.IFNA(VLOOKUP(AL87,List!$M$3:$N$526,2,FALSE),"-") -> - | AC87: =_xlfn.IFNA(VLOOKUP(AL87,List!$M$3:$O$526,3,FALSE),"-") -> - | AL87: - | AM87: =VLOOKUP(AH87,List!$D$3:$F$527,2,FALSE)&AJ87&"_"&VLOOKUP(AK87,List!$I$2:$K$529,2,FALSE) ->  | AN87: =_xlfn.IFNA("L"&AM87&" "&"AT%Q"&B81*16&".7"&" "&":BOOL;"&" "&"(*"&J87&"*)"," ") ->  | AR87: - | AS87: 7
F88: 9 | H88: 17 | I88: 18 | J88: - | AB88: =_xlfn.IFNA(VLOOKUP(AL88,List!$M$3:$N$526,2,FALSE),"-") -> - | AC88: =_xlfn.IFNA(VLOOKUP(AL88,List!$M$3:$O$526,3,FALSE),"-") -> - | AL88: - | AM88: =VLOOKUP(AH88,List!$D$3:$F$527,2,FALSE)&AJ88&"_"&VLOOKUP(AK88,List!$I$2:$K$529,2,FALSE) ->  | AN88: =_xlfn.IFNA("L"&AM88&" "&"AT%Q"&B81*16+1&".0"&" "&":BOOL;"&" "&"(*"&J88&"*)"," ") ->  | AR88: - | AS88: 8
F89: 10 | H89: 19 | I89: 20 | J89: - | AA89: =IF(AI89="","",AI89) ->  | AB89: =_xlfn.IFNA(VLOOKUP(AL89,List!$M$3:$N$526,2,FALSE),"-") -> - | AC89: =_xlfn.IFNA(VLOOKUP(AL89,List!$M$3:$O$526,3,FALSE),"-") -> - | AL89: =AH89&"-"&AK89 -> - | AM89: =VLOOKUP(AH89,List!$D$3:$F$527,2,FALSE)&AJ89&"_"&VLOOKUP(AK89,List!$I$2:$K$529,2,FALSE) ->  | AN89: =_xlfn.IFNA("L"&AM89&" "&"AT%Q"&B81*16+1&".1"&" "&":BOOL;"&" "&"(*"&J89&"*)"," ") ->  | AR89: =J89 -> - | AS89: 9
F90: 11 | H90: 21 | I90: 22 | J90: - | AB90: =_xlfn.IFNA(VLOOKUP(AL90,List!$M$3:$N$526,2,FALSE),"-") -> - | AC90: =_xlfn.IFNA(VLOOKUP(AL90,List!$M$3:$O$526,3,FALSE),"-") -> - | AL90: - | AM90: =VLOOKUP(AH90,List!$D$3:$F$527,2,FALSE)&AJ90&"_"&VLOOKUP(AK90,List!$I$2:$K$529,2,FALSE) ->  | AN90: =_xlfn.IFNA("L"&AM90&" "&"AT%Q"&B81*16+1&".2"&" "&":BOOL;"&" "&"(*"&J90&"*)"," ") ->  | AR90: - | AS90: 10
F91: 12 | H91: 23 | I91: 24 | J91: - | AB91: =_xlfn.IFNA(VLOOKUP(AL91,List!$M$3:$N$526,2,FALSE),"-") -> - | AC91: =_xlfn.IFNA(VLOOKUP(AL91,List!$M$3:$O$526,3,FALSE),"-") -> - | AL91: - | AM91: =VLOOKUP(AH91,List!$D$3:$F$527,2,FALSE)&AJ91&"_"&VLOOKUP(AK91,List!$I$2:$K$529,2,FALSE) ->  | AN91: =_xlfn.IFNA("L"&AM91&" "&"AT%Q"&B81*16+1&".3"&" "&":BOOL;"&" "&"(*"&J91&"*)"," ") ->  | AR91: - | AS91: 11
F92: 13 | H92: 25 | I92: 26 | J92: - | AB92: =_xlfn.IFNA(VLOOKUP(AL92,List!$M$3:$N$526,2,FALSE),"-") -> - | AC92: =_xlfn.IFNA(VLOOKUP(AL92,List!$M$3:$O$526,3,FALSE),"-") -> - | AL92: - | AM92: =VLOOKUP(AH92,List!$D$3:$F$527,2,FALSE)&AJ92&"_"&VLOOKUP(AK92,List!$I$2:$K$529,2,FALSE) ->  | AN92: =_xlfn.IFNA("L"&AM92&" "&"AT%Q"&B81*16+1&".4"&" "&":BOOL;"&" "&"(*"&J92&"*)"," ") ->  | AR92: - | AS92: 12
F93: 14 | H93: 27 | I93: 28 | J93: - | AB93: =_xlfn.IFNA(VLOOKUP(AL93,List!$M$3:$N$526,2,FALSE),"-") -> - | AC93: =_xlfn.IFNA(VLOOKUP(AL93,List!$M$3:$O$526,3,FALSE),"-") -> - | AL93: - | AM93: =VLOOKUP(AH93,List!$D$3:$F$527,2,FALSE)&AJ93&"_"&VLOOKUP(AK93,List!$I$2:$K$529,2,FALSE) ->  | AN93: =_xlfn.IFNA("L"&AM93&" "&"AT%Q"&B81*16+1&".5"&" "&":BOOL;"&" "&"(*"&J93&"*)"," ") ->  | AR93: - | AS93: 13
F94: 15 | H94: 29 | I94: 30 | J94: - | AB94: =_xlfn.IFNA(VLOOKUP(AL94,List!$M$3:$N$526,2,FALSE),"-") -> - | AC94: =_xlfn.IFNA(VLOOKUP(AL94,List!$M$3:$O$526,3,FALSE),"-") -> - | AL94: - | AM94: =VLOOKUP(AH94,List!$D$3:$F$527,2,FALSE)&AJ94&"_"&VLOOKUP(AK94,List!$I$2:$K$529,2,FALSE) ->  | AN94: =_xlfn.IFNA("L"&AM94&" "&"AT%Q"&B81*16+1&".6"&" "&":BOOL;"&" "&"(*"&J94&"*)"," ") ->  | AR94: - | AS94: 14
A95: . | F95: 16 | H95: 31 | I95: 32 | J95: - | AB95: =_xlfn.IFNA(VLOOKUP(AL95,List!$M$3:$N$526,2,FALSE),"-") -> - | AC95: =_xlfn.IFNA(VLOOKUP(AL95,List!$M$3:$O$526,3,FALSE),"-") -> - | AL95: - | AM95: =VLOOKUP(AH95,List!$D$3:$F$527,2,FALSE)&AJ95&"_"&VLOOKUP(AK95,List!$I$2:$K$529,2,FALSE) ->  | AN95: =_xlfn.IFNA("L"&AM95&" "&"AT%Q"&B81*16+1&".7"&" "&":BOOL;"&" "&"(*"&J95&"*)"," ") ->  | AR95: - | AS95: 15
B96: =B101 -> IOM 1601D D7 | AO96: ="(* "&B101&"地址: "&B98&" *)" -> (* IOM 1601D D7地址: 0 *)
B97: addr | C97: 1 | D97: =BIN2DEC(MID((TEXT(DEC2BIN(B98),REPT(0,5))),5,1)) -> 0 | E97: =BIN2DEC(MID((TEXT(DEC2BIN(B98),REPT(0,5))),5,1)) -> 0 | F97: 1 | H97: 1+ | I97: 1- | J97: =AH97&AA97&"-"&AK97 -> - | AA97: =IF(AI97="","",AI97) ->  | AB97: =_xlfn.IFNA(VLOOKUP(AL97,List!$M$3:$N$526,2,FALSE),"-") -> - | AC97: =_xlfn.IFNA(VLOOKUP(AL97,List!$M$3:$O$526,3,FALSE),"-") -> - | AL97: =AH97&"-"&AK97 -> - | AM97: =VLOOKUP(AH97,List!$D$3:$F$527,2,FALSE)&AJ97&"_"&VLOOKUP(AK97,List!$I$2:$K$529,2,FALSE) ->  | AN97: =_xlfn.IFNA("L"&AM97&" "&"AT%Q"&B98*16&".0"&" "&":BOOL;"&" "&"(*"&J97&"*)"," ") ->  | AO97: =IFERROR(REPLACE(REPLACE(AN97,SEARCH("AT%",AN97),,REPT(" ",30-SEARCH("AT%",AN97))),SEARCH(":",REPLACE(AN97,SEARCH("AT%",AN97),,REPT(" ",30-SEARCH("AT%",AN97)))),,REPT(" ",35-SEARCH(":",REPLACE(AN97,SEARCH("AT%",AN97),,REPT(" ",25-SEARCH("AT%",AN97))))))," ") ->  | AQ97: =$B$2&"\"&$B$2&AM97 ->  | AR97: =J97 -> - | AS97: =($B98*16*8+F97-1) -> 0
B98: 0 | C98: 2 | D98: =BIN2DEC(MID((TEXT(DEC2BIN(B98),REPT(0,5))),4,1)) -> 0 | E98: =BIN2DEC(MID((TEXT(DEC2BIN(B98),REPT(0,5))),4,1)) -> 0 | F98: 2 | H98: 2+ | I98: 2- | J98: - | AA98: =IF(AI98="","",AI98) ->  | AB98: =_xlfn.IFNA(VLOOKUP(AL98,List!$M$3:$N$526,2,FALSE),"-") -> - | AC98: =_xlfn.IFNA(VLOOKUP(AL98,List!$M$3:$O$526,3,FALSE),"-") -> - | AL98: =AH98&"-"&AK98 -> - | AM98: =VLOOKUP(AH98,List!$D$3:$F$527,2,FALSE)&AJ98&"_"&VLOOKUP(AK98,List!$I$2:$K$529,2,FALSE) ->  | AN98: =_xlfn.IFNA("L"&AM98&" "&"AT%Q"&B98*16&".1"&" "&":BOOL;"&" "&"(*"&J98&"*)"," ") ->  | AR98: =J98 -> - | AS98: =AS97+1 -> 1
B99: kbs | C99: 3 | D99: =BIN2DEC(MID((TEXT(DEC2BIN(B98),REPT(0,5))),3,1)) -> 0 | E99: =BIN2DEC(MID((TEXT(DEC2BIN(B98),REPT(0,5))),3,1)) -> 0 | F99: 3 | H99: 3+ | I99: 3- | J99: - | AB99: =_xlfn.IFNA(VLOOKUP(AL99,List!$M$3:$N$526,2,FALSE),"-") -> - | AC99: =_xlfn.IFNA(VLOOKUP(AL99,List!$M$3:$O$526,3,FALSE),"-") -> - | AL99: - | AM99: =VLOOKUP(AH99,List!$D$3:$F$527,2,FALSE)&AJ99&"_"&VLOOKUP(AK99,List!$I$2:$K$529,2,FALSE) ->  | AN99: =_xlfn.IFNA("L"&AM99&" "&"AT%Q"&B98*16&".2"&" "&":BOOL;"&" "&"(*"&J99&"*)"," ") ->  | AR99: - | AS99: =AS98+1 -> 2
B100: 50 | C100: 4 | D100: =BIN2DEC(MID((TEXT(DEC2BIN(B98),REPT(0,5))),2,1)) -> 0 | E100: =BIN2DEC(MID((TEXT(DEC2BIN(B98),REPT(0,5))),2,1)) -> 0 | F100: 4 | H100: 4+ | I100: 4- | J100: - | AB100: =_xlfn.IFNA(VLOOKUP(AL100,List!$M$3:$N$526,2,FALSE),"-") -> - | AC100: =_xlfn.IFNA(VLOOKUP(AL100,List!$M$3:$O$526,3,FALSE),"-") -> - | AL100: - | AM100: =VLOOKUP(AH100,List!$D$3:$F$527,2,FALSE)&AJ100&"_"&VLOOKUP(AK100,List!$I$2:$K$529,2,FALSE) ->  | AN100: =_xlfn.IFNA("L"&AM100&" "&"AT%Q"&B98*16&".3"&" "&":BOOL;"&" "&"(*"&J100&"*)"," ") ->  | AR100: - | AS100: 3
B101: IOM 1601D D7 | C101: 5 | D101: =BIN2DEC(MID((TEXT(DEC2BIN(B98),REPT(0,5))),1,1)) -> 0 | E101: =BIN2DEC(MID((TEXT(DEC2BIN(B98),REPT(0,5))),1,1)) -> 0 | F101: 5 | H101: 5+ | I101: 5- | J101: - | AB101: =_xlfn.IFNA(VLOOKUP(AL101,List!$M$3:$N$526,2,FALSE),"-") -> - | AC101: =_xlfn.IFNA(VLOOKUP(AL101,List!$M$3:$O$526,3,FALSE),"-") -> - | AL101: - | AM101: =VLOOKUP(AH101,List!$D$3:$F$527,2,FALSE)&AJ101&"_"&VLOOKUP(AK101,List!$I$2:$K$529,2,FALSE) ->  | AN101: =_xlfn.IFNA("L"&AM101&" "&"AT%Q"&B98*16&".4"&" "&":BOOL;"&" "&"(*"&J101&"*)"," ") ->  | AR101: - | AS101: 4
C102: 6 | D102: =BIN2DEC(MID((TEXT(IF(B100=20,1,IF(B100=50,10,IF(B100=125,11,IF(B100=250,100,IF(B100=500,101,IF(B100=800,110,IF(B100=1000,111,0))))))),REPT(0,3))),3,1)) -> 0 | E102: =BIN2DEC(MID((TEXT(IF(B100=20,1,IF(B100=50,10,IF(B100=125,11,IF(B100=250,100,IF(B100=500,101,IF(B100=800,110,IF(B100=1000,111,0))))))),REPT(0,3))),3,1)) -> 0 | F102: 6 | H102: 6+ | I102: 6- | J102: - | AB102: =_xlfn.IFNA(VLOOKUP(AL102,List!$M$3:$N$526,2,FALSE),"-") -> - | AC102: =_xlfn.IFNA(VLOOKUP(AL102,List!$M$3:$O$526,3,FALSE),"-") -> - | AL102: - | AM102: =VLOOKUP(AH102,List!$D$3:$F$527,2,FALSE)&AJ102&"_"&VLOOKUP(AK102,List!$I$2:$K$529,2,FALSE) ->  | AN102: =_xlfn.IFNA("L"&AM102&" "&"AT%Q"&B98*16&".5"&" "&":BOOL;"&" "&"(*"&J102&"*)"," ") ->  | AR102: - | AS102: 5
C103: 7 | D103: =BIN2DEC(MID((TEXT(IF(B100=20,1,IF(B100=50,10,IF(B100=125,11,IF(B100=250,100,IF(B100=500,101,IF(B100=800,110,IF(B100=1000,111,0))))))),REPT(0,3))),2,1)) -> 1 | E103: =BIN2DEC(MID((TEXT(IF(B100=20,1,IF(B100=50,10,IF(B100=125,11,IF(B100=250,100,IF(B100=500,101,IF(B100=800,110,IF(B100=1000,111,0))))))),REPT(0,3))),2,1)) -> 1 | F103: 7 | H103: 7+ | I103: 7- | J103: - | AB103: =_xlfn.IFNA(VLOOKUP(AL103,List!$M$3:$N$526,2,FALSE),"-") -> - | AC103: =_xlfn.IFNA(VLOOKUP(AL103,List!$M$3:$O$526,3,FALSE),"-") -> - | AL103: - | AM103: =VLOOKUP(AH103,List!$D$3:$F$527,2,FALSE)&AJ103&"_"&VLOOKUP(AK103,List!$I$2:$K$529,2,FALSE) ->  | AN103: =_xlfn.IFNA("L"&AM103&" "&"AT%Q"&B98*16&".6"&" "&":BOOL;"&" "&"(*"&J103&"*)"," ") ->  | AR103: - | AS103: 6
C104: 8 | D104: =BIN2DEC(MID((TEXT(IF(B100=20,1,IF(B100=50,10,IF(B100=125,11,IF(B100=250,100,IF(B100=500,101,IF(B100=800,110,IF(B100=1000,111,0))))))),REPT(0,3))),1,1)) -> 0 | E104: =BIN2DEC(MID((TEXT(IF(B100=20,1,IF(B100=50,10,IF(B100=125,11,IF(B100=250,100,IF(B100=500,101,IF(B100=800,110,IF(B100=1000,111,0))))))),REPT(0,3))),1,1)) -> 0 | F104: 8 | H104: 8+ | I104: 8- | J104: - | AB104: =_xlfn.IFNA(VLOOKUP(AL104,List!$M$3:$N$526,2,FALSE),"-") -> - | AC104: =_xlfn.IFNA(VLOOKUP(AL104,List!$M$3:$O$526,3,FALSE),"-") -> - | AL104: - | AM104: =VLOOKUP(AH104,List!$D$3:$F$527,2,FALSE)&AJ104&"_"&VLOOKUP(AK104,List!$I$2:$K$529,2,FALSE) ->  | AN104: =_xlfn.IFNA("L"&AM104&" "&"AT%Q"&B98*16&".7"&" "&":BOOL;"&" "&"(*"&J104&"*)"," ") ->  | AR104: - | AS104: 7
F105: 9 | H105: 9+ | I105: 9- | J105: - | AB105: =_xlfn.IFNA(VLOOKUP(AL105,List!$M$3:$N$526,2,FALSE),"-") -> - | AC105: =_xlfn.IFNA(VLOOKUP(AL105,List!$M$3:$O$526,3,FALSE),"-") -> - | AL105: - | AM105: =VLOOKUP(AH105,List!$D$3:$F$527,2,FALSE)&AJ105&"_"&VLOOKUP(AK105,List!$I$2:$K$529,2,FALSE) ->  | AN105: =_xlfn.IFNA("L"&AM105&" "&"AT%Q"&B98*16+1&".0"&" "&":BOOL;"&" "&"(*"&J105&"*)"," ") ->  | AR105: - | AS105: 8
F106: 10 | H106: 10+ | I106: 10- | J106: - | AA106: =IF(AI106="","",AI106) ->  | AB106: =_xlfn.IFNA(VLOOKUP(AL106,List!$M$3:$N$526,2,FALSE),"-") -> - | AC106: =_xlfn.IFNA(VLOOKUP(AL106,List!$M$3:$O$526,3,FALSE),"-") -> - | AL106: =AH106&"-"&AK106 -> - | AM106: =VLOOKUP(AH106,List!$D$3:$F$527,2,FALSE)&AJ106&"_"&VLOOKUP(AK106,List!$I$2:$K$529,2,FALSE) ->  | AN106: =_xlfn.IFNA("L"&AM106&" "&"AT%Q"&B98*16+1&".1"&" "&":BOOL;"&" "&"(*"&J106&"*)"," ") ->  | AR106: =J106 -> - | AS106: 9
F107: 11 | H107: 11+ | I107: 11- | J107: - | AB107: =_xlfn.IFNA(VLOOKUP(AL107,List!$M$3:$N$526,2,FALSE),"-") -> - | AC107: =_xlfn.IFNA(VLOOKUP(AL107,List!$M$3:$O$526,3,FALSE),"-") -> - | AL107: - | AM107: =VLOOKUP(AH107,List!$D$3:$F$527,2,FALSE)&AJ107&"_"&VLOOKUP(AK107,List!$I$2:$K$529,2,FALSE) ->  | AN107: =_xlfn.IFNA("L"&AM107&" "&"AT%Q"&B98*16+1&".2"&" "&":BOOL;"&" "&"(*"&J107&"*)"," ") ->  | AR107: - | AS107: 10
F108: 12 | H108: 12+ | I108: 12- | J108: - | AB108: =_xlfn.IFNA(VLOOKUP(AL108,List!$M$3:$N$526,2,FALSE),"-") -> - | AC108: =_xlfn.IFNA(VLOOKUP(AL108,List!$M$3:$O$526,3,FALSE),"-") -> - | AL108: - | AM108: =VLOOKUP(AH108,List!$D$3:$F$527,2,FALSE)&AJ108&"_"&VLOOKUP(AK108,List!$I$2:$K$529,2,FALSE) ->  | AN108: =_xlfn.IFNA("L"&AM108&" "&"AT%Q"&B98*16+1&".3"&" "&":BOOL;"&" "&"(*"&J108&"*)"," ") ->  | AR108: - | AS108: 11
F109: 13 | H109: 13+ | I109: 13- | J109: - | AB109: =_xlfn.IFNA(VLOOKUP(AL109,List!$M$3:$N$526,2,FALSE),"-") -> - | AC109: =_xlfn.IFNA(VLOOKUP(AL109,List!$M$3:$O$526,3,FALSE),"-") -> - | AL109: - | AM109: =VLOOKUP(AH109,List!$D$3:$F$527,2,FALSE)&AJ109&"_"&VLOOKUP(AK109,List!$I$2:$K$529,2,FALSE) ->  | AN109: =_xlfn.IFNA("L"&AM109&" "&"AT%Q"&B98*16+1&".4"&" "&":BOOL;"&" "&"(*"&J109&"*)"," ") ->  | AR109: - | AS109: 12
F110: 14 | H110: 14+ | I110: 14- | J110: - | AB110: =_xlfn.IFNA(VLOOKUP(AL110,List!$M$3:$N$526,2,FALSE),"-") -> - | AC110: =_xlfn.IFNA(VLOOKUP(AL110,List!$M$3:$O$526,3,FALSE),"-") -> - | AL110: - | AM110: =VLOOKUP(AH110,List!$D$3:$F$527,2,FALSE)&AJ110&"_"&VLOOKUP(AK110,List!$I$2:$K$529,2,FALSE) ->  | AN110: =_xlfn.IFNA("L"&AM110&" "&"AT%Q"&B98*16+1&".5"&" "&":BOOL;"&" "&"(*"&J110&"*)"," ") ->  | AR110: - | AS110: 13
F111: 15 | H111: 15+ | I111: 15- | J111: - | AB111: =_xlfn.IFNA(VLOOKUP(AL111,List!$M$3:$N$526,2,FALSE),"-") -> - | AC111: =_xlfn.IFNA(VLOOKUP(AL111,List!$M$3:$O$526,3,FALSE),"-") -> - | AL111: - | AM111: =VLOOKUP(AH111,List!$D$3:$F$527,2,FALSE)&AJ111&"_"&VLOOKUP(AK111,List!$I$2:$K$529,2,FALSE) ->  | AN111: =_xlfn.IFNA("L"&AM111&" "&"AT%Q"&B98*16+1&".6"&" "&":BOOL;"&" "&"(*"&J111&"*)"," ") ->  | AR111: - | AS111: 14
A112: . | F112: 16 | H112: 16+ | I112: 16- | J112: - | AB112: =_xlfn.IFNA(VLOOKUP(AL112,List!$M$3:$N$526,2,FALSE),"-") -> - | AC112: =_xlfn.IFNA(VLOOKUP(AL112,List!$M$3:$O$526,3,FALSE),"-") -> - | AL112: - | AM112: =VLOOKUP(AH112,List!$D$3:$F$527,2,FALSE)&AJ112&"_"&VLOOKUP(AK112,List!$I$2:$K$529,2,FALSE) ->  | AN112: =_xlfn.IFNA("L"&AM112&" "&"AT%Q"&B98*16+1&".7"&" "&":BOOL;"&" "&"(*"&J112&"*)"," ") ->  | AR112: - | AS112: 15
B113: =B118 -> IOM 0401U | AO113: ="(* "&B118&"地址: "&B115&" *)" -> (* IOM 0401U地址: 0 *)
B114: addr | C114: 1 | D114: =BIN2DEC(MID((TEXT(DEC2BIN(B115),REPT(0,5))),5,1)) -> 0 | E114: =BIN2DEC(MID((TEXT(DEC2BIN(B115),REPT(0,5))),5,1)) -> 0 | F114: 1 | H114: 1 | I114: 2 | J114: =AH114&AA114&"-"&AK114 -> - | AA114: =IF(AI114="","",AI114) ->  | AB114: =_xlfn.IFNA(VLOOKUP(AL114,List!$M$3:$N$526,2,FALSE),"-") -> - | AC114: =_xlfn.IFNA(VLOOKUP(AL114,List!$M$3:$O$526,3,FALSE),"-") -> - | AL114: =AH114&"-"&AK114 -> - | AM114: =VLOOKUP(AH114,List!$D$3:$F$527,2,FALSE)&AJ114&"_"&VLOOKUP(AK114,List!$I$2:$K$529,2,FALSE) ->  | AN114: =_xlfn.IFNA("L"&AM114&" "&"AT%I"&B115*16&".0"&" "&":INT;"&" "&"(*"&J114&"*)"," ") ->  | AO114: =IFERROR(REPLACE(REPLACE(AN114,SEARCH("AT%",AN114),,REPT(" ",30-SEARCH("AT%",AN114))),SEARCH(":",REPLACE(AN114,SEARCH("AT%",AN114),,REPT(" ",30-SEARCH("AT%",AN114)))),,REPT(" ",35-SEARCH(":",REPLACE(AN114,SEARCH("AT%",AN114),,REPT(" ",25-SEARCH("AT%",AN114))))))," ") ->  | AR114: =J114 -> - | AS114: =30000+($B115*8+F114-1) -> 30000
B115: 0 | C115: 2 | D115: =BIN2DEC(MID((TEXT(DEC2BIN(B115),REPT(0,5))),4,1)) -> 0 | E115: =BIN2DEC(MID((TEXT(DEC2BIN(B115),REPT(0,5))),4,1)) -> 0 | F115: 2 | H115: 3 | I115: 4 | J115: =AH115&AA115&"-"&AK115 -> - | AA115: =IF(AI115="","",AI115) ->  | AB115: =_xlfn.IFNA(VLOOKUP(AL115,List!$M$3:$N$526,2,FALSE),"-") -> - | AC115: =_xlfn.IFNA(VLOOKUP(AL115,List!$M$3:$O$526,3,FALSE),"-") -> - | AL115: =AH115&"-"&AK115 -> - | AM115: =VLOOKUP(AH115,List!$D$3:$F$527,2,FALSE)&AJ115&"_"&VLOOKUP(AK115,List!$I$2:$K$529,2,FALSE) ->  | AN115: =_xlfn.IFNA("L"&AM115&" "&"AT%I"&B115*16+2&".0"&" "&":INT;"&" "&"(*"&J115&"*)"," ") ->  | AO115: =IFERROR(REPLACE(REPLACE(AN115,SEARCH("AT%",AN115),,REPT(" ",30-SEARCH("AT%",AN115))),SEARCH(":",REPLACE(AN115,SEARCH("AT%",AN115),,REPT(" ",30-SEARCH("AT%",AN115)))),,REPT(" ",35-SEARCH(":",REPLACE(AN115,SEARCH("AT%",AN115),,REPT(" ",25-SEARCH("AT%",AN115))))))," ") ->  | AR115: =J115 -> - | AS115: =AS114+1 -> 30001
B116: kbs | C116: 3 | D116: =BIN2DEC(MID((TEXT(DEC2BIN(B115),REPT(0,5))),3,1)) -> 0 | E116: =BIN2DEC(MID((TEXT(DEC2BIN(B115),REPT(0,5))),3,1)) -> 0 | F116: 3 | H116: 5 | I116: 6 | J116: =AH116&AA116&"-"&AK116 -> - | AB116: =_xlfn.IFNA(VLOOKUP(AL116,List!$M$3:$N$526,2,FALSE),"-") -> - | AC116: =_xlfn.IFNA(VLOOKUP(AL116,List!$M$3:$O$526,3,FALSE),"-") -> - | AL116: - | AM116: =VLOOKUP(AH116,List!$D$3:$F$527,2,FALSE)&AJ116&"_"&VLOOKUP(AK116,List!$I$2:$K$529,2,FALSE) ->  | AN116: =_xlfn.IFNA("L"&AM116&" "&"AT%I"&B115*16+4&".0"&" "&":INT;"&" "&"(*"&J116&"*)"," ") ->  | AO116: =IFERROR(REPLACE(REPLACE(AN116,SEARCH("AT%",AN116),,REPT(" ",30-SEARCH("AT%",AN116))),SEARCH(":",REPLACE(AN116,SEARCH("AT%",AN116),,REPT(" ",30-SEARCH("AT%",AN116)))),,REPT(" ",35-SEARCH(":",REPLACE(AN116,SEARCH("AT%",AN116),,REPT(" ",25-SEARCH("AT%",AN116))))))," ") ->  | AR116: - | AS116: =AS115+1 -> 30002
B117: 50 | C117: 4 | D117: =BIN2DEC(MID((TEXT(DEC2BIN(B115),REPT(0,5))),2,1)) -> 0 | E117: =BIN2DEC(MID((TEXT(DEC2BIN(B115),REPT(0,5))),2,1)) -> 0 | F117: 4 | H117: 7 | I117: 8 | J117: =AH117&AA117&"-"&AK117 -> - | AB117: =_xlfn.IFNA(VLOOKUP(AL117,List!$M$3:$N$526,2,FALSE),"-") -> - | AC117: =_xlfn.IFNA(VLOOKUP(AL117,List!$M$3:$O$526,3,FALSE),"-") -> - | AL117: - | AM117: =VLOOKUP(AH117,List!$D$3:$F$527,2,FALSE)&AJ117&"_"&VLOOKUP(AK117,List!$I$2:$K$529,2,FALSE) ->  | AN117: =_xlfn.IFNA("L"&AM117&" "&"AT%I"&B115*16+6&".0"&" "&":INT;"&" "&"(*"&J117&"*)"," ") ->  | AO117: =IFERROR(REPLACE(REPLACE(AN117,SEARCH("AT%",AN117),,REPT(" ",30-SEARCH("AT%",AN117))),SEARCH(":",REPLACE(AN117,SEARCH("AT%",AN117),,REPT(" ",30-SEARCH("AT%",AN117)))),,REPT(" ",35-SEARCH(":",REPLACE(AN117,SEARCH("AT%",AN117),,REPT(" ",25-SEARCH("AT%",AN117))))))," ") ->  | AR117: - | AS117: 30003
B118: IOM 0401U | C118: 5 | D118: =BIN2DEC(MID((TEXT(DEC2BIN(B115),REPT(0,5))),1,1)) -> 0 | E118: =BIN2DEC(MID((TEXT(DEC2BIN(B115),REPT(0,5))),1,1)) -> 0 | F118: 0 | H118: 0 | I118: 0 | AL118: -
C119: 6 | D119: =BIN2DEC(MID((TEXT(IF(B117=20,1,IF(B117=50,10,IF(B117=125,11,IF(B117=250,100,IF(B117=500,101,IF(B117=800,110,IF(B117=1000,111,0))))))),REPT(0,3))),3,1)) -> 0 | E119: =BIN2DEC(MID((TEXT(IF(B117=20,1,IF(B117=50,10,IF(B117=125,11,IF(B117=250,100,IF(B117=500,101,IF(B117=800,110,IF(B117=1000,111,0))))))),REPT(0,3))),3,1)) -> 0 | F119: 0 | H119: 0 | I119: 0 | AL119: -
C120: 7 | D120: =BIN2DEC(MID((TEXT(IF(B117=20,1,IF(B117=50,10,IF(B117=125,11,IF(B117=250,100,IF(B117=500,101,IF(B117=800,110,IF(B117=1000,111,0))))))),REPT(0,3))),2,1)) -> 1 | E120: =BIN2DEC(MID((TEXT(IF(B117=20,1,IF(B117=50,10,IF(B117=125,11,IF(B117=250,100,IF(B117=500,101,IF(B117=800,110,IF(B117=1000,111,0))))))),REPT(0,3))),2,1)) -> 1 | F120: 0 | H120: 0 | I120: 0 | AL120: -
A121: . | C121: 8 | D121: =BIN2DEC(MID((TEXT(IF(B117=20,1,IF(B117=50,10,IF(B117=125,11,IF(B117=250,100,IF(B117=500,101,IF(B117=800,110,IF(B117=1000,111,0))))))),REPT(0,3))),1,1)) -> 0 | E121: =BIN2DEC(MID((TEXT(IF(B117=20,1,IF(B117=50,10,IF(B117=125,11,IF(B117=250,100,IF(B117=500,101,IF(B117=800,110,IF(B117=1000,111,0))))))),REPT(0,3))),1,1)) -> 0 | F121: 0 | H121: 0 | I121: 0 | AL121: -
B122: =B127 -> IOM 0801U | AO122: ="(* "&B127&"地址: "&B124&" *)" -> (* IOM 0801U地址: 0 *)
B123: addr | C123: 1 | D123: =BIN2DEC(MID((TEXT(DEC2BIN(B124),REPT(0,5))),5,1)) -> 0 | E123: =BIN2DEC(MID((TEXT(DEC2BIN(B124),REPT(0,5))),5,1)) -> 0 | F123: 1 | H123: 1 | I123: 2 | J123: =AH123&AA123&"-"&AK123 -> - | AA123: =IF(AI123="","",AI123) ->  | AB123: =_xlfn.IFNA(VLOOKUP(AL123,List!$M$3:$N$526,2,FALSE),"-") -> - | AC123: =_xlfn.IFNA(VLOOKUP(AL123,List!$M$3:$O$526,3,FALSE),"-") -> - | AL123: =AH123&"-"&AK123 -> - | AM123: =VLOOKUP(AH123,List!$D$3:$F$527,2,FALSE)&AJ123&"_"&VLOOKUP(AK123,List!$I$2:$K$529,2,FALSE) ->  | AN123: =_xlfn.IFNA("L"&AM123&" "&"AT%I"&B124*16&".0"&" "&":INT;"&" "&"(*"&J123&"*)"," ") ->  | AO123: =IFERROR(REPLACE(REPLACE(AN123,SEARCH("AT%",AN123),,REPT(" ",30-SEARCH("AT%",AN123))),SEARCH(":",REPLACE(AN123,SEARCH("AT%",AN123),,REPT(" ",30-SEARCH("AT%",AN123)))),,REPT(" ",35-SEARCH(":",REPLACE(AN123,SEARCH("AT%",AN123),,REPT(" ",25-SEARCH("AT%",AN123))))))," ") ->  | AQ123: =$B$2&"\"&$B$2&AM123 ->  | AR123: =J123 -> - | AS123: =30000+($B124*8+F123-1) -> 30000
B124: 0 | C124: 2 | D124: =BIN2DEC(MID((TEXT(DEC2BIN(B124),REPT(0,5))),4,1)) -> 0 | E124: =BIN2DEC(MID((TEXT(DEC2BIN(B124),REPT(0,5))),4,1)) -> 0 | F124: 2 | H124: 3 | I124: 4 | J124: - | AA124: =IF(AI124="","",AI124) ->  | AB124: =_xlfn.IFNA(VLOOKUP(AL124,List!$M$3:$N$526,2,FALSE),"-") -> - | AC124: =_xlfn.IFNA(VLOOKUP(AL124,List!$M$3:$O$526,3,FALSE),"-") -> - | AL124: =AH124&"-"&AK124 -> - | AM124: =VLOOKUP(AH124,List!$D$3:$F$527,2,FALSE)&AJ124&"_"&VLOOKUP(AK124,List!$I$2:$K$529,2,FALSE) ->  | AN124: =_xlfn.IFNA("L"&AM124&" "&"AT%I"&B124*16+2&".0"&" "&":INT;"&" "&"(*"&J124&"*)"," ") ->  | AR124: =J124 -> - | AS124: =AS123+1 -> 30001
B125: kbs | C125: 3 | D125: =BIN2DEC(MID((TEXT(DEC2BIN(B124),REPT(0,5))),3,1)) -> 0 | E125: =BIN2DEC(MID((TEXT(DEC2BIN(B124),REPT(0,5))),3,1)) -> 0 | F125: 3 | H125: 5 | I125: 6 | J125: - | AB125: =_xlfn.IFNA(VLOOKUP(AL125,List!$M$3:$N$526,2,FALSE),"-") -> - | AC125: =_xlfn.IFNA(VLOOKUP(AL125,List!$M$3:$O$526,3,FALSE),"-") -> - | AL125: - | AM125: =VLOOKUP(AH125,List!$D$3:$F$527,2,FALSE)&AJ125&"_"&VLOOKUP(AK125,List!$I$2:$K$529,2,FALSE) ->  | AN125: =_xlfn.IFNA("L"&AM125&" "&"AT%I"&B124*16+4&".0"&" "&":INT;"&" "&"(*"&J125&"*)"," ") ->  | AR125: - | AS125: =AS124+1 -> 30002
B126: 50 | C126: 4 | D126: =BIN2DEC(MID((TEXT(DEC2BIN(B124),REPT(0,5))),2,1)) -> 0 | E126: =BIN2DEC(MID((TEXT(DEC2BIN(B124),REPT(0,5))),2,1)) -> 0 | F126: 4 | H126: 7 | I126: 8 | J126: - | AB126: =_xlfn.IFNA(VLOOKUP(AL126,List!$M$3:$N$526,2,FALSE),"-") -> - | AC126: =_xlfn.IFNA(VLOOKUP(AL126,List!$M$3:$O$526,3,FALSE),"-") -> - | AL126: - | AM126: =VLOOKUP(AH126,List!$D$3:$F$527,2,FALSE)&AJ126&"_"&VLOOKUP(AK126,List!$I$2:$K$529,2,FALSE) ->  | AN126: =_xlfn.IFNA("L"&AM126&" "&"AT%I"&B124*16+6&".0"&" "&":INT;"&" "&"(*"&J126&"*)"," ") ->  | AR126: - | AS126: 30003
B127: IOM 0801U | C127: 5 | D127: =BIN2DEC(MID((TEXT(DEC2BIN(B124),REPT(0,5))),1,1)) -> 0 | E127: =BIN2DEC(MID((TEXT(DEC2BIN(B124),REPT(0,5))),1,1)) -> 0 | F127: 5 | H127: 9 | I127: 10 | J127: - | AB127: =_xlfn.IFNA(VLOOKUP(AL127,List!$M$3:$N$526,2,FALSE),"-") -> - | AC127: =_xlfn.IFNA(VLOOKUP(AL127,List!$M$3:$O$526,3,FALSE),"-") -> - | AL127: - | AM127: =VLOOKUP(AH127,List!$D$3:$F$527,2,FALSE)&AJ127&"_"&VLOOKUP(AK127,List!$I$2:$K$529,2,FALSE) ->  | AN127: =_xlfn.IFNA("L"&AM127&" "&"AT%I"&B124*16+8&".0"&" "&":INT;"&" "&"(*"&J127&"*)"," ") ->  | AR127: - | AS127: 30004
C128: 6 | D128: =BIN2DEC(MID((TEXT(IF(B126=20,1,IF(B126=50,10,IF(B126=125,11,IF(B126=250,100,IF(B126=500,101,IF(B126=800,110,IF(B126=1000,111,0))))))),REPT(0,3))),3,1)) -> 0 | E128: =BIN2DEC(MID((TEXT(IF(B126=20,1,IF(B126=50,10,IF(B126=125,11,IF(B126=250,100,IF(B126=500,101,IF(B126=800,110,IF(B126=1000,111,0))))))),REPT(0,3))),3,1)) -> 0 | F128: 6 | H128: 11 | I128: 12 | J128: - | AA128: =IF(AI128="","",AI128) ->  | AB128: =_xlfn.IFNA(VLOOKUP(AL128,List!$M$3:$N$526,2,FALSE),"-") -> - | AC128: =_xlfn.IFNA(VLOOKUP(AL128,List!$M$3:$O$526,3,FALSE),"-") -> - | AL128: - | AM128: =VLOOKUP(AH128,List!$D$3:$F$527,2,FALSE)&AJ128&"_"&VLOOKUP(AK128,List!$I$2:$K$529,2,FALSE) ->  | AN128: =_xlfn.IFNA("L"&AM128&" "&"AT%I"&B124*16+10&".0"&" "&":INT;"&" "&"(*"&J128&"*)"," ") ->  | AR128: =J128 -> - | AS128: 30005
C129: 7 | D129: =BIN2DEC(MID((TEXT(IF(B126=20,1,IF(B126=50,10,IF(B126=125,11,IF(B126=250,100,IF(B126=500,101,IF(B126=800,110,IF(B126=1000,111,0))))))),REPT(0,3))),2,1)) -> 1 | E129: =BIN2DEC(MID((TEXT(IF(B126=20,1,IF(B126=50,10,IF(B126=125,11,IF(B126=250,100,IF(B126=500,101,IF(B126=800,110,IF(B126=1000,111,0))))))),REPT(0,3))),2,1)) -> 1 | F129: 7 | H129: 13 | I129: 14 | J129: - | AB129: =_xlfn.IFNA(VLOOKUP(AL129,List!$M$3:$N$526,2,FALSE),"-") -> - | AC129: =_xlfn.IFNA(VLOOKUP(AL129,List!$M$3:$O$526,3,FALSE),"-") -> - | AL129: - | AM129: =VLOOKUP(AH129,List!$D$3:$F$527,2,FALSE)&AJ129&"_"&VLOOKUP(AK129,List!$I$2:$K$529,2,FALSE) ->  | AN129: =_xlfn.IFNA("L"&AM129&" "&"AT%I"&B124*16+12&".0"&" "&":INT;"&" "&"(*"&J129&"*)"," ") ->  | AR129: - | AS129: 30006
A130: . | C130: 8 | D130: =BIN2DEC(MID((TEXT(IF(B126=20,1,IF(B126=50,10,IF(B126=125,11,IF(B126=250,100,IF(B126=500,101,IF(B126=800,110,IF(B126=1000,111,0))))))),REPT(0,3))),1,1)) -> 0 | E130: =BIN2DEC(MID((TEXT(IF(B126=20,1,IF(B126=50,10,IF(B126=125,11,IF(B126=250,100,IF(B126=500,101,IF(B126=800,110,IF(B126=1000,111,0))))))),REPT(0,3))),1,1)) -> 0 | F130: 8 | H130: 15 | I130: 16 | J130: - | AB130: =_xlfn.IFNA(VLOOKUP(AL130,List!$M$3:$N$526,2,FALSE),"-") -> - | AC130: =_xlfn.IFNA(VLOOKUP(AL130,List!$M$3:$O$526,3,FALSE),"-") -> - | AL130: - | AM130: =VLOOKUP(AH130,List!$D$3:$F$527,2,FALSE)&AJ130&"_"&VLOOKUP(AK130,List!$I$2:$K$529,2,FALSE) ->  | AN130: =_xlfn.IFNA("L"&AM130&" "&"AT%I"&B124*16+14&".0"&" "&":INT;"&" "&"(*"&J130&"*)"," ") ->  | AR130: - | AS130: 30007
B131: =B136 -> IOM 0801U E5 | AO131: ="(* "&B136&"地址: "&B133&" *)" -> (* IOM 0801U E5地址: 1 *)
B132: addr | C132: 1 | D132: =BIN2DEC(MID((TEXT(DEC2BIN(B133),REPT(0,5))),5,1)) -> 1 | E132: =BIN2DEC(MID((TEXT(DEC2BIN(B133),REPT(0,5))),5,1)) -> 1 | F132: 1 | H132: 1 | I132: 0V | J132: =AH132&AA132&"-"&AK132 -> - | AA132: =IF(AI132="","",AI132) ->  | AB132: =_xlfn.IFNA(VLOOKUP(AL132,List!$M$3:$N$526,2,FALSE),"-") -> - | AC132: =_xlfn.IFNA(VLOOKUP(AL132,List!$M$3:$O$526,3,FALSE),"-") -> - | AL132: =AH132&"-"&AK132 -> - | AM132: =VLOOKUP(AH132,List!$D$3:$F$527,2,FALSE)&AJ132&"_"&VLOOKUP(AK132,List!$I$2:$K$529,2,FALSE) ->  | AN132: =_xlfn.IFNA("L"&AM132&" "&"AT%I"&B133*16&".0"&" "&":INT;"&" "&"(*"&J132&"*)"," ") ->  | AO132: =IFERROR(REPLACE(REPLACE(AN132,SEARCH("AT%",AN132),,REPT(" ",30-SEARCH("AT%",AN132))),SEARCH(":",REPLACE(AN132,SEARCH("AT%",AN132),,REPT(" ",30-SEARCH("AT%",AN132)))),,REPT(" ",35-SEARCH(":",REPLACE(AN132,SEARCH("AT%",AN132),,REPT(" ",25-SEARCH("AT%",AN132))))))," ") ->  | AQ132: =$B$2&"\"&$B$2&AM132 ->  | AR132: =J132 -> - | AS132: =30000+($B133*8+F132-1) -> 30008
B133: 1 | C133: 2 | D133: =BIN2DEC(MID((TEXT(DEC2BIN(B133),REPT(0,5))),4,1)) -> 0 | E133: =BIN2DEC(MID((TEXT(DEC2BIN(B133),REPT(0,5))),4,1)) -> 0 | F133: 2 | H133: 2 | I133: 0V | J133: - | AA133: =IF(AI133="","",AI133) ->  | AB133: =_xlfn.IFNA(VLOOKUP(AL133,List!$M$3:$N$526,2,FALSE),"-") -> - | AC133: =_xlfn.IFNA(VLOOKUP(AL133,List!$M$3:$O$526,3,FALSE),"-") -> - | AL133: =AH133&"-"&AK133 -> - | AM133: =VLOOKUP(AH133,List!$D$3:$F$527,2,FALSE)&AJ133&"_"&VLOOKUP(AK133,List!$I$2:$K$529,2,FALSE) ->  | AN133: =_xlfn.IFNA("L"&AM133&" "&"AT%I"&B133*16+2&".0"&" "&":INT;"&" "&"(*"&J133&"*)"," ") ->  | AR133: =J133 -> - | AS133: =AS132+1 -> 30009
B134: kbs | C134: 3 | D134: =BIN2DEC(MID((TEXT(DEC2BIN(B133),REPT(0,5))),3,1)) -> 0 | E134: =BIN2DEC(MID((TEXT(DEC2BIN(B133),REPT(0,5))),3,1)) -> 0 | F134: 3 | H134: 3 | I134: 0V | J134: - | AB134: =_xlfn.IFNA(VLOOKUP(AL134,List!$M$3:$N$526,2,FALSE),"-") -> - | AC134: =_xlfn.IFNA(VLOOKUP(AL134,List!$M$3:$O$526,3,FALSE),"-") -> - | AL134: - | AM134: =VLOOKUP(AH134,List!$D$3:$F$527,2,FALSE)&AJ134&"_"&VLOOKUP(AK134,List!$I$2:$K$529,2,FALSE) ->  | AN134: =_xlfn.IFNA("L"&AM134&" "&"AT%I"&B133*16+4&".0"&" "&":INT;"&" "&"(*"&J134&"*)"," ") ->  | AR134: - | AS134: =AS133+1 -> 30010
B135: 50 | C135: 4 | D135: =BIN2DEC(MID((TEXT(DEC2BIN(B133),REPT(0,5))),2,1)) -> 0 | E135: =BIN2DEC(MID((TEXT(DEC2BIN(B133),REPT(0,5))),2,1)) -> 0 | F135: 4 | H135: 4 | I135: 0V | J135: - | AB135: =_xlfn.IFNA(VLOOKUP(AL135,List!$M$3:$N$526,2,FALSE),"-") -> - | AC135: =_xlfn.IFNA(VLOOKUP(AL135,List!$M$3:$O$526,3,FALSE),"-") -> - | AL135: - | AM135: =VLOOKUP(AH135,List!$D$3:$F$527,2,FALSE)&AJ135&"_"&VLOOKUP(AK135,List!$I$2:$K$529,2,FALSE) ->  | AN135: =_xlfn.IFNA("L"&AM135&" "&"AT%I"&B133*16+6&".0"&" "&":INT;"&" "&"(*"&J135&"*)"," ") ->  | AR135: - | AS135: 30011
B136: IOM 0801U E5 | C136: 5 | D136: =BIN2DEC(MID((TEXT(DEC2BIN(B133),REPT(0,5))),1,1)) -> 0 | E136: =BIN2DEC(MID((TEXT(DEC2BIN(B133),REPT(0,5))),1,1)) -> 0 | F136: 5 | H136: 5 | I136: 0V | J136: - | AB136: =_xlfn.IFNA(VLOOKUP(AL136,List!$M$3:$N$526,2,FALSE),"-") -> - | AC136: =_xlfn.IFNA(VLOOKUP(AL136,List!$M$3:$O$526,3,FALSE),"-") -> - | AL136: - | AM136: =VLOOKUP(AH136,List!$D$3:$F$527,2,FALSE)&AJ136&"_"&VLOOKUP(AK136,List!$I$2:$K$529,2,FALSE) ->  | AN136: =_xlfn.IFNA("L"&AM136&" "&"AT%I"&B133*16+8&".0"&" "&":INT;"&" "&"(*"&J136&"*)"," ") ->  | AR136: - | AS136: 30012
C137: 6 | D137: =BIN2DEC(MID((TEXT(IF(B135=20,1,IF(B135=50,10,IF(B135=125,11,IF(B135=250,100,IF(B135=500,101,IF(B135=800,110,IF(B135=1000,111,0))))))),REPT(0,3))),3,1)) -> 0 | E137: =BIN2DEC(MID((TEXT(IF(B135=20,1,IF(B135=50,10,IF(B135=125,11,IF(B135=250,100,IF(B135=500,101,IF(B135=800,110,IF(B135=1000,111,0))))))),REPT(0,3))),3,1)) -> 0 | F137: 6 | H137: 6 | I137: 0V | J137: - | AA137: =IF(AI137="","",AI137) ->  | AB137: =_xlfn.IFNA(VLOOKUP(AL137,List!$M$3:$N$526,2,FALSE),"-") -> - | AC137: =_xlfn.IFNA(VLOOKUP(AL137,List!$M$3:$O$526,3,FALSE),"-") -> - | AL137: - | AM137: =VLOOKUP(AH137,List!$D$3:$F$527,2,FALSE)&AJ137&"_"&VLOOKUP(AK137,List!$I$2:$K$529,2,FALSE) ->  | AN137: =_xlfn.IFNA("L"&AM137&" "&"AT%I"&B133*16+10&".0"&" "&":INT;"&" "&"(*"&J137&"*)"," ") ->  | AR137: =J137 -> - | AS137: 30013
C138: 7 | D138: =BIN2DEC(MID((TEXT(IF(B135=20,1,IF(B135=50,10,IF(B135=125,11,IF(B135=250,100,IF(B135=500,101,IF(B135=800,110,IF(B135=1000,111,0))))))),REPT(0,3))),2,1)) -> 1 | E138: =BIN2DEC(MID((TEXT(IF(B135=20,1,IF(B135=50,10,IF(B135=125,11,IF(B135=250,100,IF(B135=500,101,IF(B135=800,110,IF(B135=1000,111,0))))))),REPT(0,3))),2,1)) -> 1 | F138: 7 | H138: 7 | I138: 0V | J138: - | AB138: =_xlfn.IFNA(VLOOKUP(AL138,List!$M$3:$N$526,2,FALSE),"-") -> - | AC138: =_xlfn.IFNA(VLOOKUP(AL138,List!$M$3:$O$526,3,FALSE),"-") -> - | AL138: - | AM138: =VLOOKUP(AH138,List!$D$3:$F$527,2,FALSE)&AJ138&"_"&VLOOKUP(AK138,List!$I$2:$K$529,2,FALSE) ->  | AN138: =_xlfn.IFNA("L"&AM138&" "&"AT%I"&B133*16+12&".0"&" "&":INT;"&" "&"(*"&J138&"*)"," ") ->  | AR138: - | AS138: 30014
A139: . | C139: 8 | D139: =BIN2DEC(MID((TEXT(IF(B135=20,1,IF(B135=50,10,IF(B135=125,11,IF(B135=250,100,IF(B135=500,101,IF(B135=800,110,IF(B135=1000,111,0))))))),REPT(0,3))),1,1)) -> 0 | E139: =BIN2DEC(MID((TEXT(IF(B135=20,1,IF(B135=50,10,IF(B135=125,11,IF(B135=250,100,IF(B135=500,101,IF(B135=800,110,IF(B135=1000,111,0))))))),REPT(0,3))),1,1)) -> 0 | F139: 8 | H139: 8 | I139: 0V | J139: - | AB139: =_xlfn.IFNA(VLOOKUP(AL139,List!$M$3:$N$526,2,FALSE),"-") -> - | AC139: =_xlfn.IFNA(VLOOKUP(AL139,List!$M$3:$O$526,3,FALSE),"-") -> - | AL139: - | AM139: =VLOOKUP(AH139,List!$D$3:$F$527,2,FALSE)&AJ139&"_"&VLOOKUP(AK139,List!$I$2:$K$529,2,FALSE) ->  | AN139: =_xlfn.IFNA("L"&AM139&" "&"AT%I"&B133*16+14&".0"&" "&":INT;"&" "&"(*"&J139&"*)"," ") ->  | AR139: - | AS139: 30015
B140: =B145 -> IOM 0401U E5 | AO140: ="(* "&B145&"地址: "&B142&" *)" -> (* IOM 0401U E5地址: 1 *)
B141: addr | C141: 1 | D141: =BIN2DEC(MID((TEXT(DEC2BIN(B142),REPT(0,5))),5,1)) -> 1 | E141: =BIN2DEC(MID((TEXT(DEC2BIN(B142),REPT(0,5))),5,1)) -> 1 | F141: 1 | H141: 1 | I141: 0V | J141: =AH141&AA141&"-"&AK141 -> - | AA141: =IF(AI141="","",AI141) ->  | AB141: =_xlfn.IFNA(VLOOKUP(AL141,List!$M$3:$N$526,2,FALSE),"-") -> - | AC141: =_xlfn.IFNA(VLOOKUP(AL141,List!$M$3:$O$526,3,FALSE),"-") -> - | AL141: =AH141&"-"&AK141 -> - | AM141: =VLOOKUP(AH141,List!$D$3:$F$527,2,FALSE)&AJ141&"_"&VLOOKUP(AK141,List!$I$2:$K$529,2,FALSE) ->  | AN141: =_xlfn.IFNA("L"&AM141&" "&"AT%I"&B142*16&".0"&" "&":INT;"&" "&"(*"&J141&"*)"," ") ->  | AO141: =IFERROR(REPLACE(REPLACE(AN141,SEARCH("AT%",AN141),,REPT(" ",30-SEARCH("AT%",AN141))),SEARCH(":",REPLACE(AN141,SEARCH("AT%",AN141),,REPT(" ",30-SEARCH("AT%",AN141)))),,REPT(" ",35-SEARCH(":",REPLACE(AN141,SEARCH("AT%",AN141),,REPT(" ",25-SEARCH("AT%",AN141))))))," ") ->  | AQ141: =$B$2&"\"&$B$2&AM141 ->  | AR141: =J141 -> - | AS141: =30000+($B142*8+F141-1) -> 30008
B142: 1 | C142: 2 | D142: =BIN2DEC(MID((TEXT(DEC2BIN(B142),REPT(0,5))),4,1)) -> 0 | E142: =BIN2DEC(MID((TEXT(DEC2BIN(B142),REPT(0,5))),4,1)) -> 0 | F142: 2 | H142: 2 | I142: 0V | J142: - | AA142: =IF(AI142="","",AI142) ->  | AB142: =_xlfn.IFNA(VLOOKUP(AL142,List!$M$3:$N$526,2,FALSE),"-") -> - | AC142: =_xlfn.IFNA(VLOOKUP(AL142,List!$M$3:$O$526,3,FALSE),"-") -> - | AL142: =AH142&"-"&AK142 -> - | AM142: =VLOOKUP(AH142,List!$D$3:$F$527,2,FALSE)&AJ142&"_"&VLOOKUP(AK142,List!$I$2:$K$529,2,FALSE) ->  | AN142: =_xlfn.IFNA("L"&AM142&" "&"AT%I"&B142*16+2&".0"&" "&":INT;"&" "&"(*"&J142&"*)"," ") ->  | AR142: =J142 -> - | AS142: =AS141+1 -> 30009
B143: kbs | C143: 3 | D143: =BIN2DEC(MID((TEXT(DEC2BIN(B142),REPT(0,5))),3,1)) -> 0 | E143: =BIN2DEC(MID((TEXT(DEC2BIN(B142),REPT(0,5))),3,1)) -> 0 | F143: 3 | H143: 3 | I143: 0V | J143: - | AB143: =_xlfn.IFNA(VLOOKUP(AL143,List!$M$3:$N$526,2,FALSE),"-") -> - | AC143: =_xlfn.IFNA(VLOOKUP(AL143,List!$M$3:$O$526,3,FALSE),"-") -> - | AL143: - | AM143: =VLOOKUP(AH143,List!$D$3:$F$527,2,FALSE)&AJ143&"_"&VLOOKUP(AK143,List!$I$2:$K$529,2,FALSE) ->  | AN143: =_xlfn.IFNA("L"&AM143&" "&"AT%I"&B142*16+4&".0"&" "&":INT;"&" "&"(*"&J143&"*)"," ") ->  | AR143: - | AS143: =AS142+1 -> 30010
B144: 50 | C144: 4 | D144: =BIN2DEC(MID((TEXT(DEC2BIN(B142),REPT(0,5))),2,1)) -> 0 | E144: =BIN2DEC(MID((TEXT(DEC2BIN(B142),REPT(0,5))),2,1)) -> 0 | F144: 4 | H144: 4 | I144: 0V | J144: - | AB144: =_xlfn.IFNA(VLOOKUP(AL144,List!$M$3:$N$526,2,FALSE),"-") -> - | AC144: =_xlfn.IFNA(VLOOKUP(AL144,List!$M$3:$O$526,3,FALSE),"-") -> - | AL144: - | AM144: =VLOOKUP(AH144,List!$D$3:$F$527,2,FALSE)&AJ144&"_"&VLOOKUP(AK144,List!$I$2:$K$529,2,FALSE) ->  | AN144: =_xlfn.IFNA("L"&AM144&" "&"AT%I"&B142*16+6&".0"&" "&":INT;"&" "&"(*"&J144&"*)"," ") ->  | AR144: - | AS144: 30011
B145: IOM 0401U E5 | C145: 5 | D145: =BIN2DEC(MID((TEXT(DEC2BIN(B142),REPT(0,5))),1,1)) -> 0 | E145: =BIN2DEC(MID((TEXT(DEC2BIN(B142),REPT(0,5))),1,1)) -> 0
C146: 6 | D146: =BIN2DEC(MID((TEXT(IF(B144=20,1,IF(B144=50,10,IF(B144=125,11,IF(B144=250,100,IF(B144=500,101,IF(B144=800,110,IF(B144=1000,111,0))))))),REPT(0,3))),3,1)) -> 0 | E146: =BIN2DEC(MID((TEXT(IF(B144=20,1,IF(B144=50,10,IF(B144=125,11,IF(B144=250,100,IF(B144=500,101,IF(B144=800,110,IF(B144=1000,111,0))))))),REPT(0,3))),3,1)) -> 0
C147: 7 | D147: =BIN2DEC(MID((TEXT(IF(B144=20,1,IF(B144=50,10,IF(B144=125,11,IF(B144=250,100,IF(B144=500,101,IF(B144=800,110,IF(B144=1000,111,0))))))),REPT(0,3))),2,1)) -> 1 | E147: =BIN2DEC(MID((TEXT(IF(B144=20,1,IF(B144=50,10,IF(B144=125,11,IF(B144=250,100,IF(B144=500,101,IF(B144=800,110,IF(B144=1000,111,0))))))),REPT(0,3))),2,1)) -> 1
A148: . | C148: 8 | D148: =BIN2DEC(MID((TEXT(IF(B144=20,1,IF(B144=50,10,IF(B144=125,11,IF(B144=250,100,IF(B144=500,101,IF(B144=800,110,IF(B144=1000,111,0))))))),REPT(0,3))),1,1)) -> 0 | E148: =BIN2DEC(MID((TEXT(IF(B144=20,1,IF(B144=50,10,IF(B144=125,11,IF(B144=250,100,IF(B144=500,101,IF(B144=800,110,IF(B144=1000,111,0))))))),REPT(0,3))),1,1)) -> 0
B149: =B154 -> IOM 0401A | AO149: ="(* "&B154&"地址: "&B151&" *)" -> (* IOM 0401A地址: 1 *)
B150: addr | C150: 1 | D150: =BIN2DEC(MID((TEXT(DEC2BIN(B151),REPT(0,5))),5,1)) -> 1 | E150: =BIN2DEC(MID((TEXT(DEC2BIN(B151),REPT(0,5))),5,1)) -> 1 | F150: 1 | H150: 1 | I150: 2 | J150: =AH150&AA150&"-"&AK150 -> - | AA150: =IF(AI150="","",AI150) ->  | AB150: =_xlfn.IFNA(VLOOKUP(AL150,List!$M$3:$N$526,2,FALSE),"-") -> - | AC150: =_xlfn.IFNA(VLOOKUP(AL150,List!$M$3:$O$526,3,FALSE),"-") -> - | AL150: =AH150&"-"&AK150 -> - | AM150: =VLOOKUP(AH150,List!$D$3:$F$527,2,FALSE)&AJ150&"_"&VLOOKUP(AK150,List!$I$2:$K$529,2,FALSE) ->  | AN150: =_xlfn.IFNA("L"&AM150&" "&"AT%Q"&B151*16&".0"&" "&":INT;"&" "&"(*"&J150&"*)"," ") ->  | AO150: =IFERROR(REPLACE(REPLACE(AN150,SEARCH("AT%",AN150),,REPT(" ",30-SEARCH("AT%",AN150))),SEARCH(":",REPLACE(AN150,SEARCH("AT%",AN150),,REPT(" ",30-SEARCH("AT%",AN150)))),,REPT(" ",35-SEARCH(":",REPLACE(AN150,SEARCH("AT%",AN150),,REPT(" ",25-SEARCH("AT%",AN150))))))," ") ->  | AQ150: =$B$2&"\"&$B$2&AM150 ->  | AR150: =J150 -> - | AS150: =40000+($B151*8+F150-1) -> 40008
B151: 1 | C151: 2 | D151: =BIN2DEC(MID((TEXT(DEC2BIN(B151),REPT(0,5))),4,1)) -> 0 | E151: =BIN2DEC(MID((TEXT(DEC2BIN(B151),REPT(0,5))),4,1)) -> 0 | F151: 2 | H151: 3 | I151: 4 | J151: =AH151&AA151&"-"&AK151 -> - | AA151: =IF(AI151="","",AI151) ->  | AB151: =_xlfn.IFNA(VLOOKUP(AL151,List!$M$3:$N$526,2,FALSE),"-") -> - | AC151: =_xlfn.IFNA(VLOOKUP(AL151,List!$M$3:$O$526,3,FALSE),"-") -> - | AL151: =AH151&"-"&AK151 -> - | AM151: =VLOOKUP(AH151,List!$D$3:$F$527,2,FALSE)&AJ151&"_"&VLOOKUP(AK151,List!$I$2:$K$529,2,FALSE) ->  | AN151: =_xlfn.IFNA("L"&AM151&" "&"AT%Q"&B151*16+2&".0"&" "&":INT;"&" "&"(*"&J151&"*)"," ") ->  | AO151: =IFERROR(REPLACE(REPLACE(AN151,SEARCH("AT%",AN151),,REPT(" ",30-SEARCH("AT%",AN151))),SEARCH(":",REPLACE(AN151,SEARCH("AT%",AN151),,REPT(" ",30-SEARCH("AT%",AN151)))),,REPT(" ",35-SEARCH(":",REPLACE(AN151,SEARCH("AT%",AN151),,REPT(" ",25-SEARCH("AT%",AN151))))))," ") ->  | AR151: =J151 -> - | AS151: =AS150+1 -> 40009
B152: kbs | C152: 3 | D152: =BIN2DEC(MID((TEXT(DEC2BIN(B151),REPT(0,5))),3,1)) -> 0 | E152: =BIN2DEC(MID((TEXT(DEC2BIN(B151),REPT(0,5))),3,1)) -> 0 | F152: 3 | H152: 5 | I152: 6 | J152: =AH152&AA152&"-"&AK152 -> - | AB152: =_xlfn.IFNA(VLOOKUP(AL152,List!$M$3:$N$526,2,FALSE),"-") -> - | AC152: =_xlfn.IFNA(VLOOKUP(AL152,List!$M$3:$O$526,3,FALSE),"-") -> - | AL152: - | AM152: =VLOOKUP(AH152,List!$D$3:$F$527,2,FALSE)&AJ152&"_"&VLOOKUP(AK152,List!$I$2:$K$529,2,FALSE) ->  | AN152: =_xlfn.IFNA("L"&AM152&" "&"AT%Q"&B151*16+4&".0"&" "&":INT;"&" "&"(*"&J152&"*)"," ") ->  | AO152: =IFERROR(REPLACE(REPLACE(AN152,SEARCH("AT%",AN152),,REPT(" ",30-SEARCH("AT%",AN152))),SEARCH(":",REPLACE(AN152,SEARCH("AT%",AN152),,REPT(" ",30-SEARCH("AT%",AN152)))),,REPT(" ",35-SEARCH(":",REPLACE(AN152,SEARCH("AT%",AN152),,REPT(" ",25-SEARCH("AT%",AN152))))))," ") ->  | AR152: - | AS152: =AS151+1 -> 40010
B153: 50 | C153: 4 | D153: =BIN2DEC(MID((TEXT(DEC2BIN(B151),REPT(0,5))),2,1)) -> 0 | E153: =BIN2DEC(MID((TEXT(DEC2BIN(B151),REPT(0,5))),2,1)) -> 0 | F153: 4 | H153: 7 | I153: 8 | J153: =AH153&AA153&"-"&AK153 -> - | AB153: =_xlfn.IFNA(VLOOKUP(AL153,List!$M$3:$N$526,2,FALSE),"-") -> - | AC153: =_xlfn.IFNA(VLOOKUP(AL153,List!$M$3:$O$526,3,FALSE),"-") -> - | AL153: - | AM153: =VLOOKUP(AH153,List!$D$3:$F$527,2,FALSE)&AJ153&"_"&VLOOKUP(AK153,List!$I$2:$K$529,2,FALSE) ->  | AN153: =_xlfn.IFNA("L"&AM153&" "&"AT%Q"&B151*16+6&".0"&" "&":INT;"&" "&"(*"&J153&"*)"," ") ->  | AO153: =IFERROR(REPLACE(REPLACE(AN153,SEARCH("AT%",AN153),,REPT(" ",30-SEARCH("AT%",AN153))),SEARCH(":",REPLACE(AN153,SEARCH("AT%",AN153),,REPT(" ",30-SEARCH("AT%",AN153)))),,REPT(" ",35-SEARCH(":",REPLACE(AN153,SEARCH("AT%",AN153),,REPT(" ",25-SEARCH("AT%",AN153))))))," ") ->  | AR153: - | AS153: 40011
B154: IOM 0401A | C154: 5 | D154: =BIN2DEC(MID((TEXT(DEC2BIN(B151),REPT(0,5))),1,1)) -> 0 | E154: =BIN2DEC(MID((TEXT(DEC2BIN(B151),REPT(0,5))),1,1)) -> 0 | F154: 0 | H154: 0 | I154: 0 | AL154: -
C155: 6 | D155: =BIN2DEC(MID((TEXT(IF(B153=20,1,IF(B153=50,10,IF(B153=125,11,IF(B153=250,100,IF(B153=500,101,IF(B153=800,110,IF(B153=1000,111,0))))))),REPT(0,3))),3,1)) -> 0 | E155: =BIN2DEC(MID((TEXT(IF(B153=20,1,IF(B153=50,10,IF(B153=125,11,IF(B153=250,100,IF(B153=500,101,IF(B153=800,110,IF(B153=1000,111,0))))))),REPT(0,3))),3,1)) -> 0 | F155: 0 | H155: 0 | I155: 0 | AL155: -
C156: 7 | D156: =BIN2DEC(MID((TEXT(IF(B153=20,1,IF(B153=50,10,IF(B153=125,11,IF(B153=250,100,IF(B153=500,101,IF(B153=800,110,IF(B153=1000,111,0))))))),REPT(0,3))),2,1)) -> 1 | E156: =BIN2DEC(MID((TEXT(IF(B153=20,1,IF(B153=50,10,IF(B153=125,11,IF(B153=250,100,IF(B153=500,101,IF(B153=800,110,IF(B153=1000,111,0))))))),REPT(0,3))),2,1)) -> 1 | F156: 0 | H156: 0 | I156: 0 | AL156: -
A157: . | C157: 8 | D157: =BIN2DEC(MID((TEXT(IF(B153=20,1,IF(B153=50,10,IF(B153=125,11,IF(B153=250,100,IF(B153=500,101,IF(B153=800,110,IF(B153=1000,111,0))))))),REPT(0,3))),1,1)) -> 0 | E157: =BIN2DEC(MID((TEXT(IF(B153=20,1,IF(B153=50,10,IF(B153=125,11,IF(B153=250,100,IF(B153=500,101,IF(B153=800,110,IF(B153=1000,111,0))))))),REPT(0,3))),1,1)) -> 0 | F157: 0 | H157: 0 | I157: 0 | AL157: -
B158: DC24V
B159: DC24V 电源 | H159: + | I159: - | AA159: =IF(AI159="","",AI159) ->  | AB159: =_xlfn.IFNA(VLOOKUP(J159,List!$M$3:$N$526,2,FALSE),"-") -> - | AC159: =_xlfn.IFNA(VLOOKUP(J159,List!$M$3:$O$526,3,FALSE),"-") -> -
H160: + | I160: - | AA160: =IF(AI160="","",AI160) ->  | AB160: =_xlfn.IFNA(VLOOKUP(J160,List!$M$3:$N$526,2,FALSE),"-") -> - | AC160: =_xlfn.IFNA(VLOOKUP(J160,List!$M$3:$O$526,3,FALSE),"-") -> -
H161: + | I161: - | AB161: =_xlfn.IFNA(VLOOKUP(J161,List!$M$3:$N$526,2,FALSE),"-") -> - | AC161: =_xlfn.IFNA(VLOOKUP(J161,List!$M$3:$O$526,3,FALSE),"-") -> -
H162: + | I162: - | AB162: =_xlfn.IFNA(VLOOKUP(J162,List!$M$3:$N$526,2,FALSE),"-") -> - | AC162: =_xlfn.IFNA(VLOOKUP(J162,List!$M$3:$O$526,3,FALSE),"-") -> -
H163: + | I163: - | AB163: =_xlfn.IFNA(VLOOKUP(J163,List!$M$3:$N$526,2,FALSE),"-") -> - | AC163: =_xlfn.IFNA(VLOOKUP(J163,List!$M$3:$O$526,3,FALSE),"-") -> -
H164: + | I164: - | AA164: =IF(AI164="","",AI164) ->  | AB164: =_xlfn.IFNA(VLOOKUP(J164,List!$M$3:$N$526,2,FALSE),"-") -> - | AC164: =_xlfn.IFNA(VLOOKUP(J164,List!$M$3:$O$526,3,FALSE),"-") -> -
H165: + | I165: - | AB165: =_xlfn.IFNA(VLOOKUP(J165,List!$M$3:$N$526,2,FALSE),"-") -> - | AC165: =_xlfn.IFNA(VLOOKUP(J165,List!$M$3:$O$526,3,FALSE),"-") -> -
H166: + | I166: - | AB166: =_xlfn.IFNA(VLOOKUP(J166,List!$M$3:$N$526,2,FALSE),"-") -> - | AC166: =_xlfn.IFNA(VLOOKUP(J166,List!$M$3:$O$526,3,FALSE),"-") -> -
H167: + | I167: - | AB167: =_xlfn.IFNA(VLOOKUP(J167,List!$M$3:$N$526,2,FALSE),"-") -> - | AC167: =_xlfn.IFNA(VLOOKUP(J167,List!$M$3:$O$526,3,FALSE),"-") -> -
A168: . | H168: + | I168: - | AA168: =IF(AI168="","",AI168) ->  | AB168: =_xlfn.IFNA(VLOOKUP(J168,List!$M$3:$N$526,2,FALSE),"-") -> - | AC168: =_xlfn.IFNA(VLOOKUP(J168,List!$M$3:$O$526,3,FALSE),"-") -> -
B169: AC24V
B170: AC24V 电源 | H170: L | I170: N | AA170: =IF(AI170="","",AI170) ->  | AB170: =_xlfn.IFNA(VLOOKUP(J170,List!$M$3:$N$526,2,FALSE),"-") -> - | AC170: =_xlfn.IFNA(VLOOKUP(J170,List!$M$3:$O$526,3,FALSE),"-") -> -
H171: L | I171: N | AA171: =IF(AI171="","",AI171) ->  | AB171: =_xlfn.IFNA(VLOOKUP(J171,List!$M$3:$N$526,2,FALSE),"-") -> - | AC171: =_xlfn.IFNA(VLOOKUP(J171,List!$M$3:$O$526,3,FALSE),"-") -> -
H172: L | I172: N | AB172: =_xlfn.IFNA(VLOOKUP(J172,List!$M$3:$N$526,2,FALSE),"-") -> - | AC172: =_xlfn.IFNA(VLOOKUP(J172,List!$M$3:$O$526,3,FALSE),"-") -> -
H173: L | I173: N | AB173: =_xlfn.IFNA(VLOOKUP(J173,List!$M$3:$N$526,2,FALSE),"-") -> - | AC173: =_xlfn.IFNA(VLOOKUP(J173,List!$M$3:$O$526,3,FALSE),"-") -> -
H174: L | I174: N | AB174: =_xlfn.IFNA(VLOOKUP(J174,List!$M$3:$N$526,2,FALSE),"-") -> - | AC174: =_xlfn.IFNA(VLOOKUP(J174,List!$M$3:$O$526,3,FALSE),"-") -> -
H175: L | I175: N | AA175: =IF(AI175="","",AI175) ->  | AB175: =_xlfn.IFNA(VLOOKUP(J175,List!$M$3:$N$526,2,FALSE),"-") -> - | AC175: =_xlfn.IFNA(VLOOKUP(J175,List!$M$3:$O$526,3,FALSE),"-") -> -
H176: L | I176: N | AB176: =_xlfn.IFNA(VLOOKUP(J176,List!$M$3:$N$526,2,FALSE),"-") -> - | AC176: =_xlfn.IFNA(VLOOKUP(J176,List!$M$3:$O$526,3,FALSE),"-") -> -
H177: L | I177: N | AB177: =_xlfn.IFNA(VLOOKUP(J177,List!$M$3:$N$526,2,FALSE),"-") -> - | AC177: =_xlfn.IFNA(VLOOKUP(J177,List!$M$3:$O$526,3,FALSE),"-") -> -
H178: L | I178: N | AB178: =_xlfn.IFNA(VLOOKUP(J178,List!$M$3:$N$526,2,FALSE),"-") -> - | AC178: =_xlfn.IFNA(VLOOKUP(J178,List!$M$3:$O$526,3,FALSE),"-") -> -
A179: . | H179: L | I179: N | AA179: =IF(AI179="","",AI179) ->  | AB179: =_xlfn.IFNA(VLOOKUP(J179,List!$M$3:$N$526,2,FALSE),"-") -> - | AC179: =_xlfn.IFNA(VLOOKUP(J179,List!$M$3:$O$526,3,FALSE),"-") -> -
B180: EXC-61610 C8 | AO180: ="(* "&B185&"地址: "&B182&" *)" -> (* 地址: 0 *)
B181: addr | C181: =B180 -> EXC-61610 C8 | F181: DI1 | H181: 1 | I181: COM | J181: =AH181&AA181&"-"&AK181 -> - | AA181: =IF(AI181="","",AI181) ->  | AB181: =_xlfn.IFNA(VLOOKUP(AL181,List!$M$3:$N$526,2,FALSE),"-") -> - | AC181: =_xlfn.IFNA(VLOOKUP(AL181,List!$M$3:$O$526,3,FALSE),"-") -> - | AL181: =AH181&"-"&AK181 -> - | AM181: =VLOOKUP(AH181,List!$D$3:$F$527,2,FALSE)&AJ181&"_"&VLOOKUP(AK181,List!$I$2:$K$529,2,FALSE) ->  | AN181: =_xlfn.IFNA("L"&AM181&" "&"AT%I0.0"&" "&":BOOL;"&" "&"(*"&J181&"*)"," ") ->  | AO181: =IFERROR(REPLACE(REPLACE(AN181,SEARCH("AT%",AN181),,REPT(" ",30-SEARCH("AT%",AN181))),SEARCH(":",REPLACE(AN181,SEARCH("AT%",AN181),,REPT(" ",30-SEARCH("AT%",AN181)))),,REPT(" ",35-SEARCH(":",REPLACE(AN181,SEARCH("AT%",AN181),,REPT(" ",25-SEARCH("AT%",AN181))))))," ") ->  | AQ181: =$B$2&"\"&$B$2&AM181 ->  | AR181: =J181 -> - | AS181: =10000+($B182*16*8+H181-1) -> 10000
B182: 0 | F182: DI2 | H182: 2 | J182: - | AA182: =IF(AI182="","",AI182) ->  | AB182: =_xlfn.IFNA(VLOOKUP(AL182,List!$M$3:$N$526,2,FALSE),"-") -> - | AC182: =_xlfn.IFNA(VLOOKUP(AL182,List!$M$3:$O$526,3,FALSE),"-") -> - | AL182: =AH182&"-"&AK182 -> - | AM182: =VLOOKUP(AH182,List!$D$3:$F$527,2,FALSE)&AJ182&"_"&VLOOKUP(AK182,List!$I$2:$K$529,2,FALSE) ->  | AN182: =_xlfn.IFNA("L"&AM182&" "&"AT%I0.1"&" "&":BOOL;"&" "&"(*"&J182&"*)"," ") ->  | AO182: =IFERROR(REPLACE(REPLACE(AN182,SEARCH("AT%",AN182),,REPT(" ",30-SEARCH("AT%",AN182))),SEARCH(":",REPLACE(AN182,SEARCH("AT%",AN182),,REPT(" ",30-SEARCH("AT%",AN182)))),,REPT(" ",35-SEARCH(":",REPLACE(AN182,SEARCH("AT%",AN182),,REPT(" ",25-SEARCH("AT%",AN182))))))," ") ->  | AR182: =J182 -> - | AS182: =AS181+1 -> 10001
B183: kbs | F183: DI3 | H183: 3 | J183: - | AB183: =_xlfn.IFNA(VLOOKUP(AL183,List!$M$3:$N$526,2,FALSE),"-") -> - | AC183: =_xlfn.IFNA(VLOOKUP(AL183,List!$M$3:$O$526,3,FALSE),"-") -> - | AL183: - | AM183: =VLOOKUP(AH183,List!$D$3:$F$527,2,FALSE)&AJ183&"_"&VLOOKUP(AK183,List!$I$2:$K$529,2,FALSE) ->  | AN183: =_xlfn.IFNA("L"&AM183&" "&"AT%I0.2"&" "&":BOOL;"&" "&"(*"&J183&"*)"," ") ->  | AR183: - | AS183: =AS182+1 -> 10002
B184: 50 | F184: DI4 | H184: 4 | I184: COM | J184: - | AB184: =_xlfn.IFNA(VLOOKUP(AL184,List!$M$3:$N$526,2,FALSE),"-") -> - | AC184: =_xlfn.IFNA(VLOOKUP(AL184,List!$M$3:$O$526,3,FALSE),"-") -> - | AL184: - | AM184: =VLOOKUP(AH184,List!$D$3:$F$527,2,FALSE)&AJ184&"_"&VLOOKUP(AK184,List!$I$2:$K$529,2,FALSE) ->  | AN184: =_xlfn.IFNA("L"&AM184&" "&"AT%I0.3"&" "&":BOOL;"&" "&"(*"&J184&"*)"," ") ->  | AR184: - | AS184: 10003
F185: DI5 | H185: 5 | J185: - | AB185: =_xlfn.IFNA(VLOOKUP(AL185,List!$M$3:$N$526,2,FALSE),"-") -> - | AC185: =_xlfn.IFNA(VLOOKUP(AL185,List!$M$3:$O$526,3,FALSE),"-") -> - | AL185: - | AM185: =VLOOKUP(AH185,List!$D$3:$F$527,2,FALSE)&AJ185&"_"&VLOOKUP(AK185,List!$I$2:$K$529,2,FALSE) ->  | AN185: =_xlfn.IFNA("L"&AM185&" "&"AT%I0.4"&" "&":BOOL;"&" "&"(*"&J185&"*)"," ") ->  | AR185: - | AS185: 10004
F186: DI6 | H186: 6 | J186: - | AB186: =_xlfn.IFNA(VLOOKUP(AL186,List!$M$3:$N$526,2,FALSE),"-") -> - | AC186: =_xlfn.IFNA(VLOOKUP(AL186,List!$M$3:$O$526,3,FALSE),"-") -> - | AL186: - | AM186: =VLOOKUP(AH186,List!$D$3:$F$527,2,FALSE)&AJ186&"_"&VLOOKUP(AK186,List!$I$2:$K$529,2,FALSE) ->  | AN186: =_xlfn.IFNA("L"&AM186&" "&"AT%I0.5"&" "&":BOOL;"&" "&"(*"&J186&"*)"," ") ->  | AR186: - | AS186: 10005
F187: DI7 | H187: 7 | I187: COM | J187: - | AB187: =_xlfn.IFNA(VLOOKUP(AL187,List!$M$3:$N$526,2,FALSE),"-") -> - | AC187: =_xlfn.IFNA(VLOOKUP(AL187,List!$M$3:$O$526,3,FALSE),"-") -> - | AL187: - | AM187: =VLOOKUP(AH187,List!$D$3:$F$527,2,FALSE)&AJ187&"_"&VLOOKUP(AK187,List!$I$2:$K$529,2,FALSE) ->  | AN187: =_xlfn.IFNA("L"&AM187&" "&"AT%I0.6"&" "&":BOOL;"&" "&"(*"&J187&"*)"," ") ->  | AR187: - | AS187: 10006
A188: . | F188: DI8 | H188: 8 | J188: - | AB188: =_xlfn.IFNA(VLOOKUP(AL188,List!$M$3:$N$526,2,FALSE),"-") -> - | AC188: =_xlfn.IFNA(VLOOKUP(AL188,List!$M$3:$O$526,3,FALSE),"-") -> - | AL188: - | AM188: =VLOOKUP(AH188,List!$D$3:$F$527,2,FALSE)&AJ188&"_"&VLOOKUP(AK188,List!$I$2:$K$529,2,FALSE) ->  | AN188: =_xlfn.IFNA("L"&AM188&" "&"AT%I0.7"&" "&":BOOL;"&" "&"(*"&J188&"*)"," ") ->  | AR188: - | AS188: 10007
F189: DI9 | H189: 9 | J189: - | AB189: =_xlfn.IFNA(VLOOKUP(AL189,List!$M$3:$N$526,2,FALSE),"-") -> - | AC189: =_xlfn.IFNA(VLOOKUP(AL189,List!$M$3:$O$526,3,FALSE),"-") -> - | AL189: - | AM189: =VLOOKUP(AH189,List!$D$3:$F$527,2,FALSE)&AJ189&"_"&VLOOKUP(AK189,List!$I$2:$K$529,2,FALSE) ->  | AN189: =_xlfn.IFNA("L"&AM189&" "&"AT%I1.0"&" "&":BOOL;"&" "&"(*"&J189&"*)"," ") ->  | AR189: - | AS189: =10000+(($B182*16+1)*8+H189-9) -> 10008
F190: DI10 | H190: 10 | I190: COM | J190: - | AA190: =IF(AI190="","",AI190) ->  | AB190: =_xlfn.IFNA(VLOOKUP(AL190,List!$M$3:$N$526,2,FALSE),"-") -> - | AC190: =_xlfn.IFNA(VLOOKUP(AL190,List!$M$3:$O$526,3,FALSE),"-") -> - | AL190: =AH190&"-"&AK190 -> - | AM190: =VLOOKUP(AH190,List!$D$3:$F$527,2,FALSE)&AJ190&"_"&VLOOKUP(AK190,List!$I$2:$K$529,2,FALSE) ->  | AN190: =_xlfn.IFNA("L"&AM190&" "&"AT%I1.1"&" "&":BOOL;"&" "&"(*"&J190&"*)"," ") ->  | AR190: =J190 -> - | AS190: =AS189+1 -> 10009
F191: DI11 | H191: 11 | J191: - | AB191: =_xlfn.IFNA(VLOOKUP(AL191,List!$M$3:$N$526,2,FALSE),"-") -> - | AC191: =_xlfn.IFNA(VLOOKUP(AL191,List!$M$3:$O$526,3,FALSE),"-") -> - | AL191: - | AM191: =VLOOKUP(AH191,List!$D$3:$F$527,2,FALSE)&AJ191&"_"&VLOOKUP(AK191,List!$I$2:$K$529,2,FALSE) ->  | AN191: =_xlfn.IFNA("L"&AM191&" "&"AT%I1.2"&" "&":BOOL;"&" "&"(*"&J191&"*)"," ") ->  | AR191: - | AS191: =AS190+1 -> 10010
F192: DI12 | H192: 12 | J192: - | AB192: =_xlfn.IFNA(VLOOKUP(AL192,List!$M$3:$N$526,2,FALSE),"-") -> - | AC192: =_xlfn.IFNA(VLOOKUP(AL192,List!$M$3:$O$526,3,FALSE),"-") -> - | AL192: - | AM192: =VLOOKUP(AH192,List!$D$3:$F$527,2,FALSE)&AJ192&"_"&VLOOKUP(AK192,List!$I$2:$K$529,2,FALSE) ->  | AN192: =_xlfn.IFNA("L"&AM192&" "&"AT%I1.3"&" "&":BOOL;"&" "&"(*"&J192&"*)"," ") ->  | AR192: - | AS192: 10011
F193: DO1 | H193: 1+ | I193: 1- | J193: - | AB193: =_xlfn.IFNA(VLOOKUP(AL193,List!$M$3:$N$526,2,FALSE),"-") -> - | AC193: =_xlfn.IFNA(VLOOKUP(AL193,List!$M$3:$O$526,3,FALSE),"-") -> - | AL193: - | AM193: =VLOOKUP(AH193,List!$D$3:$F$527,2,FALSE)&AJ193&"_"&VLOOKUP(AK193,List!$I$2:$K$529,2,FALSE) ->  | AN193: =_xlfn.IFNA("L"&AM193&" "&"AT%Q0.0"&" "&":BOOL;"&" "&"(*"&J193&"*)"," ") ->  | AR193: - | AS193: =($B182*16*8+LEFT(H193,1)-1) -> 0
F194: DO2 | H194: 2+ | I194: 2- | J194: - | AB194: =_xlfn.IFNA(VLOOKUP(AL194,List!$M$3:$N$526,2,FALSE),"-") -> - | AC194: =_xlfn.IFNA(VLOOKUP(AL194,List!$M$3:$O$526,3,FALSE),"-") -> - | AL194: - | AM194: =VLOOKUP(AH194,List!$D$3:$F$527,2,FALSE)&AJ194&"_"&VLOOKUP(AK194,List!$I$2:$K$529,2,FALSE) ->  | AN194: =_xlfn.IFNA("L"&AM194&" "&"AT%Q0.1"&" "&":BOOL;"&" "&"(*"&J194&"*)"," ") ->  | AR194: - | AS194: 1
F195: DO3 | H195: 3+ | I195: 3- | J195: - | AB195: =_xlfn.IFNA(VLOOKUP(AL195,List!$M$3:$N$526,2,FALSE),"-") -> - | AC195: =_xlfn.IFNA(VLOOKUP(AL195,List!$M$3:$O$526,3,FALSE),"-") -> - | AL195: - | AM195: =VLOOKUP(AH195,List!$D$3:$F$527,2,FALSE)&AJ195&"_"&VLOOKUP(AK195,List!$I$2:$K$529,2,FALSE) ->  | AN195: =_xlfn.IFNA("L"&AM195&" "&"AT%Q0.2"&" "&":BOOL;"&" "&"(*"&J195&"*)"," ") ->  | AR195: - | AS195: 2
F196: DO4 | H196: 4+ | I196: 4- | J196: - | AB196: =_xlfn.IFNA(VLOOKUP(AL196,List!$M$3:$N$526,2,FALSE),"-") -> - | AC196: =_xlfn.IFNA(VLOOKUP(AL196,List!$M$3:$O$526,3,FALSE),"-") -> - | AL196: - | AM196: =VLOOKUP(AH196,List!$D$3:$F$527,2,FALSE)&AJ196&"_"&VLOOKUP(AK196,List!$I$2:$K$529,2,FALSE) ->  | AN196: =_xlfn.IFNA("L"&AM196&" "&"AT%Q0.3"&" "&":BOOL;"&" "&"(*"&J196&"*)"," ") ->  | AR196: - | AS196: 3
F197: DO5 | H197: 5+ | I197: 5- | J197: - | AB197: =_xlfn.IFNA(VLOOKUP(AL197,List!$M$3:$N$526,2,FALSE),"-") -> - | AC197: =_xlfn.IFNA(VLOOKUP(AL197,List!$M$3:$O$526,3,FALSE),"-") -> - | AL197: - | AM197: =VLOOKUP(AH197,List!$D$3:$F$527,2,FALSE)&AJ197&"_"&VLOOKUP(AK197,List!$I$2:$K$529,2,FALSE) ->  | AN197: =_xlfn.IFNA("L"&AM197&" "&"AT%Q0.4"&" "&":BOOL;"&" "&"(*"&J197&"*)"," ") ->  | AR197: - | AS197: 4
F198: DO6 | H198: 6+ | I198: 6- | J198: - | AA198: =IF(AI198="","",AI198) ->  | AB198: =_xlfn.IFNA(VLOOKUP(AL198,List!$M$3:$N$526,2,FALSE),"-") -> - | AC198: =_xlfn.IFNA(VLOOKUP(AL198,List!$M$3:$O$526,3,FALSE),"-") -> - | AL198: =AH198&"-"&AK198 -> - | AM198: =VLOOKUP(AH198,List!$D$3:$F$527,2,FALSE)&AJ198&"_"&VLOOKUP(AK198,List!$I$2:$K$529,2,FALSE) ->  | AN198: =_xlfn.IFNA("L"&AM198&" "&"AT%Q0.5"&" "&":BOOL;"&" "&"(*"&J198&"*)"," ") ->  | AR198: =J198 -> - | AS198: 5
F199: AI1 | H199: 1 | I199: 0 V | J199: - | AB199: =_xlfn.IFNA(VLOOKUP(AL199,List!$M$3:$N$526,2,FALSE),"-") -> - | AC199: =_xlfn.IFNA(VLOOKUP(AL199,List!$M$3:$O$526,3,FALSE),"-") -> - | AL199: - | AM199: =VLOOKUP(AH199,List!$D$3:$F$527,2,FALSE)&AJ199&"_"&VLOOKUP(AK199,List!$I$2:$K$529,2,FALSE) ->  | AN199: =_xlfn.IFNA("L"&AM199&" "&"AT%I2.0"&" "&":INT;"&" "&"(*"&J199&"*)"," ") ->  | AR199: - | AS199: =30000+($B182*8+LEFT(H199,1)) -> 30001
F200: AI2 | H200: 2 | J200: - | AB200: =_xlfn.IFNA(VLOOKUP(AL200,List!$M$3:$N$526,2,FALSE),"-") -> - | AC200: =_xlfn.IFNA(VLOOKUP(AL200,List!$M$3:$O$526,3,FALSE),"-") -> - | AL200: - | AM200: =VLOOKUP(AH200,List!$D$3:$F$527,2,FALSE)&AJ200&"_"&VLOOKUP(AK200,List!$I$2:$K$529,2,FALSE) ->  | AN200: =_xlfn.IFNA("L"&AM200&" "&"AT%I4.0"&" "&":INT;"&" "&"(*"&J200&"*)"," ") ->  | AR200: - | AS200: 30002
... 338 more rows

Sheet 主CPU
A1: NI 0-1023 NQ 1024-2047
A2: 设备类型 | B2: 总线编号 | C2: P2P标记 | D2: 程序编号 | E2: 点位功能 | F2: 发送地址 接收地址 | H2: 数据类型 整除验证 | I2: 数据类型 | J2: 变量备注 | K2: 变量名.auto | L2: 编程变量声明.auto | M2: 编程变量声明(结构整理).auto
A4: 从CPU-->主控CPU | F4: 接收地址.auto | G4: 发送地址
A5: 命令 | B5: I | C5: M | D5: 00001 | E5: 心跳值 | F5: 5000.0 | G5: 6000.0 | H5: =IF((IF(OR(I5="INT",I5="WORD",I5="BOOL"),MOD(F5,2),MOD(F5,4)))=0,"验证通过","验证失败") -> 验证通过 | I5: INT | J5: 1#CPU心跳反馈 | K5: =B5&VLOOKUP(A5,List!$D$3:$F$527,2,FALSE)&D5&"_"&VLOOKUP(E5,List!$I$2:$K$529,2,FALSE) -> ICMD00001_DHV | L5: =K5&" "&"AT%"&C5&F5&" "&":"&I5&";"&" "&"(*"&J5&"*)" -> ICMD00001_DHV AT%M5000.0 :INT; (*1#CPU心跳反馈*) | M5: =REPLACE(REPLACE(L5,SEARCH("AT%",L5),,REPT(" ",25-SEARCH("AT%",L5))),SEARCH(":",REPLACE(L5,SEARCH("AT%",L5),,REPT(" ",25-SEARCH("AT%",L5)))),,REPT(" ",40-SEARCH(":",REPLACE(L5,SEARCH("AT%",L5),,REPT(" ",25-SEARCH("AT%",L5)))))) -> ICMD00001_DHV AT%M5000.0 :INT; (*1#CPU心跳反馈*)
A6: 命令 | B6: I | C6: M | D6: 00002 | E6: 心跳值 | F6: =IF(OR(I5="REAL",I5="DWORD",I5="DINT"),(IF(OR(I6="REAL",I6="DWORD",I6="DINT"),F5+4+MOD(F5,4),F5+4)),(IF(OR(I6="REAL",I6="DWORD",I6="DINT"),F5+4+MOD(F5,4),F5+2)))&".0" -> 5002.0 | G6: 6000.0 | H6: =IF((IF(OR(I6="INT",I6="WORD",I6="BOOL"),MOD(F6,2),MOD(F6,4)))=0,"验证通过","验证失败") -> 验证通过 | I6: INT | J6: 2#CPU心跳反馈 | K6: =B6&VLOOKUP(A6,List!$D$3:$F$527,2,FALSE)&D6&"_"&VLOOKUP(E6,List!$I$2:$K$529,2,FALSE) -> ICMD00002_DHV | L6: ICMD00002_DHV AT%M5002.0 :INT; (*2#CPU心跳反馈*) | M6: ICMD00002_DHV AT%M5002.0 :INT; (*2#CPU心跳反馈*)
A7: 命令 | B7: I | C7: M | D7: 00003 | E7: 心跳值 | F7: 5004.0 | G7: 6000.0 | H7: 验证通过 | I7: INT | J7: 3#CPU心跳反馈 | K7: =B7&VLOOKUP(A7,List!$D$3:$F$527,2,FALSE)&D7&"_"&VLOOKUP(E7,List!$I$2:$K$529,2,FALSE) -> ICMD00003_DHV | L7: ICMD00003_DHV AT%M5004.0 :INT; (*3#CPU心跳反馈*) | M7: ICMD00003_DHV AT%M5004.0 :INT; (*3#CPU心跳反馈*)
A8: 命令 | B8: I | C8: M | D8: 00004 | E8: 心跳值 | F8: 5006.0 | G8: 6000.0 | H8: 验证通过 | I8: INT | J8: 4#CPU心跳反馈 | K8: =B8&VLOOKUP(A8,List!$D$3:$F$527,2,FALSE)&D8&"_"&VLOOKUP(E8,List!$I$2:$K$529,2,FALSE) -> ICMD00004_DHV | L8: ICMD00004_DHV AT%M5006.0 :INT; (*4#CPU心跳反馈*) | M8: ICMD00004_DHV AT%M5006.0 :INT; (*4#CPU心跳反馈*)
A9: 命令 | B9: I | C9: M | D9: 00005 | E9: 心跳值 | F9: 5008.0 | G9: 6000.0 | H9: 验证通过 | I9: INT | J9: 5#CPU心跳反馈 | K9: =B9&VLOOKUP(A9,List!$D$3:$F$527,2,FALSE)&D9&"_"&VLOOKUP(E9,List!$I$2:$K$529,2,FALSE) -> ICMD00005_DHV | L9: ICMD00005_DHV AT%M5008.0 :INT; (*5#CPU心跳反馈*) | M9: ICMD00005_DHV AT%M5008.0 :INT; (*5#CPU心跳反馈*)
A10: 命令 | B10: I | C10: M | D10: 00006 | E10: 心跳值 | F10: 5010.0 | G10: 6000.0 | H10: 验证通过 | I10: INT | J10: 6#CPU心跳反馈 | K10: =B10&VLOOKUP(A10,List!$D$3:$F$527,2,FALSE)&D10&"_"&VLOOKUP(E10,List!$I$2:$K$529,2,FALSE) -> ICMD00006_DHV | L10: ICMD00006_DHV AT%M5010.0 :INT; (*6#CPU心跳反馈*) | M10: ICMD00006_DHV AT%M5010.0 :INT; (*6#CPU心跳反馈*)
A11: 命令 | B11: I | C11: M | D11: 00007 | E11: 心跳值 | F11: 5012.0 | G11: 6000.0 | H11: 验证通过 | I11: INT | J11: 7#CPU心跳反馈 | K11: =B11&VLOOKUP(A11,List!$D$3:$F$527,2,FALSE)&D11&"_"&VLOOKUP(E11,List!$I$2:$K$529,2,FALSE) -> ICMD00007_DHV | L11: ICMD00007_DHV AT%M5012.0 :INT; (*7#CPU心跳反馈*) | M11: ICMD00007_DHV AT%M5012.0 :INT; (*7#CPU心跳反馈*)
A12: 命令 | B12: I | C12: M | D12: 00008 | E12: 心跳值 | F12: 5014.0 | G12: 6000.0 | H12: 验证通过 | I12: INT | J12: 8#CPU心跳反馈 | K12: =B12&VLOOKUP(A12,List!$D$3:$F$527,2,FALSE)&D12&"_"&VLOOKUP(E12,List!$I$2:$K$529,2,FALSE) -> ICMD00008_DHV | L12: ICMD00008_DHV AT%M5014.0 :INT; (*8#CPU心跳反馈*) | M12: ICMD00008_DHV AT%M5014.0 :INT; (*8#CPU心跳反馈*)
A13: 命令 | B13: I | C13: M | D13: 00009 | E13: 心跳值 | F13: 5016.0 | G13: 6000.0 | H13: 验证通过 | I13: INT | J13: 9#CPU心跳反馈 | K13: =B13&VLOOKUP(A13,List!$D$3:$F$527,2,FALSE)&D13&"_"&VLOOKUP(E13,List!$I$2:$K$529,2,FALSE) -> ICMD00009_DHV | L13: ICMD00009_DHV AT%M5016.0 :INT; (*9#CPU心跳反馈*) | M13: ICMD00009_DHV AT%M5016.0 :INT; (*9#CPU心跳反馈*)
A14: 命令 | B14: I | C14: M | D14: 00010 | E14: 心跳值 | F14: 5018.0 | G14: 6000.0 | H14: 验证通过 | I14: INT | J14: 10#CPU心跳反馈 | K14: =B14&VLOOKUP(A14,List!$D$3:$F$527,2,FALSE)&D14&"_"&VLOOKUP(E14,List!$I$2:$K$529,2,FALSE) -> ICMD00010_DHV | L14: ICMD00010_DHV AT%M5018.0 :INT; (*10#CPU心跳反馈*) | M14: ICMD00010_DHV AT%M5018.0 :INT; (*10#CPU心跳反馈*)
A15: 命令 | B15: I | C15: M | D15: 00011 | E15: 心跳值 | F15: 5020.0 | G15: 6000.0 | H15: 验证通过 | I15: INT | J15: 11#CPU心跳反馈 | K15: =B15&VLOOKUP(A15,List!$D$3:$F$527,2,FALSE)&D15&"_"&VLOOKUP(E15,List!$I$2:$K$529,2,FALSE) -> ICMD00011_DHV | L15: ICMD00011_DHV AT%M5020.0 :INT; (*11#CPU心跳反馈*) | M15: ICMD00011_DHV AT%M5020.0 :INT; (*11#CPU心跳反馈*)
A16: 命令 | B16: I | C16: M | D16: 00012 | E16: 心跳值 | F16: 5022.0 | G16: 6000.0 | H16: 验证通过 | I16: INT | J16: 12#CPU心跳反馈 | K16: =B16&VLOOKUP(A16,List!$D$3:$F$527,2,FALSE)&D16&"_"&VLOOKUP(E16,List!$I$2:$K$529,2,FALSE) -> ICMD00012_DHV | L16: ICMD00012_DHV AT%M5022.0 :INT; (*12#CPU心跳反馈*) | M16: ICMD00012_DHV AT%M5022.0 :INT; (*12#CPU心跳反馈*)
A17: 命令 | B17: I | C17: M | D17: 00013 | E17: 心跳值 | F17: 5024.0 | G17: 6000.0 | H17: 验证通过 | I17: INT | J17: 13#CPU心跳反馈 | K17: =B17&VLOOKUP(A17,List!$D$3:$F$527,2,FALSE)&D17&"_"&VLOOKUP(E17,List!$I$2:$K$529,2,FALSE) -> ICMD00013_DHV | L17: ICMD00013_DHV AT%M5024.0 :INT; (*13#CPU心跳反馈*) | M17: ICMD00013_DHV AT%M5024.0 :INT; (*13#CPU心跳反馈*)
A18: 命令 | B18: I | C18: M | D18: 00014 | E18: 心跳值 | F18: 5026.0 | G18: 6000.0 | H18: 验证通过 | I18: INT | J18: 14#CPU心跳反馈 | K18: =B18&VLOOKUP(A18,List!$D$3:$F$527,2,FALSE)&D18&"_"&VLOOKUP(E18,List!$I$2:$K$529,2,FALSE) -> ICMD00014_DHV | L18: ICMD00014_DHV AT%M5026.0 :INT; (*14#CPU心跳反馈*) | M18: ICMD00014_DHV AT%M5026.0 :INT; (*14#CPU心跳反馈*)
A19: 命令 | B19: I | C19: M | D19: 00015 | E19: 心跳值 | F19: 5028.0 | G19: 6000.0 | H19: 验证通过 | I19: INT | J19: 15#CPU心跳反馈 | K19: =B19&VLOOKUP(A19,List!$D$3:$F$527,2,FALSE)&D19&"_"&VLOOKUP(E19,List!$I$2:$K$529,2,FALSE) -> ICMD00015_DHV | L19: ICMD00015_DHV AT%M5028.0 :INT; (*15#CPU心跳反馈*) | M19: ICMD00015_DHV AT%M5028.0 :INT; (*15#CPU心跳反馈*)
A20: 命令 | B20: I | C20: M | D20: 00016 | E20: 心跳值 | F20: 5030.0 | G20: 6000.0 | H20: 验证通过 | I20: INT | J20: 16#CPU心跳反馈 | K20: =B20&VLOOKUP(A20,List!$D$3:$F$527,2,FALSE)&D20&"_"&VLOOKUP(E20,List!$I$2:$K$529,2,FALSE) -> ICMD00016_DHV | L20: ICMD00016_DHV AT%M5030.0 :INT; (*16#CPU心跳反馈*) | M20: ICMD00016_DHV AT%M5030.0 :INT; (*16#CPU心跳反馈*)
A21: 命令 | B21: I | C21: M | D21: 00017 | E21: 心跳值 | F21: 5032.0 | G21: 6000.0 | H21: 验证通过 | I21: INT | J21: 17#CPU心跳反馈 | K21: =B21&VLOOKUP(A21,List!$D$3:$F$527,2,FALSE)&D21&"_"&VLOOKUP(E21,List!$I$2:$K$529,2,FALSE) -> ICMD00017_DHV | L21: =K21&" "&"AT%"&C21&F21&" "&":"&I21&";"&" "&"(*"&J21&"*)" -> ICMD00017_DHV AT%M5032.0 :INT; (*17#CPU心跳反馈*) | M21: =REPLACE(REPLACE(L21,SEARCH("AT%",L21),,REPT(" ",25-SEARCH("AT%",L21))),SEARCH(":",REPLACE(L21,SEARCH("AT%",L21),,REPT(" ",25-SEARCH("AT%",L21)))),,REPT(" ",40-SEARCH(":",REPLACE(L21,SEARCH("AT%",L21),,REPT(" ",25-SEARCH("AT%",L21)))))) -> ICMD00017_DHV AT%M5032.0 :INT; (*17#CPU心跳反馈*)
A22: 命令 | B22: I | C22: M | D22: 00018 | E22: 心跳值 | F22: 5034.0 | G22: 6000.0 | H22: 验证通过 | I22: INT | J22: 18#CPU心跳反馈 | K22: =B22&VLOOKUP(A22,List!$D$3:$F$527,2,FALSE)&D22&"_"&VLOOKUP(E22,List!$I$2:$K$529,2,FALSE) -> ICMD00018_DHV | L22: ICMD00018_DHV AT%M5034.0 :INT; (*18#CPU心跳反馈*) | M22: ICMD00018_DHV AT%M5034.0 :INT; (*18#CPU心跳反馈*)
A23: 命令 | B23: I | C23: M | D23: 00019 | E23: 心跳值 | F23: 5036.0 | G23: 6000.0 | H23: 验证通过 | I23: INT | J23: 19#CPU心跳反馈 | K23: =B23&VLOOKUP(A23,List!$D$3:$F$527,2,FALSE)&D23&"_"&VLOOKUP(E23,List!$I$2:$K$529,2,FALSE) -> ICMD00019_DHV | L23: ICMD00019_DHV AT%M5036.0 :INT; (*19#CPU心跳反馈*) | M23: ICMD00019_DHV AT%M5036.0 :INT; (*19#CPU心跳反馈*)
A24: 命令 | B24: I | C24: M | D24: 00020 | E24: 心跳值 | F24: 5038.0 | G24: 6000.0 | H24: 验证通过 | I24: INT | J24: 20#CPU心跳反馈 | K24: =B24&VLOOKUP(A24,List!$D$3:$F$527,2,FALSE)&D24&"_"&VLOOKUP(E24,List!$I$2:$K$529,2,FALSE) -> ICMD00020_DHV | L24: ICMD00020_DHV AT%M5038.0 :INT; (*20#CPU心跳反馈*) | M24: ICMD00020_DHV AT%M5038.0 :INT; (*20#CPU心跳反馈*)
A25: 命令 | B25: I | C25: M | D25: 00021 | E25: 心跳值 | F25: 5040.0 | G25: 6000.0 | H25: 验证通过 | I25: INT | J25: 21#CPU心跳反馈 | K25: =B25&VLOOKUP(A25,List!$D$3:$F$527,2,FALSE)&D25&"_"&VLOOKUP(E25,List!$I$2:$K$529,2,FALSE) -> ICMD00021_DHV | L25: ICMD00021_DHV AT%M5040.0 :INT; (*21#CPU心跳反馈*) | M25: ICMD00021_DHV AT%M5040.0 :INT; (*21#CPU心跳反馈*)
A26: 命令 | B26: I | C26: M | D26: 00022 | E26: 心跳值 | F26: 5042.0 | G26: 6000.0 | H26: 验证通过 | I26: INT | J26: 22#CPU心跳反馈 | K26: =B26&VLOOKUP(A26,List!$D$3:$F$527,2,FALSE)&D26&"_"&VLOOKUP(E26,List!$I$2:$K$529,2,FALSE) -> ICMD00022_DHV | L26: ICMD00022_DHV AT%M5042.0 :INT; (*22#CPU心跳反馈*) | M26: ICMD00022_DHV AT%M5042.0 :INT; (*22#CPU心跳反馈*)
A27: 命令 | B27: I | C27: M | D27: 00023 | E27: 心跳值 | F27: 5044.0 | G27: 6000.0 | H27: 验证通过 | I27: INT | J27: 23#CPU心跳反馈 | K27: =B27&VLOOKUP(A27,List!$D$3:$F$527,2,FALSE)&D27&"_"&VLOOKUP(E27,List!$I$2:$K$529,2,FALSE) -> ICMD00023_DHV | L27: ICMD00023_DHV AT%M5044.0 :INT; (*23#CPU心跳反馈*) | M27: ICMD00023_DHV AT%M5044.0 :INT; (*23#CPU心跳反馈*)
A28: 命令 | B28: I | C28: M | D28: 00024 | E28: 心跳值 | F28: 5046.0 | G28: 6000.0 | H28: 验证通过 | I28: INT | J28: 24#CPU心跳反馈 | K28: =B28&VLOOKUP(A28,List!$D$3:$F$527,2,FALSE)&D28&"_"&VLOOKUP(E28,List!$I$2:$K$529,2,FALSE) -> ICMD00024_DHV | L28: ICMD00024_DHV AT%M5046.0 :INT; (*24#CPU心跳反馈*) | M28: ICMD00024_DHV AT%M5046.0 :INT; (*24#CPU心跳反馈*)
A29: 命令 | B29: I | C29: M | D29: 00025 | E29: 心跳值 | F29: 5048.0 | G29: 6000.0 | H29: 验证通过 | I29: INT | J29: 25#CPU心跳反馈 | K29: =B29&VLOOKUP(A29,List!$D$3:$F$527,2,FALSE)&D29&"_"&VLOOKUP(E29,List!$I$2:$K$529,2,FALSE) -> ICMD00025_DHV | L29: =K29&" "&"AT%"&C29&F29&" "&":"&I29&";"&" "&"(*"&J29&"*)" -> ICMD00025_DHV AT%M5048.0 :INT; (*25#CPU心跳反馈*) | M29: =REPLACE(REPLACE(L29,SEARCH("AT%",L29),,REPT(" ",25-SEARCH("AT%",L29))),SEARCH(":",REPLACE(L29,SEARCH("AT%",L29),,REPT(" ",25-SEARCH("AT%",L29)))),,REPT(" ",40-SEARCH(":",REPLACE(L29,SEARCH("AT%",L29),,REPT(" ",25-SEARCH("AT%",L29)))))) -> ICMD00025_DHV AT%M5048.0 :INT; (*25#CPU心跳反馈*)
A30: 命令 | B30: I | C30: M | D30: 00026 | E30: 心跳值 | F30: 5050.0 | G30: 6000.0 | H30: 验证通过 | I30: INT | J30: 26#CPU心跳反馈 | K30: =B30&VLOOKUP(A30,List!$D$3:$F$527,2,FALSE)&D30&"_"&VLOOKUP(E30,List!$I$2:$K$529,2,FALSE) -> ICMD00026_DHV | L30: ICMD00026_DHV AT%M5050.0 :INT; (*26#CPU心跳反馈*) | M30: ICMD00026_DHV AT%M5050.0 :INT; (*26#CPU心跳反馈*)
A31: 命令 | B31: I | C31: M | D31: 00027 | E31: 心跳值 | F31: 5052.0 | G31: 6000.0 | H31: 验证通过 | I31: INT | J31: 27#CPU心跳反馈 | K31: =B31&VLOOKUP(A31,List!$D$3:$F$527,2,FALSE)&D31&"_"&VLOOKUP(E31,List!$I$2:$K$529,2,FALSE) -> ICMD00027_DHV | L31: ICMD00027_DHV AT%M5052.0 :INT; (*27#CPU心跳反馈*) | M31: ICMD00027_DHV AT%M5052.0 :INT; (*27#CPU心跳反馈*)
A32: 命令 | B32: I | C32: M | D32: 00028 | E32: 心跳值 | F32: 5054.0 | G32: 6000.0 | H32: 验证通过 | I32: INT | J32: 28#CPU心跳反馈 | K32: =B32&VLOOKUP(A32,List!$D$3:$F$527,2,FALSE)&D32&"_"&VLOOKUP(E32,List!$I$2:$K$529,2,FALSE) -> ICMD00028_DHV | L32: ICMD00028_DHV AT%M5054.0 :INT; (*28#CPU心跳反馈*) | M32: ICMD00028_DHV AT%M5054.0 :INT; (*28#CPU心跳反馈*)
A33: 命令 | B33: I | C33: M | D33: 00029 | E33: 心跳值 | F33: 5056.0 | G33: 6000.0 | H33: 验证通过 | I33: INT | J33: 29#CPU心跳反馈 | K33: =B33&VLOOKUP(A33,List!$D$3:$F$527,2,FALSE)&D33&"_"&VLOOKUP(E33,List!$I$2:$K$529,2,FALSE) -> ICMD00029_DHV | L33: =K33&" "&"AT%"&C33&F33&" "&":"&I33&";"&" "&"(*"&J33&"*)" -> ICMD00029_DHV AT%M5056.0 :INT; (*29#CPU心跳反馈*) | M33: =REPLACE(REPLACE(L33,SEARCH("AT%",L33),,REPT(" ",25-SEARCH("AT%",L33))),SEARCH(":",REPLACE(L33,SEARCH("AT%",L33),,REPT(" ",25-SEARCH("AT%",L33)))),,REPT(" ",40-SEARCH(":",REPLACE(L33,SEARCH("AT%",L33),,REPT(" ",25-SEARCH("AT%",L33)))))) -> ICMD00029_DHV AT%M5056.0 :INT; (*29#CPU心跳反馈*)
A34: 命令 | B34: I | C34: M | D34: 00030 | E34: 心跳值 | F34: 5058.0 | G34: 6000.0 | H34: 验证通过 | I34: INT | J34: 30#CPU心跳反馈 | K34: =B34&VLOOKUP(A34,List!$D$3:$F$527,2,FALSE)&D34&"_"&VLOOKUP(E34,List!$I$2:$K$529,2,FALSE) -> ICMD00030_DHV | L34: ICMD00030_DHV AT%M5058.0 :INT; (*30#CPU心跳反馈*) | M34: ICMD00030_DHV AT%M5058.0 :INT; (*30#CPU心跳反馈*)
A35: 命令 | B35: I | C35: M | D35: 00031 | E35: 心跳值 | F35: 5060.0 | G35: 6000.0 | H35: 验证通过 | I35: INT | J35: 31#CPU心跳反馈 | K35: =B35&VLOOKUP(A35,List!$D$3:$F$527,2,FALSE)&D35&"_"&VLOOKUP(E35,List!$I$2:$K$529,2,FALSE) -> ICMD00031_DHV | L35: =K35&" "&"AT%"&C35&F35&" "&":"&I35&";"&" "&"(*"&J35&"*)" -> ICMD00031_DHV AT%M5060.0 :INT; (*31#CPU心跳反馈*) | M35: =REPLACE(REPLACE(L35,SEARCH("AT%",L35),,REPT(" ",25-SEARCH("AT%",L35))),SEARCH(":",REPLACE(L35,SEARCH("AT%",L35),,REPT(" ",25-SEARCH("AT%",L35)))),,REPT(" ",40-SEARCH(":",REPLACE(L35,SEARCH("AT%",L35),,REPT(" ",25-SEARCH("AT%",L35)))))) -> ICMD00031_DHV AT%M5060.0 :INT; (*31#CPU心跳反馈*)
A36: 命令 | B36: I | C36: M | D36: 00032 | E36: 心跳值 | F36: 5062.0 | G36: 6000.0 | H36: 验证通过 | I36: INT | J36: 32#CPU心跳反馈 | K36: =B36&VLOOKUP(A36,List!$D$3:$F$527,2,FALSE)&D36&"_"&VLOOKUP(E36,List!$I$2:$K$529,2,FALSE) -> ICMD00032_DHV | L36: =K36&" "&"AT%"&C36&F36&" "&":"&I36&";"&" "&"(*"&J36&"*)" -> ICMD00032_DHV AT%M5062.0 :INT; (*32#CPU心跳反馈*) | M36: =REPLACE(REPLACE(L36,SEARCH("AT%",L36),,REPT(" ",25-SEARCH("AT%",L36))),SEARCH(":",REPLACE(L36,SEARCH("AT%",L36),,REPT(" ",25-SEARCH("AT%",L36)))),,REPT(" ",40-SEARCH(":",REPLACE(L36,SEARCH("AT%",L36),,REPT(" ",25-SEARCH("AT%",L36)))))) -> ICMD00032_DHV AT%M5062.0 :INT; (*32#CPU心跳反馈*)
A37: 主控CPU-->从CPU（地上） | F37: 发送地址 | G37: 接收地址.auto
A38: 命令 | B38: RNQ | C38: M | D38: 00000 | E38: 心跳值 | F38: 4000.0 | H38: =IF((IF(OR(I38="INT",I38="WORD",I38="BOOL"),MOD(F38,2),MOD(F38,4)))=0,"验证通过","验证失败") -> 验证通过 | I38: INT | J38: 心跳值 | K38: =B38&VLOOKUP(A38,List!$D$3:$F$527,2,FALSE)&D38&"_"&VLOOKUP(E38,List!$I$2:$K$529,2,FALSE) -> RNQCMD00000_DHV | L38: =K38&" "&"AT%"&C38&F38&" "&":"&I38&";"&" "&"(*"&J38&"*)" -> RNQCMD00000_DHV AT%M4000.0 :INT; (*心跳值*) | M38: =REPLACE(REPLACE(L38,SEARCH("AT%",L38),,REPT(" ",25-SEARCH("AT%",L38))),SEARCH(":",REPLACE(L38,SEARCH("AT%",L38),,REPT(" ",25-SEARCH("AT%",L38)))),,REPT(" ",40-SEARCH(":",REPLACE(L38,SEARCH("AT%",L38),,REPT(" ",25-SEARCH("AT%",L38)))))) -> RNQCMD00000_DHV AT%M4000.0 :INT; (*心跳值*)
A39: 空调机组 | B39: RNQ | C39: M | D39: 00000 | E39: 新云模式 | F39: =IF(OR(I38="REAL",I38="DWORD",I38="DINT"),(IF(OR(I39="REAL",I39="DWORD",I39="DINT"),F38+4+MOD(F38,4),F38+4)),(IF(OR(I39="REAL",I39="DWORD",I39="DINT"),F38+4+MOD(F38,4),F38+2)))&".0" -> 4002.0 | H39: 验证通过 | I39: BOOL | J39: 空调机组新云模式 | K39: =B39&VLOOKUP(A39,List!$D$3:$F$527,2,FALSE)&D39&"_"&VLOOKUP(E39,List!$I$2:$K$529,2,FALSE) -> RNQAHU00000_CM | L39: RNQAHU00000_CM AT%M4002.0 :BOOL; (*空调机组新云模式*) | M39: RNQAHU00000_CM AT%M4002.0 :BOOL; (*空调机组新云模式*)
A40: 风机盘管 | B40: RNQ | C40: M | D40: 00000 | E40: 新云模式 | F40: =IF(OR(I39="REAL",I39="DWORD",I39="DINT"),(IF(OR(I40="REAL",I40="DWORD",I40="DINT"),F39+4+MOD(F39,4),F39+4)),(IF(OR(I40="REAL",I40="DWORD",I40="DINT"),F39+4+MOD(F39,4),F39+2)))&".0" -> 4004.0 | H40: 验证通过 | I40: BOOL | J40: 风机盘管新云模式 | K40: =B40&VLOOKUP(A40,List!$D$3:$F$527,2,FALSE)&D40&"_"&VLOOKUP(E40,List!$I$2:$K$529,2,FALSE) -> RNQFCU00000_CM | L40: RNQFCU00000_CM AT%M4004.0 :BOOL; (*风机盘管新云模式*) | M40: RNQFCU00000_CM AT%M4004.0 :BOOL; (*风机盘管新云模式*)
A41: 照明控制箱 | B41: RNQ | C41: M | D41: 00000 | E41: 新云模式 | F41: 4006.0 | H41: 验证通过 | I41: BOOL | J41: 照明控制箱新云模式 | K41: =B41&VLOOKUP(A41,List!$D$3:$F$527,2,FALSE)&D41&"_"&VLOOKUP(E41,List!$I$2:$K$529,2,FALSE) -> RNQLCB00000_CM | L41: RNQLCB00000_CM AT%M4006.0 :BOOL; (*照明控制箱新云模式*) | M41: RNQLCB00000_CM AT%M4006.0 :BOOL; (*照明控制箱新云模式*)
A42: 排风机 | B42: RNQ | C42: M | D42: 00000 | E42: 新云模式 | F42: 4008.0 | H42: =IF((IF(OR(I42="INT",I42="WORD",I42="BOOL"),MOD(F42,2),MOD(F42,4)))=0,"验证通过","验证失败") -> 验证通过 | I42: BOOL | J42: 送排风机新云模式 | K42: =B42&VLOOKUP(A42,List!$D$3:$F$527,2,FALSE)&D42&"_"&VLOOKUP(E42,List!$I$2:$K$529,2,FALSE) -> RNQEAF00000_CM | L42: =K42&" "&"AT%"&C42&F42&" "&":"&I42&";"&" "&"(*"&J42&"*)" -> RNQEAF00000_CM AT%M4008.0 :BOOL; (*送排风机新云模式*) | M42: RNQEAF00000_CM AT%M4008.0 :BOOL; (*送排风机新云模式*)
A43: P新风机组 | B43: RNQ | C43: M | D43: 00000 | E43: 新云模式 | F43: 4010.0 | H43: 验证通过 | I43: BOOL | J43: 新风机组新云模式 | K43: =B43&VLOOKUP(A43,List!$D$3:$F$527,2,FALSE)&D43&"_"&VLOOKUP(E43,List!$I$2:$K$529,2,FALSE) -> RNQPAU00000_CM | L43: RNQPAU00000_CM AT%M4010.0 :BOOL; (*新风机组新云模式*) | M43: RNQPAU00000_CM AT%M4010.0 :BOOL; (*新风机组新云模式*)
A44: 风幕机 | B44: RNQ | C44: M | D44: 00000 | E44: 新云模式 | F44: 4012.0 | H44: 验证通过 | I44: BOOL | J44: 风幕机新云模式 | K44: =B44&VLOOKUP(A44,List!$D$3:$F$527,2,FALSE)&D44&"_"&VLOOKUP(E44,List!$I$2:$K$529,2,FALSE) -> RNQFMJ00000_CM | L44: RNQFMJ00000_CM AT%M4012.0 :BOOL; (*风幕机新云模式*) | M44: =REPLACE(REPLACE(L44,SEARCH("AT%",L44),,REPT(" ",25-SEARCH("AT%",L44))),SEARCH(":",REPLACE(L44,SEARCH("AT%",L44),,REPT(" ",25-SEARCH("AT%",L44)))),,REPT(" ",40-SEARCH(":",REPLACE(L44,SEARCH("AT%",L44),,REPT(" ",25-SEARCH("AT%",L44)))))) -> RNQFMJ00000_CM AT%M4012.0 :BOOL; (*风幕机新云模式*)
A45: 冷水机组 | B45: RNQ | C45: M | D45: 00000 | E45: 新云模式 | F45: 4014.0 | H45: =IF((IF(OR(I45="INT",I45="WORD",I45="BOOL"),MOD(F45,2),MOD(F45,4)))=0,"验证通过","验证失败") -> 验证通过 | I45: BOOL | J45: 冷源新云模式 | K45: =B45&VLOOKUP(A45,List!$D$3:$F$527,2,FALSE)&D45&"_"&VLOOKUP(E45,List!$I$2:$K$529,2,FALSE) -> RNQCHR00000_CM | L45: RNQCHR00000_CM AT%M4014.0 :BOOL; (*冷源新云模式*) | M45: RNQCHR00000_CM AT%M4014.0 :BOOL; (*冷源新云模式*)
A46: 空调机组 | B46: RNQ | C46: M | D46: B3X00 | E46: 设定温度值 | F46: 4020.0 | H46: 验证通过 | I46: REAL | J46: 空调机组B3层温度全局设定 | K46: =B46&VLOOKUP(A46,List!$D$3:$F$527,2,FALSE)&D46&"_"&VLOOKUP(E46,List!$I$2:$K$529,2,FALSE) -> RNQAHUB3X00_TSET | L46: RNQAHUB3X00_TSET AT%M4020.0 :REAL; (*空调机组B3层温度全局设定*) | M46: RNQAHUB3X00_TSET AT%M4020.0 :REAL; (*空调机组B3层温度全局设定*)
A47: 空调机组 | B47: RNQ | C47: M | D47: B2X00 | E47: 设定温度值 | F47: 4024.0 | H47: 验证通过 | I47: REAL | J47: 空调机组B2层温度全局设定 | K47: =B47&VLOOKUP(A47,List!$D$3:$F$527,2,FALSE)&D47&"_"&VLOOKUP(E47,List!$I$2:$K$529,2,FALSE) -> RNQAHUB2X00_TSET | L47: RNQAHUB2X00_TSET AT%M4024.0 :REAL; (*空调机组B2层温度全局设定*) | M47: RNQAHUB2X00_TSET AT%M4024.0 :REAL; (*空调机组B2层温度全局设定*)
A48: 空调机组 | B48: RNQ | C48: M | D48: B1X00 | E48: 设定温度值 | F48: 4028.0 | H48: 验证通过 | I48: REAL | J48: 空调机组B1层温度全局设定 | K48: =B48&VLOOKUP(A48,List!$D$3:$F$527,2,FALSE)&D48&"_"&VLOOKUP(E48,List!$I$2:$K$529,2,FALSE) -> RNQAHUB1X00_TSET | L48: RNQAHUB1X00_TSET AT%M4028.0 :REAL; (*空调机组B1层温度全局设定*) | M48: RNQAHUB1X00_TSET AT%M4028.0 :REAL; (*空调机组B1层温度全局设定*)
A49: 空调机组 | B49: RNQ | C49: M | D49: 01X00 | E49: 设定温度值 | F49: 4032.0 | H49: 验证通过 | I49: REAL | J49: 空调机组1层温度全局设定 | K49: =B49&VLOOKUP(A49,List!$D$3:$F$527,2,FALSE)&D49&"_"&VLOOKUP(E49,List!$I$2:$K$529,2,FALSE) -> RNQAHU01X00_TSET | L49: RNQAHU01X00_TSET AT%M4032.0 :REAL; (*空调机组1层温度全局设定*) | M49: RNQAHU01X00_TSET AT%M4032.0 :REAL; (*空调机组1层温度全局设定*)
A50: 空调机组 | B50: RNQ | C50: M | D50: 02X00 | E50: 设定温度值 | F50: 4036.0 | H50: 验证通过 | I50: REAL | J50: 空调机组2层温度全局设定 | K50: =B50&VLOOKUP(A50,List!$D$3:$F$527,2,FALSE)&D50&"_"&VLOOKUP(E50,List!$I$2:$K$529,2,FALSE) -> RNQAHU02X00_TSET | L50: RNQAHU02X00_TSET AT%M4036.0 :REAL; (*空调机组2层温度全局设定*) | M50: =REPLACE(REPLACE(L50,SEARCH("AT%",L50),,REPT(" ",25-SEARCH("AT%",L50))),SEARCH(":",REPLACE(L50,SEARCH("AT%",L50),,REPT(" ",25-SEARCH("AT%",L50)))),,REPT(" ",40-SEARCH(":",REPLACE(L50,SEARCH("AT%",L50),,REPT(" ",25-SEARCH("AT%",L50)))))) -> RNQAHU02X00_TSET AT%M4036.0 :REAL; (*空调机组2层温度全局设定*)
A51: 空调机组 | B51: RNQ | C51: M | D51: 03X00 | E51: 设定温度值 | F51: 4040.0 | H51: 验证通过 | I51: REAL | J51: 空调机组3层温度全局设定 | K51: =B51&VLOOKUP(A51,List!$D$3:$F$527,2,FALSE)&D51&"_"&VLOOKUP(E51,List!$I$2:$K$529,2,FALSE) -> RNQAHU03X00_TSET | L51: RNQAHU03X00_TSET AT%M4040.0 :REAL; (*空调机组3层温度全局设定*) | M51: RNQAHU03X00_TSET AT%M4040.0 :REAL; (*空调机组3层温度全局设定*)
A52: 空调机组 | B52: RNQ | C52: M | D52: 04X00 | E52: 设定温度值 | F52: 4044.0 | H52: 验证通过 | I52: REAL | J52: 空调机组4层温度全局设定 | K52: =B52&VLOOKUP(A52,List!$D$3:$F$527,2,FALSE)&D52&"_"&VLOOKUP(E52,List!$I$2:$K$529,2,FALSE) -> RNQAHU04X00_TSET | L52: RNQAHU04X00_TSET AT%M4044.0 :REAL; (*空调机组4层温度全局设定*) | M52: RNQAHU04X00_TSET AT%M4044.0 :REAL; (*空调机组4层温度全局设定*)
A53: 空调机组 | B53: RNQ | C53: M | D53: 05X00 | E53: 设定温度值 | F53: 4048.0 | H53: 验证通过 | I53: REAL | J53: 空调机组5层温度全局设定 | K53: =B53&VLOOKUP(A53,List!$D$3:$F$527,2,FALSE)&D53&"_"&VLOOKUP(E53,List!$I$2:$K$529,2,FALSE) -> RNQAHU05X00_TSET | L53: RNQAHU05X00_TSET AT%M4048.0 :REAL; (*空调机组5层温度全局设定*) | M53: RNQAHU05X00_TSET AT%M4048.0 :REAL; (*空调机组5层温度全局设定*)
A54: 空调机组 | B54: RNQ | C54: M | D54: 06X00 | E54: 设定温度值 | F54: 4052.0 | H54: 验证通过 | I54: REAL | J54: 空调机组6层温度全局设定 | K54: =B54&VLOOKUP(A54,List!$D$3:$F$527,2,FALSE)&D54&"_"&VLOOKUP(E54,List!$I$2:$K$529,2,FALSE) -> RNQAHU06X00_TSET | L54: RNQAHU06X00_TSET AT%M4052.0 :REAL; (*空调机组6层温度全局设定*) | M54: RNQAHU06X00_TSET AT%M4052.0 :REAL; (*空调机组6层温度全局设定*)
A55: 空调机组 | B55: RNQ | C55: M | D55: 07X00 | E55: 设定温度值 | F55: 4056.0 | H55: =IF((IF(OR(I55="INT",I55="WORD",I55="BOOL"),MOD(F55,2),MOD(F55,4)))=0,"验证通过","验证失败") -> 验证通过 | I55: REAL | J55: 空调机组7层温度全局设定 | K55: =B55&VLOOKUP(A55,List!$D$3:$F$527,2,FALSE)&D55&"_"&VLOOKUP(E55,List!$I$2:$K$529,2,FALSE) -> RNQAHU07X00_TSET | L55: =K55&" "&"AT%"&C55&F55&" "&":"&I55&";"&" "&"(*"&J55&"*)" -> RNQAHU07X00_TSET AT%M4056.0 :REAL; (*空调机组7层温度全局设定*) | M55: =REPLACE(REPLACE(L55,SEARCH("AT%",L55),,REPT(" ",25-SEARCH("AT%",L55))),SEARCH(":",REPLACE(L55,SEARCH("AT%",L55),,REPT(" ",25-SEARCH("AT%",L55)))),,REPT(" ",40-SEARCH(":",REPLACE(L55,SEARCH("AT%",L55),,REPT(" ",25-SEARCH("AT%",L55)))))) -> RNQAHU07X00_TSET AT%M4056.0 :REAL; (*空调机组7层温度全局设定*)
A56: 空调机组 | B56: RNQ | C56: M | D56: 08X00 | E56: 设定温度值 | F56: 4060.0 | H56: 验证通过 | I56: REAL | J56: 空调机组8层温度全局设定 | K56: =B56&VLOOKUP(A56,List!$D$3:$F$527,2,FALSE)&D56&"_"&VLOOKUP(E56,List!$I$2:$K$529,2,FALSE) -> RNQAHU08X00_TSET | L56: RNQAHU08X00_TSET AT%M4060.0 :REAL; (*空调机组8层温度全局设定*) | M56: RNQAHU08X00_TSET AT%M4060.0 :REAL; (*空调机组8层温度全局设定*)
A57: 空调机组 | B57: RNQ | C57: M | D57: B3X00 | E57: 季节模式 | F57: 4064.0 | H57: 验证通过 | I57: INT | J57: 空调机组B3层季节模式全局设定 | K57: =B57&VLOOKUP(A57,List!$D$3:$F$527,2,FALSE)&D57&"_"&VLOOKUP(E57,List!$I$2:$K$529,2,FALSE) -> RNQAHUB3X00_SM | L57: RNQAHUB3X00_SM AT%M4064.0 :INT; (*空调机组B3层季节模式全局设定*) | M57: RNQAHUB3X00_SM AT%M4064.0 :INT; (*空调机组B3层季节模式全局设定*)
A58: 空调机组 | B58: RNQ | C58: M | D58: B2X00 | E58: 季节模式 | F58: 4066.0 | H58: 验证通过 | I58: INT | J58: 空调机组B2层季节模式全局设定 | K58: =B58&VLOOKUP(A58,List!$D$3:$F$527,2,FALSE)&D58&"_"&VLOOKUP(E58,List!$I$2:$K$529,2,FALSE) -> RNQAHUB2X00_SM | L58: RNQAHUB2X00_SM AT%M4066.0 :INT; (*空调机组B2层季节模式全局设定*) | M58: RNQAHUB2X00_SM AT%M4066.0 :INT; (*空调机组B2层季节模式全局设定*)
A59: 空调机组 | B59: RNQ | C59: M | D59: B1X00 | E59: 季节模式 | F59: 4068.0 | H59: 验证通过 | I59: INT | J59: 空调机组B1层季节模式全局设定 | K59: =B59&VLOOKUP(A59,List!$D$3:$F$527,2,FALSE)&D59&"_"&VLOOKUP(E59,List!$I$2:$K$529,2,FALSE) -> RNQAHUB1X00_SM | L59: RNQAHUB1X00_SM AT%M4068.0 :INT; (*空调机组B1层季节模式全局设定*) | M59: RNQAHUB1X00_SM AT%M4068.0 :INT; (*空调机组B1层季节模式全局设定*)
A60: 空调机组 | B60: RNQ | C60: M | D60: 01X00 | E60: 季节模式 | F60: 4070.0 | H60: 验证通过 | I60: INT | J60: 空调机组1层季节模式全局设定 | K60: =B60&VLOOKUP(A60,List!$D$3:$F$527,2,FALSE)&D60&"_"&VLOOKUP(E60,List!$I$2:$K$529,2,FALSE) -> RNQAHU01X00_SM | L60: RNQAHU01X00_SM AT%M4070.0 :INT; (*空调机组1层季节模式全局设定*) | M60: RNQAHU01X00_SM AT%M4070.0 :INT; (*空调机组1层季节模式全局设定*)
A61: 空调机组 | B61: RNQ | C61: M | D61: 02X00 | E61: 季节模式 | F61: 4072.0 | H61: 验证通过 | I61: INT | J61: 空调机组2层季节模式全局设定 | K61: =B61&VLOOKUP(A61,List!$D$3:$F$527,2,FALSE)&D61&"_"&VLOOKUP(E61,List!$I$2:$K$529,2,FALSE) -> RNQAHU02X00_SM | L61: RNQAHU02X00_SM AT%M4072.0 :INT; (*空调机组2层季节模式全局设定*) | M61: RNQAHU02X00_SM AT%M4072.0 :INT; (*空调机组2层季节模式全局设定*)
A62: 空调机组 | B62: RNQ | C62: M | D62: 03X00 | E62: 季节模式 | F62: 4074.0 | H62: 验证通过 | I62: INT | J62: 空调机组3层季节模式全局设定 | K62: =B62&VLOOKUP(A62,List!$D$3:$F$527,2,FALSE)&D62&"_"&VLOOKUP(E62,List!$I$2:$K$529,2,FALSE) -> RNQAHU03X00_SM | L62: RNQAHU03X00_SM AT%M4074.0 :INT; (*空调机组3层季节模式全局设定*) | M62: RNQAHU03X00_SM AT%M4074.0 :INT; (*空调机组3层季节模式全局设定*)
A63: 空调机组 | B63: RNQ | C63: M | D63: 04X00 | E63: 季节模式 | F63: 4076.0 | H63: 验证通过 | I63: INT | J63: 空调机组4层季节模式全局设定 | K63: =B63&VLOOKUP(A63,List!$D$3:$F$527,2,FALSE)&D63&"_"&VLOOKUP(E63,List!$I$2:$K$529,2,FALSE) -> RNQAHU04X00_SM | L63: RNQAHU04X00_SM AT%M4076.0 :INT; (*空调机组4层季节模式全局设定*) | M63: RNQAHU04X00_SM AT%M4076.0 :INT; (*空调机组4层季节模式全局设定*)
A64: 空调机组 | B64: RNQ | C64: M | D64: 05X00 | E64: 季节模式 | F64: 4078.0 | H64: 验证通过 | I64: INT | J64: 空调机组5层季节模式全局设定 | K64: =B64&VLOOKUP(A64,List!$D$3:$F$527,2,FALSE)&D64&"_"&VLOOKUP(E64,List!$I$2:$K$529,2,FALSE) -> RNQAHU05X00_SM | L64: RNQAHU05X00_SM AT%M4078.0 :INT; (*空调机组5层季节模式全局设定*) | M64: RNQAHU05X00_SM AT%M4078.0 :INT; (*空调机组5层季节模式全局设定*)
A65: 空调机组 | B65: RNQ | C65: M | D65: 06X00 | E65: 季节模式 | F65: 4080.0 | H65: 验证通过 | I65: INT | J65: 空调机组6层季节模式全局设定 | K65: =B65&VLOOKUP(A65,List!$D$3:$F$527,2,FALSE)&D65&"_"&VLOOKUP(E65,List!$I$2:$K$529,2,FALSE) -> RNQAHU06X00_SM | L65: RNQAHU06X00_SM AT%M4080.0 :INT; (*空调机组6层季节模式全局设定*) | M65: RNQAHU06X00_SM AT%M4080.0 :INT; (*空调机组6层季节模式全局设定*)
A66: 空调机组 | B66: RNQ | C66: M | D66: 07X00 | E66: 季节模式 | F66: 4082.0 | H66: =IF((IF(OR(I66="INT",I66="WORD",I66="BOOL"),MOD(F66,2),MOD(F66,4)))=0,"验证通过","验证失败") -> 验证通过 | I66: INT | J66: 空调机组7层季节模式全局设定 | K66: =B66&VLOOKUP(A66,List!$D$3:$F$527,2,FALSE)&D66&"_"&VLOOKUP(E66,List!$I$2:$K$529,2,FALSE) -> RNQAHU07X00_SM | L66: RNQAHU07X00_SM AT%M4082.0 :INT; (*空调机组7层季节模式全局设定*) | M66: RNQAHU07X00_SM AT%M4082.0 :INT; (*空调机组7层季节模式全局设定*)
A67: 空调机组 | B67: RNQ | C67: M | D67: 08X00 | E67: 季节模式 | F67: 4084.0 | H67: 验证通过 | I67: INT | J67: 空调机组8层季节模式全局设定 | K67: =B67&VLOOKUP(A67,List!$D$3:$F$527,2,FALSE)&D67&"_"&VLOOKUP(E67,List!$I$2:$K$529,2,FALSE) -> RNQAHU08X00_SM | L67: RNQAHU08X00_SM AT%M4084.0 :INT; (*空调机组8层季节模式全局设定*) | M67: RNQAHU08X00_SM AT%M4084.0 :INT; (*空调机组8层季节模式全局设定*)
A68: 空调机组 | B68: RNQ | C68: M | D68: B3X00 | E68: 程序控制 | F68: 4086.0 | H68: 验证通过 | I68: BOOL | J68: 空调机组B3层启停控制 | K68: =B68&VLOOKUP(A68,List!$D$3:$F$527,2,FALSE)&D68&"_"&VLOOKUP(E68,List!$I$2:$K$529,2,FALSE) -> RNQAHUB3X00_PC | L68: RNQAHUB3X00_PC AT%M4086.0 :BOOL; (*空调机组B3层启停控制*) | M68: RNQAHUB3X00_PC AT%M4086.0 :BOOL; (*空调机组B3层启停控制*)
A69: 空调机组 | B69: RNQ | C69: M | D69: B2X00 | E69: 程序控制 | F69: 4088.0 | H69: 验证通过 | I69: BOOL | J69: 空调机组B2层启停控制 | K69: =B69&VLOOKUP(A69,List!$D$3:$F$527,2,FALSE)&D69&"_"&VLOOKUP(E69,List!$I$2:$K$529,2,FALSE) -> RNQAHUB2X00_PC | L69: RNQAHUB2X00_PC AT%M4088.0 :BOOL; (*空调机组B2层启停控制*) | M69: RNQAHUB2X00_PC AT%M4088.0 :BOOL; (*空调机组B2层启停控制*)
A70: 空调机组 | B70: RNQ | C70: M | D70: B1X00 | E70: 程序控制 | F70: 4090.0 | H70: 验证通过 | I70: BOOL | J70: 空调机组B1层启停控制 | K70: =B70&VLOOKUP(A70,List!$D$3:$F$527,2,FALSE)&D70&"_"&VLOOKUP(E70,List!$I$2:$K$529,2,FALSE) -> RNQAHUB1X00_PC | L70: RNQAHUB1X00_PC AT%M4090.0 :BOOL; (*空调机组B1层启停控制*) | M70: RNQAHUB1X00_PC AT%M4090.0 :BOOL; (*空调机组B1层启停控制*)
A71: 空调机组 | B71: RNQ | C71: M | D71: 01X00 | E71: 程序控制 | F71: 4092.0 | H71: 验证通过 | I71: BOOL | J71: 空调机组1层启停控制 | K71: =B71&VLOOKUP(A71,List!$D$3:$F$527,2,FALSE)&D71&"_"&VLOOKUP(E71,List!$I$2:$K$529,2,FALSE) -> RNQAHU01X00_PC | L71: RNQAHU01X00_PC AT%M4092.0 :BOOL; (*空调机组1层启停控制*) | M71: RNQAHU01X00_PC AT%M4092.0 :BOOL; (*空调机组1层启停控制*)
A72: 空调机组 | B72: RNQ | C72: M | D72: 02X00 | E72: 程序控制 | F72: 4094.0 | H72: 验证通过 | I72: BOOL | J72: 空调机组2层启停控制 | K72: =B72&VLOOKUP(A72,List!$D$3:$F$527,2,FALSE)&D72&"_"&VLOOKUP(E72,List!$I$2:$K$529,2,FALSE) -> RNQAHU02X00_PC | L72: RNQAHU02X00_PC AT%M4094.0 :BOOL; (*空调机组2层启停控制*) | M72: RNQAHU02X00_PC AT%M4094.0 :BOOL; (*空调机组2层启停控制*)
A73: 空调机组 | B73: RNQ | C73: M | D73: 03X00 | E73: 程序控制 | F73: 4096.0 | H73: 验证通过 | I73: BOOL | J73: 空调机组3层启停控制 | K73: =B73&VLOOKUP(A73,List!$D$3:$F$527,2,FALSE)&D73&"_"&VLOOKUP(E73,List!$I$2:$K$529,2,FALSE) -> RNQAHU03X00_PC | L73: RNQAHU03X00_PC AT%M4096.0 :BOOL; (*空调机组3层启停控制*) | M73: RNQAHU03X00_PC AT%M4096.0 :BOOL; (*空调机组3层启停控制*)
A74: 空调机组 | B74: RNQ | C74: M | D74: 04X00 | E74: 程序控制 | F74: 4098.0 | H74: 验证通过 | I74: BOOL | J74: 空调机组4层启停控制 | K74: =B74&VLOOKUP(A74,List!$D$3:$F$527,2,FALSE)&D74&"_"&VLOOKUP(E74,List!$I$2:$K$529,2,FALSE) -> RNQAHU04X00_PC | L74: RNQAHU04X00_PC AT%M4098.0 :BOOL; (*空调机组4层启停控制*) | M74: RNQAHU04X00_PC AT%M4098.0 :BOOL; (*空调机组4层启停控制*)
A75: 空调机组 | B75: RNQ | C75: M | D75: 05X00 | E75: 程序控制 | F75: 4100.0 | H75: 验证通过 | I75: BOOL | J75: 空调机组5层启停控制 | K75: =B75&VLOOKUP(A75,List!$D$3:$F$527,2,FALSE)&D75&"_"&VLOOKUP(E75,List!$I$2:$K$529,2,FALSE) -> RNQAHU05X00_PC | L75: RNQAHU05X00_PC AT%M4100.0 :BOOL; (*空调机组5层启停控制*) | M75: RNQAHU05X00_PC AT%M4100.0 :BOOL; (*空调机组5层启停控制*)
A76: 空调机组 | B76: RNQ | C76: M | D76: 06X00 | E76: 程序控制 | F76: 4102.0 | H76: 验证通过 | I76: BOOL | J76: 空调机组6层启停控制 | K76: =B76&VLOOKUP(A76,List!$D$3:$F$527,2,FALSE)&D76&"_"&VLOOKUP(E76,List!$I$2:$K$529,2,FALSE) -> RNQAHU06X00_PC | L76: RNQAHU06X00_PC AT%M4102.0 :BOOL; (*空调机组6层启停控制*) | M76: RNQAHU06X00_PC AT%M4102.0 :BOOL; (*空调机组6层启停控制*)
A77: 空调机组 | B77: RNQ | C77: M | D77: 07X00 | E77: 程序控制 | F77: 4104.0 | H77: =IF((IF(OR(I77="INT",I77="WORD",I77="BOOL"),MOD(F77,2),MOD(F77,4)))=0,"验证通过","验证失败") -> 验证通过 | I77: BOOL | J77: 空调机组7层启停控制 | K77: =B77&VLOOKUP(A77,List!$D$3:$F$527,2,FALSE)&D77&"_"&VLOOKUP(E77,List!$I$2:$K$529,2,FALSE) -> RNQAHU07X00_PC | L77: RNQAHU07X00_PC AT%M4104.0 :BOOL; (*空调机组7层启停控制*) | M77: RNQAHU07X00_PC AT%M4104.0 :BOOL; (*空调机组7层启停控制*)
A78: 空调机组 | B78: RNQ | C78: M | D78: 08X00 | E78: 程序控制 | F78: 4106.0 | H78: 验证通过 | I78: BOOL | J78: 空调机组8层启停控制 | K78: =B78&VLOOKUP(A78,List!$D$3:$F$527,2,FALSE)&D78&"_"&VLOOKUP(E78,List!$I$2:$K$529,2,FALSE) -> RNQAHU08X00_PC | L78: RNQAHU08X00_PC AT%M4106.0 :BOOL; (*空调机组8层启停控制*) | M78: RNQAHU08X00_PC AT%M4106.0 :BOOL; (*空调机组8层启停控制*)
A79: 风机盘管 | B79: RNQ | C79: M | D79: B3X00 | E79: 设定温度值 | F79: 4112.0 | H79: =IF((IF(OR(I79="INT",I79="WORD",I79="BOOL"),MOD(F79,2),MOD(F79,4)))=0,"验证通过","验证失败") -> 验证通过 | I79: REAL | J79: 风机盘管B3层温度全局设定 | K79: =B79&VLOOKUP(A79,List!$D$3:$F$527,2,FALSE)&D79&"_"&VLOOKUP(E79,List!$I$2:$K$529,2,FALSE) -> RNQFCUB3X00_TSET | L79: =K79&" "&"AT%"&C79&F79&" "&":"&I79&";"&" "&"(*"&J79&"*)" -> RNQFCUB3X00_TSET AT%M4112.0 :REAL; (*风机盘管B3层温度全局设定*) | M79: RNQFCUB3X00_TSET AT%M4112.0 :REAL; (*风机盘管B3层温度全局设定*)
A80: 风机盘管 | B80: RNQ | C80: M | D80: B2X00 | E80: 设定温度值 | F80: 4116.0 | H80: 验证通过 | I80: REAL | J80: 风机盘管B2层温度全局设定 | K80: =B80&VLOOKUP(A80,List!$D$3:$F$527,2,FALSE)&D80&"_"&VLOOKUP(E80,List!$I$2:$K$529,2,FALSE) -> RNQFCUB2X00_TSET | L80: RNQFCUB2X00_TSET AT%M4116.0 :REAL; (*风机盘管B2层温度全局设定*) | M80: =REPLACE(REPLACE(L80,SEARCH("AT%",L80),,REPT(" ",25-SEARCH("AT%",L80))),SEARCH(":",REPLACE(L80,SEARCH("AT%",L80),,REPT(" ",25-SEARCH("AT%",L80)))),,REPT(" ",40-SEARCH(":",REPLACE(L80,SEARCH("AT%",L80),,REPT(" ",25-SEARCH("AT%",L80)))))) -> RNQFCUB2X00_TSET AT%M4116.0 :REAL; (*风机盘管B2层温度全局设定*)
A81: 风机盘管 | B81: RNQ | C81: M | D81: B1X00 | E81: 设定温度值 | F81: 4120.0 | H81: 验证通过 | I81: REAL | J81: 风机盘管B1层温度全局设定 | K81: =B81&VLOOKUP(A81,List!$D$3:$F$527,2,FALSE)&D81&"_"&VLOOKUP(E81,List!$I$2:$K$529,2,FALSE) -> RNQFCUB1X00_TSET | L81: RNQFCUB1X00_TSET AT%M4120.0 :REAL; (*风机盘管B1层温度全局设定*) | M81: RNQFCUB1X00_TSET AT%M4120.0 :REAL; (*风机盘管B1层温度全局设定*)
A82: 风机盘管 | B82: RNQ | C82: M | D82: 01X00 | E82: 设定温度值 | F82: 4124.0 | H82: 验证通过 | I82: REAL | J82: 风机盘管1层温度全局设定 | K82: =B82&VLOOKUP(A82,List!$D$3:$F$527,2,FALSE)&D82&"_"&VLOOKUP(E82,List!$I$2:$K$529,2,FALSE) -> RNQFCU01X00_TSET | L82: RNQFCU01X00_TSET AT%M4124.0 :REAL; (*风机盘管1层温度全局设定*) | M82: RNQFCU01X00_TSET AT%M4124.0 :REAL; (*风机盘管1层温度全局设定*)
A83: 风机盘管 | B83: RNQ | C83: M | D83: 02X00 | E83: 设定温度值 | F83: 4128.0 | H83: 验证通过 | I83: REAL | J83: 风机盘管2层温度全局设定 | K83: =B83&VLOOKUP(A83,List!$D$3:$F$527,2,FALSE)&D83&"_"&VLOOKUP(E83,List!$I$2:$K$529,2,FALSE) -> RNQFCU02X00_TSET | L83: RNQFCU02X00_TSET AT%M4128.0 :REAL; (*风机盘管2层温度全局设定*) | M83: RNQFCU02X00_TSET AT%M4128.0 :REAL; (*风机盘管2层温度全局设定*)
A84: 风机盘管 | B84: RNQ | C84: M | D84: 03X00 | E84: 设定温度值 | F84: 4132.0 | H84: 验证通过 | I84: REAL | J84: 风机盘管3层温度全局设定 | K84: =B84&VLOOKUP(A84,List!$D$3:$F$527,2,FALSE)&D84&"_"&VLOOKUP(E84,List!$I$2:$K$529,2,FALSE) -> RNQFCU03X00_TSET | L84: RNQFCU03X00_TSET AT%M4132.0 :REAL; (*风机盘管3层温度全局设定*) | M84: RNQFCU03X00_TSET AT%M4132.0 :REAL; (*风机盘管3层温度全局设定*)
A85: 风机盘管 | B85: RNQ | C85: M | D85: 04X00 | E85: 设定温度值 | F85: 4136.0 | H85: 验证通过 | I85: REAL | J85: 风机盘管4层温度全局设定 | K85: =B85&VLOOKUP(A85,List!$D$3:$F$527,2,FALSE)&D85&"_"&VLOOKUP(E85,List!$I$2:$K$529,2,FALSE) -> RNQFCU04X00_TSET | L85: RNQFCU04X00_TSET AT%M4136.0 :REAL; (*风机盘管4层温度全局设定*) | M85: RNQFCU04X00_TSET AT%M4136.0 :REAL; (*风机盘管4层温度全局设定*)
A86: 风机盘管 | B86: RNQ | C86: M | D86: 05X00 | E86: 设定温度值 | F86: 4140.0 | H86: 验证通过 | I86: REAL | J86: 风机盘管5层温度全局设定 | K86: =B86&VLOOKUP(A86,List!$D$3:$F$527,2,FALSE)&D86&"_"&VLOOKUP(E86,List!$I$2:$K$529,2,FALSE) -> RNQFCU05X00_TSET | L86: RNQFCU05X00_TSET AT%M4140.0 :REAL; (*风机盘管5层温度全局设定*) | M86: RNQFCU05X00_TSET AT%M4140.0 :REAL; (*风机盘管5层温度全局设定*)
A87: 风机盘管 | B87: RNQ | C87: M | D87: 06X00 | E87: 设定温度值 | F87: 4144.0 | H87: 验证通过 | I87: REAL | J87: 风机盘管6层温度全局设定 | K87: =B87&VLOOKUP(A87,List!$D$3:$F$527,2,FALSE)&D87&"_"&VLOOKUP(E87,List!$I$2:$K$529,2,FALSE) -> RNQFCU06X00_TSET | L87: RNQFCU06X00_TSET AT%M4144.0 :REAL; (*风机盘管6层温度全局设定*) | M87: RNQFCU06X00_TSET AT%M4144.0 :REAL; (*风机盘管6层温度全局设定*)
A88: 风机盘管 | B88: RNQ | C88: M | D88: 07X00 | E88: 设定温度值 | F88: 4148.0 | H88: 验证通过 | I88: REAL | J88: 风机盘管7层温度全局设定 | K88: =B88&VLOOKUP(A88,List!$D$3:$F$527,2,FALSE)&D88&"_"&VLOOKUP(E88,List!$I$2:$K$529,2,FALSE) -> RNQFCU07X00_TSET | L88: =K88&" "&"AT%"&C88&F88&" "&":"&I88&";"&" "&"(*"&J88&"*)" -> RNQFCU07X00_TSET AT%M4148.0 :REAL; (*风机盘管7层温度全局设定*) | M88: =REPLACE(REPLACE(L88,SEARCH("AT%",L88),,REPT(" ",25-SEARCH("AT%",L88))),SEARCH(":",REPLACE(L88,SEARCH("AT%",L88),,REPT(" ",25-SEARCH("AT%",L88)))),,REPT(" ",40-SEARCH(":",REPLACE(L88,SEARCH("AT%",L88),,REPT(" ",25-SEARCH("AT%",L88)))))) -> RNQFCU07X00_TSET AT%M4148.0 :REAL; (*风机盘管7层温度全局设定*)
A89: 风机盘管 | B89: RNQ | C89: M | D89: 08X00 | E89: 设定温度值 | F89: 4152.0 | H89: 验证通过 | I89: REAL | J89: 风机盘管8层温度全局设定 | K89: =B89&VLOOKUP(A89,List!$D$3:$F$527,2,FALSE)&D89&"_"&VLOOKUP(E89,List!$I$2:$K$529,2,FALSE) -> RNQFCU08X00_TSET | L89: RNQFCU08X00_TSET AT%M4152.0 :REAL; (*风机盘管8层温度全局设定*) | M89: RNQFCU08X00_TSET AT%M4152.0 :REAL; (*风机盘管8层温度全局设定*)
A90: 风机盘管 | B90: RNQ | C90: M | D90: B3X00 | E90: 季节模式 | F90: 4156.0 | H90: 验证通过 | I90: INT | J90: 风机盘管B3层季节模式全局设定 | K90: =B90&VLOOKUP(A90,List!$D$3:$F$527,2,FALSE)&D90&"_"&VLOOKUP(E90,List!$I$2:$K$529,2,FALSE) -> RNQFCUB3X00_SM | L90: =K90&" "&"AT%"&C90&F90&" "&":"&I90&";"&" "&"(*"&J90&"*)" -> RNQFCUB3X00_SM AT%M4156.0 :INT; (*风机盘管B3层季节模式全局设定*) | M90: =REPLACE(REPLACE(L90,SEARCH("AT%",L90),,REPT(" ",25-SEARCH("AT%",L90))),SEARCH(":",REPLACE(L90,SEARCH("AT%",L90),,REPT(" ",25-SEARCH("AT%",L90)))),,REPT(" ",40-SEARCH(":",REPLACE(L90,SEARCH("AT%",L90),,REPT(" ",25-SEARCH("AT%",L90)))))) -> RNQFCUB3X00_SM AT%M4156.0 :INT; (*风机盘管B3层季节模式全局设定*)
A91: 风机盘管 | B91: RNQ | C91: M | D91: B2X00 | E91: 季节模式 | F91: 4158.0 | H91: 验证通过 | I91: INT | J91: 风机盘管B2层季节模式全局设定 | K91: =B91&VLOOKUP(A91,List!$D$3:$F$527,2,FALSE)&D91&"_"&VLOOKUP(E91,List!$I$2:$K$529,2,FALSE) -> RNQFCUB2X00_SM | L91: RNQFCUB2X00_SM AT%M4158.0 :INT; (*风机盘管B2层季节模式全局设定*) | M91: RNQFCUB2X00_SM AT%M4158.0 :INT; (*风机盘管B2层季节模式全局设定*)
A92: 风机盘管 | B92: RNQ | C92: M | D92: B1X00 | E92: 季节模式 | F92: 4160.0 | H92: 验证通过 | I92: INT | J92: 风机盘管B1层季节模式全局设定 | K92: =B92&VLOOKUP(A92,List!$D$3:$F$527,2,FALSE)&D92&"_"&VLOOKUP(E92,List!$I$2:$K$529,2,FALSE) -> RNQFCUB1X00_SM | L92: RNQFCUB1X00_SM AT%M4160.0 :INT; (*风机盘管B1层季节模式全局设定*) | M92: RNQFCUB1X00_SM AT%M4160.0 :INT; (*风机盘管B1层季节模式全局设定*)
A93: 风机盘管 | B93: RNQ | C93: M | D93: 01X00 | E93: 季节模式 | F93: 4162.0 | H93: 验证通过 | I93: INT | J93: 风机盘管1层季节模式全局设定 | K93: =B93&VLOOKUP(A93,List!$D$3:$F$527,2,FALSE)&D93&"_"&VLOOKUP(E93,List!$I$2:$K$529,2,FALSE) -> RNQFCU01X00_SM | L93: RNQFCU01X00_SM AT%M4162.0 :INT; (*风机盘管1层季节模式全局设定*) | M93: RNQFCU01X00_SM AT%M4162.0 :INT; (*风机盘管1层季节模式全局设定*)
A94: 风机盘管 | B94: RNQ | C94: M | D94: 02X00 | E94: 季节模式 | F94: 4164.0 | H94: 验证通过 | I94: INT | J94: 风机盘管2层季节模式全局设定 | K94: =B94&VLOOKUP(A94,List!$D$3:$F$527,2,FALSE)&D94&"_"&VLOOKUP(E94,List!$I$2:$K$529,2,FALSE) -> RNQFCU02X00_SM | L94: RNQFCU02X00_SM AT%M4164.0 :INT; (*风机盘管2层季节模式全局设定*) | M94: RNQFCU02X00_SM AT%M4164.0 :INT; (*风机盘管2层季节模式全局设定*)
A95: 风机盘管 | B95: RNQ | C95: M | D95: 03X00 | E95: 季节模式 | F95: 4166.0 | H95: 验证通过 | I95: INT | J95: 风机盘管3层季节模式全局设定 | K95: =B95&VLOOKUP(A95,List!$D$3:$F$527,2,FALSE)&D95&"_"&VLOOKUP(E95,List!$I$2:$K$529,2,FALSE) -> RNQFCU03X00_SM | L95: RNQFCU03X00_SM AT%M4166.0 :INT; (*风机盘管3层季节模式全局设定*) | M95: RNQFCU03X00_SM AT%M4166.0 :INT; (*风机盘管3层季节模式全局设定*)
A96: 风机盘管 | B96: RNQ | C96: M | D96: 04X00 | E96: 季节模式 | F96: 4168.0 | H96: 验证通过 | I96: INT | J96: 风机盘管4层季节模式全局设定 | K96: =B96&VLOOKUP(A96,List!$D$3:$F$527,2,FALSE)&D96&"_"&VLOOKUP(E96,List!$I$2:$K$529,2,FALSE) -> RNQFCU04X00_SM | L96: RNQFCU04X00_SM AT%M4168.0 :INT; (*风机盘管4层季节模式全局设定*) | M96: RNQFCU04X00_SM AT%M4168.0 :INT; (*风机盘管4层季节模式全局设定*)
A97: 风机盘管 | B97: RNQ | C97: M | D97: 05X00 | E97: 季节模式 | F97: 4170.0 | H97: 验证通过 | I97: INT | J97: 风机盘管5层季节模式全局设定 | K97: =B97&VLOOKUP(A97,List!$D$3:$F$527,2,FALSE)&D97&"_"&VLOOKUP(E97,List!$I$2:$K$529,2,FALSE) -> RNQFCU05X00_SM | L97: RNQFCU05X00_SM AT%M4170.0 :INT; (*风机盘管5层季节模式全局设定*) | M97: RNQFCU05X00_SM AT%M4170.0 :INT; (*风机盘管5层季节模式全局设定*)
A98: 风机盘管 | B98: RNQ | C98: M | D98: 06X00 | E98: 季节模式 | F98: 4172.0 | H98: 验证通过 | I98: INT | J98: 风机盘管6层季节模式全局设定 | K98: =B98&VLOOKUP(A98,List!$D$3:$F$527,2,FALSE)&D98&"_"&VLOOKUP(E98,List!$I$2:$K$529,2,FALSE) -> RNQFCU06X00_SM | L98: RNQFCU06X00_SM AT%M4172.0 :INT; (*风机盘管6层季节模式全局设定*) | M98: RNQFCU06X00_SM AT%M4172.0 :INT; (*风机盘管6层季节模式全局设定*)
A99: 风机盘管 | B99: RNQ | C99: M | D99: 07X00 | E99: 季节模式 | F99: 4174.0 | H99: 验证通过 | I99: INT | J99: 风机盘管7层季节模式全局设定 | K99: =B99&VLOOKUP(A99,List!$D$3:$F$527,2,FALSE)&D99&"_"&VLOOKUP(E99,List!$I$2:$K$529,2,FALSE) -> RNQFCU07X00_SM | L99: RNQFCU07X00_SM AT%M4174.0 :INT; (*风机盘管7层季节模式全局设定*) | M99: RNQFCU07X00_SM AT%M4174.0 :INT; (*风机盘管7层季节模式全局设定*)
A100: 风机盘管 | B100: RNQ | C100: M | D100: 08X00 | E100: 季节模式 | F100: 4176.0 | H100: 验证通过 | I100: INT | J100: 风机盘管8层季节模式全局设定 | K100: =B100&VLOOKUP(A100,List!$D$3:$F$527,2,FALSE)&D100&"_"&VLOOKUP(E100,List!$I$2:$K$529,2,FALSE) -> RNQFCU08X00_SM | L100: RNQFCU08X00_SM AT%M4176.0 :INT; (*风机盘管8层季节模式全局设定*) | M100: RNQFCU08X00_SM AT%M4176.0 :INT; (*风机盘管8层季节模式全局设定*)
A101: 风机盘管 | B101: RNQ | C101: M | D101: B3X00 | E101: 程序控制 | F101: 4178.0 | H101: 验证通过 | I101: BOOL | J101: 风机盘管B3层启停控制 | K101: =B101&VLOOKUP(A101,List!$D$3:$F$527,2,FALSE)&D101&"_"&VLOOKUP(E101,List!$I$2:$K$529,2,FALSE) -> RNQFCUB3X00_PC | L101: RNQFCUB3X00_PC AT%M4178.0 :BOOL; (*风机盘管B3层启停控制*) | M101: RNQFCUB3X00_PC AT%M4178.0 :BOOL; (*风机盘管B3层启停控制*)
A102: 风机盘管 | B102: RNQ | C102: M | D102: B2X00 | E102: 程序控制 | F102: 4180.0 | H102: 验证通过 | I102: BOOL | J102: 风机盘管B2层启停控制 | K102: =B102&VLOOKUP(A102,List!$D$3:$F$527,2,FALSE)&D102&"_"&VLOOKUP(E102,List!$I$2:$K$529,2,FALSE) -> RNQFCUB2X00_PC | L102: RNQFCUB2X00_PC AT%M4180.0 :BOOL; (*风机盘管B2层启停控制*) | M102: RNQFCUB2X00_PC AT%M4180.0 :BOOL; (*风机盘管B2层启停控制*)
A103: 风机盘管 | B103: RNQ | C103: M | D103: B1X00 | E103: 程序控制 | F103: 4182.0 | H103: 验证通过 | I103: BOOL | J103: 风机盘管B1层启停控制 | K103: =B103&VLOOKUP(A103,List!$D$3:$F$527,2,FALSE)&D103&"_"&VLOOKUP(E103,List!$I$2:$K$529,2,FALSE) -> RNQFCUB1X00_PC | L103: RNQFCUB1X00_PC AT%M4182.0 :BOOL; (*风机盘管B1层启停控制*) | M103: RNQFCUB1X00_PC AT%M4182.0 :BOOL; (*风机盘管B1层启停控制*)
A104: 风机盘管 | B104: RNQ | C104: M | D104: 01X00 | E104: 程序控制 | F104: =IF(OR(I103="REAL",I103="DWORD",I103="DINT"),(IF(OR(I104="REAL",I104="DWORD",I104="DINT"),F103+4+MOD(F103,4),F103+4)),(IF(OR(I104="REAL",I104="DWORD",I104="DINT"),F103+4+MOD(F103,4),F103+2)))&".0" -> 4184.0 | H104: 验证通过 | I104: BOOL | J104: 风机盘管1层启停控制 | K104: =B104&VLOOKUP(A104,List!$D$3:$F$527,2,FALSE)&D104&"_"&VLOOKUP(E104,List!$I$2:$K$529,2,FALSE) -> RNQFCU01X00_PC | L104: RNQFCU01X00_PC AT%M4184.0 :BOOL; (*风机盘管1层启停控制*) | M104: RNQFCU01X00_PC AT%M4184.0 :BOOL; (*风机盘管1层启停控制*)
A105: 风机盘管 | B105: RNQ | C105: M | D105: 02X00 | E105: 程序控制 | F105: 4186.0 | H105: 验证通过 | I105: BOOL | J105: 风机盘管2层启停控制 | K105: =B105&VLOOKUP(A105,List!$D$3:$F$527,2,FALSE)&D105&"_"&VLOOKUP(E105,List!$I$2:$K$529,2,FALSE) -> RNQFCU02X00_PC | L105: RNQFCU02X00_PC AT%M4186.0 :BOOL; (*风机盘管2层启停控制*) | M105: RNQFCU02X00_PC AT%M4186.0 :BOOL; (*风机盘管2层启停控制*)
A106: 风机盘管 | B106: RNQ | C106: M | D106: 03X00 | E106: 程序控制 | F106: 4188.0 | H106: 验证通过 | I106: BOOL | J106: 风机盘管3层启停控制 | K106: =B106&VLOOKUP(A106,List!$D$3:$F$527,2,FALSE)&D106&"_"&VLOOKUP(E106,List!$I$2:$K$529,2,FALSE) -> RNQFCU03X00_PC | L106: RNQFCU03X00_PC AT%M4188.0 :BOOL; (*风机盘管3层启停控制*) | M106: RNQFCU03X00_PC AT%M4188.0 :BOOL; (*风机盘管3层启停控制*)
A107: 风机盘管 | B107: RNQ | C107: M | D107: 04X00 | E107: 程序控制 | F107: 4190.0 | H107: 验证通过 | I107: BOOL | J107: 风机盘管4层启停控制 | K107: =B107&VLOOKUP(A107,List!$D$3:$F$527,2,FALSE)&D107&"_"&VLOOKUP(E107,List!$I$2:$K$529,2,FALSE) -> RNQFCU04X00_PC | L107: RNQFCU04X00_PC AT%M4190.0 :BOOL; (*风机盘管4层启停控制*) | M107: RNQFCU04X00_PC AT%M4190.0 :BOOL; (*风机盘管4层启停控制*)
A108: 风机盘管 | B108: RNQ | C108: M | D108: 05X00 | E108: 程序控制 | F108: 4192.0 | H108: 验证通过 | I108: BOOL | J108: 风机盘管5层启停控制 | K108: =B108&VLOOKUP(A108,List!$D$3:$F$527,2,FALSE)&D108&"_"&VLOOKUP(E108,List!$I$2:$K$529,2,FALSE) -> RNQFCU05X00_PC | L108: RNQFCU05X00_PC AT%M4192.0 :BOOL; (*风机盘管5层启停控制*) | M108: RNQFCU05X00_PC AT%M4192.0 :BOOL; (*风机盘管5层启停控制*)
A109: 风机盘管 | B109: RNQ | C109: M | D109: 06X00 | E109: 程序控制 | F109: 4194.0 | H109: 验证通过 | I109: BOOL | J109: 风机盘管6层启停控制 | K109: =B109&VLOOKUP(A109,List!$D$3:$F$527,2,FALSE)&D109&"_"&VLOOKUP(E109,List!$I$2:$K$529,2,FALSE) -> RNQFCU06X00_PC | L109: RNQFCU06X00_PC AT%M4194.0 :BOOL; (*风机盘管6层启停控制*) | M109: RNQFCU06X00_PC AT%M4194.0 :BOOL; (*风机盘管6层启停控制*)
A110: 风机盘管 | B110: RNQ | C110: M | D110: 07X00 | E110: 程序控制 | F110: 4196.0 | H110: =IF((IF(OR(I110="INT",I110="WORD",I110="BOOL"),MOD(F110,2),MOD(F110,4)))=0,"验证通过","验证失败") -> 验证通过 | I110: BOOL | J110: 风机盘管7层启停控制 | K110: =B110&VLOOKUP(A110,List!$D$3:$F$527,2,FALSE)&D110&"_"&VLOOKUP(E110,List!$I$2:$K$529,2,FALSE) -> RNQFCU07X00_PC | L110: =K110&" "&"AT%"&C110&F110&" "&":"&I110&";"&" "&"(*"&J110&"*)" -> RNQFCU07X00_PC AT%M4196.0 :BOOL; (*风机盘管7层启停控制*) | M110: =REPLACE(REPLACE(L110,SEARCH("AT%",L110),,REPT(" ",25-SEARCH("AT%",L110))),SEARCH(":",REPLACE(L110,SEARCH("AT%",L110),,REPT(" ",25-SEARCH("AT%",L110)))),,REPT(" ",40-SEARCH(":",REPLACE(L110,SEARCH("AT%",L110),,REPT(" ",25-SEARCH("AT%",L110)))))) -> RNQFCU07X00_PC AT%M4196.0 :BOOL; (*风机盘管7层启停控制*)
A111: 风机盘管 | B111: RNQ | C111: M | D111: 08X00 | E111: 程序控制 | F111: =IF(OR(I110="REAL",I110="DWORD",I110="DINT"),(IF(OR(I111="REAL",I111="DWORD",I111="DINT"),F110+4+MOD(F110,4),F110+4)),(IF(OR(I111="REAL",I111="DWORD",I111="DINT"),F110+4+MOD(F110,4),F110+2)))&".0" -> 4198.0 | H111: 验证通过 | I111: BOOL | J111: 风机盘管8层启停控制 | K111: =B111&VLOOKUP(A111,List!$D$3:$F$527,2,FALSE)&D111&"_"&VLOOKUP(E111,List!$I$2:$K$529,2,FALSE) -> RNQFCU08X00_PC | L111: RNQFCU08X00_PC AT%M4198.0 :BOOL; (*风机盘管8层启停控制*) | M111: RNQFCU08X00_PC AT%M4198.0 :BOOL; (*风机盘管8层启停控制*)
A112: 照明控制箱 | B112: RNQ | C112: M | D112: B3X0A | E112: 启停控制 | F112: 4200.0 | H112: 验证通过 | I112: BOOL | J112: 基础照明A B3层全局启停控制 | K112: =B112&VLOOKUP(A112,List!$D$3:$F$527,2,FALSE)&D112&"_"&VLOOKUP(E112,List!$I$2:$K$529,2,FALSE) -> RNQLCBB3X0A_C | L112: RNQLCBB3X0A_C AT%M4200.0 :BOOL; (*基础照明A B3层全局启停控制*) | M112: RNQLCBB3X0A_C AT%M4200.0 :BOOL; (*基础照明A B3层全局启停控制*)
A113: 照明控制箱 | B113: RNQ | C113: M | D113: B2X0A | E113: 启停控制 | F113: =IF(OR(I112="REAL",I112="DWORD",I112="DINT"),(IF(OR(I113="REAL",I113="DWORD",I113="DINT"),F112+4+MOD(F112,4),F112+4)),(IF(OR(I113="REAL",I113="DWORD",I113="DINT"),F112+4+MOD(F112,4),F112+2)))&".0" -> 4202.0 | H113: 验证通过 | I113: BOOL | J113: 基础照明A B2层全局启停控制 | K113: =B113&VLOOKUP(A113,List!$D$3:$F$527,2,FALSE)&D113&"_"&VLOOKUP(E113,List!$I$2:$K$529,2,FALSE) -> RNQLCBB2X0A_C | L113: RNQLCBB2X0A_C AT%M4202.0 :BOOL; (*基础照明A B2层全局启停控制*) | M113: RNQLCBB2X0A_C AT%M4202.0 :BOOL; (*基础照明A B2层全局启停控制*)
A114: 照明控制箱 | B114: RNQ | C114: M | D114: B1X0A | E114: 启停控制 | F114: 4204.0 | H114: 验证通过 | I114: BOOL | J114: 基础照明A B1层全局启停控制 | K114: =B114&VLOOKUP(A114,List!$D$3:$F$527,2,FALSE)&D114&"_"&VLOOKUP(E114,List!$I$2:$K$529,2,FALSE) -> RNQLCBB1X0A_C | L114: RNQLCBB1X0A_C AT%M4204.0 :BOOL; (*基础照明A B1层全局启停控制*) | M114: RNQLCBB1X0A_C AT%M4204.0 :BOOL; (*基础照明A B1层全局启停控制*)
A115: 照明控制箱 | B115: RNQ | C115: M | D115: 01X0A | E115: 启停控制 | F115: 4206.0 | H115: 验证通过 | I115: BOOL | J115: 基础照明A 1层全局启停控制 | K115: =B115&VLOOKUP(A115,List!$D$3:$F$527,2,FALSE)&D115&"_"&VLOOKUP(E115,List!$I$2:$K$529,2,FALSE) -> RNQLCB01X0A_C | L115: RNQLCB01X0A_C AT%M4206.0 :BOOL; (*基础照明A 1层全局启停控制*) | M115: RNQLCB01X0A_C AT%M4206.0 :BOOL; (*基础照明A 1层全局启停控制*)
A116: 照明控制箱 | B116: RNQ | C116: M | D116: 02X0A | E116: 启停控制 | F116: 4208.0 | H116: 验证通过 | I116: BOOL | J116: 基础照明A 2层全局启停控制 | K116: =B116&VLOOKUP(A116,List!$D$3:$F$527,2,FALSE)&D116&"_"&VLOOKUP(E116,List!$I$2:$K$529,2,FALSE) -> RNQLCB02X0A_C | L116: RNQLCB02X0A_C AT%M4208.0 :BOOL; (*基础照明A 2层全局启停控制*) | M116: RNQLCB02X0A_C AT%M4208.0 :BOOL; (*基础照明A 2层全局启停控制*)
A117: 照明控制箱 | B117: RNQ | C117: M | D117: 03X0A | E117: 启停控制 | F117: 4210.0 | H117: 验证通过 | I117: BOOL | J117: 基础照明A 3层全局启停控制 | K117: =B117&VLOOKUP(A117,List!$D$3:$F$527,2,FALSE)&D117&"_"&VLOOKUP(E117,List!$I$2:$K$529,2,FALSE) -> RNQLCB03X0A_C | L117: RNQLCB03X0A_C AT%M4210.0 :BOOL; (*基础照明A 3层全局启停控制*) | M117: RNQLCB03X0A_C AT%M4210.0 :BOOL; (*基础照明A 3层全局启停控制*)
A118: 照明控制箱 | B118: RNQ | C118: M | D118: 04X0A | E118: 启停控制 | F118: 4212.0 | H118: 验证通过 | I118: BOOL | J118: 基础照明A 4层全局启停控制 | K118: =B118&VLOOKUP(A118,List!$D$3:$F$527,2,FALSE)&D118&"_"&VLOOKUP(E118,List!$I$2:$K$529,2,FALSE) -> RNQLCB04X0A_C | L118: =K118&" "&"AT%"&C118&F118&" "&":"&I118&";"&" "&"(*"&J118&"*)" -> RNQLCB04X0A_C AT%M4212.0 :BOOL; (*基础照明A 4层全局启停控制*) | M118: RNQLCB04X0A_C AT%M4212.0 :BOOL; (*基础照明A 4层全局启停控制*)
A119: 照明控制箱 | B119: RNQ | C119: M | D119: 05X0A | E119: 启停控制 | F119: 4214.0 | H119: 验证通过 | I119: BOOL | J119: 基础照明A 5层全局启停控制 | K119: =B119&VLOOKUP(A119,List!$D$3:$F$527,2,FALSE)&D119&"_"&VLOOKUP(E119,List!$I$2:$K$529,2,FALSE) -> RNQLCB05X0A_C | L119: RNQLCB05X0A_C AT%M4214.0 :BOOL; (*基础照明A 5层全局启停控制*) | M119: RNQLCB05X0A_C AT%M4214.0 :BOOL; (*基础照明A 5层全局启停控制*)
A120: 照明控制箱 | B120: RNQ | C120: M | D120: 06X0A | E120: 启停控制 | F120: 4216.0 | H120: 验证通过 | I120: BOOL | J120: 基础照明A 6层全局启停控制 | K120: =B120&VLOOKUP(A120,List!$D$3:$F$527,2,FALSE)&D120&"_"&VLOOKUP(E120,List!$I$2:$K$529,2,FALSE) -> RNQLCB06X0A_C | L120: RNQLCB06X0A_C AT%M4216.0 :BOOL; (*基础照明A 6层全局启停控制*) | M120: RNQLCB06X0A_C AT%M4216.0 :BOOL; (*基础照明A 6层全局启停控制*)
A121: 照明控制箱 | B121: RNQ | C121: M | D121: 07X0A | E121: 启停控制 | F121: 4218.0 | H121: =IF((IF(OR(I121="INT",I121="WORD",I121="BOOL"),MOD(F121,2),MOD(F121,4)))=0,"验证通过","验证失败") -> 验证通过 | I121: BOOL | J121: 基础照明A 7层全局启停控制 | K121: =B121&VLOOKUP(A121,List!$D$3:$F$527,2,FALSE)&D121&"_"&VLOOKUP(E121,List!$I$2:$K$529,2,FALSE) -> RNQLCB07X0A_C | L121: =K121&" "&"AT%"&C121&F121&" "&":"&I121&";"&" "&"(*"&J121&"*)" -> RNQLCB07X0A_C AT%M4218.0 :BOOL; (*基础照明A 7层全局启停控制*) | M121: =REPLACE(REPLACE(L121,SEARCH("AT%",L121),,REPT(" ",25-SEARCH("AT%",L121))),SEARCH(":",REPLACE(L121,SEARCH("AT%",L121),,REPT(" ",25-SEARCH("AT%",L121)))),,REPT(" ",40-SEARCH(":",REPLACE(L121,SEARCH("AT%",L121),,REPT(" ",25-SEARCH("AT%",L121)))))) -> RNQLCB07X0A_C AT%M4218.0 :BOOL; (*基础照明A 7层全局启停控制*)
A122: 照明控制箱 | B122: RNQ | C122: M | D122: 08X0A | E122: 启停控制 | F122: 4220.0 | H122: 验证通过 | I122: BOOL | J122: 基础照明A 8层全局启停控制 | K122: =B122&VLOOKUP(A122,List!$D$3:$F$527,2,FALSE)&D122&"_"&VLOOKUP(E122,List!$I$2:$K$529,2,FALSE) -> RNQLCB08X0A_C | L122: RNQLCB08X0A_C AT%M4220.0 :BOOL; (*基础照明A 8层全局启停控制*) | M122: RNQLCB08X0A_C AT%M4220.0 :BOOL; (*基础照明A 8层全局启停控制*)
A123: 照明控制箱 | B123: RNQ | C123: M | D123: B3X0B | E123: 启停控制 | F123: 4222.0 | H123: 验证通过 | I123: BOOL | J123: 基础照明B B3层全局启停控制 | K123: =B123&VLOOKUP(A123,List!$D$3:$F$527,2,FALSE)&D123&"_"&VLOOKUP(E123,List!$I$2:$K$529,2,FALSE) -> RNQLCBB3X0B_C | L123: RNQLCBB3X0B_C AT%M4222.0 :BOOL; (*基础照明B B3层全局启停控制*) | M123: RNQLCBB3X0B_C AT%M4222.0 :BOOL; (*基础照明B B3层全局启停控制*)
A124: 照明控制箱 | B124: RNQ | C124: M | D124: B2X0B | E124: 启停控制 | F124: 4224.0 | H124: 验证通过 | I124: BOOL | J124: 基础照明B B2层全局启停控制 | K124: =B124&VLOOKUP(A124,List!$D$3:$F$527,2,FALSE)&D124&"_"&VLOOKUP(E124,List!$I$2:$K$529,2,FALSE) -> RNQLCBB2X0B_C | L124: RNQLCBB2X0B_C AT%M4224.0 :BOOL; (*基础照明B B2层全局启停控制*) | M124: RNQLCBB2X0B_C AT%M4224.0 :BOOL; (*基础照明B B2层全局启停控制*)
A125: 照明控制箱 | B125: RNQ | C125: M | D125: B1X0B | E125: 启停控制 | F125: 4226.0 | H125: 验证通过 | I125: BOOL | J125: 基础照明B B1层全局启停控制 | K125: =B125&VLOOKUP(A125,List!$D$3:$F$527,2,FALSE)&D125&"_"&VLOOKUP(E125,List!$I$2:$K$529,2,FALSE) -> RNQLCBB1X0B_C | L125: RNQLCBB1X0B_C AT%M4226.0 :BOOL; (*基础照明B B1层全局启停控制*) | M125: RNQLCBB1X0B_C AT%M4226.0 :BOOL; (*基础照明B B1层全局启停控制*)
A126: 照明控制箱 | B126: RNQ | C126: M | D126: 01X0B | E126: 启停控制 | F126: 4228.0 | H126: 验证通过 | I126: BOOL | J126: 基础照明B 1层全局启停控制 | K126: =B126&VLOOKUP(A126,List!$D$3:$F$527,2,FALSE)&D126&"_"&VLOOKUP(E126,List!$I$2:$K$529,2,FALSE) -> RNQLCB01X0B_C | L126: RNQLCB01X0B_C AT%M4228.0 :BOOL; (*基础照明B 1层全局启停控制*) | M126: RNQLCB01X0B_C AT%M4228.0 :BOOL; (*基础照明B 1层全局启停控制*)
A127: 照明控制箱 | B127: RNQ | C127: M | D127: 02X0B | E127: 启停控制 | F127: 4230.0 | H127: 验证通过 | I127: BOOL | J127: 基础照明B 2层全局启停控制 | K127: =B127&VLOOKUP(A127,List!$D$3:$F$527,2,FALSE)&D127&"_"&VLOOKUP(E127,List!$I$2:$K$529,2,FALSE) -> RNQLCB02X0B_C | L127: RNQLCB02X0B_C AT%M4230.0 :BOOL; (*基础照明B 2层全局启停控制*) | M127: RNQLCB02X0B_C AT%M4230.0 :BOOL; (*基础照明B 2层全局启停控制*)
A128: 照明控制箱 | B128: RNQ | C128: M | D128: 03X0B | E128: 启停控制 | F128: 4232.0 | H128: 验证通过 | I128: BOOL | J128: 基础照明B 3层全局启停控制 | K128: =B128&VLOOKUP(A128,List!$D$3:$F$527,2,FALSE)&D128&"_"&VLOOKUP(E128,List!$I$2:$K$529,2,FALSE) -> RNQLCB03X0B_C | L128: RNQLCB03X0B_C AT%M4232.0 :BOOL; (*基础照明B 3层全局启停控制*) | M128: RNQLCB03X0B_C AT%M4232.0 :BOOL; (*基础照明B 3层全局启停控制*)
A129: 照明控制箱 | B129: RNQ | C129: M | D129: 04X0B | E129: 启停控制 | F129: 4234.0 | H129: 验证通过 | I129: BOOL | J129: 基础照明B 4层全局启停控制 | K129: =B129&VLOOKUP(A129,List!$D$3:$F$527,2,FALSE)&D129&"_"&VLOOKUP(E129,List!$I$2:$K$529,2,FALSE) -> RNQLCB04X0B_C | L129: RNQLCB04X0B_C AT%M4234.0 :BOOL; (*基础照明B 4层全局启停控制*) | M129: RNQLCB04X0B_C AT%M4234.0 :BOOL; (*基础照明B 4层全局启停控制*)
A130: 照明控制箱 | B130: RNQ | C130: M | D130: 05X0B | E130: 启停控制 | F130: 4236.0 | H130: 验证通过 | I130: BOOL | J130: 基础照明B 5层全局启停控制 | K130: =B130&VLOOKUP(A130,List!$D$3:$F$527,2,FALSE)&D130&"_"&VLOOKUP(E130,List!$I$2:$K$529,2,FALSE) -> RNQLCB05X0B_C | L130: RNQLCB05X0B_C AT%M4236.0 :BOOL; (*基础照明B 5层全局启停控制*) | M130: RNQLCB05X0B_C AT%M4236.0 :BOOL; (*基础照明B 5层全局启停控制*)
A131: 照明控制箱 | B131: RNQ | C131: M | D131: 06X0B | E131: 启停控制 | F131: 4238.0 | H131: 验证通过 | I131: BOOL | J131: 基础照明B 6层全局启停控制 | K131: =B131&VLOOKUP(A131,List!$D$3:$F$527,2,FALSE)&D131&"_"&VLOOKUP(E131,List!$I$2:$K$529,2,FALSE) -> RNQLCB06X0B_C | L131: RNQLCB06X0B_C AT%M4238.0 :BOOL; (*基础照明B 6层全局启停控制*) | M131: RNQLCB06X0B_C AT%M4238.0 :BOOL; (*基础照明B 6层全局启停控制*)
A132: 照明控制箱 | B132: RNQ | C132: M | D132: 07X0B | E132: 启停控制 | F132: 4240.0 | H132: =IF((IF(OR(I132="INT",I132="WORD",I132="BOOL"),MOD(F132,2),MOD(F132,4)))=0,"验证通过","验证失败") -> 验证通过 | I132: BOOL | J132: 基础照明B 7层全局启停控制 | K132: =B132&VLOOKUP(A132,List!$D$3:$F$527,2,FALSE)&D132&"_"&VLOOKUP(E132,List!$I$2:$K$529,2,FALSE) -> RNQLCB07X0B_C | L132: =K132&" "&"AT%"&C132&F132&" "&":"&I132&";"&" "&"(*"&J132&"*)" -> RNQLCB07X0B_C AT%M4240.0 :BOOL; (*基础照明B 7层全局启停控制*) | M132: =REPLACE(REPLACE(L132,SEARCH("AT%",L132),,REPT(" ",25-SEARCH("AT%",L132))),SEARCH(":",REPLACE(L132,SEARCH("AT%",L132),,REPT(" ",25-SEARCH("AT%",L132)))),,REPT(" ",40-SEARCH(":",REPLACE(L132,SEARCH("AT%",L132),,REPT(" ",25-SEARCH("AT%",L132)))))) -> RNQLCB07X0B_C AT%M4240.0 :BOOL; (*基础照明B 7层全局启停控制*)
A133: 照明控制箱 | B133: RNQ | C133: M | D133: 08X0B | E133: 启停控制 | F133: 4242.0 | H133: 验证通过 | I133: BOOL | J133: 基础照明B 8层全局启停控制 | K133: =B133&VLOOKUP(A133,List!$D$3:$F$527,2,FALSE)&D133&"_"&VLOOKUP(E133,List!$I$2:$K$529,2,FALSE) -> RNQLCB08X0B_C | L133: RNQLCB08X0B_C AT%M4242.0 :BOOL; (*基础照明B 8层全局启停控制*) | M133: RNQLCB08X0B_C AT%M4242.0 :BOOL; (*基础照明B 8层全局启停控制*)
A134: 照明控制箱 | B134: RNQ | C134: M | D134: B3X0C | E134: 启停控制 | F134: 4244.0 | H134: 验证通过 | I134: BOOL | J134: 灯带 B3层全局启停控制 | K134: =B134&VLOOKUP(A134,List!$D$3:$F$527,2,FALSE)&D134&"_"&VLOOKUP(E134,List!$I$2:$K$529,2,FALSE) -> RNQLCBB3X0C_C | L134: RNQLCBB3X0C_C AT%M4244.0 :BOOL; (*灯带 B3层全局启停控制*) | M134: RNQLCBB3X0C_C AT%M4244.0 :BOOL; (*灯带 B3层全局启停控制*)
A135: 照明控制箱 | B135: RNQ | C135: M | D135: B2X0C | E135: 启停控制 | F135: 4246.0 | H135: 验证通过 | I135: BOOL | J135: 灯带 B2层全局启停控制 | K135: =B135&VLOOKUP(A135,List!$D$3:$F$527,2,FALSE)&D135&"_"&VLOOKUP(E135,List!$I$2:$K$529,2,FALSE) -> RNQLCBB2X0C_C | L135: RNQLCBB2X0C_C AT%M4246.0 :BOOL; (*灯带 B2层全局启停控制*) | M135: RNQLCBB2X0C_C AT%M4246.0 :BOOL; (*灯带 B2层全局启停控制*)
A136: 照明控制箱 | B136: RNQ | C136: M | D136: B1X0C | E136: 启停控制 | F136: 4248.0 | H136: 验证通过 | I136: BOOL | J136: 灯带 B1层全局启停控制 | K136: =B136&VLOOKUP(A136,List!$D$3:$F$527,2,FALSE)&D136&"_"&VLOOKUP(E136,List!$I$2:$K$529,2,FALSE) -> RNQLCBB1X0C_C | L136: RNQLCBB1X0C_C AT%M4248.0 :BOOL; (*灯带 B1层全局启停控制*) | M136: RNQLCBB1X0C_C AT%M4248.0 :BOOL; (*灯带 B1层全局启停控制*)
A137: 照明控制箱 | B137: RNQ | C137: M | D137: 01X0C | E137: 启停控制 | F137: 4250.0 | H137: 验证通过 | I137: BOOL | J137: 灯带 1层全局启停控制 | K137: =B137&VLOOKUP(A137,List!$D$3:$F$527,2,FALSE)&D137&"_"&VLOOKUP(E137,List!$I$2:$K$529,2,FALSE) -> RNQLCB01X0C_C | L137: RNQLCB01X0C_C AT%M4250.0 :BOOL; (*灯带 1层全局启停控制*) | M137: RNQLCB01X0C_C AT%M4250.0 :BOOL; (*灯带 1层全局启停控制*)
A138: 照明控制箱 | B138: RNQ | C138: M | D138: 02X0C | E138: 启停控制 | F138: 4252.0 | H138: 验证通过 | I138: BOOL | J138: 灯带 2层全局启停控制 | K138: =B138&VLOOKUP(A138,List!$D$3:$F$527,2,FALSE)&D138&"_"&VLOOKUP(E138,List!$I$2:$K$529,2,FALSE) -> RNQLCB02X0C_C | L138: RNQLCB02X0C_C AT%M4252.0 :BOOL; (*灯带 2层全局启停控制*) | M138: RNQLCB02X0C_C AT%M4252.0 :BOOL; (*灯带 2层全局启停控制*)
A139: 照明控制箱 | B139: RNQ | C139: M | D139: 03X0C | E139: 启停控制 | F139: 4254.0 | H139: 验证通过 | I139: BOOL | J139: 灯带 3层全局启停控制 | K139: =B139&VLOOKUP(A139,List!$D$3:$F$527,2,FALSE)&D139&"_"&VLOOKUP(E139,List!$I$2:$K$529,2,FALSE) -> RNQLCB03X0C_C | L139: RNQLCB03X0C_C AT%M4254.0 :BOOL; (*灯带 3层全局启停控制*) | M139: RNQLCB03X0C_C AT%M4254.0 :BOOL; (*灯带 3层全局启停控制*)
A140: 照明控制箱 | B140: RNQ | C140: M | D140: 04X0C | E140: 启停控制 | F140: 4256.0 | H140: 验证通过 | I140: BOOL | J140: 灯带 4层全局启停控制 | K140: =B140&VLOOKUP(A140,List!$D$3:$F$527,2,FALSE)&D140&"_"&VLOOKUP(E140,List!$I$2:$K$529,2,FALSE) -> RNQLCB04X0C_C | L140: RNQLCB04X0C_C AT%M4256.0 :BOOL; (*灯带 4层全局启停控制*) | M140: RNQLCB04X0C_C AT%M4256.0 :BOOL; (*灯带 4层全局启停控制*)
A141: 照明控制箱 | B141: RNQ | C141: M | D141: 05X0C | E141: 启停控制 | F141: 4258.0 | H141: 验证通过 | I141: BOOL | J141: 灯带 5层全局启停控制 | K141: =B141&VLOOKUP(A141,List!$D$3:$F$527,2,FALSE)&D141&"_"&VLOOKUP(E141,List!$I$2:$K$529,2,FALSE) -> RNQLCB05X0C_C | L141: RNQLCB05X0C_C AT%M4258.0 :BOOL; (*灯带 5层全局启停控制*) | M141: RNQLCB05X0C_C AT%M4258.0 :BOOL; (*灯带 5层全局启停控制*)
A142: 照明控制箱 | B142: RNQ | C142: M | D142: 06X0C | E142: 启停控制 | F142: 4260.0 | H142: 验证通过 | I142: BOOL | J142: 灯带 6层全局启停控制 | K142: =B142&VLOOKUP(A142,List!$D$3:$F$527,2,FALSE)&D142&"_"&VLOOKUP(E142,List!$I$2:$K$529,2,FALSE) -> RNQLCB06X0C_C | L142: RNQLCB06X0C_C AT%M4260.0 :BOOL; (*灯带 6层全局启停控制*) | M142: RNQLCB06X0C_C AT%M4260.0 :BOOL; (*灯带 6层全局启停控制*)
A143: 照明控制箱 | B143: RNQ | C143: M | D143: 07X0C | E143: 启停控制 | F143: 4262.0 | H143: =IF((IF(OR(I143="INT",I143="WORD",I143="BOOL"),MOD(F143,2),MOD(F143,4)))=0,"验证通过","验证失败") -> 验证通过 | I143: BOOL | J143: 灯带 7层全局启停控制 | K143: =B143&VLOOKUP(A143,List!$D$3:$F$527,2,FALSE)&D143&"_"&VLOOKUP(E143,List!$I$2:$K$529,2,FALSE) -> RNQLCB07X0C_C | L143: =K143&" "&"AT%"&C143&F143&" "&":"&I143&";"&" "&"(*"&J143&"*)" -> RNQLCB07X0C_C AT%M4262.0 :BOOL; (*灯带 7层全局启停控制*) | M143: =REPLACE(REPLACE(L143,SEARCH("AT%",L143),,REPT(" ",25-SEARCH("AT%",L143))),SEARCH(":",REPLACE(L143,SEARCH("AT%",L143),,REPT(" ",25-SEARCH("AT%",L143)))),,REPT(" ",40-SEARCH(":",REPLACE(L143,SEARCH("AT%",L143),,REPT(" ",25-SEARCH("AT%",L143)))))) -> RNQLCB07X0C_C AT%M4262.0 :BOOL; (*灯带 7层全局启停控制*)
A144: 照明控制箱 | B144: RNQ | C144: M | D144: 08X0C | E144: 启停控制 | F144: 4264.0 | H144: 验证通过 | I144: BOOL | J144: 灯带 8层全局启停控制 | K144: =B144&VLOOKUP(A144,List!$D$3:$F$527,2,FALSE)&D144&"_"&VLOOKUP(E144,List!$I$2:$K$529,2,FALSE) -> RNQLCB08X0C_C | L144: RNQLCB08X0C_C AT%M4264.0 :BOOL; (*灯带 8层全局启停控制*) | M144: RNQLCB08X0C_C AT%M4264.0 :BOOL; (*灯带 8层全局启停控制*)
A145: 照明控制箱 | B145: RNQ | C145: M | D145: B3X0D | E145: 启停控制 | F145: 4266.0 | H145: 验证通过 | I145: BOOL | J145: 广告 B3层全局启停控制 | K145: =B145&VLOOKUP(A145,List!$D$3:$F$527,2,FALSE)&D145&"_"&VLOOKUP(E145,List!$I$2:$K$529,2,FALSE) -> RNQLCBB3X0D_C | L145: RNQLCBB3X0D_C AT%M4266.0 :BOOL; (*广告 B3层全局启停控制*) | M145: RNQLCBB3X0D_C AT%M4266.0 :BOOL; (*广告 B3层全局启停控制*)
A146: 照明控制箱 | B146: RNQ | C146: M | D146: B2X0D | E146: 启停控制 | F146: 4268.0 | H146: 验证通过 | I146: BOOL | J146: 广告 B2层全局启停控制 | K146: =B146&VLOOKUP(A146,List!$D$3:$F$527,2,FALSE)&D146&"_"&VLOOKUP(E146,List!$I$2:$K$529,2,FALSE) -> RNQLCBB2X0D_C | L146: RNQLCBB2X0D_C AT%M4268.0 :BOOL; (*广告 B2层全局启停控制*) | M146: RNQLCBB2X0D_C AT%M4268.0 :BOOL; (*广告 B2层全局启停控制*)
A147: 照明控制箱 | B147: RNQ | C147: M | D147: B1X0D | E147: 启停控制 | F147: 4270.0 | H147: 验证通过 | I147: BOOL | J147: 广告 B1层全局启停控制 | K147: =B147&VLOOKUP(A147,List!$D$3:$F$527,2,FALSE)&D147&"_"&VLOOKUP(E147,List!$I$2:$K$529,2,FALSE) -> RNQLCBB1X0D_C | L147: RNQLCBB1X0D_C AT%M4270.0 :BOOL; (*广告 B1层全局启停控制*) | M147: RNQLCBB1X0D_C AT%M4270.0 :BOOL; (*广告 B1层全局启停控制*)
A148: 照明控制箱 | B148: RNQ | C148: M | D148: 01X0D | E148: 启停控制 | F148: 4272.0 | H148: 验证通过 | I148: BOOL | J148: 广告 1层全局启停控制 | K148: =B148&VLOOKUP(A148,List!$D$3:$F$527,2,FALSE)&D148&"_"&VLOOKUP(E148,List!$I$2:$K$529,2,FALSE) -> RNQLCB01X0D_C | L148: RNQLCB01X0D_C AT%M4272.0 :BOOL; (*广告 1层全局启停控制*) | M148: RNQLCB01X0D_C AT%M4272.0 :BOOL; (*广告 1层全局启停控制*)
A149: 照明控制箱 | B149: RNQ | C149: M | D149: 02X0D | E149: 启停控制 | F149: 4274.0 | H149: 验证通过 | I149: BOOL | J149: 广告 2层全局启停控制 | K149: =B149&VLOOKUP(A149,List!$D$3:$F$527,2,FALSE)&D149&"_"&VLOOKUP(E149,List!$I$2:$K$529,2,FALSE) -> RNQLCB02X0D_C | L149: RNQLCB02X0D_C AT%M4274.0 :BOOL; (*广告 2层全局启停控制*) | M149: RNQLCB02X0D_C AT%M4274.0 :BOOL; (*广告 2层全局启停控制*)
A150: 照明控制箱 | B150: RNQ | C150: M | D150: 03X0D | E150: 启停控制 | F150: 4276.0 | H150: 验证通过 | I150: BOOL | J150: 广告 3层全局启停控制 | K150: =B150&VLOOKUP(A150,List!$D$3:$F$527,2,FALSE)&D150&"_"&VLOOKUP(E150,List!$I$2:$K$529,2,FALSE) -> RNQLCB03X0D_C | L150: RNQLCB03X0D_C AT%M4276.0 :BOOL; (*广告 3层全局启停控制*) | M150: RNQLCB03X0D_C AT%M4276.0 :BOOL; (*广告 3层全局启停控制*)
A151: 照明控制箱 | B151: RNQ | C151: M | D151: 04X0D | E151: 启停控制 | F151: 4278.0 | H151: 验证通过 | I151: BOOL | J151: 广告 4层全局启停控制 | K151: =B151&VLOOKUP(A151,List!$D$3:$F$527,2,FALSE)&D151&"_"&VLOOKUP(E151,List!$I$2:$K$529,2,FALSE) -> RNQLCB04X0D_C | L151: RNQLCB04X0D_C AT%M4278.0 :BOOL; (*广告 4层全局启停控制*) | M151: RNQLCB04X0D_C AT%M4278.0 :BOOL; (*广告 4层全局启停控制*)
A152: 照明控制箱 | B152: RNQ | C152: M | D152: 05X0D | E152: 启停控制 | F152: 4280.0 | H152: 验证通过 | I152: BOOL | J152: 广告 5层全局启停控制 | K152: =B152&VLOOKUP(A152,List!$D$3:$F$527,2,FALSE)&D152&"_"&VLOOKUP(E152,List!$I$2:$K$529,2,FALSE) -> RNQLCB05X0D_C | L152: RNQLCB05X0D_C AT%M4280.0 :BOOL; (*广告 5层全局启停控制*) | M152: RNQLCB05X0D_C AT%M4280.0 :BOOL; (*广告 5层全局启停控制*)
A153: 照明控制箱 | B153: RNQ | C153: M | D153: 06X0D | E153: 启停控制 | F153: 4282.0 | H153: 验证通过 | I153: BOOL | J153: 广告 6层全局启停控制 | K153: =B153&VLOOKUP(A153,List!$D$3:$F$527,2,FALSE)&D153&"_"&VLOOKUP(E153,List!$I$2:$K$529,2,FALSE) -> RNQLCB06X0D_C | L153: RNQLCB06X0D_C AT%M4282.0 :BOOL; (*广告 6层全局启停控制*) | M153: RNQLCB06X0D_C AT%M4282.0 :BOOL; (*广告 6层全局启停控制*)
A154: 照明控制箱 | B154: RNQ | C154: M | D154: 07X0D | E154: 启停控制 | F154: 4284.0 | H154: =IF((IF(OR(I154="INT",I154="WORD",I154="BOOL"),MOD(F154,2),MOD(F154,4)))=0,"验证通过","验证失败") -> 验证通过 | I154: BOOL | J154: 广告 7层全局启停控制 | K154: =B154&VLOOKUP(A154,List!$D$3:$F$527,2,FALSE)&D154&"_"&VLOOKUP(E154,List!$I$2:$K$529,2,FALSE) -> RNQLCB07X0D_C | L154: =K154&" "&"AT%"&C154&F154&" "&":"&I154&";"&" "&"(*"&J154&"*)" -> RNQLCB07X0D_C AT%M4284.0 :BOOL; (*广告 7层全局启停控制*) | M154: =REPLACE(REPLACE(L154,SEARCH("AT%",L154),,REPT(" ",25-SEARCH("AT%",L154))),SEARCH(":",REPLACE(L154,SEARCH("AT%",L154),,REPT(" ",25-SEARCH("AT%",L154)))),,REPT(" ",40-SEARCH(":",REPLACE(L154,SEARCH("AT%",L154),,REPT(" ",25-SEARCH("AT%",L154)))))) -> RNQLCB07X0D_C AT%M4284.0 :BOOL; (*广告 7层全局启停控制*)
A155: 照明控制箱 | B155: RNQ | C155: M | D155: 08X0D | E155: 启停控制 | F155: 4286.0 | H155: 验证通过 | I155: BOOL | J155: 广告 8层全局启停控制 | K155: =B155&VLOOKUP(A155,List!$D$3:$F$527,2,FALSE)&D155&"_"&VLOOKUP(E155,List!$I$2:$K$529,2,FALSE) -> RNQLCB08X0D_C | L155: RNQLCB08X0D_C AT%M4286.0 :BOOL; (*广告 8层全局启停控制*) | M155: RNQLCB08X0D_C AT%M4286.0 :BOOL; (*广告 8层全局启停控制*)
A156: 照明控制箱 | B156: RNQ | C156: M | D156: B3X0E | E156: 启停控制 | F156: 4288.0 | H156: 验证通过 | I156: BOOL | J156: 标识 B3层全局启停控制 | K156: =B156&VLOOKUP(A156,List!$D$3:$F$527,2,FALSE)&D156&"_"&VLOOKUP(E156,List!$I$2:$K$529,2,FALSE) -> RNQLCBB3X0E_C | L156: RNQLCBB3X0E_C AT%M4288.0 :BOOL; (*标识 B3层全局启停控制*) | M156: RNQLCBB3X0E_C AT%M4288.0 :BOOL; (*标识 B3层全局启停控制*)
A157: 照明控制箱 | B157: RNQ | C157: M | D157: B2X0E | E157: 启停控制 | F157: 4290.0 | H157: 验证通过 | I157: BOOL | J157: 标识 B2层全局启停控制 | K157: =B157&VLOOKUP(A157,List!$D$3:$F$527,2,FALSE)&D157&"_"&VLOOKUP(E157,List!$I$2:$K$529,2,FALSE) -> RNQLCBB2X0E_C | L157: RNQLCBB2X0E_C AT%M4290.0 :BOOL; (*标识 B2层全局启停控制*) | M157: RNQLCBB2X0E_C AT%M4290.0 :BOOL; (*标识 B2层全局启停控制*)
A158: 照明控制箱 | B158: RNQ | C158: M | D158: B1X0E | E158: 启停控制 | F158: 4292.0 | H158: 验证通过 | I158: BOOL | J158: 标识 B1层全局启停控制 | K158: =B158&VLOOKUP(A158,List!$D$3:$F$527,2,FALSE)&D158&"_"&VLOOKUP(E158,List!$I$2:$K$529,2,FALSE) -> RNQLCBB1X0E_C | L158: RNQLCBB1X0E_C AT%M4292.0 :BOOL; (*标识 B1层全局启停控制*) | M158: RNQLCBB1X0E_C AT%M4292.0 :BOOL; (*标识 B1层全局启停控制*)
A159: 照明控制箱 | B159: RNQ | C159: M | D159: 01X0E | E159: 启停控制 | F159: 4294.0 | H159: 验证通过 | I159: BOOL | J159: 标识 1层全局启停控制 | K159: =B159&VLOOKUP(A159,List!$D$3:$F$527,2,FALSE)&D159&"_"&VLOOKUP(E159,List!$I$2:$K$529,2,FALSE) -> RNQLCB01X0E_C | L159: RNQLCB01X0E_C AT%M4294.0 :BOOL; (*标识 1层全局启停控制*) | M159: RNQLCB01X0E_C AT%M4294.0 :BOOL; (*标识 1层全局启停控制*)
A160: 照明控制箱 | B160: RNQ | C160: M | D160: 02X0E | E160: 启停控制 | F160: 4296.0 | H160: 验证通过 | I160: BOOL | J160: 标识 2层全局启停控制 | K160: =B160&VLOOKUP(A160,List!$D$3:$F$527,2,FALSE)&D160&"_"&VLOOKUP(E160,List!$I$2:$K$529,2,FALSE) -> RNQLCB02X0E_C | L160: RNQLCB02X0E_C AT%M4296.0 :BOOL; (*标识 2层全局启停控制*) | M160: RNQLCB02X0E_C AT%M4296.0 :BOOL; (*标识 2层全局启停控制*)
A161: 照明控制箱 | B161: RNQ | C161: M | D161: 03X0E | E161: 启停控制 | F161: 4298.0 | H161: =IF((IF(OR(I161="INT",I161="WORD",I161="BOOL"),MOD(F161,2),MOD(F161,4)))=0,"验证通过","验证失败") -> 验证通过 | I161: BOOL | J161: 标识 3层全局启停控制 | K161: =B161&VLOOKUP(A161,List!$D$3:$F$527,2,FALSE)&D161&"_"&VLOOKUP(E161,List!$I$2:$K$529,2,FALSE) -> RNQLCB03X0E_C | L161: RNQLCB03X0E_C AT%M4298.0 :BOOL; (*标识 3层全局启停控制*) | M161: RNQLCB03X0E_C AT%M4298.0 :BOOL; (*标识 3层全局启停控制*)
A162: 照明控制箱 | B162: RNQ | C162: M | D162: 04X0E | E162: 启停控制 | F162: 4300.0 | H162: 验证通过 | I162: BOOL | J162: 标识 4层全局启停控制 | K162: =B162&VLOOKUP(A162,List!$D$3:$F$527,2,FALSE)&D162&"_"&VLOOKUP(E162,List!$I$2:$K$529,2,FALSE) -> RNQLCB04X0E_C | L162: RNQLCB04X0E_C AT%M4300.0 :BOOL; (*标识 4层全局启停控制*) | M162: RNQLCB04X0E_C AT%M4300.0 :BOOL; (*标识 4层全局启停控制*)
A163: 照明控制箱 | B163: RNQ | C163: M | D163: 05X0E | E163: 启停控制 | F163: 4302.0 | H163: 验证通过 | I163: BOOL | J163: 标识 5层全局启停控制 | K163: =B163&VLOOKUP(A163,List!$D$3:$F$527,2,FALSE)&D163&"_"&VLOOKUP(E163,List!$I$2:$K$529,2,FALSE) -> RNQLCB05X0E_C | L163: RNQLCB05X0E_C AT%M4302.0 :BOOL; (*标识 5层全局启停控制*) | M163: RNQLCB05X0E_C AT%M4302.0 :BOOL; (*标识 5层全局启停控制*)
A164: 照明控制箱 | B164: RNQ | C164: M | D164: 06X0E | E164: 启停控制 | F164: 4304.0 | H164: 验证通过 | I164: BOOL | J164: 标识 6层全局启停控制 | K164: =B164&VLOOKUP(A164,List!$D$3:$F$527,2,FALSE)&D164&"_"&VLOOKUP(E164,List!$I$2:$K$529,2,FALSE) -> RNQLCB06X0E_C | L164: RNQLCB06X0E_C AT%M4304.0 :BOOL; (*标识 6层全局启停控制*) | M164: =REPLACE(REPLACE(L164,SEARCH("AT%",L164),,REPT(" ",25-SEARCH("AT%",L164))),SEARCH(":",REPLACE(L164,SEARCH("AT%",L164),,REPT(" ",25-SEARCH("AT%",L164)))),,REPT(" ",40-SEARCH(":",REPLACE(L164,SEARCH("AT%",L164),,REPT(" ",25-SEARCH("AT%",L164)))))) -> RNQLCB06X0E_C AT%M4304.0 :BOOL; (*标识 6层全局启停控制*)
A165: 照明控制箱 | B165: RNQ | C165: M | D165: 07X0E | E165: 启停控制 | F165: 4306.0 | H165: 验证通过 | I165: BOOL | J165: 标识 7层全局启停控制 | K165: =B165&VLOOKUP(A165,List!$D$3:$F$527,2,FALSE)&D165&"_"&VLOOKUP(E165,List!$I$2:$K$529,2,FALSE) -> RNQLCB07X0E_C | L165: =K165&" "&"AT%"&C165&F165&" "&":"&I165&";"&" "&"(*"&J165&"*)" -> RNQLCB07X0E_C AT%M4306.0 :BOOL; (*标识 7层全局启停控制*) | M165: RNQLCB07X0E_C AT%M4306.0 :BOOL; (*标识 7层全局启停控制*)
A166: 照明控制箱 | B166: RNQ | C166: M | D166: 08X0E | E166: 启停控制 | F166: 4308.0 | H166: 验证通过 | I166: BOOL | J166: 标识 8层全局启停控制 | K166: =B166&VLOOKUP(A166,List!$D$3:$F$527,2,FALSE)&D166&"_"&VLOOKUP(E166,List!$I$2:$K$529,2,FALSE) -> RNQLCB08X0E_C | L166: RNQLCB08X0E_C AT%M4308.0 :BOOL; (*标识 8层全局启停控制*) | M166: =REPLACE(REPLACE(L166,SEARCH("AT%",L166),,REPT(" ",25-SEARCH("AT%",L166))),SEARCH(":",REPLACE(L166,SEARCH("AT%",L166),,REPT(" ",25-SEARCH("AT%",L166)))),,REPT(" ",40-SEARCH(":",REPLACE(L166,SEARCH("AT%",L166),,REPT(" ",25-SEARCH("AT%",L166)))))) -> RNQLCB08X0E_C AT%M4308.0 :BOOL; (*标识 8层全局启停控制*)
A167: 照明控制箱 | B167: RNQ | C167: M | D167: B3X0F | E167: 启停控制 | F167: 4310.0 | H167: 验证通过 | I167: BOOL | J167: 备用 B3层全局启停控制 | K167: =B167&VLOOKUP(A167,List!$D$3:$F$527,2,FALSE)&D167&"_"&VLOOKUP(E167,List!$I$2:$K$529,2,FALSE) -> RNQLCBB3X0F_C | L167: RNQLCBB3X0F_C AT%M4310.0 :BOOL; (*备用 B3层全局启停控制*) | M167: RNQLCBB3X0F_C AT%M4310.0 :BOOL; (*备用 B3层全局启停控制*)
A168: 照明控制箱 | B168: RNQ | C168: M | D168: B2X0F | E168: 启停控制 | F168: 4312.0 | H168: 验证通过 | I168: BOOL | J168: 备用 B2层全局启停控制 | K168: =B168&VLOOKUP(A168,List!$D$3:$F$527,2,FALSE)&D168&"_"&VLOOKUP(E168,List!$I$2:$K$529,2,FALSE) -> RNQLCBB2X0F_C | L168: RNQLCBB2X0F_C AT%M4312.0 :BOOL; (*备用 B2层全局启停控制*) | M168: RNQLCBB2X0F_C AT%M4312.0 :BOOL; (*备用 B2层全局启停控制*)
A169: 照明控制箱 | B169: RNQ | C169: M | D169: B1X0F | E169: 启停控制 | F169: 4314.0 | H169: 验证通过 | I169: BOOL | J169: 备用 B1层全局启停控制 | K169: =B169&VLOOKUP(A169,List!$D$3:$F$527,2,FALSE)&D169&"_"&VLOOKUP(E169,List!$I$2:$K$529,2,FALSE) -> RNQLCBB1X0F_C | L169: RNQLCBB1X0F_C AT%M4314.0 :BOOL; (*备用 B1层全局启停控制*) | M169: RNQLCBB1X0F_C AT%M4314.0 :BOOL; (*备用 B1层全局启停控制*)
A170: 照明控制箱 | B170: RNQ | C170: M | D170: 01X0F | E170: 启停控制 | F170: 4316.0 | H170: 验证通过 | I170: BOOL | J170: 备用 1层全局启停控制 | K170: =B170&VLOOKUP(A170,List!$D$3:$F$527,2,FALSE)&D170&"_"&VLOOKUP(E170,List!$I$2:$K$529,2,FALSE) -> RNQLCB01X0F_C | L170: RNQLCB01X0F_C AT%M4316.0 :BOOL; (*备用 1层全局启停控制*) | M170: RNQLCB01X0F_C AT%M4316.0 :BOOL; (*备用 1层全局启停控制*)
A171: 照明控制箱 | B171: RNQ | C171: M | D171: 02X0F | E171: 启停控制 | F171: 4318.0 | H171: 验证通过 | I171: BOOL | J171: 备用 2层全局启停控制 | K171: =B171&VLOOKUP(A171,List!$D$3:$F$527,2,FALSE)&D171&"_"&VLOOKUP(E171,List!$I$2:$K$529,2,FALSE) -> RNQLCB02X0F_C | L171: RNQLCB02X0F_C AT%M4318.0 :BOOL; (*备用 2层全局启停控制*) | M171: RNQLCB02X0F_C AT%M4318.0 :BOOL; (*备用 2层全局启停控制*)
A172: 照明控制箱 | B172: RNQ | C172: M | D172: 03X0F | E172: 启停控制 | F172: 4320.0 | H172: 验证通过 | I172: BOOL | J172: 备用 3层全局启停控制 | K172: =B172&VLOOKUP(A172,List!$D$3:$F$527,2,FALSE)&D172&"_"&VLOOKUP(E172,List!$I$2:$K$529,2,FALSE) -> RNQLCB03X0F_C | L172: RNQLCB03X0F_C AT%M4320.0 :BOOL; (*备用 3层全局启停控制*) | M172: RNQLCB03X0F_C AT%M4320.0 :BOOL; (*备用 3层全局启停控制*)
A173: 照明控制箱 | B173: RNQ | C173: M | D173: 04X0F | E173: 启停控制 | F173: 4322.0 | H173: 验证通过 | I173: BOOL | J173: 备用 4层全局启停控制 | K173: =B173&VLOOKUP(A173,List!$D$3:$F$527,2,FALSE)&D173&"_"&VLOOKUP(E173,List!$I$2:$K$529,2,FALSE) -> RNQLCB04X0F_C | L173: RNQLCB04X0F_C AT%M4322.0 :BOOL; (*备用 4层全局启停控制*) | M173: RNQLCB04X0F_C AT%M4322.0 :BOOL; (*备用 4层全局启停控制*)
A174: 照明控制箱 | B174: RNQ | C174: M | D174: 05X0F | E174: 启停控制 | F174: 4324.0 | H174: 验证通过 | I174: BOOL | J174: 备用 5层全局启停控制 | K174: =B174&VLOOKUP(A174,List!$D$3:$F$527,2,FALSE)&D174&"_"&VLOOKUP(E174,List!$I$2:$K$529,2,FALSE) -> RNQLCB05X0F_C | L174: RNQLCB05X0F_C AT%M4324.0 :BOOL; (*备用 5层全局启停控制*) | M174: RNQLCB05X0F_C AT%M4324.0 :BOOL; (*备用 5层全局启停控制*)
A175: 照明控制箱 | B175: RNQ | C175: M | D175: 06X0F | E175: 启停控制 | F175: 4326.0 | H175: 验证通过 | I175: BOOL | J175: 备用 6层全局启停控制 | K175: =B175&VLOOKUP(A175,List!$D$3:$F$527,2,FALSE)&D175&"_"&VLOOKUP(E175,List!$I$2:$K$529,2,FALSE) -> RNQLCB06X0F_C | L175: RNQLCB06X0F_C AT%M4326.0 :BOOL; (*备用 6层全局启停控制*) | M175: RNQLCB06X0F_C AT%M4326.0 :BOOL; (*备用 6层全局启停控制*)
A176: 照明控制箱 | B176: RNQ | C176: M | D176: 07X0F | E176: 启停控制 | F176: 4328.0 | H176: 验证通过 | I176: BOOL | J176: 备用 7层全局启停控制 | K176: =B176&VLOOKUP(A176,List!$D$3:$F$527,2,FALSE)&D176&"_"&VLOOKUP(E176,List!$I$2:$K$529,2,FALSE) -> RNQLCB07X0F_C | L176: =K176&" "&"AT%"&C176&F176&" "&":"&I176&";"&" "&"(*"&J176&"*)" -> RNQLCB07X0F_C AT%M4328.0 :BOOL; (*备用 7层全局启停控制*) | M176: =REPLACE(REPLACE(L176,SEARCH("AT%",L176),,REPT(" ",25-SEARCH("AT%",L176))),SEARCH(":",REPLACE(L176,SEARCH("AT%",L176),,REPT(" ",25-SEARCH("AT%",L176)))),,REPT(" ",40-SEARCH(":",REPLACE(L176,SEARCH("AT%",L176),,REPT(" ",25-SEARCH("AT%",L176)))))) -> RNQLCB07X0F_C AT%M4328.0 :BOOL; (*备用 7层全局启停控制*)
A177: 照明控制箱 | B177: RNQ | C177: M | D177: 08X0F | E177: 启停控制 | F177: =IF(OR(I176="REAL",I176="DWORD",I176="DINT"),(IF(OR(I177="REAL",I177="DWORD",I177="DINT"),F176+4+MOD(F176,4),F176+4)),(IF(OR(I177="REAL",I177="DWORD",I177="DINT"),F176+4+MOD(F176,4),F176+2)))&".0" -> 4330.0 | H177: 验证通过 | I177: BOOL | J177: 备用 8层全局启停控制 | K177: =B177&VLOOKUP(A177,List!$D$3:$F$527,2,FALSE)&D177&"_"&VLOOKUP(E177,List!$I$2:$K$529,2,FALSE) -> RNQLCB08X0F_C | L177: RNQLCB08X0F_C AT%M4330.0 :BOOL; (*备用 8层全局启停控制*) | M177: RNQLCB08X0F_C AT%M4330.0 :BOOL; (*备用 8层全局启停控制*)
A178: 照明控制箱 | B178: RNQ | C178: M | D178: B3X0G | E178: 启停控制 | F178: 4332.0 | H178: 验证通过 | I178: BOOL | J178: 备用 B3层全局启停控制 | K178: =B178&VLOOKUP(A178,List!$D$3:$F$527,2,FALSE)&D178&"_"&VLOOKUP(E178,List!$I$2:$K$529,2,FALSE) -> RNQLCBB3X0G_C | L178: RNQLCBB3X0G_C AT%M4332.0 :BOOL; (*备用 B3层全局启停控制*) | M178: RNQLCBB3X0G_C AT%M4332.0 :BOOL; (*备用 B3层全局启停控制*)
A179: 照明控制箱 | B179: RNQ | C179: M | D179: B2X0G | E179: 启停控制 | F179: 4334.0 | H179: 验证通过 | I179: BOOL | J179: 备用 B2层全局启停控制 | K179: =B179&VLOOKUP(A179,List!$D$3:$F$527,2,FALSE)&D179&"_"&VLOOKUP(E179,List!$I$2:$K$529,2,FALSE) -> RNQLCBB2X0G_C | L179: RNQLCBB2X0G_C AT%M4334.0 :BOOL; (*备用 B2层全局启停控制*) | M179: RNQLCBB2X0G_C AT%M4334.0 :BOOL; (*备用 B2层全局启停控制*)
A180: 照明控制箱 | B180: RNQ | C180: M | D180: B1X0G | E180: 启停控制 | F180: 4336.0 | H180: 验证通过 | I180: BOOL | J180: 备用 B1层全局启停控制 | K180: =B180&VLOOKUP(A180,List!$D$3:$F$527,2,FALSE)&D180&"_"&VLOOKUP(E180,List!$I$2:$K$529,2,FALSE) -> RNQLCBB1X0G_C | L180: RNQLCBB1X0G_C AT%M4336.0 :BOOL; (*备用 B1层全局启停控制*) | M180: RNQLCBB1X0G_C AT%M4336.0 :BOOL; (*备用 B1层全局启停控制*)
A181: 照明控制箱 | B181: RNQ | C181: M | D181: 01X0G | E181: 启停控制 | F181: 4338.0 | H181: 验证通过 | I181: BOOL | J181: 备用 1层全局启停控制 | K181: =B181&VLOOKUP(A181,List!$D$3:$F$527,2,FALSE)&D181&"_"&VLOOKUP(E181,List!$I$2:$K$529,2,FALSE) -> RNQLCB01X0G_C | L181: RNQLCB01X0G_C AT%M4338.0 :BOOL; (*备用 1层全局启停控制*) | M181: RNQLCB01X0G_C AT%M4338.0 :BOOL; (*备用 1层全局启停控制*)
A182: 照明控制箱 | B182: RNQ | C182: M | D182: 02X0G | E182: 启停控制 | F182: 4340.0 | H182: 验证通过 | I182: BOOL | J182: 备用 2层全局启停控制 | K182: =B182&VLOOKUP(A182,List!$D$3:$F$527,2,FALSE)&D182&"_"&VLOOKUP(E182,List!$I$2:$K$529,2,FALSE) -> RNQLCB02X0G_C | L182: RNQLCB02X0G_C AT%M4340.0 :BOOL; (*备用 2层全局启停控制*) | M182: RNQLCB02X0G_C AT%M4340.0 :BOOL; (*备用 2层全局启停控制*)
A183: 照明控制箱 | B183: RNQ | C183: M | D183: 03X0G | E183: 启停控制 | F183: 4342.0 | H183: 验证通过 | I183: BOOL | J183: 备用 3层全局启停控制 | K183: =B183&VLOOKUP(A183,List!$D$3:$F$527,2,FALSE)&D183&"_"&VLOOKUP(E183,List!$I$2:$K$529,2,FALSE) -> RNQLCB03X0G_C | L183: RNQLCB03X0G_C AT%M4342.0 :BOOL; (*备用 3层全局启停控制*) | M183: RNQLCB03X0G_C AT%M4342.0 :BOOL; (*备用 3层全局启停控制*)
A184: 照明控制箱 | B184: RNQ | C184: M | D184: 04X0G | E184: 启停控制 | F184: 4344.0 | H184: 验证通过 | I184: BOOL | J184: 备用 4层全局启停控制 | K184: =B184&VLOOKUP(A184,List!$D$3:$F$527,2,FALSE)&D184&"_"&VLOOKUP(E184,List!$I$2:$K$529,2,FALSE) -> RNQLCB04X0G_C | L184: RNQLCB04X0G_C AT%M4344.0 :BOOL; (*备用 4层全局启停控制*) | M184: RNQLCB04X0G_C AT%M4344.0 :BOOL; (*备用 4层全局启停控制*)
A185: 照明控制箱 | B185: RNQ | C185: M | D185: 05X0G | E185: 启停控制 | F185: 4346.0 | H185: 验证通过 | I185: BOOL | J185: 备用 5层全局启停控制 | K185: =B185&VLOOKUP(A185,List!$D$3:$F$527,2,FALSE)&D185&"_"&VLOOKUP(E185,List!$I$2:$K$529,2,FALSE) -> RNQLCB05X0G_C | L185: RNQLCB05X0G_C AT%M4346.0 :BOOL; (*备用 5层全局启停控制*) | M185: RNQLCB05X0G_C AT%M4346.0 :BOOL; (*备用 5层全局启停控制*)
A186: 照明控制箱 | B186: RNQ | C186: M | D186: 06X0G | E186: 启停控制 | F186: 4348.0 | H186: 验证通过 | I186: BOOL | J186: 备用 6层全局启停控制 | K186: =B186&VLOOKUP(A186,List!$D$3:$F$527,2,FALSE)&D186&"_"&VLOOKUP(E186,List!$I$2:$K$529,2,FALSE) -> RNQLCB06X0G_C | L186: RNQLCB06X0G_C AT%M4348.0 :BOOL; (*备用 6层全局启停控制*) | M186: RNQLCB06X0G_C AT%M4348.0 :BOOL; (*备用 6层全局启停控制*)
A187: 照明控制箱 | B187: RNQ | C187: M | D187: 07X0G | E187: 启停控制 | F187: 4350.0 | H187: 验证通过 | I187: BOOL | J187: 备用 7层全局启停控制 | K187: =B187&VLOOKUP(A187,List!$D$3:$F$527,2,FALSE)&D187&"_"&VLOOKUP(E187,List!$I$2:$K$529,2,FALSE) -> RNQLCB07X0G_C | L187: =K187&" "&"AT%"&C187&F187&" "&":"&I187&";"&" "&"(*"&J187&"*)" -> RNQLCB07X0G_C AT%M4350.0 :BOOL; (*备用 7层全局启停控制*) | M187: =REPLACE(REPLACE(L187,SEARCH("AT%",L187),,REPT(" ",25-SEARCH("AT%",L187))),SEARCH(":",REPLACE(L187,SEARCH("AT%",L187),,REPT(" ",25-SEARCH("AT%",L187)))),,REPT(" ",40-SEARCH(":",REPLACE(L187,SEARCH("AT%",L187),,REPT(" ",25-SEARCH("AT%",L187)))))) -> RNQLCB07X0G_C AT%M4350.0 :BOOL; (*备用 7层全局启停控制*)
A188: 照明控制箱 | B188: RNQ | C188: M | D188: 08X0G | E188: 启停控制 | F188: 4352.0 | H188: 验证通过 | I188: BOOL | J188: 备用 8层全局启停控制 | K188: =B188&VLOOKUP(A188,List!$D$3:$F$527,2,FALSE)&D188&"_"&VLOOKUP(E188,List!$I$2:$K$529,2,FALSE) -> RNQLCB08X0G_C | L188: RNQLCB08X0G_C AT%M4352.0 :BOOL; (*备用 8层全局启停控制*) | M188: RNQLCB08X0G_C AT%M4352.0 :BOOL; (*备用 8层全局启停控制*)
A189: 照明控制箱 | B189: RNQ | C189: M | D189: B3X0H | E189: 启停控制 | F189: 4354.0 | H189: 验证通过 | I189: BOOL | J189: 备用 B3层全局启停控制 | K189: =B189&VLOOKUP(A189,List!$D$3:$F$527,2,FALSE)&D189&"_"&VLOOKUP(E189,List!$I$2:$K$529,2,FALSE) -> RNQLCBB3X0H_C | L189: RNQLCBB3X0H_C AT%M4354.0 :BOOL; (*备用 B3层全局启停控制*) | M189: RNQLCBB3X0H_C AT%M4354.0 :BOOL; (*备用 B3层全局启停控制*)
A190: 照明控制箱 | B190: RNQ | C190: M | D190: B2X0H | E190: 启停控制 | F190: 4356.0 | H190: 验证通过 | I190: BOOL | J190: 备用 B2层全局启停控制 | K190: =B190&VLOOKUP(A190,List!$D$3:$F$527,2,FALSE)&D190&"_"&VLOOKUP(E190,List!$I$2:$K$529,2,FALSE) -> RNQLCBB2X0H_C | L190: RNQLCBB2X0H_C AT%M4356.0 :BOOL; (*备用 B2层全局启停控制*) | M190: RNQLCBB2X0H_C AT%M4356.0 :BOOL; (*备用 B2层全局启停控制*)
A191: 照明控制箱 | B191: RNQ | C191: M | D191: B1X0H | E191: 启停控制 | F191: 4358.0 | H191: 验证通过 | I191: BOOL | J191: 备用 B1层全局启停控制 | K191: =B191&VLOOKUP(A191,List!$D$3:$F$527,2,FALSE)&D191&"_"&VLOOKUP(E191,List!$I$2:$K$529,2,FALSE) -> RNQLCBB1X0H_C | L191: RNQLCBB1X0H_C AT%M4358.0 :BOOL; (*备用 B1层全局启停控制*) | M191: RNQLCBB1X0H_C AT%M4358.0 :BOOL; (*备用 B1层全局启停控制*)
A192: 照明控制箱 | B192: RNQ | C192: M | D192: 01X0H | E192: 启停控制 | F192: 4360.0 | H192: 验证通过 | I192: BOOL | J192: 备用 1层全局启停控制 | K192: =B192&VLOOKUP(A192,List!$D$3:$F$527,2,FALSE)&D192&"_"&VLOOKUP(E192,List!$I$2:$K$529,2,FALSE) -> RNQLCB01X0H_C | L192: RNQLCB01X0H_C AT%M4360.0 :BOOL; (*备用 1层全局启停控制*) | M192: RNQLCB01X0H_C AT%M4360.0 :BOOL; (*备用 1层全局启停控制*)
A193: 照明控制箱 | B193: RNQ | C193: M | D193: 02X0H | E193: 启停控制 | F193: 4362.0 | H193: 验证通过 | I193: BOOL | J193: 备用 2层全局启停控制 | K193: =B193&VLOOKUP(A193,List!$D$3:$F$527,2,FALSE)&D193&"_"&VLOOKUP(E193,List!$I$2:$K$529,2,FALSE) -> RNQLCB02X0H_C | L193: RNQLCB02X0H_C AT%M4362.0 :BOOL; (*备用 2层全局启停控制*) | M193: RNQLCB02X0H_C AT%M4362.0 :BOOL; (*备用 2层全局启停控制*)
A194: 照明控制箱 | B194: RNQ | C194: M | D194: 03X0H | E194: 启停控制 | F194: 4364.0 | H194: 验证通过 | I194: BOOL | J194: 备用 3层全局启停控制 | K194: =B194&VLOOKUP(A194,List!$D$3:$F$527,2,FALSE)&D194&"_"&VLOOKUP(E194,List!$I$2:$K$529,2,FALSE) -> RNQLCB03X0H_C | L194: RNQLCB03X0H_C AT%M4364.0 :BOOL; (*备用 3层全局启停控制*) | M194: RNQLCB03X0H_C AT%M4364.0 :BOOL; (*备用 3层全局启停控制*)
A195: 照明控制箱 | B195: RNQ | C195: M | D195: 04X0H | E195: 启停控制 | F195: 4366.0 | H195: 验证通过 | I195: BOOL | J195: 备用 4层全局启停控制 | K195: =B195&VLOOKUP(A195,List!$D$3:$F$527,2,FALSE)&D195&"_"&VLOOKUP(E195,List!$I$2:$K$529,2,FALSE) -> RNQLCB04X0H_C | L195: RNQLCB04X0H_C AT%M4366.0 :BOOL; (*备用 4层全局启停控制*) | M195: RNQLCB04X0H_C AT%M4366.0 :BOOL; (*备用 4层全局启停控制*)
A196: 照明控制箱 | B196: RNQ | C196: M | D196: 05X0H | E196: 启停控制 | F196: 4368.0 | H196: 验证通过 | I196: BOOL | J196: 备用 5层全局启停控制 | K196: =B196&VLOOKUP(A196,List!$D$3:$F$527,2,FALSE)&D196&"_"&VLOOKUP(E196,List!$I$2:$K$529,2,FALSE) -> RNQLCB05X0H_C | L196: =K196&" "&"AT%"&C196&F196&" "&":"&I196&";"&" "&"(*"&J196&"*)" -> RNQLCB05X0H_C AT%M4368.0 :BOOL; (*备用 5层全局启停控制*) | M196: RNQLCB05X0H_C AT%M4368.0 :BOOL; (*备用 5层全局启停控制*)
A197: 照明控制箱 | B197: RNQ | C197: M | D197: 06X0H | E197: 启停控制 | F197: 4370.0 | H197: 验证通过 | I197: BOOL | J197: 备用 6层全局启停控制 | K197: =B197&VLOOKUP(A197,List!$D$3:$F$527,2,FALSE)&D197&"_"&VLOOKUP(E197,List!$I$2:$K$529,2,FALSE) -> RNQLCB06X0H_C | L197: RNQLCB06X0H_C AT%M4370.0 :BOOL; (*备用 6层全局启停控制*) | M197: RNQLCB06X0H_C AT%M4370.0 :BOOL; (*备用 6层全局启停控制*)
A198: 照明控制箱 | B198: RNQ | C198: M | D198: 07X0H | E198: 启停控制 | F198: 4372.0 | H198: 验证通过 | I198: BOOL | J198: 备用 7层全局启停控制 | K198: =B198&VLOOKUP(A198,List!$D$3:$F$527,2,FALSE)&D198&"_"&VLOOKUP(E198,List!$I$2:$K$529,2,FALSE) -> RNQLCB07X0H_C | L198: =K198&" "&"AT%"&C198&F198&" "&":"&I198&";"&" "&"(*"&J198&"*)" -> RNQLCB07X0H_C AT%M4372.0 :BOOL; (*备用 7层全局启停控制*) | M198: =REPLACE(REPLACE(L198,SEARCH("AT%",L198),,REPT(" ",25-SEARCH("AT%",L198))),SEARCH(":",REPLACE(L198,SEARCH("AT%",L198),,REPT(" ",25-SEARCH("AT%",L198)))),,REPT(" ",40-SEARCH(":",REPLACE(L198,SEARCH("AT%",L198),,REPT(" ",25-SEARCH("AT%",L198)))))) -> RNQLCB07X0H_C AT%M4372.0 :BOOL; (*备用 7层全局启停控制*)
A199: 照明控制箱 | B199: RNQ | C199: M | D199: 08X0H | E199: 启停控制 | F199: 4374.0 | H199: 验证通过 | I199: BOOL | J199: 备用 8层全局启停控制 | K199: =B199&VLOOKUP(A199,List!$D$3:$F$527,2,FALSE)&D199&"_"&VLOOKUP(E199,List!$I$2:$K$529,2,FALSE) -> RNQLCB08X0H_C | L199: RNQLCB08X0H_C AT%M4374.0 :BOOL; (*备用 8层全局启停控制*) | M199: RNQLCB08X0H_C AT%M4374.0 :BOOL; (*备用 8层全局启停控制*)
A200: P新风机组 | B200: RNQ | C200: M | D200: 05X00 | E200: 设定温度值 | F200: 4380.0 | H200: 验证通过 | I200: REAL | J200: 新风机组5层温度全局设定 | K200: =B200&VLOOKUP(A200,List!$D$3:$F$527,2,FALSE)&D200&"_"&VLOOKUP(E200,List!$I$2:$K$529,2,FALSE) -> RNQPAU05X00_TSET | L200: RNQPAU05X00_TSET AT%M4380.0 :REAL; (*新风机组5层温度全局设定*) | M200: RNQPAU05X00_TSET AT%M4380.0 :REAL; (*新风机组5层温度全局设定*)
A201: P新风机组 | B201: RNQ | C201: M | D201: 06X00 | E201: 设定温度值 | F201: 4384.0 | H201: 验证通过 | I201: REAL | J201: 新风机组6层温度全局设定 | K201: =B201&VLOOKUP(A201,List!$D$3:$F$527,2,FALSE)&D201&"_"&VLOOKUP(E201,List!$I$2:$K$529,2,FALSE) -> RNQPAU06X00_TSET | L201: RNQPAU06X00_TSET AT%M4384.0 :REAL; (*新风机组6层温度全局设定*) | M201: RNQPAU06X00_TSET AT%M4384.0 :REAL; (*新风机组6层温度全局设定*)
... 768 more rows

Sheet 从CPU
A1: NI 0-1023 NQ 1024-2047
A2: 设备类型 | B2: 总线编号 | C2: P2P标记 | D2: 程序编号 | E2: 点位功能 | F2: 发送地址 接收地址 | H2: 数据类型 整除验证 | I2: 数据类型 | J2: 变量备注 | K2: 变量名.auto | L2: 编程变量声明.auto | M2: 编程变量声明(结构整理).auto
A4: 从CPU（地上）接收 | F4: 接收地址 | G4: 发送地址.auto
A5: 命令 | B5: RNI | C5: M | D5: 00000 | E5: 心跳值 | F5: 5000.0 | H5: =IF((IF(OR(I5="INT",I5="WORD",I5="BOOL"),MOD(F5,2),MOD(F5,4)))=0,"验证通过","验证失败") -> 验证通过 | I5: INT | J5: 心跳值 | K5: =B5&VLOOKUP(A5,List!$D$3:$F$527,2,FALSE)&D5&"_"&VLOOKUP(E5,List!$I$2:$K$529,2,FALSE) -> RNICMD00000_DHV | L5: =K5&" "&"AT%"&C5&F5&" "&":"&I5&";"&" "&"(*"&J5&"*)" -> RNICMD00000_DHV AT%M5000.0 :INT; (*心跳值*) | M5: =REPLACE(REPLACE(L5,SEARCH("AT%",L5),,REPT(" ",25-SEARCH("AT%",L5))),SEARCH(":",REPLACE(L5,SEARCH("AT%",L5),,REPT(" ",25-SEARCH("AT%",L5)))),,REPT(" ",40-SEARCH(":",REPLACE(L5,SEARCH("AT%",L5),,REPT(" ",25-SEARCH("AT%",L5)))))) -> RNICMD00000_DHV AT%M5000.0 :INT; (*心跳值*)
A6: 空调机组 | B6: RNI | C6: M | D6: 00000 | E6: 新云模式 | F6: =IF(OR(I5="REAL",I5="DWORD",I5="DINT"),(IF(OR(I6="REAL",I6="DWORD",I6="DINT"),F5+4+MOD(F5,4),F5+4)),(IF(OR(I6="REAL",I6="DWORD",I6="DINT"),F5+4+MOD(F5,4),F5+2)))&".0" -> 5002.0 | H6: 验证通过 | I6: BOOL | J6: 空调机组新云模式 | K6: =B6&VLOOKUP(A6,List!$D$3:$F$527,2,FALSE)&D6&"_"&VLOOKUP(E6,List!$I$2:$K$529,2,FALSE) -> RNIAHU00000_CM | L6: RNIAHU00000_CM AT%M5002.0 :BOOL; (*空调机组新云模式*) | M6: RNIAHU00000_CM AT%M5002.0 :BOOL; (*空调机组新云模式*)
A7: 风机盘管 | B7: RNI | C7: M | D7: 00000 | E7: 新云模式 | F7: =IF(OR(I6="REAL",I6="DWORD",I6="DINT"),(IF(OR(I7="REAL",I7="DWORD",I7="DINT"),F6+4+MOD(F6,4),F6+4)),(IF(OR(I7="REAL",I7="DWORD",I7="DINT"),F6+4+MOD(F6,4),F6+2)))&".0" -> 5004.0 | H7: 验证通过 | I7: BOOL | J7: 风机盘管新云模式 | K7: =B7&VLOOKUP(A7,List!$D$3:$F$527,2,FALSE)&D7&"_"&VLOOKUP(E7,List!$I$2:$K$529,2,FALSE) -> RNIFCU00000_CM | L7: RNIFCU00000_CM AT%M5004.0 :BOOL; (*风机盘管新云模式*) | M7: RNIFCU00000_CM AT%M5004.0 :BOOL; (*风机盘管新云模式*)
A8: 照明控制箱 | B8: RNI | C8: M | D8: 00000 | E8: 新云模式 | F8: 5006.0 | H8: 验证通过 | I8: BOOL | J8: 照明控制箱新云模式 | K8: =B8&VLOOKUP(A8,List!$D$3:$F$527,2,FALSE)&D8&"_"&VLOOKUP(E8,List!$I$2:$K$529,2,FALSE) -> RNILCB00000_CM | L8: =K8&" "&"AT%"&C8&F8&" "&":"&I8&";"&" "&"(*"&J8&"*)" -> RNILCB00000_CM AT%M5006.0 :BOOL; (*照明控制箱新云模式*) | M8: =REPLACE(REPLACE(L8,SEARCH("AT%",L8),,REPT(" ",25-SEARCH("AT%",L8))),SEARCH(":",REPLACE(L8,SEARCH("AT%",L8),,REPT(" ",25-SEARCH("AT%",L8)))),,REPT(" ",40-SEARCH(":",REPLACE(L8,SEARCH("AT%",L8),,REPT(" ",25-SEARCH("AT%",L8)))))) -> RNILCB00000_CM AT%M5006.0 :BOOL; (*照明控制箱新云模式*)
A9: 排风机 | B9: RNI | C9: M | D9: 00000 | E9: 新云模式 | F9: 5008.0 | H9: 验证通过 | I9: BOOL | J9: 送排风机新云模式 | K9: =B9&VLOOKUP(A9,List!$D$3:$F$527,2,FALSE)&D9&"_"&VLOOKUP(E9,List!$I$2:$K$529,2,FALSE) -> RNIEAF00000_CM | L9: =K9&" "&"AT%"&C9&F9&" "&":"&I9&";"&" "&"(*"&J9&"*)" -> RNIEAF00000_CM AT%M5008.0 :BOOL; (*送排风机新云模式*) | M9: =REPLACE(REPLACE(L9,SEARCH("AT%",L9),,REPT(" ",25-SEARCH("AT%",L9))),SEARCH(":",REPLACE(L9,SEARCH("AT%",L9),,REPT(" ",25-SEARCH("AT%",L9)))),,REPT(" ",40-SEARCH(":",REPLACE(L9,SEARCH("AT%",L9),,REPT(" ",25-SEARCH("AT%",L9)))))) -> RNIEAF00000_CM AT%M5008.0 :BOOL; (*送排风机新云模式*)
A10: P新风机组 | B10: RNI | C10: M | D10: 00000 | E10: 新云模式 | F10: 5010.0 | H10: 验证通过 | I10: BOOL | J10: 新风机组新云模式 | K10: =B10&VLOOKUP(A10,List!$D$3:$F$527,2,FALSE)&D10&"_"&VLOOKUP(E10,List!$I$2:$K$529,2,FALSE) -> RNIPAU00000_CM | L10: RNIPAU00000_CM AT%M5010.0 :BOOL; (*新风机组新云模式*) | M10: RNIPAU00000_CM AT%M5010.0 :BOOL; (*新风机组新云模式*)
A11: 风幕机 | B11: RNI | C11: M | D11: 00000 | E11: 新云模式 | F11: 5012.0 | H11: 验证通过 | I11: BOOL | J11: 风幕机新云模式 | K11: =B11&VLOOKUP(A11,List!$D$3:$F$527,2,FALSE)&D11&"_"&VLOOKUP(E11,List!$I$2:$K$529,2,FALSE) -> RNIFMJ00000_CM | L11: RNIFMJ00000_CM AT%M5012.0 :BOOL; (*风幕机新云模式*) | M11: RNIFMJ00000_CM AT%M5012.0 :BOOL; (*风幕机新云模式*)
A12: 冷水机组 | B12: RNI | C12: M | D12: 00000 | E12: 新云模式 | F12: 5014.0 | H12: 验证通过 | I12: BOOL | J12: 冷源新云模式 | K12: =B12&VLOOKUP(A12,List!$D$3:$F$527,2,FALSE)&D12&"_"&VLOOKUP(E12,List!$I$2:$K$529,2,FALSE) -> RNICHR00000_CM | L12: RNICHR00000_CM AT%M5014.0 :BOOL; (*冷源新云模式*) | M12: RNICHR00000_CM AT%M5014.0 :BOOL; (*冷源新云模式*)
A13: 空调机组 | B13: RNI | C13: M | D13: B3X00 | E13: 设定温度值 | F13: 5020.0 | H13: 验证通过 | I13: REAL | J13: 空调机组B3层温度全局设定 | K13: =B13&VLOOKUP(A13,List!$D$3:$F$527,2,FALSE)&D13&"_"&VLOOKUP(E13,List!$I$2:$K$529,2,FALSE) -> RNIAHUB3X00_TSET | L13: =K13&" "&"AT%"&C13&F13&" "&":"&I13&";"&" "&"(*"&J13&"*)" -> RNIAHUB3X00_TSET AT%M5020.0 :REAL; (*空调机组B3层温度全局设定*) | M13: =REPLACE(REPLACE(L13,SEARCH("AT%",L13),,REPT(" ",25-SEARCH("AT%",L13))),SEARCH(":",REPLACE(L13,SEARCH("AT%",L13),,REPT(" ",25-SEARCH("AT%",L13)))),,REPT(" ",40-SEARCH(":",REPLACE(L13,SEARCH("AT%",L13),,REPT(" ",25-SEARCH("AT%",L13)))))) -> RNIAHUB3X00_TSET AT%M5020.0 :REAL; (*空调机组B3层温度全局设定*)
A14: 空调机组 | B14: RNI | C14: M | D14: B2X00 | E14: 设定温度值 | F14: 5024.0 | H14: 验证通过 | I14: REAL | J14: 空调机组B2层温度全局设定 | K14: =B14&VLOOKUP(A14,List!$D$3:$F$527,2,FALSE)&D14&"_"&VLOOKUP(E14,List!$I$2:$K$529,2,FALSE) -> RNIAHUB2X00_TSET | L14: RNIAHUB2X00_TSET AT%M5024.0 :REAL; (*空调机组B2层温度全局设定*) | M14: RNIAHUB2X00_TSET AT%M5024.0 :REAL; (*空调机组B2层温度全局设定*)
A15: 空调机组 | B15: RNI | C15: M | D15: B1X00 | E15: 设定温度值 | F15: 5028.0 | H15: 验证通过 | I15: REAL | J15: 空调机组B1层温度全局设定 | K15: =B15&VLOOKUP(A15,List!$D$3:$F$527,2,FALSE)&D15&"_"&VLOOKUP(E15,List!$I$2:$K$529,2,FALSE) -> RNIAHUB1X00_TSET | L15: RNIAHUB1X00_TSET AT%M5028.0 :REAL; (*空调机组B1层温度全局设定*) | M15: RNIAHUB1X00_TSET AT%M5028.0 :REAL; (*空调机组B1层温度全局设定*)
A16: 空调机组 | B16: RNI | C16: M | D16: 01X00 | E16: 设定温度值 | F16: 5032.0 | H16: 验证通过 | I16: REAL | J16: 空调机组1层温度全局设定 | K16: =B16&VLOOKUP(A16,List!$D$3:$F$527,2,FALSE)&D16&"_"&VLOOKUP(E16,List!$I$2:$K$529,2,FALSE) -> RNIAHU01X00_TSET | L16: RNIAHU01X00_TSET AT%M5032.0 :REAL; (*空调机组1层温度全局设定*) | M16: RNIAHU01X00_TSET AT%M5032.0 :REAL; (*空调机组1层温度全局设定*)
A17: 空调机组 | B17: RNI | C17: M | D17: 02X00 | E17: 设定温度值 | F17: 5036.0 | H17: 验证通过 | I17: REAL | J17: 空调机组2层温度全局设定 | K17: =B17&VLOOKUP(A17,List!$D$3:$F$527,2,FALSE)&D17&"_"&VLOOKUP(E17,List!$I$2:$K$529,2,FALSE) -> RNIAHU02X00_TSET | L17: RNIAHU02X00_TSET AT%M5036.0 :REAL; (*空调机组2层温度全局设定*) | M17: RNIAHU02X00_TSET AT%M5036.0 :REAL; (*空调机组2层温度全局设定*)
A18: 空调机组 | B18: RNI | C18: M | D18: 03X00 | E18: 设定温度值 | F18: 5040.0 | H18: 验证通过 | I18: REAL | J18: 空调机组3层温度全局设定 | K18: =B18&VLOOKUP(A18,List!$D$3:$F$527,2,FALSE)&D18&"_"&VLOOKUP(E18,List!$I$2:$K$529,2,FALSE) -> RNIAHU03X00_TSET | L18: RNIAHU03X00_TSET AT%M5040.0 :REAL; (*空调机组3层温度全局设定*) | M18: RNIAHU03X00_TSET AT%M5040.0 :REAL; (*空调机组3层温度全局设定*)
A19: 空调机组 | B19: RNI | C19: M | D19: 04X00 | E19: 设定温度值 | F19: 5044.0 | H19: 验证通过 | I19: REAL | J19: 空调机组4层温度全局设定 | K19: =B19&VLOOKUP(A19,List!$D$3:$F$527,2,FALSE)&D19&"_"&VLOOKUP(E19,List!$I$2:$K$529,2,FALSE) -> RNIAHU04X00_TSET | L19: RNIAHU04X00_TSET AT%M5044.0 :REAL; (*空调机组4层温度全局设定*) | M19: RNIAHU04X00_TSET AT%M5044.0 :REAL; (*空调机组4层温度全局设定*)
A20: 空调机组 | B20: RNI | C20: M | D20: 05X00 | E20: 设定温度值 | F20: 5048.0 | H20: 验证通过 | I20: REAL | J20: 空调机组5层温度全局设定 | K20: =B20&VLOOKUP(A20,List!$D$3:$F$527,2,FALSE)&D20&"_"&VLOOKUP(E20,List!$I$2:$K$529,2,FALSE) -> RNIAHU05X00_TSET | L20: RNIAHU05X00_TSET AT%M5048.0 :REAL; (*空调机组5层温度全局设定*) | M20: RNIAHU05X00_TSET AT%M5048.0 :REAL; (*空调机组5层温度全局设定*)
A21: 空调机组 | B21: RNI | C21: M | D21: 06X00 | E21: 设定温度值 | F21: 5052.0 | H21: 验证通过 | I21: REAL | J21: 空调机组6层温度全局设定 | K21: =B21&VLOOKUP(A21,List!$D$3:$F$527,2,FALSE)&D21&"_"&VLOOKUP(E21,List!$I$2:$K$529,2,FALSE) -> RNIAHU06X00_TSET | L21: RNIAHU06X00_TSET AT%M5052.0 :REAL; (*空调机组6层温度全局设定*) | M21: RNIAHU06X00_TSET AT%M5052.0 :REAL; (*空调机组6层温度全局设定*)
A22: 空调机组 | B22: RNI | C22: M | D22: 07X00 | E22: 设定温度值 | F22: 5056.0 | H22: 验证通过 | I22: REAL | J22: 空调机组7层温度全局设定 | K22: =B22&VLOOKUP(A22,List!$D$3:$F$527,2,FALSE)&D22&"_"&VLOOKUP(E22,List!$I$2:$K$529,2,FALSE) -> RNIAHU07X00_TSET | L22: RNIAHU07X00_TSET AT%M5056.0 :REAL; (*空调机组7层温度全局设定*) | M22: RNIAHU07X00_TSET AT%M5056.0 :REAL; (*空调机组7层温度全局设定*)
A23: 空调机组 | B23: RNI | C23: M | D23: 08X00 | E23: 设定温度值 | F23: 5060.0 | H23: 验证通过 | I23: REAL | J23: 空调机组8层温度全局设定 | K23: =B23&VLOOKUP(A23,List!$D$3:$F$527,2,FALSE)&D23&"_"&VLOOKUP(E23,List!$I$2:$K$529,2,FALSE) -> RNIAHU08X00_TSET | L23: RNIAHU08X00_TSET AT%M5060.0 :REAL; (*空调机组8层温度全局设定*) | M23: RNIAHU08X00_TSET AT%M5060.0 :REAL; (*空调机组8层温度全局设定*)
A24: 空调机组 | B24: RNI | C24: M | D24: B3X00 | E24: 季节模式 | F24: 5064.0 | H24: 验证通过 | I24: INT | J24: 空调机组B3层季节模式全局设定 | K24: =B24&VLOOKUP(A24,List!$D$3:$F$527,2,FALSE)&D24&"_"&VLOOKUP(E24,List!$I$2:$K$529,2,FALSE) -> RNIAHUB3X00_SM | L24: RNIAHUB3X00_SM AT%M5064.0 :INT; (*空调机组B3层季节模式全局设定*) | M24: RNIAHUB3X00_SM AT%M5064.0 :INT; (*空调机组B3层季节模式全局设定*)
A25: 空调机组 | B25: RNI | C25: M | D25: B2X00 | E25: 季节模式 | F25: 5066.0 | H25: 验证通过 | I25: INT | J25: 空调机组B2层季节模式全局设定 | K25: =B25&VLOOKUP(A25,List!$D$3:$F$527,2,FALSE)&D25&"_"&VLOOKUP(E25,List!$I$2:$K$529,2,FALSE) -> RNIAHUB2X00_SM | L25: RNIAHUB2X00_SM AT%M5066.0 :INT; (*空调机组B2层季节模式全局设定*) | M25: RNIAHUB2X00_SM AT%M5066.0 :INT; (*空调机组B2层季节模式全局设定*)
A26: 空调机组 | B26: RNI | C26: M | D26: B1X00 | E26: 季节模式 | F26: 5068.0 | H26: 验证通过 | I26: INT | J26: 空调机组B1层季节模式全局设定 | K26: =B26&VLOOKUP(A26,List!$D$3:$F$527,2,FALSE)&D26&"_"&VLOOKUP(E26,List!$I$2:$K$529,2,FALSE) -> RNIAHUB1X00_SM | L26: RNIAHUB1X00_SM AT%M5068.0 :INT; (*空调机组B1层季节模式全局设定*) | M26: RNIAHUB1X00_SM AT%M5068.0 :INT; (*空调机组B1层季节模式全局设定*)
A27: 空调机组 | B27: RNI | C27: M | D27: 01X00 | E27: 季节模式 | F27: 5070.0 | H27: 验证通过 | I27: INT | J27: 空调机组1层季节模式全局设定 | K27: =B27&VLOOKUP(A27,List!$D$3:$F$527,2,FALSE)&D27&"_"&VLOOKUP(E27,List!$I$2:$K$529,2,FALSE) -> RNIAHU01X00_SM | L27: RNIAHU01X00_SM AT%M5070.0 :INT; (*空调机组1层季节模式全局设定*) | M27: RNIAHU01X00_SM AT%M5070.0 :INT; (*空调机组1层季节模式全局设定*)
A28: 空调机组 | B28: RNI | C28: M | D28: 02X00 | E28: 季节模式 | F28: 5072.0 | H28: 验证通过 | I28: INT | J28: 空调机组2层季节模式全局设定 | K28: =B28&VLOOKUP(A28,List!$D$3:$F$527,2,FALSE)&D28&"_"&VLOOKUP(E28,List!$I$2:$K$529,2,FALSE) -> RNIAHU02X00_SM | L28: RNIAHU02X00_SM AT%M5072.0 :INT; (*空调机组2层季节模式全局设定*) | M28: RNIAHU02X00_SM AT%M5072.0 :INT; (*空调机组2层季节模式全局设定*)
A29: 空调机组 | B29: RNI | C29: M | D29: 03X00 | E29: 季节模式 | F29: 5074.0 | H29: 验证通过 | I29: INT | J29: 空调机组3层季节模式全局设定 | K29: =B29&VLOOKUP(A29,List!$D$3:$F$527,2,FALSE)&D29&"_"&VLOOKUP(E29,List!$I$2:$K$529,2,FALSE) -> RNIAHU03X00_SM | L29: RNIAHU03X00_SM AT%M5074.0 :INT; (*空调机组3层季节模式全局设定*) | M29: RNIAHU03X00_SM AT%M5074.0 :INT; (*空调机组3层季节模式全局设定*)
A30: 空调机组 | B30: RNI | C30: M | D30: 04X00 | E30: 季节模式 | F30: 5076.0 | H30: 验证通过 | I30: INT | J30: 空调机组4层季节模式全局设定 | K30: =B30&VLOOKUP(A30,List!$D$3:$F$527,2,FALSE)&D30&"_"&VLOOKUP(E30,List!$I$2:$K$529,2,FALSE) -> RNIAHU04X00_SM | L30: RNIAHU04X00_SM AT%M5076.0 :INT; (*空调机组4层季节模式全局设定*) | M30: RNIAHU04X00_SM AT%M5076.0 :INT; (*空调机组4层季节模式全局设定*)
A31: 空调机组 | B31: RNI | C31: M | D31: 05X00 | E31: 季节模式 | F31: 5078.0 | H31: 验证通过 | I31: INT | J31: 空调机组5层季节模式全局设定 | K31: =B31&VLOOKUP(A31,List!$D$3:$F$527,2,FALSE)&D31&"_"&VLOOKUP(E31,List!$I$2:$K$529,2,FALSE) -> RNIAHU05X00_SM | L31: RNIAHU05X00_SM AT%M5078.0 :INT; (*空调机组5层季节模式全局设定*) | M31: RNIAHU05X00_SM AT%M5078.0 :INT; (*空调机组5层季节模式全局设定*)
A32: 空调机组 | B32: RNI | C32: M | D32: 06X00 | E32: 季节模式 | F32: 5080.0 | H32: 验证通过 | I32: INT | J32: 空调机组6层季节模式全局设定 | K32: =B32&VLOOKUP(A32,List!$D$3:$F$527,2,FALSE)&D32&"_"&VLOOKUP(E32,List!$I$2:$K$529,2,FALSE) -> RNIAHU06X00_SM | L32: RNIAHU06X00_SM AT%M5080.0 :INT; (*空调机组6层季节模式全局设定*) | M32: RNIAHU06X00_SM AT%M5080.0 :INT; (*空调机组6层季节模式全局设定*)
A33: 空调机组 | B33: RNI | C33: M | D33: 07X00 | E33: 季节模式 | F33: 5082.0 | H33: 验证通过 | I33: INT | J33: 空调机组7层季节模式全局设定 | K33: =B33&VLOOKUP(A33,List!$D$3:$F$527,2,FALSE)&D33&"_"&VLOOKUP(E33,List!$I$2:$K$529,2,FALSE) -> RNIAHU07X00_SM | L33: RNIAHU07X00_SM AT%M5082.0 :INT; (*空调机组7层季节模式全局设定*) | M33: RNIAHU07X00_SM AT%M5082.0 :INT; (*空调机组7层季节模式全局设定*)
A34: 空调机组 | B34: RNI | C34: M | D34: 08X00 | E34: 季节模式 | F34: 5084.0 | H34: 验证通过 | I34: INT | J34: 空调机组8层季节模式全局设定 | K34: =B34&VLOOKUP(A34,List!$D$3:$F$527,2,FALSE)&D34&"_"&VLOOKUP(E34,List!$I$2:$K$529,2,FALSE) -> RNIAHU08X00_SM | L34: RNIAHU08X00_SM AT%M5084.0 :INT; (*空调机组8层季节模式全局设定*) | M34: RNIAHU08X00_SM AT%M5084.0 :INT; (*空调机组8层季节模式全局设定*)
A35: 空调机组 | B35: RNI | C35: M | D35: B3X00 | E35: 程序控制 | F35: 5086.0 | H35: 验证通过 | I35: BOOL | J35: 空调机组B3层启停控制 | K35: =B35&VLOOKUP(A35,List!$D$3:$F$527,2,FALSE)&D35&"_"&VLOOKUP(E35,List!$I$2:$K$529,2,FALSE) -> RNIAHUB3X00_PC | L35: RNIAHUB3X00_PC AT%M5086.0 :BOOL; (*空调机组B3层启停控制*) | M35: RNIAHUB3X00_PC AT%M5086.0 :BOOL; (*空调机组B3层启停控制*)
A36: 空调机组 | B36: RNI | C36: M | D36: B2X00 | E36: 程序控制 | F36: 5088.0 | H36: 验证通过 | I36: BOOL | J36: 空调机组B2层启停控制 | K36: =B36&VLOOKUP(A36,List!$D$3:$F$527,2,FALSE)&D36&"_"&VLOOKUP(E36,List!$I$2:$K$529,2,FALSE) -> RNIAHUB2X00_PC | L36: RNIAHUB2X00_PC AT%M5088.0 :BOOL; (*空调机组B2层启停控制*) | M36: RNIAHUB2X00_PC AT%M5088.0 :BOOL; (*空调机组B2层启停控制*)
A37: 空调机组 | B37: RNI | C37: M | D37: B1X00 | E37: 程序控制 | F37: 5090.0 | H37: 验证通过 | I37: BOOL | J37: 空调机组B1层启停控制 | K37: =B37&VLOOKUP(A37,List!$D$3:$F$527,2,FALSE)&D37&"_"&VLOOKUP(E37,List!$I$2:$K$529,2,FALSE) -> RNIAHUB1X00_PC | L37: RNIAHUB1X00_PC AT%M5090.0 :BOOL; (*空调机组B1层启停控制*) | M37: RNIAHUB1X00_PC AT%M5090.0 :BOOL; (*空调机组B1层启停控制*)
A38: 空调机组 | B38: RNI | C38: M | D38: 01X00 | E38: 程序控制 | F38: 5092.0 | H38: 验证通过 | I38: BOOL | J38: 空调机组1层启停控制 | K38: =B38&VLOOKUP(A38,List!$D$3:$F$527,2,FALSE)&D38&"_"&VLOOKUP(E38,List!$I$2:$K$529,2,FALSE) -> RNIAHU01X00_PC | L38: RNIAHU01X00_PC AT%M5092.0 :BOOL; (*空调机组1层启停控制*) | M38: RNIAHU01X00_PC AT%M5092.0 :BOOL; (*空调机组1层启停控制*)
A39: 空调机组 | B39: RNI | C39: M | D39: 02X00 | E39: 程序控制 | F39: 5094.0 | H39: 验证通过 | I39: BOOL | J39: 空调机组2层启停控制 | K39: =B39&VLOOKUP(A39,List!$D$3:$F$527,2,FALSE)&D39&"_"&VLOOKUP(E39,List!$I$2:$K$529,2,FALSE) -> RNIAHU02X00_PC | L39: RNIAHU02X00_PC AT%M5094.0 :BOOL; (*空调机组2层启停控制*) | M39: RNIAHU02X00_PC AT%M5094.0 :BOOL; (*空调机组2层启停控制*)
A40: 空调机组 | B40: RNI | C40: M | D40: 03X00 | E40: 程序控制 | F40: 5096.0 | H40: 验证通过 | I40: BOOL | J40: 空调机组3层启停控制 | K40: =B40&VLOOKUP(A40,List!$D$3:$F$527,2,FALSE)&D40&"_"&VLOOKUP(E40,List!$I$2:$K$529,2,FALSE) -> RNIAHU03X00_PC | L40: RNIAHU03X00_PC AT%M5096.0 :BOOL; (*空调机组3层启停控制*) | M40: RNIAHU03X00_PC AT%M5096.0 :BOOL; (*空调机组3层启停控制*)
A41: 空调机组 | B41: RNI | C41: M | D41: 04X00 | E41: 程序控制 | F41: 5098.0 | H41: 验证通过 | I41: BOOL | J41: 空调机组4层启停控制 | K41: =B41&VLOOKUP(A41,List!$D$3:$F$527,2,FALSE)&D41&"_"&VLOOKUP(E41,List!$I$2:$K$529,2,FALSE) -> RNIAHU04X00_PC | L41: RNIAHU04X00_PC AT%M5098.0 :BOOL; (*空调机组4层启停控制*) | M41: RNIAHU04X00_PC AT%M5098.0 :BOOL; (*空调机组4层启停控制*)
A42: 空调机组 | B42: RNI | C42: M | D42: 05X00 | E42: 程序控制 | F42: 5100.0 | H42: 验证通过 | I42: BOOL | J42: 空调机组5层启停控制 | K42: =B42&VLOOKUP(A42,List!$D$3:$F$527,2,FALSE)&D42&"_"&VLOOKUP(E42,List!$I$2:$K$529,2,FALSE) -> RNIAHU05X00_PC | L42: RNIAHU05X00_PC AT%M5100.0 :BOOL; (*空调机组5层启停控制*) | M42: RNIAHU05X00_PC AT%M5100.0 :BOOL; (*空调机组5层启停控制*)
A43: 空调机组 | B43: RNI | C43: M | D43: 06X00 | E43: 程序控制 | F43: 5102.0 | H43: 验证通过 | I43: BOOL | J43: 空调机组6层启停控制 | K43: =B43&VLOOKUP(A43,List!$D$3:$F$527,2,FALSE)&D43&"_"&VLOOKUP(E43,List!$I$2:$K$529,2,FALSE) -> RNIAHU06X00_PC | L43: RNIAHU06X00_PC AT%M5102.0 :BOOL; (*空调机组6层启停控制*) | M43: RNIAHU06X00_PC AT%M5102.0 :BOOL; (*空调机组6层启停控制*)
A44: 空调机组 | B44: RNI | C44: M | D44: 07X00 | E44: 程序控制 | F44: 5104.0 | H44: 验证通过 | I44: BOOL | J44: 空调机组7层启停控制 | K44: =B44&VLOOKUP(A44,List!$D$3:$F$527,2,FALSE)&D44&"_"&VLOOKUP(E44,List!$I$2:$K$529,2,FALSE) -> RNIAHU07X00_PC | L44: RNIAHU07X00_PC AT%M5104.0 :BOOL; (*空调机组7层启停控制*) | M44: RNIAHU07X00_PC AT%M5104.0 :BOOL; (*空调机组7层启停控制*)
A45: 空调机组 | B45: RNI | C45: M | D45: 08X00 | E45: 程序控制 | F45: 5106.0 | H45: 验证通过 | I45: BOOL | J45: 空调机组8层启停控制 | K45: =B45&VLOOKUP(A45,List!$D$3:$F$527,2,FALSE)&D45&"_"&VLOOKUP(E45,List!$I$2:$K$529,2,FALSE) -> RNIAHU08X00_PC | L45: RNIAHU08X00_PC AT%M5106.0 :BOOL; (*空调机组8层启停控制*) | M45: RNIAHU08X00_PC AT%M5106.0 :BOOL; (*空调机组8层启停控制*)
A46: 风机盘管 | B46: RNI | C46: M | D46: B3X00 | E46: 设定温度值 | F46: 5112.0 | H46: 验证通过 | I46: REAL | J46: 风机盘管B3层温度全局设定 | K46: =B46&VLOOKUP(A46,List!$D$3:$F$527,2,FALSE)&D46&"_"&VLOOKUP(E46,List!$I$2:$K$529,2,FALSE) -> RNIFCUB3X00_TSET | L46: RNIFCUB3X00_TSET AT%M5112.0 :REAL; (*风机盘管B3层温度全局设定*) | M46: RNIFCUB3X00_TSET AT%M5112.0 :REAL; (*风机盘管B3层温度全局设定*)
A47: 风机盘管 | B47: RNI | C47: M | D47: B2X00 | E47: 设定温度值 | F47: 5116.0 | H47: 验证通过 | I47: REAL | J47: 风机盘管B2层温度全局设定 | K47: =B47&VLOOKUP(A47,List!$D$3:$F$527,2,FALSE)&D47&"_"&VLOOKUP(E47,List!$I$2:$K$529,2,FALSE) -> RNIFCUB2X00_TSET | L47: RNIFCUB2X00_TSET AT%M5116.0 :REAL; (*风机盘管B2层温度全局设定*) | M47: RNIFCUB2X00_TSET AT%M5116.0 :REAL; (*风机盘管B2层温度全局设定*)
A48: 风机盘管 | B48: RNI | C48: M | D48: B1X00 | E48: 设定温度值 | F48: 5120.0 | H48: 验证通过 | I48: REAL | J48: 风机盘管B1层温度全局设定 | K48: =B48&VLOOKUP(A48,List!$D$3:$F$527,2,FALSE)&D48&"_"&VLOOKUP(E48,List!$I$2:$K$529,2,FALSE) -> RNIFCUB1X00_TSET | L48: RNIFCUB1X00_TSET AT%M5120.0 :REAL; (*风机盘管B1层温度全局设定*) | M48: RNIFCUB1X00_TSET AT%M5120.0 :REAL; (*风机盘管B1层温度全局设定*)
A49: 风机盘管 | B49: RNI | C49: M | D49: 01X00 | E49: 设定温度值 | F49: 5124.0 | H49: 验证通过 | I49: REAL | J49: 风机盘管1层温度全局设定 | K49: =B49&VLOOKUP(A49,List!$D$3:$F$527,2,FALSE)&D49&"_"&VLOOKUP(E49,List!$I$2:$K$529,2,FALSE) -> RNIFCU01X00_TSET | L49: RNIFCU01X00_TSET AT%M5124.0 :REAL; (*风机盘管1层温度全局设定*) | M49: RNIFCU01X00_TSET AT%M5124.0 :REAL; (*风机盘管1层温度全局设定*)
A50: 风机盘管 | B50: RNI | C50: M | D50: 02X00 | E50: 设定温度值 | F50: 5128.0 | H50: 验证通过 | I50: REAL | J50: 风机盘管2层温度全局设定 | K50: =B50&VLOOKUP(A50,List!$D$3:$F$527,2,FALSE)&D50&"_"&VLOOKUP(E50,List!$I$2:$K$529,2,FALSE) -> RNIFCU02X00_TSET | L50: RNIFCU02X00_TSET AT%M5128.0 :REAL; (*风机盘管2层温度全局设定*) | M50: RNIFCU02X00_TSET AT%M5128.0 :REAL; (*风机盘管2层温度全局设定*)
A51: 风机盘管 | B51: RNI | C51: M | D51: 03X00 | E51: 设定温度值 | F51: 5132.0 | H51: 验证通过 | I51: REAL | J51: 风机盘管3层温度全局设定 | K51: =B51&VLOOKUP(A51,List!$D$3:$F$527,2,FALSE)&D51&"_"&VLOOKUP(E51,List!$I$2:$K$529,2,FALSE) -> RNIFCU03X00_TSET | L51: RNIFCU03X00_TSET AT%M5132.0 :REAL; (*风机盘管3层温度全局设定*) | M51: RNIFCU03X00_TSET AT%M5132.0 :REAL; (*风机盘管3层温度全局设定*)
A52: 风机盘管 | B52: RNI | C52: M | D52: 04X00 | E52: 设定温度值 | F52: 5136.0 | H52: 验证通过 | I52: REAL | J52: 风机盘管4层温度全局设定 | K52: =B52&VLOOKUP(A52,List!$D$3:$F$527,2,FALSE)&D52&"_"&VLOOKUP(E52,List!$I$2:$K$529,2,FALSE) -> RNIFCU04X00_TSET | L52: RNIFCU04X00_TSET AT%M5136.0 :REAL; (*风机盘管4层温度全局设定*) | M52: RNIFCU04X00_TSET AT%M5136.0 :REAL; (*风机盘管4层温度全局设定*)
A53: 风机盘管 | B53: RNI | C53: M | D53: 05X00 | E53: 设定温度值 | F53: 5140.0 | H53: 验证通过 | I53: REAL | J53: 风机盘管5层温度全局设定 | K53: =B53&VLOOKUP(A53,List!$D$3:$F$527,2,FALSE)&D53&"_"&VLOOKUP(E53,List!$I$2:$K$529,2,FALSE) -> RNIFCU05X00_TSET | L53: RNIFCU05X00_TSET AT%M5140.0 :REAL; (*风机盘管5层温度全局设定*) | M53: RNIFCU05X00_TSET AT%M5140.0 :REAL; (*风机盘管5层温度全局设定*)
A54: 风机盘管 | B54: RNI | C54: M | D54: 06X00 | E54: 设定温度值 | F54: 5144.0 | H54: 验证通过 | I54: REAL | J54: 风机盘管6层温度全局设定 | K54: =B54&VLOOKUP(A54,List!$D$3:$F$527,2,FALSE)&D54&"_"&VLOOKUP(E54,List!$I$2:$K$529,2,FALSE) -> RNIFCU06X00_TSET | L54: RNIFCU06X00_TSET AT%M5144.0 :REAL; (*风机盘管6层温度全局设定*) | M54: RNIFCU06X00_TSET AT%M5144.0 :REAL; (*风机盘管6层温度全局设定*)
A55: 风机盘管 | B55: RNI | C55: M | D55: 07X00 | E55: 设定温度值 | F55: 5148.0 | H55: 验证通过 | I55: REAL | J55: 风机盘管7层温度全局设定 | K55: =B55&VLOOKUP(A55,List!$D$3:$F$527,2,FALSE)&D55&"_"&VLOOKUP(E55,List!$I$2:$K$529,2,FALSE) -> RNIFCU07X00_TSET | L55: RNIFCU07X00_TSET AT%M5148.0 :REAL; (*风机盘管7层温度全局设定*) | M55: RNIFCU07X00_TSET AT%M5148.0 :REAL; (*风机盘管7层温度全局设定*)
A56: 风机盘管 | B56: RNI | C56: M | D56: 08X00 | E56: 设定温度值 | F56: 5152.0 | H56: 验证通过 | I56: REAL | J56: 风机盘管8层温度全局设定 | K56: =B56&VLOOKUP(A56,List!$D$3:$F$527,2,FALSE)&D56&"_"&VLOOKUP(E56,List!$I$2:$K$529,2,FALSE) -> RNIFCU08X00_TSET | L56: RNIFCU08X00_TSET AT%M5152.0 :REAL; (*风机盘管8层温度全局设定*) | M56: RNIFCU08X00_TSET AT%M5152.0 :REAL; (*风机盘管8层温度全局设定*)
A57: 风机盘管 | B57: RNI | C57: M | D57: B3X00 | E57: 季节模式 | F57: 5156.0 | H57: 验证通过 | I57: INT | J57: 风机盘管B3层季节模式全局设定 | K57: =B57&VLOOKUP(A57,List!$D$3:$F$527,2,FALSE)&D57&"_"&VLOOKUP(E57,List!$I$2:$K$529,2,FALSE) -> RNIFCUB3X00_SM | L57: RNIFCUB3X00_SM AT%M5156.0 :INT; (*风机盘管B3层季节模式全局设定*) | M57: RNIFCUB3X00_SM AT%M5156.0 :INT; (*风机盘管B3层季节模式全局设定*)
A58: 风机盘管 | B58: RNI | C58: M | D58: B2X00 | E58: 季节模式 | F58: 5158.0 | H58: 验证通过 | I58: INT | J58: 风机盘管B2层季节模式全局设定 | K58: =B58&VLOOKUP(A58,List!$D$3:$F$527,2,FALSE)&D58&"_"&VLOOKUP(E58,List!$I$2:$K$529,2,FALSE) -> RNIFCUB2X00_SM | L58: RNIFCUB2X00_SM AT%M5158.0 :INT; (*风机盘管B2层季节模式全局设定*) | M58: RNIFCUB2X00_SM AT%M5158.0 :INT; (*风机盘管B2层季节模式全局设定*)
A59: 风机盘管 | B59: RNI | C59: M | D59: B1X00 | E59: 季节模式 | F59: 5160.0 | H59: 验证通过 | I59: INT | J59: 风机盘管B1层季节模式全局设定 | K59: =B59&VLOOKUP(A59,List!$D$3:$F$527,2,FALSE)&D59&"_"&VLOOKUP(E59,List!$I$2:$K$529,2,FALSE) -> RNIFCUB1X00_SM | L59: RNIFCUB1X00_SM AT%M5160.0 :INT; (*风机盘管B1层季节模式全局设定*) | M59: RNIFCUB1X00_SM AT%M5160.0 :INT; (*风机盘管B1层季节模式全局设定*)
A60: 风机盘管 | B60: RNI | C60: M | D60: 01X00 | E60: 季节模式 | F60: 5162.0 | H60: 验证通过 | I60: INT | J60: 风机盘管1层季节模式全局设定 | K60: =B60&VLOOKUP(A60,List!$D$3:$F$527,2,FALSE)&D60&"_"&VLOOKUP(E60,List!$I$2:$K$529,2,FALSE) -> RNIFCU01X00_SM | L60: RNIFCU01X00_SM AT%M5162.0 :INT; (*风机盘管1层季节模式全局设定*) | M60: RNIFCU01X00_SM AT%M5162.0 :INT; (*风机盘管1层季节模式全局设定*)
A61: 风机盘管 | B61: RNI | C61: M | D61: 02X00 | E61: 季节模式 | F61: 5164.0 | H61: 验证通过 | I61: INT | J61: 风机盘管2层季节模式全局设定 | K61: =B61&VLOOKUP(A61,List!$D$3:$F$527,2,FALSE)&D61&"_"&VLOOKUP(E61,List!$I$2:$K$529,2,FALSE) -> RNIFCU02X00_SM | L61: RNIFCU02X00_SM AT%M5164.0 :INT; (*风机盘管2层季节模式全局设定*) | M61: RNIFCU02X00_SM AT%M5164.0 :INT; (*风机盘管2层季节模式全局设定*)
A62: 风机盘管 | B62: RNI | C62: M | D62: 03X00 | E62: 季节模式 | F62: 5166.0 | H62: 验证通过 | I62: INT | J62: 风机盘管3层季节模式全局设定 | K62: =B62&VLOOKUP(A62,List!$D$3:$F$527,2,FALSE)&D62&"_"&VLOOKUP(E62,List!$I$2:$K$529,2,FALSE) -> RNIFCU03X00_SM | L62: RNIFCU03X00_SM AT%M5166.0 :INT; (*风机盘管3层季节模式全局设定*) | M62: RNIFCU03X00_SM AT%M5166.0 :INT; (*风机盘管3层季节模式全局设定*)
A63: 风机盘管 | B63: RNI | C63: M | D63: 04X00 | E63: 季节模式 | F63: 5168.0 | H63: 验证通过 | I63: INT | J63: 风机盘管4层季节模式全局设定 | K63: =B63&VLOOKUP(A63,List!$D$3:$F$527,2,FALSE)&D63&"_"&VLOOKUP(E63,List!$I$2:$K$529,2,FALSE) -> RNIFCU04X00_SM | L63: RNIFCU04X00_SM AT%M5168.0 :INT; (*风机盘管4层季节模式全局设定*) | M63: RNIFCU04X00_SM AT%M5168.0 :INT; (*风机盘管4层季节模式全局设定*)
A64: 风机盘管 | B64: RNI | C64: M | D64: 05X00 | E64: 季节模式 | F64: 5170.0 | H64: 验证通过 | I64: INT | J64: 风机盘管5层季节模式全局设定 | K64: =B64&VLOOKUP(A64,List!$D$3:$F$527,2,FALSE)&D64&"_"&VLOOKUP(E64,List!$I$2:$K$529,2,FALSE) -> RNIFCU05X00_SM | L64: RNIFCU05X00_SM AT%M5170.0 :INT; (*风机盘管5层季节模式全局设定*) | M64: RNIFCU05X00_SM AT%M5170.0 :INT; (*风机盘管5层季节模式全局设定*)
A65: 风机盘管 | B65: RNI | C65: M | D65: 06X00 | E65: 季节模式 | F65: 5172.0 | H65: 验证通过 | I65: INT | J65: 风机盘管6层季节模式全局设定 | K65: =B65&VLOOKUP(A65,List!$D$3:$F$527,2,FALSE)&D65&"_"&VLOOKUP(E65,List!$I$2:$K$529,2,FALSE) -> RNIFCU06X00_SM | L65: RNIFCU06X00_SM AT%M5172.0 :INT; (*风机盘管6层季节模式全局设定*) | M65: RNIFCU06X00_SM AT%M5172.0 :INT; (*风机盘管6层季节模式全局设定*)
A66: 风机盘管 | B66: RNI | C66: M | D66: 07X00 | E66: 季节模式 | F66: 5174.0 | H66: 验证通过 | I66: INT | J66: 风机盘管7层季节模式全局设定 | K66: =B66&VLOOKUP(A66,List!$D$3:$F$527,2,FALSE)&D66&"_"&VLOOKUP(E66,List!$I$2:$K$529,2,FALSE) -> RNIFCU07X00_SM | L66: RNIFCU07X00_SM AT%M5174.0 :INT; (*风机盘管7层季节模式全局设定*) | M66: RNIFCU07X00_SM AT%M5174.0 :INT; (*风机盘管7层季节模式全局设定*)
A67: 风机盘管 | B67: RNI | C67: M | D67: 08X00 | E67: 季节模式 | F67: 5176.0 | H67: 验证通过 | I67: INT | J67: 风机盘管8层季节模式全局设定 | K67: =B67&VLOOKUP(A67,List!$D$3:$F$527,2,FALSE)&D67&"_"&VLOOKUP(E67,List!$I$2:$K$529,2,FALSE) -> RNIFCU08X00_SM | L67: RNIFCU08X00_SM AT%M5176.0 :INT; (*风机盘管8层季节模式全局设定*) | M67: RNIFCU08X00_SM AT%M5176.0 :INT; (*风机盘管8层季节模式全局设定*)
A68: 风机盘管 | B68: RNI | C68: M | D68: B3X00 | E68: 程序控制 | F68: 5178.0 | H68: 验证通过 | I68: BOOL | J68: 风机盘管B3层启停控制 | K68: =B68&VLOOKUP(A68,List!$D$3:$F$527,2,FALSE)&D68&"_"&VLOOKUP(E68,List!$I$2:$K$529,2,FALSE) -> RNIFCUB3X00_PC | L68: RNIFCUB3X00_PC AT%M5178.0 :BOOL; (*风机盘管B3层启停控制*) | M68: RNIFCUB3X00_PC AT%M5178.0 :BOOL; (*风机盘管B3层启停控制*)
A69: 风机盘管 | B69: RNI | C69: M | D69: B2X00 | E69: 程序控制 | F69: 5180.0 | H69: 验证通过 | I69: BOOL | J69: 风机盘管B2层启停控制 | K69: =B69&VLOOKUP(A69,List!$D$3:$F$527,2,FALSE)&D69&"_"&VLOOKUP(E69,List!$I$2:$K$529,2,FALSE) -> RNIFCUB2X00_PC | L69: RNIFCUB2X00_PC AT%M5180.0 :BOOL; (*风机盘管B2层启停控制*) | M69: RNIFCUB2X00_PC AT%M5180.0 :BOOL; (*风机盘管B2层启停控制*)
A70: 风机盘管 | B70: RNI | C70: M | D70: B1X00 | E70: 程序控制 | F70: 5182.0 | H70: 验证通过 | I70: BOOL | J70: 风机盘管B1层启停控制 | K70: =B70&VLOOKUP(A70,List!$D$3:$F$527,2,FALSE)&D70&"_"&VLOOKUP(E70,List!$I$2:$K$529,2,FALSE) -> RNIFCUB1X00_PC | L70: RNIFCUB1X00_PC AT%M5182.0 :BOOL; (*风机盘管B1层启停控制*) | M70: RNIFCUB1X00_PC AT%M5182.0 :BOOL; (*风机盘管B1层启停控制*)
A71: 风机盘管 | B71: RNI | C71: M | D71: 01X00 | E71: 程序控制 | F71: =IF(OR(I70="REAL",I70="DWORD",I70="DINT"),(IF(OR(I71="REAL",I71="DWORD",I71="DINT"),F70+4+MOD(F70,4),F70+4)),(IF(OR(I71="REAL",I71="DWORD",I71="DINT"),F70+4+MOD(F70,4),F70+2)))&".0" -> 5184.0 | H71: 验证通过 | I71: BOOL | J71: 风机盘管1层启停控制 | K71: =B71&VLOOKUP(A71,List!$D$3:$F$527,2,FALSE)&D71&"_"&VLOOKUP(E71,List!$I$2:$K$529,2,FALSE) -> RNIFCU01X00_PC | L71: RNIFCU01X00_PC AT%M5184.0 :BOOL; (*风机盘管1层启停控制*) | M71: RNIFCU01X00_PC AT%M5184.0 :BOOL; (*风机盘管1层启停控制*)
A72: 风机盘管 | B72: RNI | C72: M | D72: 02X00 | E72: 程序控制 | F72: 5186.0 | H72: 验证通过 | I72: BOOL | J72: 风机盘管2层启停控制 | K72: =B72&VLOOKUP(A72,List!$D$3:$F$527,2,FALSE)&D72&"_"&VLOOKUP(E72,List!$I$2:$K$529,2,FALSE) -> RNIFCU02X00_PC | L72: RNIFCU02X00_PC AT%M5186.0 :BOOL; (*风机盘管2层启停控制*) | M72: RNIFCU02X00_PC AT%M5186.0 :BOOL; (*风机盘管2层启停控制*)
A73: 风机盘管 | B73: RNI | C73: M | D73: 03X00 | E73: 程序控制 | F73: 5188.0 | H73: 验证通过 | I73: BOOL | J73: 风机盘管3层启停控制 | K73: =B73&VLOOKUP(A73,List!$D$3:$F$527,2,FALSE)&D73&"_"&VLOOKUP(E73,List!$I$2:$K$529,2,FALSE) -> RNIFCU03X00_PC | L73: RNIFCU03X00_PC AT%M5188.0 :BOOL; (*风机盘管3层启停控制*) | M73: RNIFCU03X00_PC AT%M5188.0 :BOOL; (*风机盘管3层启停控制*)
A74: 风机盘管 | B74: RNI | C74: M | D74: 04X00 | E74: 程序控制 | F74: 5190.0 | H74: 验证通过 | I74: BOOL | J74: 风机盘管4层启停控制 | K74: =B74&VLOOKUP(A74,List!$D$3:$F$527,2,FALSE)&D74&"_"&VLOOKUP(E74,List!$I$2:$K$529,2,FALSE) -> RNIFCU04X00_PC | L74: RNIFCU04X00_PC AT%M5190.0 :BOOL; (*风机盘管4层启停控制*) | M74: RNIFCU04X00_PC AT%M5190.0 :BOOL; (*风机盘管4层启停控制*)
A75: 风机盘管 | B75: RNI | C75: M | D75: 05X00 | E75: 程序控制 | F75: 5192.0 | H75: 验证通过 | I75: BOOL | J75: 风机盘管5层启停控制 | K75: =B75&VLOOKUP(A75,List!$D$3:$F$527,2,FALSE)&D75&"_"&VLOOKUP(E75,List!$I$2:$K$529,2,FALSE) -> RNIFCU05X00_PC | L75: RNIFCU05X00_PC AT%M5192.0 :BOOL; (*风机盘管5层启停控制*) | M75: RNIFCU05X00_PC AT%M5192.0 :BOOL; (*风机盘管5层启停控制*)
A76: 风机盘管 | B76: RNI | C76: M | D76: 06X00 | E76: 程序控制 | F76: 5194.0 | H76: 验证通过 | I76: BOOL | J76: 风机盘管6层启停控制 | K76: =B76&VLOOKUP(A76,List!$D$3:$F$527,2,FALSE)&D76&"_"&VLOOKUP(E76,List!$I$2:$K$529,2,FALSE) -> RNIFCU06X00_PC | L76: RNIFCU06X00_PC AT%M5194.0 :BOOL; (*风机盘管6层启停控制*) | M76: RNIFCU06X00_PC AT%M5194.0 :BOOL; (*风机盘管6层启停控制*)
A77: 风机盘管 | B77: RNI | C77: M | D77: 07X00 | E77: 程序控制 | F77: 5196.0 | H77: 验证通过 | I77: BOOL | J77: 风机盘管7层启停控制 | K77: =B77&VLOOKUP(A77,List!$D$3:$F$527,2,FALSE)&D77&"_"&VLOOKUP(E77,List!$I$2:$K$529,2,FALSE) -> RNIFCU07X00_PC | L77: =K77&" "&"AT%"&C77&F77&" "&":"&I77&";"&" "&"(*"&J77&"*)" -> RNIFCU07X00_PC AT%M5196.0 :BOOL; (*风机盘管7层启停控制*) | M77: =REPLACE(REPLACE(L77,SEARCH("AT%",L77),,REPT(" ",25-SEARCH("AT%",L77))),SEARCH(":",REPLACE(L77,SEARCH("AT%",L77),,REPT(" ",25-SEARCH("AT%",L77)))),,REPT(" ",40-SEARCH(":",REPLACE(L77,SEARCH("AT%",L77),,REPT(" ",25-SEARCH("AT%",L77)))))) -> RNIFCU07X00_PC AT%M5196.0 :BOOL; (*风机盘管7层启停控制*)
A78: 风机盘管 | B78: RNI | C78: M | D78: 08X00 | E78: 程序控制 | F78: =IF(OR(I77="REAL",I77="DWORD",I77="DINT"),(IF(OR(I78="REAL",I78="DWORD",I78="DINT"),F77+4+MOD(F77,4),F77+4)),(IF(OR(I78="REAL",I78="DWORD",I78="DINT"),F77+4+MOD(F77,4),F77+2)))&".0" -> 5198.0 | H78: 验证通过 | I78: BOOL | J78: 风机盘管8层启停控制 | K78: =B78&VLOOKUP(A78,List!$D$3:$F$527,2,FALSE)&D78&"_"&VLOOKUP(E78,List!$I$2:$K$529,2,FALSE) -> RNIFCU08X00_PC | L78: RNIFCU08X00_PC AT%M5198.0 :BOOL; (*风机盘管8层启停控制*) | M78: RNIFCU08X00_PC AT%M5198.0 :BOOL; (*风机盘管8层启停控制*)
A79: 照明控制箱 | B79: RNI | C79: M | D79: B3X0A | E79: 启停控制 | F79: 5200.0 | H79: 验证通过 | I79: BOOL | J79: 基础照明A B3层全局启停控制 | K79: =B79&VLOOKUP(A79,List!$D$3:$F$527,2,FALSE)&D79&"_"&VLOOKUP(E79,List!$I$2:$K$529,2,FALSE) -> RNILCBB3X0A_C | L79: RNILCBB3X0A_C AT%M5200.0 :BOOL; (*基础照明A B3层全局启停控制*) | M79: RNILCBB3X0A_C AT%M5200.0 :BOOL; (*基础照明A B3层全局启停控制*)
A80: 照明控制箱 | B80: RNI | C80: M | D80: B2X0A | E80: 启停控制 | F80: =IF(OR(I79="REAL",I79="DWORD",I79="DINT"),(IF(OR(I80="REAL",I80="DWORD",I80="DINT"),F79+4+MOD(F79,4),F79+4)),(IF(OR(I80="REAL",I80="DWORD",I80="DINT"),F79+4+MOD(F79,4),F79+2)))&".0" -> 5202.0 | H80: 验证通过 | I80: BOOL | J80: 基础照明A B2层全局启停控制 | K80: =B80&VLOOKUP(A80,List!$D$3:$F$527,2,FALSE)&D80&"_"&VLOOKUP(E80,List!$I$2:$K$529,2,FALSE) -> RNILCBB2X0A_C | L80: RNILCBB2X0A_C AT%M5202.0 :BOOL; (*基础照明A B2层全局启停控制*) | M80: RNILCBB2X0A_C AT%M5202.0 :BOOL; (*基础照明A B2层全局启停控制*)
A81: 照明控制箱 | B81: RNI | C81: M | D81: B1X0A | E81: 启停控制 | F81: 5204.0 | H81: 验证通过 | I81: BOOL | J81: 基础照明A B1层全局启停控制 | K81: =B81&VLOOKUP(A81,List!$D$3:$F$527,2,FALSE)&D81&"_"&VLOOKUP(E81,List!$I$2:$K$529,2,FALSE) -> RNILCBB1X0A_C | L81: RNILCBB1X0A_C AT%M5204.0 :BOOL; (*基础照明A B1层全局启停控制*) | M81: RNILCBB1X0A_C AT%M5204.0 :BOOL; (*基础照明A B1层全局启停控制*)
A82: 照明控制箱 | B82: RNI | C82: M | D82: 01X0A | E82: 启停控制 | F82: 5206.0 | H82: 验证通过 | I82: BOOL | J82: 基础照明A 1层全局启停控制 | K82: =B82&VLOOKUP(A82,List!$D$3:$F$527,2,FALSE)&D82&"_"&VLOOKUP(E82,List!$I$2:$K$529,2,FALSE) -> RNILCB01X0A_C | L82: RNILCB01X0A_C AT%M5206.0 :BOOL; (*基础照明A 1层全局启停控制*) | M82: RNILCB01X0A_C AT%M5206.0 :BOOL; (*基础照明A 1层全局启停控制*)
A83: 照明控制箱 | B83: RNI | C83: M | D83: 02X0A | E83: 启停控制 | F83: 5208.0 | H83: 验证通过 | I83: BOOL | J83: 基础照明A 2层全局启停控制 | K83: =B83&VLOOKUP(A83,List!$D$3:$F$527,2,FALSE)&D83&"_"&VLOOKUP(E83,List!$I$2:$K$529,2,FALSE) -> RNILCB02X0A_C | L83: RNILCB02X0A_C AT%M5208.0 :BOOL; (*基础照明A 2层全局启停控制*) | M83: RNILCB02X0A_C AT%M5208.0 :BOOL; (*基础照明A 2层全局启停控制*)
A84: 照明控制箱 | B84: RNI | C84: M | D84: 03X0A | E84: 启停控制 | F84: 5210.0 | H84: 验证通过 | I84: BOOL | J84: 基础照明A 3层全局启停控制 | K84: =B84&VLOOKUP(A84,List!$D$3:$F$527,2,FALSE)&D84&"_"&VLOOKUP(E84,List!$I$2:$K$529,2,FALSE) -> RNILCB03X0A_C | L84: RNILCB03X0A_C AT%M5210.0 :BOOL; (*基础照明A 3层全局启停控制*) | M84: RNILCB03X0A_C AT%M5210.0 :BOOL; (*基础照明A 3层全局启停控制*)
A85: 照明控制箱 | B85: RNI | C85: M | D85: 04X0A | E85: 启停控制 | F85: 5212.0 | H85: 验证通过 | I85: BOOL | J85: 基础照明A 4层全局启停控制 | K85: =B85&VLOOKUP(A85,List!$D$3:$F$527,2,FALSE)&D85&"_"&VLOOKUP(E85,List!$I$2:$K$529,2,FALSE) -> RNILCB04X0A_C | L85: RNILCB04X0A_C AT%M5212.0 :BOOL; (*基础照明A 4层全局启停控制*) | M85: RNILCB04X0A_C AT%M5212.0 :BOOL; (*基础照明A 4层全局启停控制*)
A86: 照明控制箱 | B86: RNI | C86: M | D86: 05X0A | E86: 启停控制 | F86: 5214.0 | H86: 验证通过 | I86: BOOL | J86: 基础照明A 5层全局启停控制 | K86: =B86&VLOOKUP(A86,List!$D$3:$F$527,2,FALSE)&D86&"_"&VLOOKUP(E86,List!$I$2:$K$529,2,FALSE) -> RNILCB05X0A_C | L86: RNILCB05X0A_C AT%M5214.0 :BOOL; (*基础照明A 5层全局启停控制*) | M86: RNILCB05X0A_C AT%M5214.0 :BOOL; (*基础照明A 5层全局启停控制*)
A87: 照明控制箱 | B87: RNI | C87: M | D87: 06X0A | E87: 启停控制 | F87: 5216.0 | H87: 验证通过 | I87: BOOL | J87: 基础照明A 6层全局启停控制 | K87: =B87&VLOOKUP(A87,List!$D$3:$F$527,2,FALSE)&D87&"_"&VLOOKUP(E87,List!$I$2:$K$529,2,FALSE) -> RNILCB06X0A_C | L87: RNILCB06X0A_C AT%M5216.0 :BOOL; (*基础照明A 6层全局启停控制*) | M87: RNILCB06X0A_C AT%M5216.0 :BOOL; (*基础照明A 6层全局启停控制*)
A88: 照明控制箱 | B88: RNI | C88: M | D88: 07X0A | E88: 启停控制 | F88: 5218.0 | H88: 验证通过 | I88: BOOL | J88: 基础照明A 7层全局启停控制 | K88: =B88&VLOOKUP(A88,List!$D$3:$F$527,2,FALSE)&D88&"_"&VLOOKUP(E88,List!$I$2:$K$529,2,FALSE) -> RNILCB07X0A_C | L88: RNILCB07X0A_C AT%M5218.0 :BOOL; (*基础照明A 7层全局启停控制*) | M88: RNILCB07X0A_C AT%M5218.0 :BOOL; (*基础照明A 7层全局启停控制*)
A89: 照明控制箱 | B89: RNI | C89: M | D89: 08X0A | E89: 启停控制 | F89: 5220.0 | H89: 验证通过 | I89: BOOL | J89: 基础照明A 8层全局启停控制 | K89: =B89&VLOOKUP(A89,List!$D$3:$F$527,2,FALSE)&D89&"_"&VLOOKUP(E89,List!$I$2:$K$529,2,FALSE) -> RNILCB08X0A_C | L89: RNILCB08X0A_C AT%M5220.0 :BOOL; (*基础照明A 8层全局启停控制*) | M89: RNILCB08X0A_C AT%M5220.0 :BOOL; (*基础照明A 8层全局启停控制*)
A90: 照明控制箱 | B90: RNI | C90: M | D90: B3X0B | E90: 启停控制 | F90: 5222.0 | H90: 验证通过 | I90: BOOL | J90: 基础照明B B3层全局启停控制 | K90: =B90&VLOOKUP(A90,List!$D$3:$F$527,2,FALSE)&D90&"_"&VLOOKUP(E90,List!$I$2:$K$529,2,FALSE) -> RNILCBB3X0B_C | L90: RNILCBB3X0B_C AT%M5222.0 :BOOL; (*基础照明B B3层全局启停控制*) | M90: RNILCBB3X0B_C AT%M5222.0 :BOOL; (*基础照明B B3层全局启停控制*)
A91: 照明控制箱 | B91: RNI | C91: M | D91: B2X0B | E91: 启停控制 | F91: 5224.0 | H91: 验证通过 | I91: BOOL | J91: 基础照明B B2层全局启停控制 | K91: =B91&VLOOKUP(A91,List!$D$3:$F$527,2,FALSE)&D91&"_"&VLOOKUP(E91,List!$I$2:$K$529,2,FALSE) -> RNILCBB2X0B_C | L91: RNILCBB2X0B_C AT%M5224.0 :BOOL; (*基础照明B B2层全局启停控制*) | M91: RNILCBB2X0B_C AT%M5224.0 :BOOL; (*基础照明B B2层全局启停控制*)
A92: 照明控制箱 | B92: RNI | C92: M | D92: B1X0B | E92: 启停控制 | F92: 5226.0 | H92: 验证通过 | I92: BOOL | J92: 基础照明B B1层全局启停控制 | K92: =B92&VLOOKUP(A92,List!$D$3:$F$527,2,FALSE)&D92&"_"&VLOOKUP(E92,List!$I$2:$K$529,2,FALSE) -> RNILCBB1X0B_C | L92: RNILCBB1X0B_C AT%M5226.0 :BOOL; (*基础照明B B1层全局启停控制*) | M92: RNILCBB1X0B_C AT%M5226.0 :BOOL; (*基础照明B B1层全局启停控制*)
A93: 照明控制箱 | B93: RNI | C93: M | D93: 01X0B | E93: 启停控制 | F93: 5228.0 | H93: 验证通过 | I93: BOOL | J93: 基础照明B 1层全局启停控制 | K93: =B93&VLOOKUP(A93,List!$D$3:$F$527,2,FALSE)&D93&"_"&VLOOKUP(E93,List!$I$2:$K$529,2,FALSE) -> RNILCB01X0B_C | L93: RNILCB01X0B_C AT%M5228.0 :BOOL; (*基础照明B 1层全局启停控制*) | M93: RNILCB01X0B_C AT%M5228.0 :BOOL; (*基础照明B 1层全局启停控制*)
A94: 照明控制箱 | B94: RNI | C94: M | D94: 02X0B | E94: 启停控制 | F94: 5230.0 | H94: 验证通过 | I94: BOOL | J94: 基础照明B 2层全局启停控制 | K94: =B94&VLOOKUP(A94,List!$D$3:$F$527,2,FALSE)&D94&"_"&VLOOKUP(E94,List!$I$2:$K$529,2,FALSE) -> RNILCB02X0B_C | L94: RNILCB02X0B_C AT%M5230.0 :BOOL; (*基础照明B 2层全局启停控制*) | M94: RNILCB02X0B_C AT%M5230.0 :BOOL; (*基础照明B 2层全局启停控制*)
A95: 照明控制箱 | B95: RNI | C95: M | D95: 03X0B | E95: 启停控制 | F95: 5232.0 | H95: 验证通过 | I95: BOOL | J95: 基础照明B 3层全局启停控制 | K95: =B95&VLOOKUP(A95,List!$D$3:$F$527,2,FALSE)&D95&"_"&VLOOKUP(E95,List!$I$2:$K$529,2,FALSE) -> RNILCB03X0B_C | L95: RNILCB03X0B_C AT%M5232.0 :BOOL; (*基础照明B 3层全局启停控制*) | M95: RNILCB03X0B_C AT%M5232.0 :BOOL; (*基础照明B 3层全局启停控制*)
A96: 照明控制箱 | B96: RNI | C96: M | D96: 04X0B | E96: 启停控制 | F96: 5234.0 | H96: 验证通过 | I96: BOOL | J96: 基础照明B 4层全局启停控制 | K96: =B96&VLOOKUP(A96,List!$D$3:$F$527,2,FALSE)&D96&"_"&VLOOKUP(E96,List!$I$2:$K$529,2,FALSE) -> RNILCB04X0B_C | L96: RNILCB04X0B_C AT%M5234.0 :BOOL; (*基础照明B 4层全局启停控制*) | M96: RNILCB04X0B_C AT%M5234.0 :BOOL; (*基础照明B 4层全局启停控制*)
A97: 照明控制箱 | B97: RNI | C97: M | D97: 05X0B | E97: 启停控制 | F97: 5236.0 | H97: 验证通过 | I97: BOOL | J97: 基础照明B 5层全局启停控制 | K97: =B97&VLOOKUP(A97,List!$D$3:$F$527,2,FALSE)&D97&"_"&VLOOKUP(E97,List!$I$2:$K$529,2,FALSE) -> RNILCB05X0B_C | L97: RNILCB05X0B_C AT%M5236.0 :BOOL; (*基础照明B 5层全局启停控制*) | M97: RNILCB05X0B_C AT%M5236.0 :BOOL; (*基础照明B 5层全局启停控制*)
A98: 照明控制箱 | B98: RNI | C98: M | D98: 06X0B | E98: 启停控制 | F98: 5238.0 | H98: 验证通过 | I98: BOOL | J98: 基础照明B 6层全局启停控制 | K98: =B98&VLOOKUP(A98,List!$D$3:$F$527,2,FALSE)&D98&"_"&VLOOKUP(E98,List!$I$2:$K$529,2,FALSE) -> RNILCB06X0B_C | L98: RNILCB06X0B_C AT%M5238.0 :BOOL; (*基础照明B 6层全局启停控制*) | M98: RNILCB06X0B_C AT%M5238.0 :BOOL; (*基础照明B 6层全局启停控制*)
A99: 照明控制箱 | B99: RNI | C99: M | D99: 07X0B | E99: 启停控制 | F99: 5240.0 | H99: 验证通过 | I99: BOOL | J99: 基础照明B 7层全局启停控制 | K99: =B99&VLOOKUP(A99,List!$D$3:$F$527,2,FALSE)&D99&"_"&VLOOKUP(E99,List!$I$2:$K$529,2,FALSE) -> RNILCB07X0B_C | L99: RNILCB07X0B_C AT%M5240.0 :BOOL; (*基础照明B 7层全局启停控制*) | M99: RNILCB07X0B_C AT%M5240.0 :BOOL; (*基础照明B 7层全局启停控制*)
A100: 照明控制箱 | B100: RNI | C100: M | D100: 08X0B | E100: 启停控制 | F100: 5242.0 | H100: 验证通过 | I100: BOOL | J100: 基础照明B 8层全局启停控制 | K100: =B100&VLOOKUP(A100,List!$D$3:$F$527,2,FALSE)&D100&"_"&VLOOKUP(E100,List!$I$2:$K$529,2,FALSE) -> RNILCB08X0B_C | L100: RNILCB08X0B_C AT%M5242.0 :BOOL; (*基础照明B 8层全局启停控制*) | M100: RNILCB08X0B_C AT%M5242.0 :BOOL; (*基础照明B 8层全局启停控制*)
A101: 照明控制箱 | B101: RNI | C101: M | D101: B3X0C | E101: 启停控制 | F101: 5244.0 | H101: 验证通过 | I101: BOOL | J101: 灯带 B3层全局启停控制 | K101: =B101&VLOOKUP(A101,List!$D$3:$F$527,2,FALSE)&D101&"_"&VLOOKUP(E101,List!$I$2:$K$529,2,FALSE) -> RNILCBB3X0C_C | L101: RNILCBB3X0C_C AT%M5244.0 :BOOL; (*灯带 B3层全局启停控制*) | M101: RNILCBB3X0C_C AT%M5244.0 :BOOL; (*灯带 B3层全局启停控制*)
A102: 照明控制箱 | B102: RNI | C102: M | D102: B2X0C | E102: 启停控制 | F102: 5246.0 | H102: 验证通过 | I102: BOOL | J102: 灯带 B2层全局启停控制 | K102: =B102&VLOOKUP(A102,List!$D$3:$F$527,2,FALSE)&D102&"_"&VLOOKUP(E102,List!$I$2:$K$529,2,FALSE) -> RNILCBB2X0C_C | L102: RNILCBB2X0C_C AT%M5246.0 :BOOL; (*灯带 B2层全局启停控制*) | M102: RNILCBB2X0C_C AT%M5246.0 :BOOL; (*灯带 B2层全局启停控制*)
A103: 照明控制箱 | B103: RNI | C103: M | D103: B1X0C | E103: 启停控制 | F103: 5248.0 | H103: 验证通过 | I103: BOOL | J103: 灯带 B1层全局启停控制 | K103: =B103&VLOOKUP(A103,List!$D$3:$F$527,2,FALSE)&D103&"_"&VLOOKUP(E103,List!$I$2:$K$529,2,FALSE) -> RNILCBB1X0C_C | L103: RNILCBB1X0C_C AT%M5248.0 :BOOL; (*灯带 B1层全局启停控制*) | M103: RNILCBB1X0C_C AT%M5248.0 :BOOL; (*灯带 B1层全局启停控制*)
A104: 照明控制箱 | B104: RNI | C104: M | D104: 01X0C | E104: 启停控制 | F104: 5250.0 | H104: 验证通过 | I104: BOOL | J104: 灯带 1层全局启停控制 | K104: =B104&VLOOKUP(A104,List!$D$3:$F$527,2,FALSE)&D104&"_"&VLOOKUP(E104,List!$I$2:$K$529,2,FALSE) -> RNILCB01X0C_C | L104: RNILCB01X0C_C AT%M5250.0 :BOOL; (*灯带 1层全局启停控制*) | M104: RNILCB01X0C_C AT%M5250.0 :BOOL; (*灯带 1层全局启停控制*)
A105: 照明控制箱 | B105: RNI | C105: M | D105: 02X0C | E105: 启停控制 | F105: 5252.0 | H105: 验证通过 | I105: BOOL | J105: 灯带 2层全局启停控制 | K105: =B105&VLOOKUP(A105,List!$D$3:$F$527,2,FALSE)&D105&"_"&VLOOKUP(E105,List!$I$2:$K$529,2,FALSE) -> RNILCB02X0C_C | L105: RNILCB02X0C_C AT%M5252.0 :BOOL; (*灯带 2层全局启停控制*) | M105: RNILCB02X0C_C AT%M5252.0 :BOOL; (*灯带 2层全局启停控制*)
A106: 照明控制箱 | B106: RNI | C106: M | D106: 03X0C | E106: 启停控制 | F106: 5254.0 | H106: 验证通过 | I106: BOOL | J106: 灯带 3层全局启停控制 | K106: =B106&VLOOKUP(A106,List!$D$3:$F$527,2,FALSE)&D106&"_"&VLOOKUP(E106,List!$I$2:$K$529,2,FALSE) -> RNILCB03X0C_C | L106: RNILCB03X0C_C AT%M5254.0 :BOOL; (*灯带 3层全局启停控制*) | M106: RNILCB03X0C_C AT%M5254.0 :BOOL; (*灯带 3层全局启停控制*)
A107: 照明控制箱 | B107: RNI | C107: M | D107: 04X0C | E107: 启停控制 | F107: 5256.0 | H107: 验证通过 | I107: BOOL | J107: 灯带 4层全局启停控制 | K107: =B107&VLOOKUP(A107,List!$D$3:$F$527,2,FALSE)&D107&"_"&VLOOKUP(E107,List!$I$2:$K$529,2,FALSE) -> RNILCB04X0C_C | L107: RNILCB04X0C_C AT%M5256.0 :BOOL; (*灯带 4层全局启停控制*) | M107: RNILCB04X0C_C AT%M5256.0 :BOOL; (*灯带 4层全局启停控制*)
A108: 照明控制箱 | B108: RNI | C108: M | D108: 05X0C | E108: 启停控制 | F108: 5258.0 | H108: 验证通过 | I108: BOOL | J108: 灯带 5层全局启停控制 | K108: =B108&VLOOKUP(A108,List!$D$3:$F$527,2,FALSE)&D108&"_"&VLOOKUP(E108,List!$I$2:$K$529,2,FALSE) -> RNILCB05X0C_C | L108: RNILCB05X0C_C AT%M5258.0 :BOOL; (*灯带 5层全局启停控制*) | M108: RNILCB05X0C_C AT%M5258.0 :BOOL; (*灯带 5层全局启停控制*)
A109: 照明控制箱 | B109: RNI | C109: M | D109: 06X0C | E109: 启停控制 | F109: 5260.0 | H109: 验证通过 | I109: BOOL | J109: 灯带 6层全局启停控制 | K109: =B109&VLOOKUP(A109,List!$D$3:$F$527,2,FALSE)&D109&"_"&VLOOKUP(E109,List!$I$2:$K$529,2,FALSE) -> RNILCB06X0C_C | L109: RNILCB06X0C_C AT%M5260.0 :BOOL; (*灯带 6层全局启停控制*) | M109: RNILCB06X0C_C AT%M5260.0 :BOOL; (*灯带 6层全局启停控制*)
A110: 照明控制箱 | B110: RNI | C110: M | D110: 07X0C | E110: 启停控制 | F110: 5262.0 | H110: 验证通过 | I110: BOOL | J110: 灯带 7层全局启停控制 | K110: =B110&VLOOKUP(A110,List!$D$3:$F$527,2,FALSE)&D110&"_"&VLOOKUP(E110,List!$I$2:$K$529,2,FALSE) -> RNILCB07X0C_C | L110: RNILCB07X0C_C AT%M5262.0 :BOOL; (*灯带 7层全局启停控制*) | M110: RNILCB07X0C_C AT%M5262.0 :BOOL; (*灯带 7层全局启停控制*)
A111: 照明控制箱 | B111: RNI | C111: M | D111: 08X0C | E111: 启停控制 | F111: 5264.0 | H111: 验证通过 | I111: BOOL | J111: 灯带 8层全局启停控制 | K111: =B111&VLOOKUP(A111,List!$D$3:$F$527,2,FALSE)&D111&"_"&VLOOKUP(E111,List!$I$2:$K$529,2,FALSE) -> RNILCB08X0C_C | L111: RNILCB08X0C_C AT%M5264.0 :BOOL; (*灯带 8层全局启停控制*) | M111: RNILCB08X0C_C AT%M5264.0 :BOOL; (*灯带 8层全局启停控制*)
A112: 照明控制箱 | B112: RNI | C112: M | D112: B3X0D | E112: 启停控制 | F112: 5266.0 | H112: 验证通过 | I112: BOOL | J112: 广告 B3层全局启停控制 | K112: =B112&VLOOKUP(A112,List!$D$3:$F$527,2,FALSE)&D112&"_"&VLOOKUP(E112,List!$I$2:$K$529,2,FALSE) -> RNILCBB3X0D_C | L112: RNILCBB3X0D_C AT%M5266.0 :BOOL; (*广告 B3层全局启停控制*) | M112: RNILCBB3X0D_C AT%M5266.0 :BOOL; (*广告 B3层全局启停控制*)
A113: 照明控制箱 | B113: RNI | C113: M | D113: B2X0D | E113: 启停控制 | F113: 5268.0 | H113: 验证通过 | I113: BOOL | J113: 广告 B2层全局启停控制 | K113: =B113&VLOOKUP(A113,List!$D$3:$F$527,2,FALSE)&D113&"_"&VLOOKUP(E113,List!$I$2:$K$529,2,FALSE) -> RNILCBB2X0D_C | L113: RNILCBB2X0D_C AT%M5268.0 :BOOL; (*广告 B2层全局启停控制*) | M113: RNILCBB2X0D_C AT%M5268.0 :BOOL; (*广告 B2层全局启停控制*)
A114: 照明控制箱 | B114: RNI | C114: M | D114: B1X0D | E114: 启停控制 | F114: 5270.0 | H114: 验证通过 | I114: BOOL | J114: 广告 B1层全局启停控制 | K114: =B114&VLOOKUP(A114,List!$D$3:$F$527,2,FALSE)&D114&"_"&VLOOKUP(E114,List!$I$2:$K$529,2,FALSE) -> RNILCBB1X0D_C | L114: RNILCBB1X0D_C AT%M5270.0 :BOOL; (*广告 B1层全局启停控制*) | M114: RNILCBB1X0D_C AT%M5270.0 :BOOL; (*广告 B1层全局启停控制*)
A115: 照明控制箱 | B115: RNI | C115: M | D115: 01X0D | E115: 启停控制 | F115: 5272.0 | H115: 验证通过 | I115: BOOL | J115: 广告 1层全局启停控制 | K115: =B115&VLOOKUP(A115,List!$D$3:$F$527,2,FALSE)&D115&"_"&VLOOKUP(E115,List!$I$2:$K$529,2,FALSE) -> RNILCB01X0D_C | L115: RNILCB01X0D_C AT%M5272.0 :BOOL; (*广告 1层全局启停控制*) | M115: RNILCB01X0D_C AT%M5272.0 :BOOL; (*广告 1层全局启停控制*)
A116: 照明控制箱 | B116: RNI | C116: M | D116: 02X0D | E116: 启停控制 | F116: 5274.0 | H116: 验证通过 | I116: BOOL | J116: 广告 2层全局启停控制 | K116: =B116&VLOOKUP(A116,List!$D$3:$F$527,2,FALSE)&D116&"_"&VLOOKUP(E116,List!$I$2:$K$529,2,FALSE) -> RNILCB02X0D_C | L116: RNILCB02X0D_C AT%M5274.0 :BOOL; (*广告 2层全局启停控制*) | M116: RNILCB02X0D_C AT%M5274.0 :BOOL; (*广告 2层全局启停控制*)
A117: 照明控制箱 | B117: RNI | C117: M | D117: 03X0D | E117: 启停控制 | F117: 5276.0 | H117: 验证通过 | I117: BOOL | J117: 广告 3层全局启停控制 | K117: =B117&VLOOKUP(A117,List!$D$3:$F$527,2,FALSE)&D117&"_"&VLOOKUP(E117,List!$I$2:$K$529,2,FALSE) -> RNILCB03X0D_C | L117: RNILCB03X0D_C AT%M5276.0 :BOOL; (*广告 3层全局启停控制*) | M117: RNILCB03X0D_C AT%M5276.0 :BOOL; (*广告 3层全局启停控制*)
A118: 照明控制箱 | B118: RNI | C118: M | D118: 04X0D | E118: 启停控制 | F118: 5278.0 | H118: 验证通过 | I118: BOOL | J118: 广告 4层全局启停控制 | K118: =B118&VLOOKUP(A118,List!$D$3:$F$527,2,FALSE)&D118&"_"&VLOOKUP(E118,List!$I$2:$K$529,2,FALSE) -> RNILCB04X0D_C | L118: RNILCB04X0D_C AT%M5278.0 :BOOL; (*广告 4层全局启停控制*) | M118: RNILCB04X0D_C AT%M5278.0 :BOOL; (*广告 4层全局启停控制*)
A119: 照明控制箱 | B119: RNI | C119: M | D119: 05X0D | E119: 启停控制 | F119: 5280.0 | H119: 验证通过 | I119: BOOL | J119: 广告 5层全局启停控制 | K119: =B119&VLOOKUP(A119,List!$D$3:$F$527,2,FALSE)&D119&"_"&VLOOKUP(E119,List!$I$2:$K$529,2,FALSE) -> RNILCB05X0D_C | L119: RNILCB05X0D_C AT%M5280.0 :BOOL; (*广告 5层全局启停控制*) | M119: RNILCB05X0D_C AT%M5280.0 :BOOL; (*广告 5层全局启停控制*)
A120: 照明控制箱 | B120: RNI | C120: M | D120: 06X0D | E120: 启停控制 | F120: 5282.0 | H120: 验证通过 | I120: BOOL | J120: 广告 6层全局启停控制 | K120: =B120&VLOOKUP(A120,List!$D$3:$F$527,2,FALSE)&D120&"_"&VLOOKUP(E120,List!$I$2:$K$529,2,FALSE) -> RNILCB06X0D_C | L120: RNILCB06X0D_C AT%M5282.0 :BOOL; (*广告 6层全局启停控制*) | M120: RNILCB06X0D_C AT%M5282.0 :BOOL; (*广告 6层全局启停控制*)
A121: 照明控制箱 | B121: RNI | C121: M | D121: 07X0D | E121: 启停控制 | F121: 5284.0 | H121: 验证通过 | I121: BOOL | J121: 广告 7层全局启停控制 | K121: =B121&VLOOKUP(A121,List!$D$3:$F$527,2,FALSE)&D121&"_"&VLOOKUP(E121,List!$I$2:$K$529,2,FALSE) -> RNILCB07X0D_C | L121: RNILCB07X0D_C AT%M5284.0 :BOOL; (*广告 7层全局启停控制*) | M121: RNILCB07X0D_C AT%M5284.0 :BOOL; (*广告 7层全局启停控制*)
A122: 照明控制箱 | B122: RNI | C122: M | D122: 08X0D | E122: 启停控制 | F122: 5286.0 | H122: 验证通过 | I122: BOOL | J122: 广告 8层全局启停控制 | K122: =B122&VLOOKUP(A122,List!$D$3:$F$527,2,FALSE)&D122&"_"&VLOOKUP(E122,List!$I$2:$K$529,2,FALSE) -> RNILCB08X0D_C | L122: RNILCB08X0D_C AT%M5286.0 :BOOL; (*广告 8层全局启停控制*) | M122: RNILCB08X0D_C AT%M5286.0 :BOOL; (*广告 8层全局启停控制*)
A123: 照明控制箱 | B123: RNI | C123: M | D123: B3X0E | E123: 启停控制 | F123: 5288.0 | H123: 验证通过 | I123: BOOL | J123: 标识 B3层全局启停控制 | K123: =B123&VLOOKUP(A123,List!$D$3:$F$527,2,FALSE)&D123&"_"&VLOOKUP(E123,List!$I$2:$K$529,2,FALSE) -> RNILCBB3X0E_C | L123: RNILCBB3X0E_C AT%M5288.0 :BOOL; (*标识 B3层全局启停控制*) | M123: RNILCBB3X0E_C AT%M5288.0 :BOOL; (*标识 B3层全局启停控制*)
A124: 照明控制箱 | B124: RNI | C124: M | D124: B2X0E | E124: 启停控制 | F124: 5290.0 | H124: 验证通过 | I124: BOOL | J124: 标识 B2层全局启停控制 | K124: =B124&VLOOKUP(A124,List!$D$3:$F$527,2,FALSE)&D124&"_"&VLOOKUP(E124,List!$I$2:$K$529,2,FALSE) -> RNILCBB2X0E_C | L124: RNILCBB2X0E_C AT%M5290.0 :BOOL; (*标识 B2层全局启停控制*) | M124: RNILCBB2X0E_C AT%M5290.0 :BOOL; (*标识 B2层全局启停控制*)
A125: 照明控制箱 | B125: RNI | C125: M | D125: B1X0E | E125: 启停控制 | F125: 5292.0 | H125: 验证通过 | I125: BOOL | J125: 标识 B1层全局启停控制 | K125: =B125&VLOOKUP(A125,List!$D$3:$F$527,2,FALSE)&D125&"_"&VLOOKUP(E125,List!$I$2:$K$529,2,FALSE) -> RNILCBB1X0E_C | L125: RNILCBB1X0E_C AT%M5292.0 :BOOL; (*标识 B1层全局启停控制*) | M125: RNILCBB1X0E_C AT%M5292.0 :BOOL; (*标识 B1层全局启停控制*)
A126: 照明控制箱 | B126: RNI | C126: M | D126: 01X0E | E126: 启停控制 | F126: 5294.0 | H126: 验证通过 | I126: BOOL | J126: 标识 1层全局启停控制 | K126: =B126&VLOOKUP(A126,List!$D$3:$F$527,2,FALSE)&D126&"_"&VLOOKUP(E126,List!$I$2:$K$529,2,FALSE) -> RNILCB01X0E_C | L126: RNILCB01X0E_C AT%M5294.0 :BOOL; (*标识 1层全局启停控制*) | M126: RNILCB01X0E_C AT%M5294.0 :BOOL; (*标识 1层全局启停控制*)
A127: 照明控制箱 | B127: RNI | C127: M | D127: 02X0E | E127: 启停控制 | F127: 5296.0 | H127: 验证通过 | I127: BOOL | J127: 标识 2层全局启停控制 | K127: =B127&VLOOKUP(A127,List!$D$3:$F$527,2,FALSE)&D127&"_"&VLOOKUP(E127,List!$I$2:$K$529,2,FALSE) -> RNILCB02X0E_C | L127: RNILCB02X0E_C AT%M5296.0 :BOOL; (*标识 2层全局启停控制*) | M127: RNILCB02X0E_C AT%M5296.0 :BOOL; (*标识 2层全局启停控制*)
A128: 照明控制箱 | B128: RNI | C128: M | D128: 03X0E | E128: 启停控制 | F128: 5298.0 | H128: =IF((IF(OR(I128="INT",I128="WORD",I128="BOOL"),MOD(F128,2),MOD(F128,4)))=0,"验证通过","验证失败") -> 验证通过 | I128: BOOL | J128: 标识 3层全局启停控制 | K128: =B128&VLOOKUP(A128,List!$D$3:$F$527,2,FALSE)&D128&"_"&VLOOKUP(E128,List!$I$2:$K$529,2,FALSE) -> RNILCB03X0E_C | L128: RNILCB03X0E_C AT%M5298.0 :BOOL; (*标识 3层全局启停控制*) | M128: RNILCB03X0E_C AT%M5298.0 :BOOL; (*标识 3层全局启停控制*)
A129: 照明控制箱 | B129: RNI | C129: M | D129: 04X0E | E129: 启停控制 | F129: 5300.0 | H129: 验证通过 | I129: BOOL | J129: 标识 4层全局启停控制 | K129: =B129&VLOOKUP(A129,List!$D$3:$F$527,2,FALSE)&D129&"_"&VLOOKUP(E129,List!$I$2:$K$529,2,FALSE) -> RNILCB04X0E_C | L129: RNILCB04X0E_C AT%M5300.0 :BOOL; (*标识 4层全局启停控制*) | M129: RNILCB04X0E_C AT%M5300.0 :BOOL; (*标识 4层全局启停控制*)
A130: 照明控制箱 | B130: RNI | C130: M | D130: 05X0E | E130: 启停控制 | F130: 5302.0 | H130: 验证通过 | I130: BOOL | J130: 标识 5层全局启停控制 | K130: =B130&VLOOKUP(A130,List!$D$3:$F$527,2,FALSE)&D130&"_"&VLOOKUP(E130,List!$I$2:$K$529,2,FALSE) -> RNILCB05X0E_C | L130: RNILCB05X0E_C AT%M5302.0 :BOOL; (*标识 5层全局启停控制*) | M130: RNILCB05X0E_C AT%M5302.0 :BOOL; (*标识 5层全局启停控制*)
A131: 照明控制箱 | B131: RNI | C131: M | D131: 06X0E | E131: 启停控制 | F131: 5304.0 | H131: 验证通过 | I131: BOOL | J131: 标识 6层全局启停控制 | K131: =B131&VLOOKUP(A131,List!$D$3:$F$527,2,FALSE)&D131&"_"&VLOOKUP(E131,List!$I$2:$K$529,2,FALSE) -> RNILCB06X0E_C | L131: RNILCB06X0E_C AT%M5304.0 :BOOL; (*标识 6层全局启停控制*) | M131: RNILCB06X0E_C AT%M5304.0 :BOOL; (*标识 6层全局启停控制*)
A132: 照明控制箱 | B132: RNI | C132: M | D132: 07X0E | E132: 启停控制 | F132: 5306.0 | H132: 验证通过 | I132: BOOL | J132: 标识 7层全局启停控制 | K132: =B132&VLOOKUP(A132,List!$D$3:$F$527,2,FALSE)&D132&"_"&VLOOKUP(E132,List!$I$2:$K$529,2,FALSE) -> RNILCB07X0E_C | L132: RNILCB07X0E_C AT%M5306.0 :BOOL; (*标识 7层全局启停控制*) | M132: RNILCB07X0E_C AT%M5306.0 :BOOL; (*标识 7层全局启停控制*)
A133: 照明控制箱 | B133: RNI | C133: M | D133: 08X0E | E133: 启停控制 | F133: 5308.0 | H133: 验证通过 | I133: BOOL | J133: 标识 8层全局启停控制 | K133: =B133&VLOOKUP(A133,List!$D$3:$F$527,2,FALSE)&D133&"_"&VLOOKUP(E133,List!$I$2:$K$529,2,FALSE) -> RNILCB08X0E_C | L133: RNILCB08X0E_C AT%M5308.0 :BOOL; (*标识 8层全局启停控制*) | M133: RNILCB08X0E_C AT%M5308.0 :BOOL; (*标识 8层全局启停控制*)
A134: 照明控制箱 | B134: RNI | C134: M | D134: B3X0F | E134: 启停控制 | F134: 5310.0 | H134: 验证通过 | I134: BOOL | J134: 备用 B3层全局启停控制 | K134: =B134&VLOOKUP(A134,List!$D$3:$F$527,2,FALSE)&D134&"_"&VLOOKUP(E134,List!$I$2:$K$529,2,FALSE) -> RNILCBB3X0F_C | L134: RNILCBB3X0F_C AT%M5310.0 :BOOL; (*备用 B3层全局启停控制*) | M134: RNILCBB3X0F_C AT%M5310.0 :BOOL; (*备用 B3层全局启停控制*)
A135: 照明控制箱 | B135: RNI | C135: M | D135: B2X0F | E135: 启停控制 | F135: 5312.0 | H135: 验证通过 | I135: BOOL | J135: 备用 B2层全局启停控制 | K135: =B135&VLOOKUP(A135,List!$D$3:$F$527,2,FALSE)&D135&"_"&VLOOKUP(E135,List!$I$2:$K$529,2,FALSE) -> RNILCBB2X0F_C | L135: RNILCBB2X0F_C AT%M5312.0 :BOOL; (*备用 B2层全局启停控制*) | M135: RNILCBB2X0F_C AT%M5312.0 :BOOL; (*备用 B2层全局启停控制*)
A136: 照明控制箱 | B136: RNI | C136: M | D136: B1X0F | E136: 启停控制 | F136: 5314.0 | H136: 验证通过 | I136: BOOL | J136: 备用 B1层全局启停控制 | K136: =B136&VLOOKUP(A136,List!$D$3:$F$527,2,FALSE)&D136&"_"&VLOOKUP(E136,List!$I$2:$K$529,2,FALSE) -> RNILCBB1X0F_C | L136: RNILCBB1X0F_C AT%M5314.0 :BOOL; (*备用 B1层全局启停控制*) | M136: RNILCBB1X0F_C AT%M5314.0 :BOOL; (*备用 B1层全局启停控制*)
A137: 照明控制箱 | B137: RNI | C137: M | D137: 01X0F | E137: 启停控制 | F137: 5316.0 | H137: 验证通过 | I137: BOOL | J137: 备用 1层全局启停控制 | K137: =B137&VLOOKUP(A137,List!$D$3:$F$527,2,FALSE)&D137&"_"&VLOOKUP(E137,List!$I$2:$K$529,2,FALSE) -> RNILCB01X0F_C | L137: RNILCB01X0F_C AT%M5316.0 :BOOL; (*备用 1层全局启停控制*) | M137: RNILCB01X0F_C AT%M5316.0 :BOOL; (*备用 1层全局启停控制*)
A138: 照明控制箱 | B138: RNI | C138: M | D138: 02X0F | E138: 启停控制 | F138: 5318.0 | H138: 验证通过 | I138: BOOL | J138: 备用 2层全局启停控制 | K138: =B138&VLOOKUP(A138,List!$D$3:$F$527,2,FALSE)&D138&"_"&VLOOKUP(E138,List!$I$2:$K$529,2,FALSE) -> RNILCB02X0F_C | L138: RNILCB02X0F_C AT%M5318.0 :BOOL; (*备用 2层全局启停控制*) | M138: RNILCB02X0F_C AT%M5318.0 :BOOL; (*备用 2层全局启停控制*)
A139: 照明控制箱 | B139: RNI | C139: M | D139: 03X0F | E139: 启停控制 | F139: 5320.0 | H139: 验证通过 | I139: BOOL | J139: 备用 3层全局启停控制 | K139: =B139&VLOOKUP(A139,List!$D$3:$F$527,2,FALSE)&D139&"_"&VLOOKUP(E139,List!$I$2:$K$529,2,FALSE) -> RNILCB03X0F_C | L139: RNILCB03X0F_C AT%M5320.0 :BOOL; (*备用 3层全局启停控制*) | M139: RNILCB03X0F_C AT%M5320.0 :BOOL; (*备用 3层全局启停控制*)
A140: 照明控制箱 | B140: RNI | C140: M | D140: 04X0F | E140: 启停控制 | F140: 5322.0 | H140: 验证通过 | I140: BOOL | J140: 备用 4层全局启停控制 | K140: =B140&VLOOKUP(A140,List!$D$3:$F$527,2,FALSE)&D140&"_"&VLOOKUP(E140,List!$I$2:$K$529,2,FALSE) -> RNILCB04X0F_C | L140: RNILCB04X0F_C AT%M5322.0 :BOOL; (*备用 4层全局启停控制*) | M140: RNILCB04X0F_C AT%M5322.0 :BOOL; (*备用 4层全局启停控制*)
A141: 照明控制箱 | B141: RNI | C141: M | D141: 05X0F | E141: 启停控制 | F141: 5324.0 | H141: 验证通过 | I141: BOOL | J141: 备用 5层全局启停控制 | K141: =B141&VLOOKUP(A141,List!$D$3:$F$527,2,FALSE)&D141&"_"&VLOOKUP(E141,List!$I$2:$K$529,2,FALSE) -> RNILCB05X0F_C | L141: =K141&" "&"AT%"&C141&F141&" "&":"&I141&";"&" "&"(*"&J141&"*)" -> RNILCB05X0F_C AT%M5324.0 :BOOL; (*备用 5层全局启停控制*) | M141: =REPLACE(REPLACE(L141,SEARCH("AT%",L141),,REPT(" ",25-SEARCH("AT%",L141))),SEARCH(":",REPLACE(L141,SEARCH("AT%",L141),,REPT(" ",25-SEARCH("AT%",L141)))),,REPT(" ",40-SEARCH(":",REPLACE(L141,SEARCH("AT%",L141),,REPT(" ",25-SEARCH("AT%",L141)))))) -> RNILCB05X0F_C AT%M5324.0 :BOOL; (*备用 5层全局启停控制*)
A142: 照明控制箱 | B142: RNI | C142: M | D142: 06X0F | E142: 启停控制 | F142: 5326.0 | H142: 验证通过 | I142: BOOL | J142: 备用 6层全局启停控制 | K142: =B142&VLOOKUP(A142,List!$D$3:$F$527,2,FALSE)&D142&"_"&VLOOKUP(E142,List!$I$2:$K$529,2,FALSE) -> RNILCB06X0F_C | L142: RNILCB06X0F_C AT%M5326.0 :BOOL; (*备用 6层全局启停控制*) | M142: RNILCB06X0F_C AT%M5326.0 :BOOL; (*备用 6层全局启停控制*)
A143: 照明控制箱 | B143: RNI | C143: M | D143: 07X0F | E143: 启停控制 | F143: 5328.0 | H143: 验证通过 | I143: BOOL | J143: 备用 7层全局启停控制 | K143: =B143&VLOOKUP(A143,List!$D$3:$F$527,2,FALSE)&D143&"_"&VLOOKUP(E143,List!$I$2:$K$529,2,FALSE) -> RNILCB07X0F_C | L143: RNILCB07X0F_C AT%M5328.0 :BOOL; (*备用 7层全局启停控制*) | M143: RNILCB07X0F_C AT%M5328.0 :BOOL; (*备用 7层全局启停控制*)
A144: 照明控制箱 | B144: RNI | C144: M | D144: 08X0F | E144: 启停控制 | F144: =IF(OR(I143="REAL",I143="DWORD",I143="DINT"),(IF(OR(I144="REAL",I144="DWORD",I144="DINT"),F143+4+MOD(F143,4),F143+4)),(IF(OR(I144="REAL",I144="DWORD",I144="DINT"),F143+4+MOD(F143,4),F143+2)))&".0" -> 5330.0 | H144: 验证通过 | I144: BOOL | J144: 备用 8层全局启停控制 | K144: =B144&VLOOKUP(A144,List!$D$3:$F$527,2,FALSE)&D144&"_"&VLOOKUP(E144,List!$I$2:$K$529,2,FALSE) -> RNILCB08X0F_C | L144: RNILCB08X0F_C AT%M5330.0 :BOOL; (*备用 8层全局启停控制*) | M144: RNILCB08X0F_C AT%M5330.0 :BOOL; (*备用 8层全局启停控制*)
A145: 照明控制箱 | B145: RNI | C145: M | D145: B3X0G | E145: 启停控制 | F145: 5332.0 | H145: 验证通过 | I145: BOOL | J145: 备用 B3层全局启停控制 | K145: =B145&VLOOKUP(A145,List!$D$3:$F$527,2,FALSE)&D145&"_"&VLOOKUP(E145,List!$I$2:$K$529,2,FALSE) -> RNILCBB3X0G_C | L145: RNILCBB3X0G_C AT%M5332.0 :BOOL; (*备用 B3层全局启停控制*) | M145: RNILCBB3X0G_C AT%M5332.0 :BOOL; (*备用 B3层全局启停控制*)
A146: 照明控制箱 | B146: RNI | C146: M | D146: B2X0G | E146: 启停控制 | F146: 5334.0 | H146: 验证通过 | I146: BOOL | J146: 备用 B2层全局启停控制 | K146: =B146&VLOOKUP(A146,List!$D$3:$F$527,2,FALSE)&D146&"_"&VLOOKUP(E146,List!$I$2:$K$529,2,FALSE) -> RNILCBB2X0G_C | L146: RNILCBB2X0G_C AT%M5334.0 :BOOL; (*备用 B2层全局启停控制*) | M146: RNILCBB2X0G_C AT%M5334.0 :BOOL; (*备用 B2层全局启停控制*)
A147: 照明控制箱 | B147: RNI | C147: M | D147: B1X0G | E147: 启停控制 | F147: 5336.0 | H147: 验证通过 | I147: BOOL | J147: 备用 B1层全局启停控制 | K147: =B147&VLOOKUP(A147,List!$D$3:$F$527,2,FALSE)&D147&"_"&VLOOKUP(E147,List!$I$2:$K$529,2,FALSE) -> RNILCBB1X0G_C | L147: RNILCBB1X0G_C AT%M5336.0 :BOOL; (*备用 B1层全局启停控制*) | M147: RNILCBB1X0G_C AT%M5336.0 :BOOL; (*备用 B1层全局启停控制*)
A148: 照明控制箱 | B148: RNI | C148: M | D148: 01X0G | E148: 启停控制 | F148: 5338.0 | H148: 验证通过 | I148: BOOL | J148: 备用 1层全局启停控制 | K148: =B148&VLOOKUP(A148,List!$D$3:$F$527,2,FALSE)&D148&"_"&VLOOKUP(E148,List!$I$2:$K$529,2,FALSE) -> RNILCB01X0G_C | L148: RNILCB01X0G_C AT%M5338.0 :BOOL; (*备用 1层全局启停控制*) | M148: RNILCB01X0G_C AT%M5338.0 :BOOL; (*备用 1层全局启停控制*)
A149: 照明控制箱 | B149: RNI | C149: M | D149: 02X0G | E149: 启停控制 | F149: 5340.0 | H149: 验证通过 | I149: BOOL | J149: 备用 2层全局启停控制 | K149: =B149&VLOOKUP(A149,List!$D$3:$F$527,2,FALSE)&D149&"_"&VLOOKUP(E149,List!$I$2:$K$529,2,FALSE) -> RNILCB02X0G_C | L149: RNILCB02X0G_C AT%M5340.0 :BOOL; (*备用 2层全局启停控制*) | M149: RNILCB02X0G_C AT%M5340.0 :BOOL; (*备用 2层全局启停控制*)
A150: 照明控制箱 | B150: RNI | C150: M | D150: 03X0G | E150: 启停控制 | F150: 5342.0 | H150: 验证通过 | I150: BOOL | J150: 备用 3层全局启停控制 | K150: =B150&VLOOKUP(A150,List!$D$3:$F$527,2,FALSE)&D150&"_"&VLOOKUP(E150,List!$I$2:$K$529,2,FALSE) -> RNILCB03X0G_C | L150: RNILCB03X0G_C AT%M5342.0 :BOOL; (*备用 3层全局启停控制*) | M150: RNILCB03X0G_C AT%M5342.0 :BOOL; (*备用 3层全局启停控制*)
A151: 照明控制箱 | B151: RNI | C151: M | D151: 04X0G | E151: 启停控制 | F151: 5344.0 | H151: 验证通过 | I151: BOOL | J151: 备用 4层全局启停控制 | K151: =B151&VLOOKUP(A151,List!$D$3:$F$527,2,FALSE)&D151&"_"&VLOOKUP(E151,List!$I$2:$K$529,2,FALSE) -> RNILCB04X0G_C | L151: RNILCB04X0G_C AT%M5344.0 :BOOL; (*备用 4层全局启停控制*) | M151: RNILCB04X0G_C AT%M5344.0 :BOOL; (*备用 4层全局启停控制*)
A152: 照明控制箱 | B152: RNI | C152: M | D152: 05X0G | E152: 启停控制 | F152: 5346.0 | H152: 验证通过 | I152: BOOL | J152: 备用 5层全局启停控制 | K152: =B152&VLOOKUP(A152,List!$D$3:$F$527,2,FALSE)&D152&"_"&VLOOKUP(E152,List!$I$2:$K$529,2,FALSE) -> RNILCB05X0G_C | L152: RNILCB05X0G_C AT%M5346.0 :BOOL; (*备用 5层全局启停控制*) | M152: RNILCB05X0G_C AT%M5346.0 :BOOL; (*备用 5层全局启停控制*)
A153: 照明控制箱 | B153: RNI | C153: M | D153: 06X0G | E153: 启停控制 | F153: 5348.0 | H153: 验证通过 | I153: BOOL | J153: 备用 6层全局启停控制 | K153: =B153&VLOOKUP(A153,List!$D$3:$F$527,2,FALSE)&D153&"_"&VLOOKUP(E153,List!$I$2:$K$529,2,FALSE) -> RNILCB06X0G_C | L153: RNILCB06X0G_C AT%M5348.0 :BOOL; (*备用 6层全局启停控制*) | M153: RNILCB06X0G_C AT%M5348.0 :BOOL; (*备用 6层全局启停控制*)
A154: 照明控制箱 | B154: RNI | C154: M | D154: 07X0G | E154: 启停控制 | F154: 5350.0 | H154: 验证通过 | I154: BOOL | J154: 备用 7层全局启停控制 | K154: =B154&VLOOKUP(A154,List!$D$3:$F$527,2,FALSE)&D154&"_"&VLOOKUP(E154,List!$I$2:$K$529,2,FALSE) -> RNILCB07X0G_C | L154: RNILCB07X0G_C AT%M5350.0 :BOOL; (*备用 7层全局启停控制*) | M154: RNILCB07X0G_C AT%M5350.0 :BOOL; (*备用 7层全局启停控制*)
A155: 照明控制箱 | B155: RNI | C155: M | D155: 08X0G | E155: 启停控制 | F155: 5352.0 | H155: 验证通过 | I155: BOOL | J155: 备用 8层全局启停控制 | K155: =B155&VLOOKUP(A155,List!$D$3:$F$527,2,FALSE)&D155&"_"&VLOOKUP(E155,List!$I$2:$K$529,2,FALSE) -> RNILCB08X0G_C | L155: RNILCB08X0G_C AT%M5352.0 :BOOL; (*备用 8层全局启停控制*) | M155: RNILCB08X0G_C AT%M5352.0 :BOOL; (*备用 8层全局启停控制*)
A156: 照明控制箱 | B156: RNI | C156: M | D156: B3X0H | E156: 启停控制 | F156: 5354.0 | H156: 验证通过 | I156: BOOL | J156: 备用 B3层全局启停控制 | K156: =B156&VLOOKUP(A156,List!$D$3:$F$527,2,FALSE)&D156&"_"&VLOOKUP(E156,List!$I$2:$K$529,2,FALSE) -> RNILCBB3X0H_C | L156: RNILCBB3X0H_C AT%M5354.0 :BOOL; (*备用 B3层全局启停控制*) | M156: RNILCBB3X0H_C AT%M5354.0 :BOOL; (*备用 B3层全局启停控制*)
A157: 照明控制箱 | B157: RNI | C157: M | D157: B2X0H | E157: 启停控制 | F157: 5356.0 | H157: 验证通过 | I157: BOOL | J157: 备用 B2层全局启停控制 | K157: =B157&VLOOKUP(A157,List!$D$3:$F$527,2,FALSE)&D157&"_"&VLOOKUP(E157,List!$I$2:$K$529,2,FALSE) -> RNILCBB2X0H_C | L157: RNILCBB2X0H_C AT%M5356.0 :BOOL; (*备用 B2层全局启停控制*) | M157: RNILCBB2X0H_C AT%M5356.0 :BOOL; (*备用 B2层全局启停控制*)
A158: 照明控制箱 | B158: RNI | C158: M | D158: B1X0H | E158: 启停控制 | F158: 5358.0 | H158: 验证通过 | I158: BOOL | J158: 备用 B1层全局启停控制 | K158: =B158&VLOOKUP(A158,List!$D$3:$F$527,2,FALSE)&D158&"_"&VLOOKUP(E158,List!$I$2:$K$529,2,FALSE) -> RNILCBB1X0H_C | L158: RNILCBB1X0H_C AT%M5358.0 :BOOL; (*备用 B1层全局启停控制*) | M158: RNILCBB1X0H_C AT%M5358.0 :BOOL; (*备用 B1层全局启停控制*)
A159: 照明控制箱 | B159: RNI | C159: M | D159: 01X0H | E159: 启停控制 | F159: 5360.0 | H159: 验证通过 | I159: BOOL | J159: 备用 1层全局启停控制 | K159: =B159&VLOOKUP(A159,List!$D$3:$F$527,2,FALSE)&D159&"_"&VLOOKUP(E159,List!$I$2:$K$529,2,FALSE) -> RNILCB01X0H_C | L159: RNILCB01X0H_C AT%M5360.0 :BOOL; (*备用 1层全局启停控制*) | M159: RNILCB01X0H_C AT%M5360.0 :BOOL; (*备用 1层全局启停控制*)
A160: 照明控制箱 | B160: RNI | C160: M | D160: 02X0H | E160: 启停控制 | F160: 5362.0 | H160: 验证通过 | I160: BOOL | J160: 备用 2层全局启停控制 | K160: =B160&VLOOKUP(A160,List!$D$3:$F$527,2,FALSE)&D160&"_"&VLOOKUP(E160,List!$I$2:$K$529,2,FALSE) -> RNILCB02X0H_C | L160: RNILCB02X0H_C AT%M5362.0 :BOOL; (*备用 2层全局启停控制*) | M160: RNILCB02X0H_C AT%M5362.0 :BOOL; (*备用 2层全局启停控制*)
A161: 照明控制箱 | B161: RNI | C161: M | D161: 03X0H | E161: 启停控制 | F161: 5364.0 | H161: 验证通过 | I161: BOOL | J161: 备用 3层全局启停控制 | K161: =B161&VLOOKUP(A161,List!$D$3:$F$527,2,FALSE)&D161&"_"&VLOOKUP(E161,List!$I$2:$K$529,2,FALSE) -> RNILCB03X0H_C | L161: RNILCB03X0H_C AT%M5364.0 :BOOL; (*备用 3层全局启停控制*) | M161: RNILCB03X0H_C AT%M5364.0 :BOOL; (*备用 3层全局启停控制*)
A162: 照明控制箱 | B162: RNI | C162: M | D162: 04X0H | E162: 启停控制 | F162: 5366.0 | H162: 验证通过 | I162: BOOL | J162: 备用 4层全局启停控制 | K162: =B162&VLOOKUP(A162,List!$D$3:$F$527,2,FALSE)&D162&"_"&VLOOKUP(E162,List!$I$2:$K$529,2,FALSE) -> RNILCB04X0H_C | L162: RNILCB04X0H_C AT%M5366.0 :BOOL; (*备用 4层全局启停控制*) | M162: RNILCB04X0H_C AT%M5366.0 :BOOL; (*备用 4层全局启停控制*)
A163: 照明控制箱 | B163: RNI | C163: M | D163: 05X0H | E163: 启停控制 | F163: 5368.0 | H163: 验证通过 | I163: BOOL | J163: 备用 5层全局启停控制 | K163: =B163&VLOOKUP(A163,List!$D$3:$F$527,2,FALSE)&D163&"_"&VLOOKUP(E163,List!$I$2:$K$529,2,FALSE) -> RNILCB05X0H_C | L163: RNILCB05X0H_C AT%M5368.0 :BOOL; (*备用 5层全局启停控制*) | M163: RNILCB05X0H_C AT%M5368.0 :BOOL; (*备用 5层全局启停控制*)
A164: 照明控制箱 | B164: RNI | C164: M | D164: 06X0H | E164: 启停控制 | F164: 5370.0 | H164: 验证通过 | I164: BOOL | J164: 备用 6层全局启停控制 | K164: =B164&VLOOKUP(A164,List!$D$3:$F$527,2,FALSE)&D164&"_"&VLOOKUP(E164,List!$I$2:$K$529,2,FALSE) -> RNILCB06X0H_C | L164: RNILCB06X0H_C AT%M5370.0 :BOOL; (*备用 6层全局启停控制*) | M164: RNILCB06X0H_C AT%M5370.0 :BOOL; (*备用 6层全局启停控制*)
A165: 照明控制箱 | B165: RNI | C165: M | D165: 07X0H | E165: 启停控制 | F165: 5372.0 | H165: 验证通过 | I165: BOOL | J165: 备用 7层全局启停控制 | K165: =B165&VLOOKUP(A165,List!$D$3:$F$527,2,FALSE)&D165&"_"&VLOOKUP(E165,List!$I$2:$K$529,2,FALSE) -> RNILCB07X0H_C | L165: RNILCB07X0H_C AT%M5372.0 :BOOL; (*备用 7层全局启停控制*) | M165: RNILCB07X0H_C AT%M5372.0 :BOOL; (*备用 7层全局启停控制*)
A166: 照明控制箱 | B166: RNI | C166: M | D166: 08X0H | E166: 启停控制 | F166: 5374.0 | H166: 验证通过 | I166: BOOL | J166: 备用 8层全局启停控制 | K166: =B166&VLOOKUP(A166,List!$D$3:$F$527,2,FALSE)&D166&"_"&VLOOKUP(E166,List!$I$2:$K$529,2,FALSE) -> RNILCB08X0H_C | L166: RNILCB08X0H_C AT%M5374.0 :BOOL; (*备用 8层全局启停控制*) | M166: RNILCB08X0H_C AT%M5374.0 :BOOL; (*备用 8层全局启停控制*)
A167: P新风机组 | B167: RNI | C167: M | D167: 05X00 | E167: 设定温度值 | F167: 5380.0 | H167: 验证通过 | I167: REAL | J167: 新风机组5层温度全局设定 | K167: =B167&VLOOKUP(A167,List!$D$3:$F$527,2,FALSE)&D167&"_"&VLOOKUP(E167,List!$I$2:$K$529,2,FALSE) -> RNIPAU05X00_TSET | L167: RNIPAU05X00_TSET AT%M5380.0 :REAL; (*新风机组5层温度全局设定*) | M167: RNIPAU05X00_TSET AT%M5380.0 :REAL; (*新风机组5层温度全局设定*)
A168: P新风机组 | B168: RNI | C168: M | D168: 06X00 | E168: 设定温度值 | F168: 5384.0 | H168: 验证通过 | I168: REAL | J168: 新风机组6层温度全局设定 | K168: =B168&VLOOKUP(A168,List!$D$3:$F$527,2,FALSE)&D168&"_"&VLOOKUP(E168,List!$I$2:$K$529,2,FALSE) -> RNIPAU06X00_TSET | L168: RNIPAU06X00_TSET AT%M5384.0 :REAL; (*新风机组6层温度全局设定*) | M168: RNIPAU06X00_TSET AT%M5384.0 :REAL; (*新风机组6层温度全局设定*)
A169: P新风机组 | B169: RNI | C169: M | D169: 07X00 | E169: 设定温度值 | F169: 5388.0 | H169: 验证通过 | I169: REAL | J169: 新风机组7层温度全局设定 | K169: =B169&VLOOKUP(A169,List!$D$3:$F$527,2,FALSE)&D169&"_"&VLOOKUP(E169,List!$I$2:$K$529,2,FALSE) -> RNIPAU07X00_TSET | L169: RNIPAU07X00_TSET AT%M5388.0 :REAL; (*新风机组7层温度全局设定*) | M169: RNIPAU07X00_TSET AT%M5388.0 :REAL; (*新风机组7层温度全局设定*)
A170: P新风机组 | B170: RNI | C170: M | D170: 08X00 | E170: 设定温度值 | F170: 5392.0 | H170: 验证通过 | I170: REAL | J170: 新风机组8层温度全局设定 | K170: =B170&VLOOKUP(A170,List!$D$3:$F$527,2,FALSE)&D170&"_"&VLOOKUP(E170,List!$I$2:$K$529,2,FALSE) -> RNIPAU08X00_TSET | L170: RNIPAU08X00_TSET AT%M5392.0 :REAL; (*新风机组8层温度全局设定*) | M170: RNIPAU08X00_TSET AT%M5392.0 :REAL; (*新风机组8层温度全局设定*)
A171: P新风机组 | B171: RNI | C171: M | D171: 09X00 | E171: 设定温度值 | F171: 5396.0 | H171: 验证通过 | I171: REAL | J171: 新风机组9层温度全局设定 | K171: =B171&VLOOKUP(A171,List!$D$3:$F$527,2,FALSE)&D171&"_"&VLOOKUP(E171,List!$I$2:$K$529,2,FALSE) -> RNIPAU09X00_TSET | L171: RNIPAU09X00_TSET AT%M5396.0 :REAL; (*新风机组9层温度全局设定*) | M171: RNIPAU09X00_TSET AT%M5396.0 :REAL; (*新风机组9层温度全局设定*)
A172: P新风机组 | B172: RNI | C172: M | D172: 05X00 | E172: 季节模式 | F172: 5400.0 | H172: 验证通过 | I172: INT | J172: 新风机组5层季节模式全局设定 | K172: =B172&VLOOKUP(A172,List!$D$3:$F$527,2,FALSE)&D172&"_"&VLOOKUP(E172,List!$I$2:$K$529,2,FALSE) -> RNIPAU05X00_SM | L172: RNIPAU05X00_SM AT%M5400.0 :INT; (*新风机组5层季节模式全局设定*) | M172: RNIPAU05X00_SM AT%M5400.0 :INT; (*新风机组5层季节模式全局设定*)
A173: P新风机组 | B173: RNI | C173: M | D173: 06X00 | E173: 季节模式 | F173: 5402.0 | H173: 验证通过 | I173: INT | J173: 新风机组6层季节模式全局设定 | K173: =B173&VLOOKUP(A173,List!$D$3:$F$527,2,FALSE)&D173&"_"&VLOOKUP(E173,List!$I$2:$K$529,2,FALSE) -> RNIPAU06X00_SM | L173: RNIPAU06X00_SM AT%M5402.0 :INT; (*新风机组6层季节模式全局设定*) | M173: RNIPAU06X00_SM AT%M5402.0 :INT; (*新风机组6层季节模式全局设定*)
A174: P新风机组 | B174: RNI | C174: M | D174: 07X00 | E174: 季节模式 | F174: 5404.0 | H174: 验证通过 | I174: INT | J174: 新风机组7层季节模式全局设定 | K174: =B174&VLOOKUP(A174,List!$D$3:$F$527,2,FALSE)&D174&"_"&VLOOKUP(E174,List!$I$2:$K$529,2,FALSE) -> RNIPAU07X00_SM | L174: RNIPAU07X00_SM AT%M5404.0 :INT; (*新风机组7层季节模式全局设定*) | M174: RNIPAU07X00_SM AT%M5404.0 :INT; (*新风机组7层季节模式全局设定*)
A175: P新风机组 | B175: RNI | C175: M | D175: 08X00 | E175: 季节模式 | F175: 5406.0 | H175: 验证通过 | I175: INT | J175: 新风机组8层季节模式全局设定 | K175: =B175&VLOOKUP(A175,List!$D$3:$F$527,2,FALSE)&D175&"_"&VLOOKUP(E175,List!$I$2:$K$529,2,FALSE) -> RNIPAU08X00_SM | L175: RNIPAU08X00_SM AT%M5406.0 :INT; (*新风机组8层季节模式全局设定*) | M175: RNIPAU08X00_SM AT%M5406.0 :INT; (*新风机组8层季节模式全局设定*)
A176: P新风机组 | B176: RNI | C176: M | D176: 09X00 | E176: 季节模式 | F176: 5408.0 | H176: 验证通过 | I176: INT | J176: 新风机组9层季节模式全局设定 | K176: =B176&VLOOKUP(A176,List!$D$3:$F$527,2,FALSE)&D176&"_"&VLOOKUP(E176,List!$I$2:$K$529,2,FALSE) -> RNIPAU09X00_SM | L176: RNIPAU09X00_SM AT%M5408.0 :INT; (*新风机组9层季节模式全局设定*) | M176: RNIPAU09X00_SM AT%M5408.0 :INT; (*新风机组9层季节模式全局设定*)
A177: P新风机组 | B177: RNI | C177: M | D177: 05X00 | E177: 程序控制 | F177: 5410.0 | H177: 验证通过 | I177: BOOL | J177: 新风机组5层启停控制 | K177: =B177&VLOOKUP(A177,List!$D$3:$F$527,2,FALSE)&D177&"_"&VLOOKUP(E177,List!$I$2:$K$529,2,FALSE) -> RNIPAU05X00_PC | L177: RNIPAU05X00_PC AT%M5410.0 :BOOL; (*新风机组5层启停控制*) | M177: RNIPAU05X00_PC AT%M5410.0 :BOOL; (*新风机组5层启停控制*)
A178: P新风机组 | B178: RNI | C178: M | D178: 06X00 | E178: 程序控制 | F178: 5412.0 | H178: 验证通过 | I178: BOOL | J178: 新风机组6层启停控制 | K178: =B178&VLOOKUP(A178,List!$D$3:$F$527,2,FALSE)&D178&"_"&VLOOKUP(E178,List!$I$2:$K$529,2,FALSE) -> RNIPAU06X00_PC | L178: RNIPAU06X00_PC AT%M5412.0 :BOOL; (*新风机组6层启停控制*) | M178: RNIPAU06X00_PC AT%M5412.0 :BOOL; (*新风机组6层启停控制*)
A179: P新风机组 | B179: RNI | C179: M | D179: 07X00 | E179: 程序控制 | F179: 5414.0 | H179: 验证通过 | I179: BOOL | J179: 新风机组7层启停控制 | K179: =B179&VLOOKUP(A179,List!$D$3:$F$527,2,FALSE)&D179&"_"&VLOOKUP(E179,List!$I$2:$K$529,2,FALSE) -> RNIPAU07X00_PC | L179: RNIPAU07X00_PC AT%M5414.0 :BOOL; (*新风机组7层启停控制*) | M179: RNIPAU07X00_PC AT%M5414.0 :BOOL; (*新风机组7层启停控制*)
A180: P新风机组 | B180: RNI | C180: M | D180: 08X00 | E180: 程序控制 | F180: 5416.0 | H180: 验证通过 | I180: BOOL | J180: 新风机组8层启停控制 | K180: =B180&VLOOKUP(A180,List!$D$3:$F$527,2,FALSE)&D180&"_"&VLOOKUP(E180,List!$I$2:$K$529,2,FALSE) -> RNIPAU08X00_PC | L180: RNIPAU08X00_PC AT%M5416.0 :BOOL; (*新风机组8层启停控制*) | M180: RNIPAU08X00_PC AT%M5416.0 :BOOL; (*新风机组8层启停控制*)
A181: P新风机组 | B181: RNI | C181: M | D181: 09X00 | E181: 程序控制 | F181: 5418.0 | H181: 验证通过 | I181: BOOL | J181: 新风机组9层启停控制 | K181: =B181&VLOOKUP(A181,List!$D$3:$F$527,2,FALSE)&D181&"_"&VLOOKUP(E181,List!$I$2:$K$529,2,FALSE) -> RNIPAU09X00_PC | L181: RNIPAU09X00_PC AT%M5418.0 :BOOL; (*新风机组9层启停控制*) | M181: RNIPAU09X00_PC AT%M5418.0 :BOOL; (*新风机组9层启停控制*)
A182: 送风机 | B182: RNI | C182: M | D182: B3X00 | E182: 程序控制 | F182: 5420.0 | H182: 验证通过 | I182: BOOL | J182: 送风机B3层启停控制 | K182: =B182&VLOOKUP(A182,List!$D$3:$F$527,2,FALSE)&D182&"_"&VLOOKUP(E182,List!$I$2:$K$529,2,FALSE) -> RNISAFB3X00_PC | L182: RNISAFB3X00_PC AT%M5420.0 :BOOL; (*送风机B3层启停控制*) | M182: RNISAFB3X00_PC AT%M5420.0 :BOOL; (*送风机B3层启停控制*)
A183: 送风机 | B183: RNI | C183: M | D183: B2X00 | E183: 程序控制 | F183: 5422.0 | H183: 验证通过 | I183: BOOL | J183: 送风机B2层启停控制 | K183: =B183&VLOOKUP(A183,List!$D$3:$F$527,2,FALSE)&D183&"_"&VLOOKUP(E183,List!$I$2:$K$529,2,FALSE) -> RNISAFB2X00_PC | L183: RNISAFB2X00_PC AT%M5422.0 :BOOL; (*送风机B2层启停控制*) | M183: RNISAFB2X00_PC AT%M5422.0 :BOOL; (*送风机B2层启停控制*)
A184: 送风机 | B184: RNI | C184: M | D184: B1X00 | E184: 程序控制 | F184: 5424.0 | H184: 验证通过 | I184: BOOL | J184: 送风机B1层启停控制 | K184: =B184&VLOOKUP(A184,List!$D$3:$F$527,2,FALSE)&D184&"_"&VLOOKUP(E184,List!$I$2:$K$529,2,FALSE) -> RNISAFB1X00_PC | L184: RNISAFB1X00_PC AT%M5424.0 :BOOL; (*送风机B1层启停控制*) | M184: RNISAFB1X00_PC AT%M5424.0 :BOOL; (*送风机B1层启停控制*)
A185: 送风机 | B185: RNI | C185: M | D185: 05X00 | E185: 程序控制 | F185: 5426.0 | H185: 验证通过 | I185: BOOL | J185: 送风机5层启停控制 | K185: =B185&VLOOKUP(A185,List!$D$3:$F$527,2,FALSE)&D185&"_"&VLOOKUP(E185,List!$I$2:$K$529,2,FALSE) -> RNISAF05X00_PC | L185: RNISAF05X00_PC AT%M5426.0 :BOOL; (*送风机5层启停控制*) | M185: RNISAF05X00_PC AT%M5426.0 :BOOL; (*送风机5层启停控制*)
A186: 送风机 | B186: RNI | C186: M | D186: 06X00 | E186: 程序控制 | F186: 5428.0 | H186: 验证通过 | I186: BOOL | J186: 送风机6层启停控制 | K186: =B186&VLOOKUP(A186,List!$D$3:$F$527,2,FALSE)&D186&"_"&VLOOKUP(E186,List!$I$2:$K$529,2,FALSE) -> RNISAF06X00_PC | L186: RNISAF06X00_PC AT%M5428.0 :BOOL; (*送风机6层启停控制*) | M186: RNISAF06X00_PC AT%M5428.0 :BOOL; (*送风机6层启停控制*)
A187: 送风机 | B187: RNI | C187: M | D187: 07X00 | E187: 程序控制 | F187: 5430.0 | H187: 验证通过 | I187: BOOL | J187: 送风机7层启停控制 | K187: =B187&VLOOKUP(A187,List!$D$3:$F$527,2,FALSE)&D187&"_"&VLOOKUP(E187,List!$I$2:$K$529,2,FALSE) -> RNISAF07X00_PC | L187: RNISAF07X00_PC AT%M5430.0 :BOOL; (*送风机7层启停控制*) | M187: RNISAF07X00_PC AT%M5430.0 :BOOL; (*送风机7层启停控制*)
A188: 送风机 | B188: RNI | C188: M | D188: 08X00 | E188: 程序控制 | F188: 5432.0 | H188: 验证通过 | I188: BOOL | J188: 送风机8层启停控制 | K188: =B188&VLOOKUP(A188,List!$D$3:$F$527,2,FALSE)&D188&"_"&VLOOKUP(E188,List!$I$2:$K$529,2,FALSE) -> RNISAF08X00_PC | L188: RNISAF08X00_PC AT%M5432.0 :BOOL; (*送风机8层启停控制*) | M188: RNISAF08X00_PC AT%M5432.0 :BOOL; (*送风机8层启停控制*)
A189: 送风机 | B189: RNI | C189: M | D189: 09X00 | E189: 程序控制 | F189: 5434.0 | H189: 验证通过 | I189: BOOL | J189: 送风机9层启停控制 | K189: =B189&VLOOKUP(A189,List!$D$3:$F$527,2,FALSE)&D189&"_"&VLOOKUP(E189,List!$I$2:$K$529,2,FALSE) -> RNISAF09X00_PC | L189: RNISAF09X00_PC AT%M5434.0 :BOOL; (*送风机9层启停控制*) | M189: RNISAF09X00_PC AT%M5434.0 :BOOL; (*送风机9层启停控制*)
A190: 排风机 | B190: RNI | C190: M | D190: B3X00 | E190: 程序控制 | F190: 5436.0 | H190: 验证通过 | I190: BOOL | J190: 排风机B3层启停控制 | K190: =B190&VLOOKUP(A190,List!$D$3:$F$527,2,FALSE)&D190&"_"&VLOOKUP(E190,List!$I$2:$K$529,2,FALSE) -> RNIEAFB3X00_PC | L190: RNIEAFB3X00_PC AT%M5436.0 :BOOL; (*排风机B3层启停控制*) | M190: RNIEAFB3X00_PC AT%M5436.0 :BOOL; (*排风机B3层启停控制*)
A191: 排风机 | B191: RNI | C191: M | D191: B2X00 | E191: 程序控制 | F191: 5438.0 | H191: 验证通过 | I191: BOOL | J191: 排风机B2层启停控制 | K191: =B191&VLOOKUP(A191,List!$D$3:$F$527,2,FALSE)&D191&"_"&VLOOKUP(E191,List!$I$2:$K$529,2,FALSE) -> RNIEAFB2X00_PC | L191: RNIEAFB2X00_PC AT%M5438.0 :BOOL; (*排风机B2层启停控制*) | M191: RNIEAFB2X00_PC AT%M5438.0 :BOOL; (*排风机B2层启停控制*)
A192: 排风机 | B192: RNI | C192: M | D192: B1X00 | E192: 程序控制 | F192: 5440.0 | H192: =IF((IF(OR(I192="INT",I192="WORD",I192="BOOL"),MOD(F192,2),MOD(F192,4)))=0,"验证通过","验证失败") -> 验证通过 | I192: BOOL | J192: 排风机B1层启停控制 | K192: =B192&VLOOKUP(A192,List!$D$3:$F$527,2,FALSE)&D192&"_"&VLOOKUP(E192,List!$I$2:$K$529,2,FALSE) -> RNIEAFB1X00_PC | L192: RNIEAFB1X00_PC AT%M5440.0 :BOOL; (*排风机B1层启停控制*) | M192: RNIEAFB1X00_PC AT%M5440.0 :BOOL; (*排风机B1层启停控制*)
A193: 排风机 | B193: RNI | C193: M | D193: 05X00 | E193: 程序控制 | F193: 5442.0 | H193: 验证通过 | I193: BOOL | J193: 排风机5层启停控制 | K193: =B193&VLOOKUP(A193,List!$D$3:$F$527,2,FALSE)&D193&"_"&VLOOKUP(E193,List!$I$2:$K$529,2,FALSE) -> RNIEAF05X00_PC | L193: RNIEAF05X00_PC AT%M5442.0 :BOOL; (*排风机5层启停控制*) | M193: RNIEAF05X00_PC AT%M5442.0 :BOOL; (*排风机5层启停控制*)
A194: 排风机 | B194: RNI | C194: M | D194: 06X00 | E194: 程序控制 | F194: 5444.0 | H194: 验证通过 | I194: BOOL | J194: 排风机6层启停控制 | K194: =B194&VLOOKUP(A194,List!$D$3:$F$527,2,FALSE)&D194&"_"&VLOOKUP(E194,List!$I$2:$K$529,2,FALSE) -> RNIEAF06X00_PC | L194: RNIEAF06X00_PC AT%M5444.0 :BOOL; (*排风机6层启停控制*) | M194: RNIEAF06X00_PC AT%M5444.0 :BOOL; (*排风机6层启停控制*)
A195: 排风机 | B195: RNI | C195: M | D195: 07X00 | E195: 程序控制 | F195: 5446.0 | H195: 验证通过 | I195: BOOL | J195: 排风机7层启停控制 | K195: =B195&VLOOKUP(A195,List!$D$3:$F$527,2,FALSE)&D195&"_"&VLOOKUP(E195,List!$I$2:$K$529,2,FALSE) -> RNIEAF07X00_PC | L195: RNIEAF07X00_PC AT%M5446.0 :BOOL; (*排风机7层启停控制*) | M195: RNIEAF07X00_PC AT%M5446.0 :BOOL; (*排风机7层启停控制*)
A196: 排风机 | B196: RNI | C196: M | D196: 08X00 | E196: 程序控制 | F196: 5448.0 | H196: 验证通过 | I196: BOOL | J196: 排风机8层启停控制 | K196: =B196&VLOOKUP(A196,List!$D$3:$F$527,2,FALSE)&D196&"_"&VLOOKUP(E196,List!$I$2:$K$529,2,FALSE) -> RNIEAF08X00_PC | L196: RNIEAF08X00_PC AT%M5448.0 :BOOL; (*排风机8层启停控制*) | M196: RNIEAF08X00_PC AT%M5448.0 :BOOL; (*排风机8层启停控制*)
A197: 排风机 | B197: RNI | C197: M | D197: 09X00 | E197: 程序控制 | F197: 5450.0 | H197: 验证通过 | I197: BOOL | J197: 排风机9层启停控制 | K197: =B197&VLOOKUP(A197,List!$D$3:$F$527,2,FALSE)&D197&"_"&VLOOKUP(E197,List!$I$2:$K$529,2,FALSE) -> RNIEAF09X00_PC | L197: RNIEAF09X00_PC AT%M5450.0 :BOOL; (*排风机9层启停控制*) | M197: RNIEAF09X00_PC AT%M5450.0 :BOOL; (*排风机9层启停控制*)
A198: 风幕机 | B198: RNI | C198: M | D198: B3X00 | E198: 程序控制 | F198: 5452.0 | H198: 验证通过 | I198: BOOL | J198: 风幕机B3层启停控制 | K198: =B198&VLOOKUP(A198,List!$D$3:$F$527,2,FALSE)&D198&"_"&VLOOKUP(E198,List!$I$2:$K$529,2,FALSE) -> RNIFMJB3X00_PC | L198: RNIFMJB3X00_PC AT%M5452.0 :BOOL; (*风幕机B3层启停控制*) | M198: RNIFMJB3X00_PC AT%M5452.0 :BOOL; (*风幕机B3层启停控制*)
A199: 风幕机 | B199: RNI | C199: M | D199: B2X00 | E199: 程序控制 | F199: 5454.0 | H199: 验证通过 | I199: BOOL | J199: 风幕机B2层启停控制 | K199: =B199&VLOOKUP(A199,List!$D$3:$F$527,2,FALSE)&D199&"_"&VLOOKUP(E199,List!$I$2:$K$529,2,FALSE) -> RNIFMJB2X00_PC | L199: RNIFMJB2X00_PC AT%M5454.0 :BOOL; (*风幕机B2层启停控制*) | M199: RNIFMJB2X00_PC AT%M5454.0 :BOOL; (*风幕机B2层启停控制*)
A200: 风幕机 | B200: RNI | C200: M | D200: B1X00 | E200: 程序控制 | F200: 5456.0 | H200: 验证通过 | I200: BOOL | J200: 风幕机B1层启停控制 | K200: =B200&VLOOKUP(A200,List!$D$3:$F$527,2,FALSE)&D200&"_"&VLOOKUP(E200,List!$I$2:$K$529,2,FALSE) -> RNIFMJB1X00_PC | L200: RNIFMJB1X00_PC AT%M5456.0 :BOOL; (*风幕机B1层启停控制*) | M200: RNIFMJB1X00_PC AT%M5456.0 :BOOL; (*风幕机B1层启停控制*)
A201: 风幕机 | B201: RNI | C201: M | D201: 01X00 | E201: 程序控制 | F201: 5458.0 | H201: 验证通过 | I201: BOOL | J201: 风幕机1层启停控制 | K201: =B201&VLOOKUP(A201,List!$D$3:$F$527,2,FALSE)&D201&"_"&VLOOKUP(E201,List!$I$2:$K$529,2,FALSE) -> RNIFMJ01X00_PC | L201: RNIFMJ01X00_PC AT%M5458.0 :BOOL; (*风幕机1层启停控制*) | M201: RNIFMJ01X00_PC AT%M5458.0 :BOOL; (*风幕机1层启停控制*)
... 384 more rows

Sheet New (2)
B1: 4.5 | C1: 1.5 | D1: 1.5 | E1: 1.5 | F1: 1.5 | G1: 1.5 | H1: 1.75 | I1: 1.75 | J1: 35 | AA1: 15 | AB1: 10 | AC1: 10
A2: 12 | B2: L01 | C2: 0 | D2: 1 | E2: 2 | F2: 3 | G2: 4 | H2: 5 | I2: 6 | J2: 7 | K2: 8 | L2: 9 | M2: 10 | N2: 11 | O2: 12 | P2: 13 | Q2: 14 | R2: 15 | T2: X | U2: X | V2: X | W2: X
A3: 12 | C3: 16 | D3: 17 | E3: 18 | F3: 19 | G3: 20 | H3: 21 | I3: 22 | J3: 23 | K3: 24 | L3: 25 | M3: 26 | N3: 27 | O3: 28 | P3: 29 | Q3: 30 | R3: 31 | AA3: 20
A4: 25 | B4: DDC-X-X 现场实施段 | AD4: 调试记录段 | AG4: 下位机声明段 | AP4: 上位机声明段
A5: 20 | B5: 模块类型 | C5: 拨码 设置 | F5: 点位序号 | H5: 端子编号 | J5: 线缆功能.auto | AA5: 设备编号.auto | AB5: 前端接线备注.auto | AD5: DBG | AE5: 调试记录 | AF5: 调试备注 | AG5: PRG | AH5: 设备类型 | AI5: 设备编号 | AJ5: 程序编号 | AK5: 点位功能 | AL5: 接线备注 判断区 | AM5: 变量名.auto | AN5: 编程变量声明.auto | AO5: 编程变量声明(结构整理).auto | AP5: HMI | AQ5: 上位机组态.auto | AR5: 上位机注释.auto | AS5: MODBUS偏置量.auto
A6: 20 | AB6: 端子编号 | AC6: 线色备注
B7: IOM.1601R D7 | AO7: ="(* "&B12&"地址: "&B9&" *)" -> (* IOM 1601R D7地址: 1 *)
B8: addr | C8: 1 | D8: =BIN2DEC(MID((TEXT(DEC2BIN(B9),REPT(0,5))),5,1)) -> 1 | E8: =BIN2DEC(MID((TEXT(DEC2BIN(B9),REPT(0,5))),5,1)) -> 1 | F8: 1 | H8: 1 | I8: C | J8: =AH8&AA8&"-"&AK8 -> - | AA8: =IF(AI8="","",AI8) ->  | AB8: =_xlfn.IFNA(VLOOKUP(AL8,List!$M$3:$N$526,2,FALSE),"-") -> - | AC8: =_xlfn.IFNA(VLOOKUP(AL8,List!$M$3:$O$526,3,FALSE),"-") -> - | AL8: =AH8&"-"&AK8 -> - | AM8: =VLOOKUP(AH8,List!$D$3:$F$527,2,FALSE)&AJ8&"_"&VLOOKUP(AK8,List!$I$2:$K$529,2,FALSE) ->  | AN8: =_xlfn.IFNA("L"&AM8&" "&"AT%I"&B9*16&".0"&" "&":BOOL;"&" "&"(*"&J8&"*)"," ") ->  | AO8: =IFERROR(REPLACE(REPLACE(AN8,SEARCH("AT%",AN8),,REPT(" ",30-SEARCH("AT%",AN8))),SEARCH(":",REPLACE(AN8,SEARCH("AT%",AN8),,REPT(" ",30-SEARCH("AT%",AN8)))),,REPT(" ",35-SEARCH(":",REPLACE(AN8,SEARCH("AT%",AN8),,REPT(" ",25-SEARCH("AT%",AN8))))))," ") ->  | AQ8: =$B$2&"\"&$B$2&AM8 ->  | AR8: =J8 -> - | AS8: =10000+($B9*16*8+F8-1) -> 10128
B9: 1 | C9: 2 | D9: =BIN2DEC(MID((TEXT(DEC2BIN(B9),REPT(0,5))),4,1)) -> 0 | E9: =BIN2DEC(MID((TEXT(DEC2BIN(B9),REPT(0,5))),4,1)) -> 0 | F9: 2 | H9: 2 | I9: C | J9: - | AA9: =IF(AI9="","",AI9) ->  | AB9: =_xlfn.IFNA(VLOOKUP(AL9,List!$M$3:$N$526,2,FALSE),"-") -> - | AC9: =_xlfn.IFNA(VLOOKUP(AL9,List!$M$3:$O$526,3,FALSE),"-") -> - | AL9: =AH9&"-"&AK9 -> - | AM9: =VLOOKUP(AH9,List!$D$3:$F$527,2,FALSE)&AJ9&"_"&VLOOKUP(AK9,List!$I$2:$K$529,2,FALSE) ->  | AN9: =_xlfn.IFNA("L"&AM9&" "&"AT%I"&B9*16&".1"&" "&":BOOL;"&" "&"(*"&J9&"*)"," ") ->  | AR9: =J9 -> - | AS9: =AS8+1 -> 10129
B10: kbs | C10: 3 | D10: =BIN2DEC(MID((TEXT(DEC2BIN(B9),REPT(0,5))),3,1)) -> 0 | E10: =BIN2DEC(MID((TEXT(DEC2BIN(B9),REPT(0,5))),3,1)) -> 0 | F10: 3 | H10: 3 | I10: C | J10: - | AB10: =_xlfn.IFNA(VLOOKUP(AL10,List!$M$3:$N$526,2,FALSE),"-") -> - | AC10: =_xlfn.IFNA(VLOOKUP(AL10,List!$M$3:$O$526,3,FALSE),"-") -> - | AL10: - | AM10: =VLOOKUP(AH10,List!$D$3:$F$527,2,FALSE)&AJ10&"_"&VLOOKUP(AK10,List!$I$2:$K$529,2,FALSE) ->  | AN10: =_xlfn.IFNA("L"&AM10&" "&"AT%I"&B9*16&".2"&" "&":BOOL;"&" "&"(*"&J10&"*)"," ") ->  | AR10: - | AS10: =AS9+1 -> 10130
B11: 125 | C11: 4 | D11: =BIN2DEC(MID((TEXT(DEC2BIN(B9),REPT(0,5))),2,1)) -> 0 | E11: =BIN2DEC(MID((TEXT(DEC2BIN(B9),REPT(0,5))),2,1)) -> 0 | F11: 4 | H11: 4 | I11: C | J11: - | AB11: =_xlfn.IFNA(VLOOKUP(AL11,List!$M$3:$N$526,2,FALSE),"-") -> - | AC11: =_xlfn.IFNA(VLOOKUP(AL11,List!$M$3:$O$526,3,FALSE),"-") -> - | AL11: - | AM11: =VLOOKUP(AH11,List!$D$3:$F$527,2,FALSE)&AJ11&"_"&VLOOKUP(AK11,List!$I$2:$K$529,2,FALSE) ->  | AN11: =_xlfn.IFNA("L"&AM11&" "&"AT%I"&B9*16&".3"&" "&":BOOL;"&" "&"(*"&J11&"*)"," ") ->  | AR11: - | AS11: 10131
B12: IOM 1601R D7 | C12: 5 | D12: =BIN2DEC(MID((TEXT(DEC2BIN(B9),REPT(0,5))),1,1)) -> 0 | E12: =BIN2DEC(MID((TEXT(DEC2BIN(B9),REPT(0,5))),1,1)) -> 0 | F12: 5 | H12: 5 | I12: C | J12: - | AB12: =_xlfn.IFNA(VLOOKUP(AL12,List!$M$3:$N$526,2,FALSE),"-") -> - | AC12: =_xlfn.IFNA(VLOOKUP(AL12,List!$M$3:$O$526,3,FALSE),"-") -> - | AL12: - | AM12: =VLOOKUP(AH12,List!$D$3:$F$527,2,FALSE)&AJ12&"_"&VLOOKUP(AK12,List!$I$2:$K$529,2,FALSE) ->  | AN12: =_xlfn.IFNA("L"&AM12&" "&"AT%I"&B9*16&".4"&" "&":BOOL;"&" "&"(*"&J12&"*)"," ") ->  | AR12: - | AS12: 10132
C13: 6 | D13: =BIN2DEC(MID((TEXT(IF(B11=20,1,IF(B11=50,10,IF(B11=125,11,IF(B11=250,100,IF(B11=500,101,IF(B11=800,110,IF(B11=1000,111,0))))))),REPT(0,3))),3,1)) -> 1 | E13: =BIN2DEC(MID((TEXT(IF(B11=20,1,IF(B11=50,10,IF(B11=125,11,IF(B11=250,100,IF(B11=500,101,IF(B11=800,110,IF(B11=1000,111,0))))))),REPT(0,3))),3,1)) -> 1 | F13: 6 | H13: 6 | I13: C | J13: - | AB13: =_xlfn.IFNA(VLOOKUP(AL13,List!$M$3:$N$526,2,FALSE),"-") -> - | AC13: =_xlfn.IFNA(VLOOKUP(AL13,List!$M$3:$O$526,3,FALSE),"-") -> - | AL13: - | AM13: =VLOOKUP(AH13,List!$D$3:$F$527,2,FALSE)&AJ13&"_"&VLOOKUP(AK13,List!$I$2:$K$529,2,FALSE) ->  | AN13: =_xlfn.IFNA("L"&AM13&" "&"AT%I"&B9*16&".5"&" "&":BOOL;"&" "&"(*"&J13&"*)"," ") ->  | AR13: - | AS13: 10133
C14: 7 | D14: =BIN2DEC(MID((TEXT(IF(B11=20,1,IF(B11=50,10,IF(B11=125,11,IF(B11=250,100,IF(B11=500,101,IF(B11=800,110,IF(B11=1000,111,0))))))),REPT(0,3))),2,1)) -> 1 | E14: =BIN2DEC(MID((TEXT(IF(B11=20,1,IF(B11=50,10,IF(B11=125,11,IF(B11=250,100,IF(B11=500,101,IF(B11=800,110,IF(B11=1000,111,0))))))),REPT(0,3))),2,1)) -> 1 | F14: 7 | H14: 7 | I14: C | J14: - | AB14: =_xlfn.IFNA(VLOOKUP(AL14,List!$M$3:$N$526,2,FALSE),"-") -> - | AC14: =_xlfn.IFNA(VLOOKUP(AL14,List!$M$3:$O$526,3,FALSE),"-") -> - | AL14: - | AM14: =VLOOKUP(AH14,List!$D$3:$F$527,2,FALSE)&AJ14&"_"&VLOOKUP(AK14,List!$I$2:$K$529,2,FALSE) ->  | AN14: =_xlfn.IFNA("L"&AM14&" "&"AT%I"&B9*16&".6"&" "&":BOOL;"&" "&"(*"&J14&"*)"," ") ->  | AR14: - | AS14: 10134
C15: 8 | D15: =BIN2DEC(MID((TEXT(IF(B11=20,1,IF(B11=50,10,IF(B11=125,11,IF(B11=250,100,IF(B11=500,101,IF(B11=800,110,IF(B11=1000,111,0))))))),REPT(0,3))),1,1)) -> 0 | E15: =BIN2DEC(MID((TEXT(IF(B11=20,1,IF(B11=50,10,IF(B11=125,11,IF(B11=250,100,IF(B11=500,101,IF(B11=800,110,IF(B11=1000,111,0))))))),REPT(0,3))),1,1)) -> 0 | F15: 8 | H15: 8 | I15: C | J15: - | AB15: =_xlfn.IFNA(VLOOKUP(AL15,List!$M$3:$N$526,2,FALSE),"-") -> - | AC15: =_xlfn.IFNA(VLOOKUP(AL15,List!$M$3:$O$526,3,FALSE),"-") -> - | AL15: - | AM15: =VLOOKUP(AH15,List!$D$3:$F$527,2,FALSE)&AJ15&"_"&VLOOKUP(AK15,List!$I$2:$K$529,2,FALSE) ->  | AN15: =_xlfn.IFNA("L"&AM15&" "&"AT%I"&B9*16&".7"&" "&":BOOL;"&" "&"(*"&J15&"*)"," ") ->  | AR15: - | AS15: 10135
F16: 9 | H16: 9 | I16: C | J16: - | AB16: =_xlfn.IFNA(VLOOKUP(AL16,List!$M$3:$N$526,2,FALSE),"-") -> - | AC16: =_xlfn.IFNA(VLOOKUP(AL16,List!$M$3:$O$526,3,FALSE),"-") -> - | AL16: - | AM16: =VLOOKUP(AH16,List!$D$3:$F$527,2,FALSE)&AJ16&"_"&VLOOKUP(AK16,List!$I$2:$K$529,2,FALSE) ->  | AN16: =_xlfn.IFNA("L"&AM16&" "&"AT%I"&B9*16+1&".0"&" "&":BOOL;"&" "&"(*"&J16&"*)"," ") ->  | AR16: - | AS16: 10136
F17: 10 | H17: 10 | I17: C | J17: - | AA17: =IF(AI17="","",AI17) ->  | AB17: =_xlfn.IFNA(VLOOKUP(AL17,List!$M$3:$N$526,2,FALSE),"-") -> - | AC17: =_xlfn.IFNA(VLOOKUP(AL17,List!$M$3:$O$526,3,FALSE),"-") -> - | AL17: =AH17&"-"&AK17 -> - | AM17: =VLOOKUP(AH17,List!$D$3:$F$527,2,FALSE)&AJ17&"_"&VLOOKUP(AK17,List!$I$2:$K$529,2,FALSE) ->  | AN17: =_xlfn.IFNA("L"&AM17&" "&"AT%I"&B9*16+1&".1"&" "&":BOOL;"&" "&"(*"&J17&"*)"," ") ->  | AR17: =J17 -> - | AS17: 10137
F18: 11 | H18: 11 | I18: C | J18: - | AB18: =_xlfn.IFNA(VLOOKUP(AL18,List!$M$3:$N$526,2,FALSE),"-") -> - | AC18: =_xlfn.IFNA(VLOOKUP(AL18,List!$M$3:$O$526,3,FALSE),"-") -> - | AL18: - | AM18: =VLOOKUP(AH18,List!$D$3:$F$527,2,FALSE)&AJ18&"_"&VLOOKUP(AK18,List!$I$2:$K$529,2,FALSE) ->  | AN18: =_xlfn.IFNA("L"&AM18&" "&"AT%I"&B9*16+1&".2"&" "&":BOOL;"&" "&"(*"&J18&"*)"," ") ->  | AR18: - | AS18: 10138
F19: 12 | H19: 12 | I19: C | J19: - | AB19: =_xlfn.IFNA(VLOOKUP(AL19,List!$M$3:$N$526,2,FALSE),"-") -> - | AC19: =_xlfn.IFNA(VLOOKUP(AL19,List!$M$3:$O$526,3,FALSE),"-") -> - | AL19: - | AM19: =VLOOKUP(AH19,List!$D$3:$F$527,2,FALSE)&AJ19&"_"&VLOOKUP(AK19,List!$I$2:$K$529,2,FALSE) ->  | AN19: =_xlfn.IFNA("L"&AM19&" "&"AT%I"&B9*16+1&".3"&" "&":BOOL;"&" "&"(*"&J19&"*)"," ") ->  | AR19: - | AS19: 10139
F20: 13 | H20: 13 | I20: C | J20: - | AB20: =_xlfn.IFNA(VLOOKUP(AL20,List!$M$3:$N$526,2,FALSE),"-") -> - | AC20: =_xlfn.IFNA(VLOOKUP(AL20,List!$M$3:$O$526,3,FALSE),"-") -> - | AL20: - | AM20: =VLOOKUP(AH20,List!$D$3:$F$527,2,FALSE)&AJ20&"_"&VLOOKUP(AK20,List!$I$2:$K$529,2,FALSE) ->  | AN20: =_xlfn.IFNA("L"&AM20&" "&"AT%I"&B9*16+1&".4"&" "&":BOOL;"&" "&"(*"&J20&"*)"," ") ->  | AR20: - | AS20: 10140
F21: 14 | H21: 14 | I21: C | J21: - | AB21: =_xlfn.IFNA(VLOOKUP(AL21,List!$M$3:$N$526,2,FALSE),"-") -> - | AC21: =_xlfn.IFNA(VLOOKUP(AL21,List!$M$3:$O$526,3,FALSE),"-") -> - | AL21: - | AM21: =VLOOKUP(AH21,List!$D$3:$F$527,2,FALSE)&AJ21&"_"&VLOOKUP(AK21,List!$I$2:$K$529,2,FALSE) ->  | AN21: =_xlfn.IFNA("L"&AM21&" "&"AT%I"&B9*16+1&".5"&" "&":BOOL;"&" "&"(*"&J21&"*)"," ") ->  | AR21: - | AS21: 10141
F22: 15 | H22: 15 | I22: C | J22: - | AB22: =_xlfn.IFNA(VLOOKUP(AL22,List!$M$3:$N$526,2,FALSE),"-") -> - | AC22: =_xlfn.IFNA(VLOOKUP(AL22,List!$M$3:$O$526,3,FALSE),"-") -> - | AL22: - | AM22: =VLOOKUP(AH22,List!$D$3:$F$527,2,FALSE)&AJ22&"_"&VLOOKUP(AK22,List!$I$2:$K$529,2,FALSE) ->  | AN22: =_xlfn.IFNA("L"&AM22&" "&"AT%I"&B9*16+1&".6"&" "&":BOOL;"&" "&"(*"&J22&"*)"," ") ->  | AR22: - | AS22: 10142
A23: . | F23: 16 | H23: 16 | I23: C | J23: - | AB23: =_xlfn.IFNA(VLOOKUP(AL23,List!$M$3:$N$526,2,FALSE),"-") -> - | AC23: =_xlfn.IFNA(VLOOKUP(AL23,List!$M$3:$O$526,3,FALSE),"-") -> - | AL23: - | AM23: =VLOOKUP(AH23,List!$D$3:$F$527,2,FALSE)&AJ23&"_"&VLOOKUP(AK23,List!$I$2:$K$529,2,FALSE) ->  | AN23: =_xlfn.IFNA("L"&AM23&" "&"AT%I"&B9*16+1&".7"&" "&":BOOL;"&" "&"(*"&J23&"*)"," ") ->  | AR23: - | AS23: 10143
B24: IOM.1601R D7 | AO24: ="(* "&B29&"地址: "&B26&" *)" -> (* IOM 1601R D7地址: 1 *)
B25: addr | C25: 1 | D25: =BIN2DEC(MID((TEXT(DEC2BIN(B26),REPT(0,5))),5,1)) -> 1 | E25: =BIN2DEC(MID((TEXT(DEC2BIN(B26),REPT(0,5))),5,1)) -> 1 | F25: 1 | H25: 1 | I25: C | J25: =AH25&AA25&"-"&AK25 -> - | AA25: =IF(AI25="","",AI25) ->  | AB25: =_xlfn.IFNA(VLOOKUP(AL25,List!$M$3:$N$526,2,FALSE),"-") -> - | AC25: =_xlfn.IFNA(VLOOKUP(AL25,List!$M$3:$O$526,3,FALSE),"-") -> - | AL25: =AH25&"-"&AK25 -> - | AM25: =VLOOKUP(AH25,List!$D$3:$F$527,2,FALSE)&AJ25&"_"&VLOOKUP(AK25,List!$I$2:$K$529,2,FALSE) ->  | AN25: =_xlfn.IFNA("L"&AM25&" "&"AT%I"&B26*16&".0"&" "&":BOOL;"&" "&"(*"&J25&"*)"," ") ->  | AO25: =IFERROR(REPLACE(REPLACE(AN25,SEARCH("AT%",AN25),,REPT(" ",30-SEARCH("AT%",AN25))),SEARCH(":",REPLACE(AN25,SEARCH("AT%",AN25),,REPT(" ",30-SEARCH("AT%",AN25)))),,REPT(" ",35-SEARCH(":",REPLACE(AN25,SEARCH("AT%",AN25),,REPT(" ",25-SEARCH("AT%",AN25))))))," ") ->  | AQ25: =$B$2&"\"&$B$2&AM25 ->  | AR25: =J25 -> - | AS25: =10000+($B26*16*8+F25-1) -> 10128
B26: 1 | C26: 2 | D26: =BIN2DEC(MID((TEXT(DEC2BIN(B26),REPT(0,5))),4,1)) -> 0 | E26: =BIN2DEC(MID((TEXT(DEC2BIN(B26),REPT(0,5))),4,1)) -> 0 | F26: 2 | H26: 2 | I26: C | J26: - | AA26: =IF(AI26="","",AI26) ->  | AB26: =_xlfn.IFNA(VLOOKUP(AL26,List!$M$3:$N$526,2,FALSE),"-") -> - | AC26: =_xlfn.IFNA(VLOOKUP(AL26,List!$M$3:$O$526,3,FALSE),"-") -> - | AL26: =AH26&"-"&AK26 -> - | AM26: =VLOOKUP(AH26,List!$D$3:$F$527,2,FALSE)&AJ26&"_"&VLOOKUP(AK26,List!$I$2:$K$529,2,FALSE) ->  | AN26: =_xlfn.IFNA("L"&AM26&" "&"AT%I"&B26*16&".1"&" "&":BOOL;"&" "&"(*"&J26&"*)"," ") ->  | AR26: =J26 -> - | AS26: =AS25+1 -> 10129
B27: kbs | C27: 3 | D27: =BIN2DEC(MID((TEXT(DEC2BIN(B26),REPT(0,5))),3,1)) -> 0 | E27: =BIN2DEC(MID((TEXT(DEC2BIN(B26),REPT(0,5))),3,1)) -> 0 | F27: 3 | H27: 3 | I27: C | J27: - | AB27: =_xlfn.IFNA(VLOOKUP(AL27,List!$M$3:$N$526,2,FALSE),"-") -> - | AC27: =_xlfn.IFNA(VLOOKUP(AL27,List!$M$3:$O$526,3,FALSE),"-") -> - | AL27: - | AM27: =VLOOKUP(AH27,List!$D$3:$F$527,2,FALSE)&AJ27&"_"&VLOOKUP(AK27,List!$I$2:$K$529,2,FALSE) ->  | AN27: =_xlfn.IFNA("L"&AM27&" "&"AT%I"&B26*16&".2"&" "&":BOOL;"&" "&"(*"&J27&"*)"," ") ->  | AR27: - | AS27: =AS26+1 -> 10130
B28: 125 | C28: 4 | D28: =BIN2DEC(MID((TEXT(DEC2BIN(B26),REPT(0,5))),2,1)) -> 0 | E28: =BIN2DEC(MID((TEXT(DEC2BIN(B26),REPT(0,5))),2,1)) -> 0 | F28: 4 | H28: 4 | I28: C | J28: - | AB28: =_xlfn.IFNA(VLOOKUP(AL28,List!$M$3:$N$526,2,FALSE),"-") -> - | AC28: =_xlfn.IFNA(VLOOKUP(AL28,List!$M$3:$O$526,3,FALSE),"-") -> - | AL28: - | AM28: =VLOOKUP(AH28,List!$D$3:$F$527,2,FALSE)&AJ28&"_"&VLOOKUP(AK28,List!$I$2:$K$529,2,FALSE) ->  | AN28: =_xlfn.IFNA("L"&AM28&" "&"AT%I"&B26*16&".3"&" "&":BOOL;"&" "&"(*"&J28&"*)"," ") ->  | AR28: - | AS28: 10131
B29: IOM 1601R D7 | C29: 5 | D29: =BIN2DEC(MID((TEXT(DEC2BIN(B26),REPT(0,5))),1,1)) -> 0 | E29: =BIN2DEC(MID((TEXT(DEC2BIN(B26),REPT(0,5))),1,1)) -> 0 | F29: 5 | H29: 5 | I29: C | J29: - | AB29: =_xlfn.IFNA(VLOOKUP(AL29,List!$M$3:$N$526,2,FALSE),"-") -> - | AC29: =_xlfn.IFNA(VLOOKUP(AL29,List!$M$3:$O$526,3,FALSE),"-") -> - | AL29: - | AM29: =VLOOKUP(AH29,List!$D$3:$F$527,2,FALSE)&AJ29&"_"&VLOOKUP(AK29,List!$I$2:$K$529,2,FALSE) ->  | AN29: =_xlfn.IFNA("L"&AM29&" "&"AT%I"&B26*16&".4"&" "&":BOOL;"&" "&"(*"&J29&"*)"," ") ->  | AR29: - | AS29: 10132
C30: 6 | D30: =BIN2DEC(MID((TEXT(IF(B28=20,1,IF(B28=50,10,IF(B28=125,11,IF(B28=250,100,IF(B28=500,101,IF(B28=800,110,IF(B28=1000,111,0))))))),REPT(0,3))),3,1)) -> 1 | E30: =BIN2DEC(MID((TEXT(IF(B28=20,1,IF(B28=50,10,IF(B28=125,11,IF(B28=250,100,IF(B28=500,101,IF(B28=800,110,IF(B28=1000,111,0))))))),REPT(0,3))),3,1)) -> 1 | F30: 6 | H30: 6 | I30: C | J30: - | AB30: =_xlfn.IFNA(VLOOKUP(AL30,List!$M$3:$N$526,2,FALSE),"-") -> - | AC30: =_xlfn.IFNA(VLOOKUP(AL30,List!$M$3:$O$526,3,FALSE),"-") -> - | AL30: - | AM30: =VLOOKUP(AH30,List!$D$3:$F$527,2,FALSE)&AJ30&"_"&VLOOKUP(AK30,List!$I$2:$K$529,2,FALSE) ->  | AN30: =_xlfn.IFNA("L"&AM30&" "&"AT%I"&B26*16&".5"&" "&":BOOL;"&" "&"(*"&J30&"*)"," ") ->  | AR30: - | AS30: 10133
C31: 7 | D31: =BIN2DEC(MID((TEXT(IF(B28=20,1,IF(B28=50,10,IF(B28=125,11,IF(B28=250,100,IF(B28=500,101,IF(B28=800,110,IF(B28=1000,111,0))))))),REPT(0,3))),2,1)) -> 1 | E31: =BIN2DEC(MID((TEXT(IF(B28=20,1,IF(B28=50,10,IF(B28=125,11,IF(B28=250,100,IF(B28=500,101,IF(B28=800,110,IF(B28=1000,111,0))))))),REPT(0,3))),2,1)) -> 1 | F31: 7 | H31: 7 | I31: C | J31: - | AB31: =_xlfn.IFNA(VLOOKUP(AL31,List!$M$3:$N$526,2,FALSE),"-") -> - | AC31: =_xlfn.IFNA(VLOOKUP(AL31,List!$M$3:$O$526,3,FALSE),"-") -> - | AL31: - | AM31: =VLOOKUP(AH31,List!$D$3:$F$527,2,FALSE)&AJ31&"_"&VLOOKUP(AK31,List!$I$2:$K$529,2,FALSE) ->  | AN31: =_xlfn.IFNA("L"&AM31&" "&"AT%I"&B26*16&".6"&" "&":BOOL;"&" "&"(*"&J31&"*)"," ") ->  | AR31: - | AS31: 10134
C32: 8 | D32: =BIN2DEC(MID((TEXT(IF(B28=20,1,IF(B28=50,10,IF(B28=125,11,IF(B28=250,100,IF(B28=500,101,IF(B28=800,110,IF(B28=1000,111,0))))))),REPT(0,3))),1,1)) -> 0 | E32: =BIN2DEC(MID((TEXT(IF(B28=20,1,IF(B28=50,10,IF(B28=125,11,IF(B28=250,100,IF(B28=500,101,IF(B28=800,110,IF(B28=1000,111,0))))))),REPT(0,3))),1,1)) -> 0 | F32: 8 | H32: 8 | I32: C | J32: - | AB32: =_xlfn.IFNA(VLOOKUP(AL32,List!$M$3:$N$526,2,FALSE),"-") -> - | AC32: =_xlfn.IFNA(VLOOKUP(AL32,List!$M$3:$O$526,3,FALSE),"-") -> - | AL32: - | AM32: =VLOOKUP(AH32,List!$D$3:$F$527,2,FALSE)&AJ32&"_"&VLOOKUP(AK32,List!$I$2:$K$529,2,FALSE) ->  | AN32: =_xlfn.IFNA("L"&AM32&" "&"AT%I"&B26*16&".7"&" "&":BOOL;"&" "&"(*"&J32&"*)"," ") ->  | AR32: - | AS32: 10135
F33: 9 | H33: 9 | I33: C | J33: - | AB33: =_xlfn.IFNA(VLOOKUP(AL33,List!$M$3:$N$526,2,FALSE),"-") -> - | AC33: =_xlfn.IFNA(VLOOKUP(AL33,List!$M$3:$O$526,3,FALSE),"-") -> - | AL33: - | AM33: =VLOOKUP(AH33,List!$D$3:$F$527,2,FALSE)&AJ33&"_"&VLOOKUP(AK33,List!$I$2:$K$529,2,FALSE) ->  | AN33: =_xlfn.IFNA("L"&AM33&" "&"AT%I"&B26*16+1&".0"&" "&":BOOL;"&" "&"(*"&J33&"*)"," ") ->  | AR33: - | AS33: 10136
F34: 10 | H34: 10 | I34: C | J34: - | AA34: =IF(AI34="","",AI34) ->  | AB34: =_xlfn.IFNA(VLOOKUP(AL34,List!$M$3:$N$526,2,FALSE),"-") -> - | AC34: =_xlfn.IFNA(VLOOKUP(AL34,List!$M$3:$O$526,3,FALSE),"-") -> - | AL34: =AH34&"-"&AK34 -> - | AM34: =VLOOKUP(AH34,List!$D$3:$F$527,2,FALSE)&AJ34&"_"&VLOOKUP(AK34,List!$I$2:$K$529,2,FALSE) ->  | AN34: =_xlfn.IFNA("L"&AM34&" "&"AT%I"&B26*16+1&".1"&" "&":BOOL;"&" "&"(*"&J34&"*)"," ") ->  | AR34: =J34 -> - | AS34: 10137
F35: 11 | H35: 11 | I35: C | J35: - | AB35: =_xlfn.IFNA(VLOOKUP(AL35,List!$M$3:$N$526,2,FALSE),"-") -> - | AC35: =_xlfn.IFNA(VLOOKUP(AL35,List!$M$3:$O$526,3,FALSE),"-") -> - | AL35: - | AM35: =VLOOKUP(AH35,List!$D$3:$F$527,2,FALSE)&AJ35&"_"&VLOOKUP(AK35,List!$I$2:$K$529,2,FALSE) ->  | AN35: =_xlfn.IFNA("L"&AM35&" "&"AT%I"&B26*16+1&".2"&" "&":BOOL;"&" "&"(*"&J35&"*)"," ") ->  | AR35: - | AS35: 10138
F36: 12 | H36: 12 | I36: C | J36: - | AB36: =_xlfn.IFNA(VLOOKUP(AL36,List!$M$3:$N$526,2,FALSE),"-") -> - | AC36: =_xlfn.IFNA(VLOOKUP(AL36,List!$M$3:$O$526,3,FALSE),"-") -> - | AL36: - | AM36: =VLOOKUP(AH36,List!$D$3:$F$527,2,FALSE)&AJ36&"_"&VLOOKUP(AK36,List!$I$2:$K$529,2,FALSE) ->  | AN36: =_xlfn.IFNA("L"&AM36&" "&"AT%I"&B26*16+1&".3"&" "&":BOOL;"&" "&"(*"&J36&"*)"," ") ->  | AR36: - | AS36: 10139
F37: 13 | H37: 13 | I37: C | J37: - | AB37: =_xlfn.IFNA(VLOOKUP(AL37,List!$M$3:$N$526,2,FALSE),"-") -> - | AC37: =_xlfn.IFNA(VLOOKUP(AL37,List!$M$3:$O$526,3,FALSE),"-") -> - | AL37: - | AM37: =VLOOKUP(AH37,List!$D$3:$F$527,2,FALSE)&AJ37&"_"&VLOOKUP(AK37,List!$I$2:$K$529,2,FALSE) ->  | AN37: =_xlfn.IFNA("L"&AM37&" "&"AT%I"&B26*16+1&".4"&" "&":BOOL;"&" "&"(*"&J37&"*)"," ") ->  | AR37: - | AS37: 10140
F38: 14 | H38: 14 | I38: C | J38: - | AB38: =_xlfn.IFNA(VLOOKUP(AL38,List!$M$3:$N$526,2,FALSE),"-") -> - | AC38: =_xlfn.IFNA(VLOOKUP(AL38,List!$M$3:$O$526,3,FALSE),"-") -> - | AL38: - | AM38: =VLOOKUP(AH38,List!$D$3:$F$527,2,FALSE)&AJ38&"_"&VLOOKUP(AK38,List!$I$2:$K$529,2,FALSE) ->  | AN38: =_xlfn.IFNA("L"&AM38&" "&"AT%I"&B26*16+1&".5"&" "&":BOOL;"&" "&"(*"&J38&"*)"," ") ->  | AR38: - | AS38: 10141
F39: 15 | H39: 15 | I39: C | J39: - | AB39: =_xlfn.IFNA(VLOOKUP(AL39,List!$M$3:$N$526,2,FALSE),"-") -> - | AC39: =_xlfn.IFNA(VLOOKUP(AL39,List!$M$3:$O$526,3,FALSE),"-") -> - | AL39: - | AM39: =VLOOKUP(AH39,List!$D$3:$F$527,2,FALSE)&AJ39&"_"&VLOOKUP(AK39,List!$I$2:$K$529,2,FALSE) ->  | AN39: =_xlfn.IFNA("L"&AM39&" "&"AT%I"&B26*16+1&".6"&" "&":BOOL;"&" "&"(*"&J39&"*)"," ") ->  | AR39: - | AS39: 10142
A40: . | F40: 16 | H40: 16 | I40: C | J40: - | AB40: =_xlfn.IFNA(VLOOKUP(AL40,List!$M$3:$N$526,2,FALSE),"-") -> - | AC40: =_xlfn.IFNA(VLOOKUP(AL40,List!$M$3:$O$526,3,FALSE),"-") -> - | AL40: - | AM40: =VLOOKUP(AH40,List!$D$3:$F$527,2,FALSE)&AJ40&"_"&VLOOKUP(AK40,List!$I$2:$K$529,2,FALSE) ->  | AN40: =_xlfn.IFNA("L"&AM40&" "&"AT%I"&B26*16+1&".7"&" "&":BOOL;"&" "&"(*"&J40&"*)"," ") ->  | AR40: - | AS40: 10143
B41: IOM.1601R D7 | AO41: ="(* "&B46&"地址: "&B43&" *)" -> (* IOM 1601R D7地址: 1 *)
B42: addr | C42: 1 | D42: =BIN2DEC(MID((TEXT(DEC2BIN(B43),REPT(0,5))),5,1)) -> 1 | E42: =BIN2DEC(MID((TEXT(DEC2BIN(B43),REPT(0,5))),5,1)) -> 1 | F42: 1 | H42: 1 | I42: C | J42: =AH42&AA42&"-"&AK42 -> - | AA42: =IF(AI42="","",AI42) ->  | AB42: =_xlfn.IFNA(VLOOKUP(AL42,List!$M$3:$N$526,2,FALSE),"-") -> - | AC42: =_xlfn.IFNA(VLOOKUP(AL42,List!$M$3:$O$526,3,FALSE),"-") -> - | AL42: =AH42&"-"&AK42 -> - | AM42: =VLOOKUP(AH42,List!$D$3:$F$527,2,FALSE)&AJ42&"_"&VLOOKUP(AK42,List!$I$2:$K$529,2,FALSE) ->  | AN42: =_xlfn.IFNA("L"&AM42&" "&"AT%I"&B43*16&".0"&" "&":BOOL;"&" "&"(*"&J42&"*)"," ") ->  | AO42: =IFERROR(REPLACE(REPLACE(AN42,SEARCH("AT%",AN42),,REPT(" ",30-SEARCH("AT%",AN42))),SEARCH(":",REPLACE(AN42,SEARCH("AT%",AN42),,REPT(" ",30-SEARCH("AT%",AN42)))),,REPT(" ",35-SEARCH(":",REPLACE(AN42,SEARCH("AT%",AN42),,REPT(" ",25-SEARCH("AT%",AN42))))))," ") ->  | AQ42: =$B$2&"\"&$B$2&AM42 ->  | AR42: =J42 -> - | AS42: =10000+($B43*16*8+F42-1) -> 10128
B43: 1 | C43: 2 | D43: =BIN2DEC(MID((TEXT(DEC2BIN(B43),REPT(0,5))),4,1)) -> 0 | E43: =BIN2DEC(MID((TEXT(DEC2BIN(B43),REPT(0,5))),4,1)) -> 0 | F43: 2 | H43: 2 | I43: C | J43: - | AA43: =IF(AI43="","",AI43) ->  | AB43: =_xlfn.IFNA(VLOOKUP(AL43,List!$M$3:$N$526,2,FALSE),"-") -> - | AC43: =_xlfn.IFNA(VLOOKUP(AL43,List!$M$3:$O$526,3,FALSE),"-") -> - | AL43: =AH43&"-"&AK43 -> - | AM43: =VLOOKUP(AH43,List!$D$3:$F$527,2,FALSE)&AJ43&"_"&VLOOKUP(AK43,List!$I$2:$K$529,2,FALSE) ->  | AN43: =_xlfn.IFNA("L"&AM43&" "&"AT%I"&B43*16&".1"&" "&":BOOL;"&" "&"(*"&J43&"*)"," ") ->  | AR43: =J43 -> - | AS43: =AS42+1 -> 10129
B44: kbs | C44: 3 | D44: =BIN2DEC(MID((TEXT(DEC2BIN(B43),REPT(0,5))),3,1)) -> 0 | E44: =BIN2DEC(MID((TEXT(DEC2BIN(B43),REPT(0,5))),3,1)) -> 0 | F44: 3 | H44: 3 | I44: C | J44: - | AB44: =_xlfn.IFNA(VLOOKUP(AL44,List!$M$3:$N$526,2,FALSE),"-") -> - | AC44: =_xlfn.IFNA(VLOOKUP(AL44,List!$M$3:$O$526,3,FALSE),"-") -> - | AL44: - | AM44: =VLOOKUP(AH44,List!$D$3:$F$527,2,FALSE)&AJ44&"_"&VLOOKUP(AK44,List!$I$2:$K$529,2,FALSE) ->  | AN44: =_xlfn.IFNA("L"&AM44&" "&"AT%I"&B43*16&".2"&" "&":BOOL;"&" "&"(*"&J44&"*)"," ") ->  | AR44: - | AS44: =AS43+1 -> 10130
B45: 125 | C45: 4 | D45: =BIN2DEC(MID((TEXT(DEC2BIN(B43),REPT(0,5))),2,1)) -> 0 | E45: =BIN2DEC(MID((TEXT(DEC2BIN(B43),REPT(0,5))),2,1)) -> 0 | F45: 4 | H45: 4 | I45: C | J45: - | AB45: =_xlfn.IFNA(VLOOKUP(AL45,List!$M$3:$N$526,2,FALSE),"-") -> - | AC45: =_xlfn.IFNA(VLOOKUP(AL45,List!$M$3:$O$526,3,FALSE),"-") -> - | AL45: - | AM45: =VLOOKUP(AH45,List!$D$3:$F$527,2,FALSE)&AJ45&"_"&VLOOKUP(AK45,List!$I$2:$K$529,2,FALSE) ->  | AN45: =_xlfn.IFNA("L"&AM45&" "&"AT%I"&B43*16&".3"&" "&":BOOL;"&" "&"(*"&J45&"*)"," ") ->  | AR45: - | AS45: 10131
B46: IOM 1601R D7 | C46: 5 | D46: =BIN2DEC(MID((TEXT(DEC2BIN(B43),REPT(0,5))),1,1)) -> 0 | E46: =BIN2DEC(MID((TEXT(DEC2BIN(B43),REPT(0,5))),1,1)) -> 0 | F46: 5 | H46: 5 | I46: C | J46: - | AB46: =_xlfn.IFNA(VLOOKUP(AL46,List!$M$3:$N$526,2,FALSE),"-") -> - | AC46: =_xlfn.IFNA(VLOOKUP(AL46,List!$M$3:$O$526,3,FALSE),"-") -> - | AL46: - | AM46: =VLOOKUP(AH46,List!$D$3:$F$527,2,FALSE)&AJ46&"_"&VLOOKUP(AK46,List!$I$2:$K$529,2,FALSE) ->  | AN46: =_xlfn.IFNA("L"&AM46&" "&"AT%I"&B43*16&".4"&" "&":BOOL;"&" "&"(*"&J46&"*)"," ") ->  | AR46: - | AS46: 10132
C47: 6 | D47: =BIN2DEC(MID((TEXT(IF(B45=20,1,IF(B45=50,10,IF(B45=125,11,IF(B45=250,100,IF(B45=500,101,IF(B45=800,110,IF(B45=1000,111,0))))))),REPT(0,3))),3,1)) -> 1 | E47: =BIN2DEC(MID((TEXT(IF(B45=20,1,IF(B45=50,10,IF(B45=125,11,IF(B45=250,100,IF(B45=500,101,IF(B45=800,110,IF(B45=1000,111,0))))))),REPT(0,3))),3,1)) -> 1 | F47: 6 | H47: 6 | I47: C | J47: - | AB47: =_xlfn.IFNA(VLOOKUP(AL47,List!$M$3:$N$526,2,FALSE),"-") -> - | AC47: =_xlfn.IFNA(VLOOKUP(AL47,List!$M$3:$O$526,3,FALSE),"-") -> - | AL47: - | AM47: =VLOOKUP(AH47,List!$D$3:$F$527,2,FALSE)&AJ47&"_"&VLOOKUP(AK47,List!$I$2:$K$529,2,FALSE) ->  | AN47: =_xlfn.IFNA("L"&AM47&" "&"AT%I"&B43*16&".5"&" "&":BOOL;"&" "&"(*"&J47&"*)"," ") ->  | AR47: - | AS47: 10133
C48: 7 | D48: =BIN2DEC(MID((TEXT(IF(B45=20,1,IF(B45=50,10,IF(B45=125,11,IF(B45=250,100,IF(B45=500,101,IF(B45=800,110,IF(B45=1000,111,0))))))),REPT(0,3))),2,1)) -> 1 | E48: =BIN2DEC(MID((TEXT(IF(B45=20,1,IF(B45=50,10,IF(B45=125,11,IF(B45=250,100,IF(B45=500,101,IF(B45=800,110,IF(B45=1000,111,0))))))),REPT(0,3))),2,1)) -> 1 | F48: 7 | H48: 7 | I48: C | J48: - | AB48: =_xlfn.IFNA(VLOOKUP(AL48,List!$M$3:$N$526,2,FALSE),"-") -> - | AC48: =_xlfn.IFNA(VLOOKUP(AL48,List!$M$3:$O$526,3,FALSE),"-") -> - | AL48: - | AM48: =VLOOKUP(AH48,List!$D$3:$F$527,2,FALSE)&AJ48&"_"&VLOOKUP(AK48,List!$I$2:$K$529,2,FALSE) ->  | AN48: =_xlfn.IFNA("L"&AM48&" "&"AT%I"&B43*16&".6"&" "&":BOOL;"&" "&"(*"&J48&"*)"," ") ->  | AR48: - | AS48: 10134
C49: 8 | D49: =BIN2DEC(MID((TEXT(IF(B45=20,1,IF(B45=50,10,IF(B45=125,11,IF(B45=250,100,IF(B45=500,101,IF(B45=800,110,IF(B45=1000,111,0))))))),REPT(0,3))),1,1)) -> 0 | E49: =BIN2DEC(MID((TEXT(IF(B45=20,1,IF(B45=50,10,IF(B45=125,11,IF(B45=250,100,IF(B45=500,101,IF(B45=800,110,IF(B45=1000,111,0))))))),REPT(0,3))),1,1)) -> 0 | F49: 8 | H49: 8 | I49: C | J49: - | AB49: =_xlfn.IFNA(VLOOKUP(AL49,List!$M$3:$N$526,2,FALSE),"-") -> - | AC49: =_xlfn.IFNA(VLOOKUP(AL49,List!$M$3:$O$526,3,FALSE),"-") -> - | AL49: - | AM49: =VLOOKUP(AH49,List!$D$3:$F$527,2,FALSE)&AJ49&"_"&VLOOKUP(AK49,List!$I$2:$K$529,2,FALSE) ->  | AN49: =_xlfn.IFNA("L"&AM49&" "&"AT%I"&B43*16&".7"&" "&":BOOL;"&" "&"(*"&J49&"*)"," ") ->  | AR49: - | AS49: 10135
F50: 9 | H50: 9 | I50: C | J50: - | AB50: =_xlfn.IFNA(VLOOKUP(AL50,List!$M$3:$N$526,2,FALSE),"-") -> - | AC50: =_xlfn.IFNA(VLOOKUP(AL50,List!$M$3:$O$526,3,FALSE),"-") -> - | AL50: - | AM50: =VLOOKUP(AH50,List!$D$3:$F$527,2,FALSE)&AJ50&"_"&VLOOKUP(AK50,List!$I$2:$K$529,2,FALSE) ->  | AN50: =_xlfn.IFNA("L"&AM50&" "&"AT%I"&B43*16+1&".0"&" "&":BOOL;"&" "&"(*"&J50&"*)"," ") ->  | AR50: - | AS50: 10136
F51: 10 | H51: 10 | I51: C | J51: - | AA51: =IF(AI51="","",AI51) ->  | AB51: =_xlfn.IFNA(VLOOKUP(AL51,List!$M$3:$N$526,2,FALSE),"-") -> - | AC51: =_xlfn.IFNA(VLOOKUP(AL51,List!$M$3:$O$526,3,FALSE),"-") -> - | AL51: =AH51&"-"&AK51 -> - | AM51: =VLOOKUP(AH51,List!$D$3:$F$527,2,FALSE)&AJ51&"_"&VLOOKUP(AK51,List!$I$2:$K$529,2,FALSE) ->  | AN51: =_xlfn.IFNA("L"&AM51&" "&"AT%I"&B43*16+1&".1"&" "&":BOOL;"&" "&"(*"&J51&"*)"," ") ->  | AR51: =J51 -> - | AS51: 10137
F52: 11 | H52: 11 | I52: C | J52: - | AB52: =_xlfn.IFNA(VLOOKUP(AL52,List!$M$3:$N$526,2,FALSE),"-") -> - | AC52: =_xlfn.IFNA(VLOOKUP(AL52,List!$M$3:$O$526,3,FALSE),"-") -> - | AL52: - | AM52: =VLOOKUP(AH52,List!$D$3:$F$527,2,FALSE)&AJ52&"_"&VLOOKUP(AK52,List!$I$2:$K$529,2,FALSE) ->  | AN52: =_xlfn.IFNA("L"&AM52&" "&"AT%I"&B43*16+1&".2"&" "&":BOOL;"&" "&"(*"&J52&"*)"," ") ->  | AR52: - | AS52: 10138
F53: 12 | H53: 12 | I53: C | J53: - | AB53: =_xlfn.IFNA(VLOOKUP(AL53,List!$M$3:$N$526,2,FALSE),"-") -> - | AC53: =_xlfn.IFNA(VLOOKUP(AL53,List!$M$3:$O$526,3,FALSE),"-") -> - | AL53: - | AM53: =VLOOKUP(AH53,List!$D$3:$F$527,2,FALSE)&AJ53&"_"&VLOOKUP(AK53,List!$I$2:$K$529,2,FALSE) ->  | AN53: =_xlfn.IFNA("L"&AM53&" "&"AT%I"&B43*16+1&".3"&" "&":BOOL;"&" "&"(*"&J53&"*)"," ") ->  | AR53: - | AS53: 10139
F54: 13 | H54: 13 | I54: C | J54: - | AB54: =_xlfn.IFNA(VLOOKUP(AL54,List!$M$3:$N$526,2,FALSE),"-") -> - | AC54: =_xlfn.IFNA(VLOOKUP(AL54,List!$M$3:$O$526,3,FALSE),"-") -> - | AL54: - | AM54: =VLOOKUP(AH54,List!$D$3:$F$527,2,FALSE)&AJ54&"_"&VLOOKUP(AK54,List!$I$2:$K$529,2,FALSE) ->  | AN54: =_xlfn.IFNA("L"&AM54&" "&"AT%I"&B43*16+1&".4"&" "&":BOOL;"&" "&"(*"&J54&"*)"," ") ->  | AR54: - | AS54: 10140
F55: 14 | H55: 14 | I55: C | J55: - | AB55: =_xlfn.IFNA(VLOOKUP(AL55,List!$M$3:$N$526,2,FALSE),"-") -> - | AC55: =_xlfn.IFNA(VLOOKUP(AL55,List!$M$3:$O$526,3,FALSE),"-") -> - | AL55: - | AM55: =VLOOKUP(AH55,List!$D$3:$F$527,2,FALSE)&AJ55&"_"&VLOOKUP(AK55,List!$I$2:$K$529,2,FALSE) ->  | AN55: =_xlfn.IFNA("L"&AM55&" "&"AT%I"&B43*16+1&".5"&" "&":BOOL;"&" "&"(*"&J55&"*)"," ") ->  | AR55: - | AS55: 10141
F56: 15 | H56: 15 | I56: C | J56: - | AB56: =_xlfn.IFNA(VLOOKUP(AL56,List!$M$3:$N$526,2,FALSE),"-") -> - | AC56: =_xlfn.IFNA(VLOOKUP(AL56,List!$M$3:$O$526,3,FALSE),"-") -> - | AL56: - | AM56: =VLOOKUP(AH56,List!$D$3:$F$527,2,FALSE)&AJ56&"_"&VLOOKUP(AK56,List!$I$2:$K$529,2,FALSE) ->  | AN56: =_xlfn.IFNA("L"&AM56&" "&"AT%I"&B43*16+1&".6"&" "&":BOOL;"&" "&"(*"&J56&"*)"," ") ->  | AR56: - | AS56: 10142
A57: . | F57: 16 | H57: 16 | I57: C | J57: - | AB57: =_xlfn.IFNA(VLOOKUP(AL57,List!$M$3:$N$526,2,FALSE),"-") -> - | AC57: =_xlfn.IFNA(VLOOKUP(AL57,List!$M$3:$O$526,3,FALSE),"-") -> - | AL57: - | AM57: =VLOOKUP(AH57,List!$D$3:$F$527,2,FALSE)&AJ57&"_"&VLOOKUP(AK57,List!$I$2:$K$529,2,FALSE) ->  | AN57: =_xlfn.IFNA("L"&AM57&" "&"AT%I"&B43*16+1&".7"&" "&":BOOL;"&" "&"(*"&J57&"*)"," ") ->  | AR57: - | AS57: 10143
B58: IOM.1601R D7 | AO58: ="(* "&B63&"地址: "&B60&" *)" -> (* IOM 1601R D7地址: 1 *)
B59: addr | C59: 1 | D59: =BIN2DEC(MID((TEXT(DEC2BIN(B60),REPT(0,5))),5,1)) -> 1 | E59: =BIN2DEC(MID((TEXT(DEC2BIN(B60),REPT(0,5))),5,1)) -> 1 | F59: 1 | H59: 1 | I59: C | J59: =AH59&AA59&"-"&AK59 -> - | AA59: =IF(AI59="","",AI59) ->  | AB59: =_xlfn.IFNA(VLOOKUP(AL59,List!$M$3:$N$526,2,FALSE),"-") -> - | AC59: =_xlfn.IFNA(VLOOKUP(AL59,List!$M$3:$O$526,3,FALSE),"-") -> - | AL59: =AH59&"-"&AK59 -> - | AM59: =VLOOKUP(AH59,List!$D$3:$F$527,2,FALSE)&AJ59&"_"&VLOOKUP(AK59,List!$I$2:$K$529,2,FALSE) ->  | AN59: =_xlfn.IFNA("L"&AM59&" "&"AT%I"&B60*16&".0"&" "&":BOOL;"&" "&"(*"&J59&"*)"," ") ->  | AO59: =IFERROR(REPLACE(REPLACE(AN59,SEARCH("AT%",AN59),,REPT(" ",30-SEARCH("AT%",AN59))),SEARCH(":",REPLACE(AN59,SEARCH("AT%",AN59),,REPT(" ",30-SEARCH("AT%",AN59)))),,REPT(" ",35-SEARCH(":",REPLACE(AN59,SEARCH("AT%",AN59),,REPT(" ",25-SEARCH("AT%",AN59))))))," ") ->  | AQ59: =$B$2&"\"&$B$2&AM59 ->  | AR59: =J59 -> - | AS59: =10000+($B60*16*8+F59-1) -> 10128
B60: 1 | C60: 2 | D60: =BIN2DEC(MID((TEXT(DEC2BIN(B60),REPT(0,5))),4,1)) -> 0 | E60: =BIN2DEC(MID((TEXT(DEC2BIN(B60),REPT(0,5))),4,1)) -> 0 | F60: 2 | H60: 2 | I60: C | J60: - | AA60: =IF(AI60="","",AI60) ->  | AB60: =_xlfn.IFNA(VLOOKUP(AL60,List!$M$3:$N$526,2,FALSE),"-") -> - | AC60: =_xlfn.IFNA(VLOOKUP(AL60,List!$M$3:$O$526,3,FALSE),"-") -> - | AL60: =AH60&"-"&AK60 -> - | AM60: =VLOOKUP(AH60,List!$D$3:$F$527,2,FALSE)&AJ60&"_"&VLOOKUP(AK60,List!$I$2:$K$529,2,FALSE) ->  | AN60: =_xlfn.IFNA("L"&AM60&" "&"AT%I"&B60*16&".1"&" "&":BOOL;"&" "&"(*"&J60&"*)"," ") ->  | AR60: =J60 -> - | AS60: =AS59+1 -> 10129
B61: kbs | C61: 3 | D61: =BIN2DEC(MID((TEXT(DEC2BIN(B60),REPT(0,5))),3,1)) -> 0 | E61: =BIN2DEC(MID((TEXT(DEC2BIN(B60),REPT(0,5))),3,1)) -> 0 | F61: 3 | H61: 3 | I61: C | J61: - | AB61: =_xlfn.IFNA(VLOOKUP(AL61,List!$M$3:$N$526,2,FALSE),"-") -> - | AC61: =_xlfn.IFNA(VLOOKUP(AL61,List!$M$3:$O$526,3,FALSE),"-") -> - | AL61: - | AM61: =VLOOKUP(AH61,List!$D$3:$F$527,2,FALSE)&AJ61&"_"&VLOOKUP(AK61,List!$I$2:$K$529,2,FALSE) ->  | AN61: =_xlfn.IFNA("L"&AM61&" "&"AT%I"&B60*16&".2"&" "&":BOOL;"&" "&"(*"&J61&"*)"," ") ->  | AR61: - | AS61: =AS60+1 -> 10130
B62: 125 | C62: 4 | D62: =BIN2DEC(MID((TEXT(DEC2BIN(B60),REPT(0,5))),2,1)) -> 0 | E62: =BIN2DEC(MID((TEXT(DEC2BIN(B60),REPT(0,5))),2,1)) -> 0 | F62: 4 | H62: 4 | I62: C | J62: - | AB62: =_xlfn.IFNA(VLOOKUP(AL62,List!$M$3:$N$526,2,FALSE),"-") -> - | AC62: =_xlfn.IFNA(VLOOKUP(AL62,List!$M$3:$O$526,3,FALSE),"-") -> - | AL62: - | AM62: =VLOOKUP(AH62,List!$D$3:$F$527,2,FALSE)&AJ62&"_"&VLOOKUP(AK62,List!$I$2:$K$529,2,FALSE) ->  | AN62: =_xlfn.IFNA("L"&AM62&" "&"AT%I"&B60*16&".3"&" "&":BOOL;"&" "&"(*"&J62&"*)"," ") ->  | AR62: - | AS62: 10131
B63: IOM 1601R D7 | C63: 5 | D63: =BIN2DEC(MID((TEXT(DEC2BIN(B60),REPT(0,5))),1,1)) -> 0 | E63: =BIN2DEC(MID((TEXT(DEC2BIN(B60),REPT(0,5))),1,1)) -> 0 | F63: 5 | H63: 5 | I63: C | J63: - | AB63: =_xlfn.IFNA(VLOOKUP(AL63,List!$M$3:$N$526,2,FALSE),"-") -> - | AC63: =_xlfn.IFNA(VLOOKUP(AL63,List!$M$3:$O$526,3,FALSE),"-") -> - | AL63: - | AM63: =VLOOKUP(AH63,List!$D$3:$F$527,2,FALSE)&AJ63&"_"&VLOOKUP(AK63,List!$I$2:$K$529,2,FALSE) ->  | AN63: =_xlfn.IFNA("L"&AM63&" "&"AT%I"&B60*16&".4"&" "&":BOOL;"&" "&"(*"&J63&"*)"," ") ->  | AR63: - | AS63: 10132
C64: 6 | D64: =BIN2DEC(MID((TEXT(IF(B62=20,1,IF(B62=50,10,IF(B62=125,11,IF(B62=250,100,IF(B62=500,101,IF(B62=800,110,IF(B62=1000,111,0))))))),REPT(0,3))),3,1)) -> 1 | E64: =BIN2DEC(MID((TEXT(IF(B62=20,1,IF(B62=50,10,IF(B62=125,11,IF(B62=250,100,IF(B62=500,101,IF(B62=800,110,IF(B62=1000,111,0))))))),REPT(0,3))),3,1)) -> 1 | F64: 6 | H64: 6 | I64: C | J64: - | AB64: =_xlfn.IFNA(VLOOKUP(AL64,List!$M$3:$N$526,2,FALSE),"-") -> - | AC64: =_xlfn.IFNA(VLOOKUP(AL64,List!$M$3:$O$526,3,FALSE),"-") -> - | AL64: - | AM64: =VLOOKUP(AH64,List!$D$3:$F$527,2,FALSE)&AJ64&"_"&VLOOKUP(AK64,List!$I$2:$K$529,2,FALSE) ->  | AN64: =_xlfn.IFNA("L"&AM64&" "&"AT%I"&B60*16&".5"&" "&":BOOL;"&" "&"(*"&J64&"*)"," ") ->  | AR64: - | AS64: 10133
C65: 7 | D65: =BIN2DEC(MID((TEXT(IF(B62=20,1,IF(B62=50,10,IF(B62=125,11,IF(B62=250,100,IF(B62=500,101,IF(B62=800,110,IF(B62=1000,111,0))))))),REPT(0,3))),2,1)) -> 1 | E65: =BIN2DEC(MID((TEXT(IF(B62=20,1,IF(B62=50,10,IF(B62=125,11,IF(B62=250,100,IF(B62=500,101,IF(B62=800,110,IF(B62=1000,111,0))))))),REPT(0,3))),2,1)) -> 1 | F65: 7 | H65: 7 | I65: C | J65: - | AB65: =_xlfn.IFNA(VLOOKUP(AL65,List!$M$3:$N$526,2,FALSE),"-") -> - | AC65: =_xlfn.IFNA(VLOOKUP(AL65,List!$M$3:$O$526,3,FALSE),"-") -> - | AL65: - | AM65: =VLOOKUP(AH65,List!$D$3:$F$527,2,FALSE)&AJ65&"_"&VLOOKUP(AK65,List!$I$2:$K$529,2,FALSE) ->  | AN65: =_xlfn.IFNA("L"&AM65&" "&"AT%I"&B60*16&".6"&" "&":BOOL;"&" "&"(*"&J65&"*)"," ") ->  | AR65: - | AS65: 10134
C66: 8 | D66: =BIN2DEC(MID((TEXT(IF(B62=20,1,IF(B62=50,10,IF(B62=125,11,IF(B62=250,100,IF(B62=500,101,IF(B62=800,110,IF(B62=1000,111,0))))))),REPT(0,3))),1,1)) -> 0 | E66: =BIN2DEC(MID((TEXT(IF(B62=20,1,IF(B62=50,10,IF(B62=125,11,IF(B62=250,100,IF(B62=500,101,IF(B62=800,110,IF(B62=1000,111,0))))))),REPT(0,3))),1,1)) -> 0 | F66: 8 | H66: 8 | I66: C | J66: - | AB66: =_xlfn.IFNA(VLOOKUP(AL66,List!$M$3:$N$526,2,FALSE),"-") -> - | AC66: =_xlfn.IFNA(VLOOKUP(AL66,List!$M$3:$O$526,3,FALSE),"-") -> - | AL66: - | AM66: =VLOOKUP(AH66,List!$D$3:$F$527,2,FALSE)&AJ66&"_"&VLOOKUP(AK66,List!$I$2:$K$529,2,FALSE) ->  | AN66: =_xlfn.IFNA("L"&AM66&" "&"AT%I"&B60*16&".7"&" "&":BOOL;"&" "&"(*"&J66&"*)"," ") ->  | AR66: - | AS66: 10135
F67: 9 | H67: 9 | I67: C | J67: - | AB67: =_xlfn.IFNA(VLOOKUP(AL67,List!$M$3:$N$526,2,FALSE),"-") -> - | AC67: =_xlfn.IFNA(VLOOKUP(AL67,List!$M$3:$O$526,3,FALSE),"-") -> - | AL67: - | AM67: =VLOOKUP(AH67,List!$D$3:$F$527,2,FALSE)&AJ67&"_"&VLOOKUP(AK67,List!$I$2:$K$529,2,FALSE) ->  | AN67: =_xlfn.IFNA("L"&AM67&" "&"AT%I"&B60*16+1&".0"&" "&":BOOL;"&" "&"(*"&J67&"*)"," ") ->  | AR67: - | AS67: 10136
F68: 10 | H68: 10 | I68: C | J68: - | AA68: =IF(AI68="","",AI68) ->  | AB68: =_xlfn.IFNA(VLOOKUP(AL68,List!$M$3:$N$526,2,FALSE),"-") -> - | AC68: =_xlfn.IFNA(VLOOKUP(AL68,List!$M$3:$O$526,3,FALSE),"-") -> - | AL68: =AH68&"-"&AK68 -> - | AM68: =VLOOKUP(AH68,List!$D$3:$F$527,2,FALSE)&AJ68&"_"&VLOOKUP(AK68,List!$I$2:$K$529,2,FALSE) ->  | AN68: =_xlfn.IFNA("L"&AM68&" "&"AT%I"&B60*16+1&".1"&" "&":BOOL;"&" "&"(*"&J68&"*)"," ") ->  | AR68: =J68 -> - | AS68: 10137
F69: 11 | H69: 11 | I69: C | J69: - | AB69: =_xlfn.IFNA(VLOOKUP(AL69,List!$M$3:$N$526,2,FALSE),"-") -> - | AC69: =_xlfn.IFNA(VLOOKUP(AL69,List!$M$3:$O$526,3,FALSE),"-") -> - | AL69: - | AM69: =VLOOKUP(AH69,List!$D$3:$F$527,2,FALSE)&AJ69&"_"&VLOOKUP(AK69,List!$I$2:$K$529,2,FALSE) ->  | AN69: =_xlfn.IFNA("L"&AM69&" "&"AT%I"&B60*16+1&".2"&" "&":BOOL;"&" "&"(*"&J69&"*)"," ") ->  | AR69: - | AS69: 10138
F70: 12 | H70: 12 | I70: C | J70: - | AB70: =_xlfn.IFNA(VLOOKUP(AL70,List!$M$3:$N$526,2,FALSE),"-") -> - | AC70: =_xlfn.IFNA(VLOOKUP(AL70,List!$M$3:$O$526,3,FALSE),"-") -> - | AL70: - | AM70: =VLOOKUP(AH70,List!$D$3:$F$527,2,FALSE)&AJ70&"_"&VLOOKUP(AK70,List!$I$2:$K$529,2,FALSE) ->  | AN70: =_xlfn.IFNA("L"&AM70&" "&"AT%I"&B60*16+1&".3"&" "&":BOOL;"&" "&"(*"&J70&"*)"," ") ->  | AR70: - | AS70: 10139
F71: 13 | H71: 13 | I71: C | J71: - | AB71: =_xlfn.IFNA(VLOOKUP(AL71,List!$M$3:$N$526,2,FALSE),"-") -> - | AC71: =_xlfn.IFNA(VLOOKUP(AL71,List!$M$3:$O$526,3,FALSE),"-") -> - | AL71: - | AM71: =VLOOKUP(AH71,List!$D$3:$F$527,2,FALSE)&AJ71&"_"&VLOOKUP(AK71,List!$I$2:$K$529,2,FALSE) ->  | AN71: =_xlfn.IFNA("L"&AM71&" "&"AT%I"&B60*16+1&".4"&" "&":BOOL;"&" "&"(*"&J71&"*)"," ") ->  | AR71: - | AS71: 10140
F72: 14 | H72: 14 | I72: C | J72: - | AB72: =_xlfn.IFNA(VLOOKUP(AL72,List!$M$3:$N$526,2,FALSE),"-") -> - | AC72: =_xlfn.IFNA(VLOOKUP(AL72,List!$M$3:$O$526,3,FALSE),"-") -> - | AL72: - | AM72: =VLOOKUP(AH72,List!$D$3:$F$527,2,FALSE)&AJ72&"_"&VLOOKUP(AK72,List!$I$2:$K$529,2,FALSE) ->  | AN72: =_xlfn.IFNA("L"&AM72&" "&"AT%I"&B60*16+1&".5"&" "&":BOOL;"&" "&"(*"&J72&"*)"," ") ->  | AR72: - | AS72: 10141
F73: 15 | H73: 15 | I73: C | J73: - | AB73: =_xlfn.IFNA(VLOOKUP(AL73,List!$M$3:$N$526,2,FALSE),"-") -> - | AC73: =_xlfn.IFNA(VLOOKUP(AL73,List!$M$3:$O$526,3,FALSE),"-") -> - | AL73: - | AM73: =VLOOKUP(AH73,List!$D$3:$F$527,2,FALSE)&AJ73&"_"&VLOOKUP(AK73,List!$I$2:$K$529,2,FALSE) ->  | AN73: =_xlfn.IFNA("L"&AM73&" "&"AT%I"&B60*16+1&".6"&" "&":BOOL;"&" "&"(*"&J73&"*)"," ") ->  | AR73: - | AS73: 10142
